Workbook

Sheet home
B1: Spreader Distribution Test - Tray Calculator
B3: Machine Designation | C3: 916T | E3: Spinner Speed (rpm) | F3: 900
B4: Test Date | C4: 2023-06-19 | E4: Spinner Diam (mm) | F4: 600
B5: Test Time | E5: Number of Vanes | F5: D3 Gran
B6: Fertiliser type | C6: Urea | E6: Vane Position | F6: 2 x pos 1, 2 x pos 3
E7: Vane Type | F7: D3
B8: Direction of Travel | C8: N-S | E8: Disc Type | F8: D3 - 14 deg
B9: Avg Wind Speed (kph) | E9: Chute Type | F9: D3 with gran deflector
B10: Wind Direction | E10: Forward Speed (kph) | F10: 20
B11: Temperature (degC) | E11: Door Opening (mm) | F11: NA
B12: Humidity (%) | E12: Gear Setting | F12: VR HYD
E16: Tray Spacing | F16: No. of passes | G16: Target CoV
B17: Centre Tray Number | C17: Zero Mass Tray | E17: (metres) | F17: over trays | G17: (%)
B18: 22 | C18: 22 | E18: 1 | F18: 3 | G18: 15
B19: 1 | C19: 1.9 | F19: Bout Width | G19: Application Rate | O19: 1 | P19: =IF(OR(O19=$B$18+1,O19=$B$18-1),(C71+C20)/2,C19) -> 1.9 | Q19: =IF(O19-laps!$B$9<1,0,IF(laps!$B$9>0,VLOOKUP(home!O19-laps!$B$9,home!$O$19:$P$99,2),VLOOKUP(home!O19,home!$O$19:$P$99,2))) -> 1.9
B20: 2 | C20: 2.9 | F20: (m) | G20: (kg/ha) | O20: 2 | P20: =IF(OR(O20=$B$18+1,O20=$B$18-1),(C19+C21)/2,C20) -> 2.9 | Q20: =IF(O20-laps!$B$9<1,0,IF(laps!$B$9>0,VLOOKUP(home!O20-laps!$B$9,home!$O$19:$P$99,2),VLOOKUP(home!O20,home!$O$19:$P$99,2))) -> 2.9
B21: 3 | C21: 3.9 | E21: Racetrack | F21: =(VLOOKUP("X",laps_data!I2:L82,4,FALSE))*E18 -> 25 | G21: =VLOOKUP(F21,laps!$A$110:$C$159,3)*40/F18 -> 160.6933333 | O21: 3 | P21: 3.9 | Q21: =IF(O21-laps!$B$9<1,0,IF(laps!$B$9>0,VLOOKUP(home!O21-laps!$B$9,home!$O$19:$P$99,2),VLOOKUP(home!O21,home!$O$19:$P$99,2))) -> 3.9
B22: 4 | C22: 4.55 | E22: To & fro | F22: =(VLOOKUP("X",laps_data!K2:L82,2,FALSE))*E18 -> 25 | G22: =VLOOKUP(F22,laps!$A$304:$C$353,3)*40/F18 -> 160.6933333 | O22: 4 | P22: 4.55 | Q22: =IF(O22-laps!$B$9<1,0,IF(laps!$B$9>0,VLOOKUP(home!O22-laps!$B$9,home!$O$19:$P$99,2),VLOOKUP(home!O22,home!$O$19:$P$99,2))) -> 4.55
B23: 5 | C23: 5.2 | O23: 5 | P23: 5.2 | Q23: =IF(O23-laps!$B$9<1,0,IF(laps!$B$9>0,VLOOKUP(home!O23-laps!$B$9,home!$O$19:$P$99,2),VLOOKUP(home!O23,home!$O$19:$P$99,2))) -> 5.2
B24: 6 | C24: 6.2 | O24: 6 | P24: =IF(OR(O24=$B$18+1,O24=$B$18-1),(C23+C25)/2,C24) -> 6.2 | Q24: =IF(O24-laps!$B$9<1,0,IF(laps!$B$9>0,VLOOKUP(home!O24-laps!$B$9,home!$O$19:$P$99,2),VLOOKUP(home!O24,home!$O$19:$P$99,2))) -> 6.2
B25: 7 | C25: 7.2 | O25: 7 | P25: 7.2 | Q25: =IF(O25-laps!$B$9<1,0,IF(laps!$B$9>0,VLOOKUP(home!O25-laps!$B$9,home!$O$19:$P$99,2),VLOOKUP(home!O25,home!$O$19:$P$99,2))) -> 7.2
B26: 8 | C26: 6.8 | O26: 8 | P26: 6.8 | Q26: =IF(O26-laps!$B$9<1,0,IF(laps!$B$9>0,VLOOKUP(home!O26-laps!$B$9,home!$O$19:$P$99,2),VLOOKUP(home!O26,home!$O$19:$P$99,2))) -> 6.8
B27: 9 | C27: 6.4 | O27: 9 | P27: 6.4 | Q27: =IF(O27-laps!$B$9<1,0,IF(laps!$B$9>0,VLOOKUP(home!O27-laps!$B$9,home!$O$19:$P$99,2),VLOOKUP(home!O27,home!$O$19:$P$99,2))) -> 6.4
B28: 10 | C28: 6.65 | O28: 10 | P28: 6.65 | Q28: =IF(O28-laps!$B$9<1,0,IF(laps!$B$9>0,VLOOKUP(home!O28-laps!$B$9,home!$O$19:$P$99,2),VLOOKUP(home!O28,home!$O$19:$P$99,2))) -> 6.65
B29: 11 | C29: 6.9 | O29: 11 | P29: 6.9 | Q29: =IF(O29-laps!$B$9<1,0,IF(laps!$B$9>0,VLOOKUP(home!O29-laps!$B$9,home!$O$19:$P$99,2),VLOOKUP(home!O29,home!$O$19:$P$99,2))) -> 6.9
B30: 12 | C30: 7.45 | O30: 12 | P30: 7.45 | Q30: =IF(O30-laps!$B$9<1,0,IF(laps!$B$9>0,VLOOKUP(home!O30-laps!$B$9,home!$O$19:$P$99,2),VLOOKUP(home!O30,home!$O$19:$P$99,2))) -> 7.45
B31: 13 | C31: 8 | O31: 13 | P31: 8 | Q31: =IF(O31-laps!$B$9<1,0,IF(laps!$B$9>0,VLOOKUP(home!O31-laps!$B$9,home!$O$19:$P$99,2),VLOOKUP(home!O31,home!$O$19:$P$99,2))) -> 8
B32: 14 | C32: 7.55 | O32: 14 | P32: 7.55 | Q32: =IF(O32-laps!$B$9<1,0,IF(laps!$B$9>0,VLOOKUP(home!O32-laps!$B$9,home!$O$19:$P$99,2),VLOOKUP(home!O32,home!$O$19:$P$99,2))) -> 7.55
B33: 15 | C33: 7.1 | O33: 15 | P33: 7.1 | Q33: =IF(O33-laps!$B$9<1,0,IF(laps!$B$9>0,VLOOKUP(home!O33-laps!$B$9,home!$O$19:$P$99,2),VLOOKUP(home!O33,home!$O$19:$P$99,2))) -> 7.1
B34: 16 | C34: 7.55 | O34: 16 | P34: 7.55 | Q34: =IF(O34-laps!$B$9<1,0,IF(laps!$B$9>0,VLOOKUP(home!O34-laps!$B$9,home!$O$19:$P$99,2),VLOOKUP(home!O34,home!$O$19:$P$99,2))) -> 7.55
B35: 17 | C35: 8 | O35: 17 | P35: 8 | Q35: =IF(O35-laps!$B$9<1,0,IF(laps!$B$9>0,VLOOKUP(home!O35-laps!$B$9,home!$O$19:$P$99,2),VLOOKUP(home!O35,home!$O$19:$P$99,2))) -> 8
B36: 18 | C36: 8.55 | O36: 18 | P36: 8.55 | Q36: =IF(O36-laps!$B$9<1,0,IF(laps!$B$9>0,VLOOKUP(home!O36-laps!$B$9,home!$O$19:$P$99,2),VLOOKUP(home!O36,home!$O$19:$P$99,2))) -> 8.55
B37: 19 | C37: 9.1 | F37: 3.509 | G37: =1-C37/F37 -> -1.593331433 | O37: 19 | P37: 9.1 | Q37: =IF(O37-laps!$B$9<1,0,IF(laps!$B$9>0,VLOOKUP(home!O37-laps!$B$9,home!$O$19:$P$99,2),VLOOKUP(home!O37,home!$O$19:$P$99,2))) -> 9.1
B38: 20 | C38: 10.43333333 | F38: 4.144 | G38: =1-C38/F38 -> -1.517696268 | O38: 20 | P38: 10.43333333 | Q38: =IF(O38-laps!$B$9<1,0,IF(laps!$B$9>0,VLOOKUP(home!O38-laps!$B$9,home!$O$19:$P$99,2),VLOOKUP(home!O38,home!$O$19:$P$99,2))) -> 10.43333333
B39: 21 | C39: 11.76666667 | E39: Place Zero either side of centre | F39: =AVERAGE(F38,F40) -> 4.3965 | G39: -1.676371356 | O39: 21 | P39: 11.76666667 | Q39: =IF(O39-laps!$B$9<1,0,IF(laps!$B$9>0,VLOOKUP(home!O39-laps!$B$9,home!$O$19:$P$99,2),VLOOKUP(home!O39,home!$O$19:$P$99,2))) -> 11.76666667
B40: 22 | C40: 13.1 | E40: Centre Tray | F40: 4.649 | G40: -1.817810282 | O40: 22 | P40: 13.1 | Q40: =IF(O40-laps!$B$9<1,0,IF(laps!$B$9>0,VLOOKUP(home!O40-laps!$B$9,home!$O$19:$P$99,2),VLOOKUP(home!O40,home!$O$19:$P$99,2))) -> 13.1
B41: 23 | C41: 11.76666667 | E41: Place Zero either side of centre | F41: =AVERAGE(F40,F42) -> 4.333 | G41: -1.715593507 | O41: 23 | P41: 11.76666667 | Q41: =IF(O41-laps!$B$9<1,0,IF(laps!$B$9>0,VLOOKUP(home!O41-laps!$B$9,home!$O$19:$P$99,2),VLOOKUP(home!O41,home!$O$19:$P$99,2))) -> 11.76666667
B42: 24 | C42: 10.43333333 | F42: 4.017 | G42: -1.59729483 | O42: 24 | P42: 10.43333333 | Q42: =IF(O42-laps!$B$9<1,0,IF(laps!$B$9>0,VLOOKUP(home!O42-laps!$B$9,home!$O$19:$P$99,2),VLOOKUP(home!O42,home!$O$19:$P$99,2))) -> 10.43333333
B43: 25 | C43: 9.1 | F43: 3.908 | G43: -1.328556807 | O43: 25 | P43: 9.1 | Q43: =IF(O43-laps!$B$9<1,0,IF(laps!$B$9>0,VLOOKUP(home!O43-laps!$B$9,home!$O$19:$P$99,2),VLOOKUP(home!O43,home!$O$19:$P$99,2))) -> 9.1
B44: 26 | C44: 8.55 | O44: 26 | P44: 8.55 | Q44: =IF(O44-laps!$B$9<1,0,IF(laps!$B$9>0,VLOOKUP(home!O44-laps!$B$9,home!$O$19:$P$99,2),VLOOKUP(home!O44,home!$O$19:$P$99,2))) -> 8.55
B45: 27 | C45: 8 | O45: 27 | P45: 8 | Q45: =IF(O45-laps!$B$9<1,0,IF(laps!$B$9>0,VLOOKUP(home!O45-laps!$B$9,home!$O$19:$P$99,2),VLOOKUP(home!O45,home!$O$19:$P$99,2))) -> 8
B46: 28 | C46: 7.55 | O46: 28 | P46: 7.55 | Q46: =IF(O46-laps!$B$9<1,0,IF(laps!$B$9>0,VLOOKUP(home!O46-laps!$B$9,home!$O$19:$P$99,2),VLOOKUP(home!O46,home!$O$19:$P$99,2))) -> 7.55
B47: 29 | C47: 7.1 | O47: 29 | P47: 7.1 | Q47: =IF(O47-laps!$B$9<1,0,IF(laps!$B$9>0,VLOOKUP(home!O47-laps!$B$9,home!$O$19:$P$99,2),VLOOKUP(home!O47,home!$O$19:$P$99,2))) -> 7.1
B48: 30 | C48: 7.55 | O48: 30 | P48: 7.55 | Q48: =IF(O48-laps!$B$9<1,0,IF(laps!$B$9>0,VLOOKUP(home!O48-laps!$B$9,home!$O$19:$P$99,2),VLOOKUP(home!O48,home!$O$19:$P$99,2))) -> 7.55
B49: 31 | C49: 8 | O49: 31 | P49: 8 | Q49: =IF(O49-laps!$B$9<1,0,IF(laps!$B$9>0,VLOOKUP(home!O49-laps!$B$9,home!$O$19:$P$99,2),VLOOKUP(home!O49,home!$O$19:$P$99,2))) -> 8
B50: 32 | C50: 7.45 | O50: 32 | P50: 7.45 | Q50: =IF(O50-laps!$B$9<1,0,IF(laps!$B$9>0,VLOOKUP(home!O50-laps!$B$9,home!$O$19:$P$99,2),VLOOKUP(home!O50,home!$O$19:$P$99,2))) -> 7.45
B51: 33 | C51: 6.9 | O51: 33 | P51: 6.9 | Q51: =IF(O51-laps!$B$9<1,0,IF(laps!$B$9>0,VLOOKUP(home!O51-laps!$B$9,home!$O$19:$P$99,2),VLOOKUP(home!O51,home!$O$19:$P$99,2))) -> 6.9
B52: 34 | C52: 6.65 | O52: 34 | P52: =IF(OR(O52=$B$18+1,O52=$B$18-1),(C51+C53)/2,C52) -> 6.65 | Q52: =IF(O52-laps!$B$9<1,0,IF(laps!$B$9>0,VLOOKUP(home!O52-laps!$B$9,home!$O$19:$P$99,2),VLOOKUP(home!O52,home!$O$19:$P$99,2))) -> 6.65
B53: 35 | C53: 6.4 | O53: 35 | P53: 6.4 | Q53: =IF(O53-laps!$B$9<1,0,IF(laps!$B$9>0,VLOOKUP(home!O53-laps!$B$9,home!$O$19:$P$99,2),VLOOKUP(home!O53,home!$O$19:$P$99,2))) -> 6.4
B54: 36 | C54: 6.8 | O54: 36 | P54: 6.8 | Q54: =IF(O54-laps!$B$9<1,0,IF(laps!$B$9>0,VLOOKUP(home!O54-laps!$B$9,home!$O$19:$P$99,2),VLOOKUP(home!O54,home!$O$19:$P$99,2))) -> 6.8
B55: 37 | C55: 7.2 | O55: 37 | P55: 7.2 | Q55: =IF(O55-laps!$B$9<1,0,IF(laps!$B$9>0,VLOOKUP(home!O55-laps!$B$9,home!$O$19:$P$99,2),VLOOKUP(home!O55,home!$O$19:$P$99,2))) -> 7.2
B56: 38 | C56: 6.2 | O56: 38 | P56: 6.2 | Q56: =IF(O56-laps!$B$9<1,0,IF(laps!$B$9>0,VLOOKUP(home!O56-laps!$B$9,home!$O$19:$P$99,2),VLOOKUP(home!O56,home!$O$19:$P$99,2))) -> 6.2
B57: 39 | C57: 5.2 | O57: 39 | P57: 5.2 | Q57: =IF(O57-laps!$B$9<1,0,IF(laps!$B$9>0,VLOOKUP(home!O57-laps!$B$9,home!$O$19:$P$99,2),VLOOKUP(home!O57,home!$O$19:$P$99,2))) -> 5.2
B58: 40 | C58: 4.55 | O58: 40 | P58: 4.55 | Q58: =IF(O58-laps!$B$9<1,0,IF(laps!$B$9>0,VLOOKUP(home!O58-laps!$B$9,home!$O$19:$P$99,2),VLOOKUP(home!O58,home!$O$19:$P$99,2))) -> 4.55
B59: 41 | C59: 3.9 | O59: 41 | P59: 3.9 | Q59: =IF(O59-laps!$B$9<1,0,IF(laps!$B$9>0,VLOOKUP(home!O59-laps!$B$9,home!$O$19:$P$99,2),VLOOKUP(home!O59,home!$O$19:$P$99,2))) -> 3.9
B60: 42 | C60: 2.9 | O60: 42 | P60: 2.9 | Q60: =IF(O60-laps!$B$9<1,0,IF(laps!$B$9>0,VLOOKUP(home!O60-laps!$B$9,home!$O$19:$P$99,2),VLOOKUP(home!O60,home!$O$19:$P$99,2))) -> 2.9
B61: 43 | C61: 1.9 | E61: Final Tray | O61: 43 | P61: 1.9 | Q61: =IF(O61-laps!$B$9<1,0,IF(laps!$B$9>0,VLOOKUP(home!O61-laps!$B$9,home!$O$19:$P$99,2),VLOOKUP(home!O61,home!$O$19:$P$99,2))) -> 1.9
B62: 44 | C62: 0 | O62: 44 | P62: 0 | Q62: =IF(O62-laps!$B$9<1,0,IF(laps!$B$9>0,VLOOKUP(home!O62-laps!$B$9,home!$O$19:$P$99,2),VLOOKUP(home!O62,home!$O$19:$P$99,2))) -> 0
B63: 45 | C63: 0 | O63: 45 | P63: 0 | Q63: =IF(O63-laps!$B$9<1,0,IF(laps!$B$9>0,VLOOKUP(home!O63-laps!$B$9,home!$O$19:$P$99,2),VLOOKUP(home!O63,home!$O$19:$P$99,2))) -> 0
B64: 46 | C64: 0 | O64: 46 | P64: 0 | Q64: =IF(O64-laps!$B$9<1,0,IF(laps!$B$9>0,VLOOKUP(home!O64-laps!$B$9,home!$O$19:$P$99,2),VLOOKUP(home!O64,home!$O$19:$P$99,2))) -> 0
B65: 47 | C65: 0 | O65: 47 | P65: 0 | Q65: =IF(O65-laps!$B$9<1,0,IF(laps!$B$9>0,VLOOKUP(home!O65-laps!$B$9,home!$O$19:$P$99,2),VLOOKUP(home!O65,home!$O$19:$P$99,2))) -> 0
B66: 48 | C66: 0 | O66: 48 | P66: 0 | Q66: =IF(O66-laps!$B$9<1,0,IF(laps!$B$9>0,VLOOKUP(home!O66-laps!$B$9,home!$O$19:$P$99,2),VLOOKUP(home!O66,home!$O$19:$P$99,2))) -> 0
B67: 49 | C67: 0 | O67: 49 | P67: 0 | Q67: =IF(O67-laps!$B$9<1,0,IF(laps!$B$9>0,VLOOKUP(home!O67-laps!$B$9,home!$O$19:$P$99,2),VLOOKUP(home!O67,home!$O$19:$P$99,2))) -> 0
B68: 50 | C68: 0 | O68: 50 | P68: 0 | Q68: =IF(O68-laps!$B$9<1,0,IF(laps!$B$9>0,VLOOKUP(home!O68-laps!$B$9,home!$O$19:$P$99,2),VLOOKUP(home!O68,home!$O$19:$P$99,2))) -> 0
B69: 51 | C69: 0 | O69: 51 | P69: =IF(OR(O69=$B$18+1,O69=$B$18-1),(C68+C70)/2,C69) -> 0 | Q69: =IF(O69-laps!$B$9<1,0,IF(laps!$B$9>0,VLOOKUP(home!O69-laps!$B$9,home!$O$19:$P$99,2),VLOOKUP(home!O69,home!$O$19:$P$99,2))) -> 0
B70: 52 | C70: 0 | O70: 52 | P70: 0 | Q70: =IF(O70-laps!$B$9<1,0,IF(laps!$B$9>0,VLOOKUP(home!O70-laps!$B$9,home!$O$19:$P$99,2),VLOOKUP(home!O70,home!$O$19:$P$99,2))) -> 0
B71: 53 | C71: 0 | O71: 53 | P71: 0 | Q71: =IF(O71-laps!$B$9<1,0,IF(laps!$B$9>0,VLOOKUP(home!O71-laps!$B$9,home!$O$19:$P$99,2),VLOOKUP(home!O71,home!$O$19:$P$99,2))) -> 0
B72: 54 | C72: 0 | O72: 54 | P72: 0 | Q72: =IF(O72-laps!$B$9<1,0,IF(laps!$B$9>0,VLOOKUP(home!O72-laps!$B$9,home!$O$19:$P$99,2),VLOOKUP(home!O72,home!$O$19:$P$99,2))) -> 0
B73: 55 | C73: 0 | O73: 55 | P73: 0 | Q73: =IF(O73-laps!$B$9<1,0,IF(laps!$B$9>0,VLOOKUP(home!O73-laps!$B$9,home!$O$19:$P$99,2),VLOOKUP(home!O73,home!$O$19:$P$99,2))) -> 0
B74: 56 | C74: 0 | O74: 56 | P74: 0 | Q74: =IF(O74-laps!$B$9<1,0,IF(laps!$B$9>0,VLOOKUP(home!O74-laps!$B$9,home!$O$19:$P$99,2),VLOOKUP(home!O74,home!$O$19:$P$99,2))) -> 0
B75: 57 | C75: 0 | O75: 57 | P75: 0 | Q75: =IF(O75-laps!$B$9<1,0,IF(laps!$B$9>0,VLOOKUP(home!O75-laps!$B$9,home!$O$19:$P$99,2),VLOOKUP(home!O75,home!$O$19:$P$99,2))) -> 0
B76: 58 | C76: 0 | O76: 58 | P76: 0 | Q76: =IF(O76-laps!$B$9<1,0,IF(laps!$B$9>0,VLOOKUP(home!O76-laps!$B$9,home!$O$19:$P$99,2),VLOOKUP(home!O76,home!$O$19:$P$99,2))) -> 0
B77: 59 | C77: 0 | O77: 59 | P77: 0 | Q77: =IF(O77-laps!$B$9<1,0,IF(laps!$B$9>0,VLOOKUP(home!O77-laps!$B$9,home!$O$19:$P$99,2),VLOOKUP(home!O77,home!$O$19:$P$99,2))) -> 0
B78: 60 | C78: 0 | O78: 60 | P78: 0 | Q78: =IF(O78-laps!$B$9<1,0,IF(laps!$B$9>0,VLOOKUP(home!O78-laps!$B$9,home!$O$19:$P$99,2),VLOOKUP(home!O78,home!$O$19:$P$99,2))) -> 0
B79: 61 | C79: 0 | O79: 61 | P79: 0 | Q79: =IF(O79-laps!$B$9<1,0,IF(laps!$B$9>0,VLOOKUP(home!O79-laps!$B$9,home!$O$19:$P$99,2),VLOOKUP(home!O79,home!$O$19:$P$99,2))) -> 0
B80: 62 | C80: 0 | O80: 62 | P80: 0 | Q80: =IF(O80-laps!$B$9<1,0,IF(laps!$B$9>0,VLOOKUP(home!O80-laps!$B$9,home!$O$19:$P$99,2),VLOOKUP(home!O80,home!$O$19:$P$99,2))) -> 0
B81: 63 | C81: 0 | O81: 63 | P81: 0 | Q81: =IF(O81-laps!$B$9<1,0,IF(laps!$B$9>0,VLOOKUP(home!O81-laps!$B$9,home!$O$19:$P$99,2),VLOOKUP(home!O81,home!$O$19:$P$99,2))) -> 0
B82: 64 | C82: 0 | O82: 64 | P82: 0 | Q82: =IF(O82-laps!$B$9<1,0,IF(laps!$B$9>0,VLOOKUP(home!O82-laps!$B$9,home!$O$19:$P$99,2),VLOOKUP(home!O82,home!$O$19:$P$99,2))) -> 0
B83: 65 | C83: 0 | O83: 65 | P83: 0 | Q83: =IF(O83-laps!$B$9<1,0,IF(laps!$B$9>0,VLOOKUP(home!O83-laps!$B$9,home!$O$19:$P$99,2),VLOOKUP(home!O83,home!$O$19:$P$99,2))) -> 0
B84: 66 | C84: 0 | O84: 66 | P84: 0 | Q84: =IF(O84-laps!$B$9<1,0,IF(laps!$B$9>0,VLOOKUP(home!O84-laps!$B$9,home!$O$19:$P$99,2),VLOOKUP(home!O84,home!$O$19:$P$99,2))) -> 0
B85: 67 | C85: 0 | O85: 67 | P85: 0 | Q85: =IF(O85-laps!$B$9<1,0,IF(laps!$B$9>0,VLOOKUP(home!O85-laps!$B$9,home!$O$19:$P$99,2),VLOOKUP(home!O85,home!$O$19:$P$99,2))) -> 0
B86: 68 | C86: 0 | O86: 68 | P86: 0 | Q86: =IF(O86-laps!$B$9<1,0,IF(laps!$B$9>0,VLOOKUP(home!O86-laps!$B$9,home!$O$19:$P$99,2),VLOOKUP(home!O86,home!$O$19:$P$99,2))) -> 0
B87: 69 | C87: 0 | O87: 69 | P87: 0 | Q87: =IF(O87-laps!$B$9<1,0,IF(laps!$B$9>0,VLOOKUP(home!O87-laps!$B$9,home!$O$19:$P$99,2),VLOOKUP(home!O87,home!$O$19:$P$99,2))) -> 0
B88: 70 | C88: 0 | O88: 70 | P88: 0 | Q88: =IF(O88-laps!$B$9<1,0,IF(laps!$B$9>0,VLOOKUP(home!O88-laps!$B$9,home!$O$19:$P$99,2),VLOOKUP(home!O88,home!$O$19:$P$99,2))) -> 0
B89: 71 | C89: 0 | O89: 71 | P89: 0 | Q89: =IF(O89-laps!$B$9<1,0,IF(laps!$B$9>0,VLOOKUP(home!O89-laps!$B$9,home!$O$19:$P$99,2),VLOOKUP(home!O89,home!$O$19:$P$99,2))) -> 0
B90: 72 | C90: 0 | O90: 72 | P90: 0 | Q90: =IF(O90-laps!$B$9<1,0,IF(laps!$B$9>0,VLOOKUP(home!O90-laps!$B$9,home!$O$19:$P$99,2),VLOOKUP(home!O90,home!$O$19:$P$99,2))) -> 0
B91: 73 | C91: 0 | O91: 73 | P91: 0 | Q91: =IF(O91-laps!$B$9<1,0,IF(laps!$B$9>0,VLOOKUP(home!O91-laps!$B$9,home!$O$19:$P$99,2),VLOOKUP(home!O91,home!$O$19:$P$99,2))) -> 0
B92: 74 | C92: 0 | O92: 74 | P92: 0 | Q92: =IF(O92-laps!$B$9<1,0,IF(laps!$B$9>0,VLOOKUP(home!O92-laps!$B$9,home!$O$19:$P$99,2),VLOOKUP(home!O92,home!$O$19:$P$99,2))) -> 0
B93: 75 | C93: 0 | O93: 75 | P93: 0 | Q93: =IF(O93-laps!$B$9<1,0,IF(laps!$B$9>0,VLOOKUP(home!O93-laps!$B$9,home!$O$19:$P$99,2),VLOOKUP(home!O93,home!$O$19:$P$99,2))) -> 0
B94: 76 | C94: 0 | O94: 76 | P94: 0 | Q94: =IF(O94-laps!$B$9<1,0,IF(laps!$B$9>0,VLOOKUP(home!O94-laps!$B$9,home!$O$19:$P$99,2),VLOOKUP(home!O94,home!$O$19:$P$99,2))) -> 0
B95: 77 | C95: 0 | O95: 77 | P95: 0 | Q95: =IF(O95-laps!$B$9<1,0,IF(laps!$B$9>0,VLOOKUP(home!O95-laps!$B$9,home!$O$19:$P$99,2),VLOOKUP(home!O95,home!$O$19:$P$99,2))) -> 0
B96: 78 | C96: 0 | O96: 78 | P96: 0 | Q96: =IF(O96-laps!$B$9<1,0,IF(laps!$B$9>0,VLOOKUP(home!O96-laps!$B$9,home!$O$19:$P$99,2),VLOOKUP(home!O96,home!$O$19:$P$99,2))) -> 0
B97: 79 | C97: 0 | O97: 79 | P97: 0 | Q97: =IF(O97-laps!$B$9<1,0,IF(laps!$B$9>0,VLOOKUP(home!O97-laps!$B$9,home!$O$19:$P$99,2),VLOOKUP(home!O97,home!$O$19:$P$99,2))) -> 0
B98: 80 | C98: 0 | O98: 80 | P98: 0 | Q98: =IF(O98-laps!$B$9<1,0,IF(laps!$B$9>0,VLOOKUP(home!O98-laps!$B$9,home!$O$19:$P$99,2),VLOOKUP(home!O98,home!$O$19:$P$99,2))) -> 0
B99: 81 | C99: 0 | O99: 81 | P99: 0 | Q99: =IF(O99-laps!$B$9<1,0,IF(laps!$B$9>0,VLOOKUP(home!O99-laps!$B$9,home!$O$19:$P$99,2),VLOOKUP(home!O99,home!$O$19:$P$99,2))) -> 0

Sheet Spread Patterns (hidden)
A2: Bout width | B2: 39
A14: Bout width | B14: 39

Sheet laps (hidden)
E1: 1 | F1: 2 | G1: 3 | H1: 4 | I1: 5 | J1: 6 | K1: 7 | L1: 8 | M1: 9 | N1: 10 | O1: 11 | P1: 12 | Q1: 13 | R1: 14 | S1: 15 | T1: 16 | U1: 17 | V1: 18 | W1: 19 | X1: 20 | Y1: 21 | Z1: 22 | AA1: 23 | AB1: 24 | AC1: 25 | AD1: 26 | AE1: 27 | AF1: 28 | AG1: 29 | AH1: 30 | AI1: 31 | AJ1: 32 | AK1: 33 | AL1: 34 | AM1: 35 | AN1: 36 | AO1: 37 | AP1: 38 | AQ1: 39 | AR1: 40 | AS1: 41 | AT1: 42 | AU1: 43 | AV1: 44 | AW1: 45 | AX1: 46 | AY1: 47 | AZ1: 48 | BA1: 49 | BB1: 50 | BC1: 51 | BD1: 52 | BE1: 53 | BF1: 54 | BG1: 55 | BH1: 56 | BI1: 57 | BJ1: 58 | BK1: 59 | BL1: 60 | BM1: 61 | BN1: 62 | BO1: 63 | BP1: 64 | BQ1: 65 | BR1: 66 | BS1: 67 | BT1: 68 | BU1: 69 | BV1: 70 | BW1: 71 | BX1: 72 | BY1: 73 | BZ1: 74 | CA1: 75 | CB1: 76 | CC1: 77 | CD1: 78 | CE1: 79 | CF1: 80 | CG1: 81 | CH1: 82 | CI1: 83 | CJ1: 84 | CK1: 85 | CL1: 86 | CM1: 87 | CN1: 88 | CO1: 89 | CP1: 90 | CQ1: 91 | CR1: 92 | CS1: 93 | CT1: 94 | CU1: 95 | CV1: 96 | CW1: 97 | CX1: 98 | CY1: 99 | CZ1: 100 | DA1: 101 | DB1: 102 | DC1: 103 | DD1: 104 | DE1: 105 | DF1: 106 | DG1: 107 | DH1: 108 | DI1: 109 | DJ1: 110 | DK1: 111 | DL1: 112 | DM1: 113 | DN1: 114 | DO1: 115 | DP1: 116 | DQ1: 117 | DR1: 118 | DS1: 119 | DT1: 120 | DU1: 121 | DV1: 122 | DW1: 123 | DX1: 124 | DY1: 125 | DZ1: 126 | EA1: 127 | EB1: 128 | EC1: 129 | ED1: 130 | EE1: 131 | EF1: 132 | EG1: 133 | EH1: 134 | EI1: 135 | EJ1: 136 | EK1: 137 | EL1: 138 | EM1: 139 | EN1: 140 | EO1: 141 | EP1: 142 | EQ1: 143 | ER1: 144 | ES1: 145 | ET1: 146 | EU1: 147 | EV1: 148 | EW1: 149 | EX1: 150 | EY1: 151 | EZ1: 152 | FA1: 153 | FB1: 154 | FC1: 155 | FD1: 156 | FE1: 157 | FF1: 158 | FG1: 159 | FH1: 160 | FI1: 161 | FJ1: 162 | FK1: 163 | FL1: 164 | FM1: 165 | FN1: 166 | FO1: 167 | FP1: 168 | FQ1: 169 | FR1: 170 | FS1: 171 | FT1: 172 | FU1: 173 | FV1: 174 | FW1: 175 | FX1: 176
E2: =OFFSET(home!$Q$18,laps!E1,0) -> 1.9 | F2: =OFFSET(home!$Q$18,laps!F1,0) -> 2.9 | G2: =OFFSET(home!$Q$18,laps!G1,0) -> 3.9 | H2: =OFFSET(home!$Q$18,laps!H1,0) -> 4.55 | I2: =OFFSET(home!$Q$18,laps!I1,0) -> 5.2 | J2: =OFFSET(home!$Q$18,laps!J1,0) -> 6.2 | K2: =OFFSET(home!$Q$18,laps!K1,0) -> 7.2 | L2: =OFFSET(home!$Q$18,laps!L1,0) -> 6.8 | M2: =OFFSET(home!$Q$18,laps!M1,0) -> 6.4 | N2: =OFFSET(home!$Q$18,laps!N1,0) -> 6.65 | O2: =OFFSET(home!$Q$18,laps!O1,0) -> 6.9 | P2: =OFFSET(home!$Q$18,laps!P1,0) -> 7.45 | Q2: =OFFSET(home!$Q$18,laps!Q1,0) -> 8 | R2: =OFFSET(home!$Q$18,laps!R1,0) -> 7.55 | S2: =OFFSET(home!$Q$18,laps!S1,0) -> 7.1 | T2: =OFFSET(home!$Q$18,laps!T1,0) -> 7.55 | U2: =OFFSET(home!$Q$18,laps!U1,0) -> 8 | V2: =OFFSET(home!$Q$18,laps!V1,0) -> 8.55 | W2: =OFFSET(home!$Q$18,laps!W1,0) -> 9.1 | X2: =OFFSET(home!$Q$18,laps!X1,0) -> 10.43333333 | Y2: =OFFSET(home!$Q$18,laps!Y1,0) -> 11.76666667 | Z2: =OFFSET(home!$Q$18,laps!Z1,0) -> 13.1 | AA2: =OFFSET(home!$Q$18,laps!AA1,0) -> 11.76666667 | AB2: =OFFSET(home!$Q$18,laps!AB1,0) -> 10.43333333 | AC2: =OFFSET(home!$Q$18,laps!AC1,0) -> 9.1 | AD2: =OFFSET(home!$Q$18,laps!AD1,0) -> 8.55 | AE2: =OFFSET(home!$Q$18,laps!AE1,0) -> 8 | AF2: =OFFSET(home!$Q$18,laps!AF1,0) -> 7.55 | AG2: =OFFSET(home!$Q$18,laps!AG1,0) -> 7.1 | AH2: =OFFSET(home!$Q$18,laps!AH1,0) -> 7.55 | AI2: =OFFSET(home!$Q$18,laps!AI1,0) -> 8 | AJ2: =OFFSET(home!$Q$18,laps!AJ1,0) -> 7.45 | AK2: =OFFSET(home!$Q$18,laps!AK1,0) -> 6.9 | AL2: =OFFSET(home!$Q$18,laps!AL1,0) -> 6.65 | AM2: =OFFSET(home!$Q$18,laps!AM1,0) -> 6.4 | AN2: =OFFSET(home!$Q$18,laps!AN1,0) -> 6.8 | AO2: =OFFSET(home!$Q$18,laps!AO1,0) -> 7.2 | AP2: =OFFSET(home!$Q$18,laps!AP1,0) -> 6.2 | AQ2: =OFFSET(home!$Q$18,laps!AQ1,0) -> 5.2 | AR2: =OFFSET(home!$Q$18,laps!AR1,0) -> 4.55 | AS2: =OFFSET(home!$Q$18,laps!AS1,0) -> 3.9 | AT2: =OFFSET(home!$Q$18,laps!AT1,0) -> 2.9 | AU2: =OFFSET(home!$Q$18,laps!AU1,0) -> 1.9 | AV2: =OFFSET(home!$Q$18,laps!AV1,0) -> 0 | AW2: =OFFSET(home!$Q$18,laps!AW1,0) -> 0 | AX2: =OFFSET(home!$Q$18,laps!AX1,0) -> 0 | AY2: =OFFSET(home!$Q$18,laps!AY1,0) -> 0 | AZ2: =OFFSET(home!$Q$18,laps!AZ1,0) -> 0 | BA2: =OFFSET(home!$Q$18,laps!BA1,0) -> 0 | BB2: =OFFSET(home!$Q$18,laps!BB1,0) -> 0 | BC2: =OFFSET(home!$Q$18,laps!BC1,0) -> 0 | BD2: =OFFSET(home!$Q$18,laps!BD1,0) -> 0 | BE2: =OFFSET(home!$Q$18,laps!BE1,0) -> 0 | BF2: =OFFSET(home!$Q$18,laps!BF1,0) -> 0 | BG2: =OFFSET(home!$Q$18,laps!BG1,0) -> 0 | BH2: =OFFSET(home!$Q$18,laps!BH1,0) -> 0 | BI2: =OFFSET(home!$Q$18,laps!BI1,0) -> 0 | BJ2: =OFFSET(home!$Q$18,laps!BJ1,0) -> 0 | BK2: =OFFSET(home!$Q$18,laps!BK1,0) -> 0 | BL2: =OFFSET(home!$Q$18,laps!BL1,0) -> 0 | BM2: =OFFSET(home!$Q$18,laps!BM1,0) -> 0 | BN2: =OFFSET(home!$Q$18,laps!BN1,0) -> 0 | BO2: =OFFSET(home!$Q$18,laps!BO1,0) -> 0 | BP2: =OFFSET(home!$Q$18,laps!BP1,0) -> 0 | BQ2: =OFFSET(home!$Q$18,laps!BQ1,0) -> 0 | BR2: =OFFSET(home!$Q$18,laps!BR1,0) -> 0 | BS2: =OFFSET(home!$Q$18,laps!BS1,0) -> 0 | BT2: =OFFSET(home!$Q$18,laps!BT1,0) -> 0 | BU2: =OFFSET(home!$Q$18,laps!BU1,0) -> 0 | BV2: =OFFSET(home!$Q$18,laps!BV1,0) -> 0 | BW2: =OFFSET(home!$Q$18,laps!BW1,0) -> 0 | BX2: =OFFSET(home!$Q$18,laps!BX1,0) -> 0 | BY2: =OFFSET(home!$Q$18,laps!BY1,0) -> 0 | BZ2: =OFFSET(home!$Q$18,laps!BZ1,0) -> 0 | CA2: =OFFSET(home!$Q$18,laps!CA1,0) -> 0 | CB2: =OFFSET(home!$Q$18,laps!CB1,0) -> 0 | CC2: =OFFSET(home!$Q$18,laps!CC1,0) -> 0 | CD2: =OFFSET(home!$Q$18,laps!CD1,0) -> 0 | CE2: =OFFSET(home!$Q$18,laps!CE1,0) -> 0 | CF2: =OFFSET(home!$Q$18,laps!CF1,0) -> 0 | CG2: =OFFSET(home!$Q$18,laps!CG1,0) -> 0
A6: trays | B6: =COUNTIFS(home!C19:C99,">0.0") -> 43
A7: Centre | B7: =home!B18 -> 22 | C7: =1-MOD(D7,$B$106) -> 0 | D7: 1 | E7: =E2 -> 1.9 | F7: =F2 -> 2.9 | G7: 3.9 | H7: 4.55 | I7: 5.2 | J7: 6.2 | K7: 7.2 | L7: 6.8 | M7: 6.4 | N7: 6.65 | O7: 6.9 | P7: 7.45 | Q7: 8 | R7: 7.55 | S7: 7.1 | T7: 7.55 | U7: 8 | V7: 8.55 | W7: 9.1 | X7: 10.43333333 | Y7: 11.76666667 | Z7: 13.1 | AA7: 11.76666667 | AB7: 10.43333333 | AC7: 9.1 | AD7: 8.55 | AE7: 8 | AF7: 7.55 | AG7: 7.1 | AH7: 7.55 | AI7: 8 | AJ7: 7.45 | AK7: 6.9 | AL7: 6.65 | AM7: 6.4 | AN7: 6.8 | AO7: 7.2 | AP7: 6.2 | AQ7: 5.2 | AR7: 4.55 | AS7: 3.9 | AT7: 2.9 | AU7: 1.9 | AV7: 0 | AW7: 0 | AX7: 0 | AY7: 0 | AZ7: 0 | BA7: 0 | BB7: 0 | BC7: 0 | BD7: 0 | BE7: 0 | BF7: 0 | BG7: 0 | BH7: 0 | BI7: 0 | BJ7: 0 | BK7: 0 | BL7: 0 | BM7: 0 | BN7: 0 | BO7: 0 | BP7: 0 | BQ7: 0 | BR7: =BR2 -> 0 | BS7: 0 | BT7: 0 | BU7: 0 | BV7: 0 | BW7: 0 | BX7: 0 | BY7: 0 | BZ7: 0 | CA7: 0 | CB7: 0 | CC7: 0 | CD7: 0 | CE7: 0 | CF7: 0 | CG7: 0
A8: 2n-1 | B8: =2*B7-1 -> 43 | C8: -1 | D8: 2 | F8: =E2 -> 1.9 | G8: 2.9 | H8: 3.9 | I8: 4.55 | J8: 5.2 | K8: 6.2 | L8: 7.2 | M8: 6.8 | N8: 6.4 | O8: 6.65 | P8: 6.9 | Q8: 7.45 | R8: 8 | S8: 7.55 | T8: 7.1 | U8: 7.55 | V8: 8 | W8: 8.55 | X8: 9.1 | Y8: 10.43333333 | Z8: 11.76666667 | AA8: 13.1 | AB8: 11.76666667 | AC8: 10.43333333 | AD8: 9.1 | AE8: 8.55 | AF8: 8 | AG8: 7.55 | AH8: 7.1 | AI8: 7.55 | AJ8: 8 | AK8: 7.45 | AL8: 6.9 | AM8: 6.65 | AN8: 6.4 | AO8: 6.8 | AP8: 7.2 | AQ8: 6.2 | AR8: 5.2 | AS8: 4.55 | AT8: 3.9 | AU8: 2.9 | AV8: 1.9 | AW8: 0 | AX8: 0 | AY8: 0 | AZ8: 0 | BA8: 0 | BB8: 0 | BC8: 0 | BD8: =BC2 -> 0 | BE8: =BD2 -> 0 | BF8: =BE2 -> 0 | BG8: =BF2 -> 0 | BH8: =BG2 -> 0 | BI8: =BH2 -> 0 | BJ8: =BI2 -> 0 | BK8: =BJ2 -> 0 | BL8: =BK2 -> 0 | BM8: =BL2 -> 0 | BN8: =BM2 -> 0 | BO8: =BN2 -> 0 | BP8: =BO2 -> 0 | BQ8: =BP2 -> 0 | BR8: =BQ2 -> 0 | BS8: =BR2 -> 0 | BT8: =BS2 -> 0 | BU8: =BT2 -> 0 | BV8: =BU2 -> 0 | BW8: =BV2 -> 0 | BX8: =BW2 -> 0 | BY8: =BX2 -> 0 | BZ8: =BY2 -> 0 | CA8: =BZ2 -> 0 | CB8: =CA2 -> 0 | CC8: =CB2 -> 0 | CD8: =CC2 -> 0 | CE8: =CD2 -> 0 | CF8: =CE2 -> 0 | CG8: =CF2 -> 0 | CH8: =CG2 -> 0
A9: diff | B9: =B6-B8 -> 0 | C9: 1 | D9: 3 | G9: =E2 -> 1.9 | H9: 2.9 | I9: 3.9 | J9: 4.55 | K9: 5.2 | L9: 6.2 | M9: 7.2 | N9: 6.8 | O9: 6.4 | P9: 6.65 | Q9: 6.9 | R9: 7.45 | S9: 8 | T9: 7.55 | U9: 7.1 | V9: 7.55 | W9: 8 | X9: 8.55 | Y9: 9.1 | Z9: 10.43333333 | AA9: 11.76666667 | AB9: 13.1 | AC9: 11.76666667 | AD9: 10.43333333 | AE9: 9.1 | AF9: 8.55 | AG9: 8 | AH9: 7.55 | AI9: 7.1 | AJ9: 7.55 | AK9: 8 | AL9: 7.45 | AM9: 6.9 | AN9: 6.65 | AO9: 6.4 | AP9: 6.8 | AQ9: 7.2 | AR9: 6.2 | AS9: 5.2 | AT9: 4.55 | AU9: 3.9 | AV9: 2.9 | AW9: 1.9 | AX9: 0 | AY9: 0 | AZ9: 0 | BA9: 0 | BB9: 0 | BC9: 0 | BD9: 0 | BE9: =BC2 -> 0 | BF9: =BD2 -> 0 | BG9: =BE2 -> 0 | BH9: =BF2 -> 0 | BI9: =BG2 -> 0 | BJ9: =BH2 -> 0 | BK9: =BI2 -> 0 | BL9: =BJ2 -> 0 | BM9: =BK2 -> 0 | BN9: =BL2 -> 0 | BO9: =BM2 -> 0 | BP9: =BN2 -> 0 | BQ9: =BO2 -> 0 | BR9: =BP2 -> 0 | BS9: =BQ2 -> 0 | BT9: =BR2 -> 0 | BU9: =BS2 -> 0 | BV9: =BT2 -> 0 | BW9: =BU2 -> 0 | BX9: =BV2 -> 0 | BY9: =BW2 -> 0 | BZ9: =BX2 -> 0 | CA9: =BY2 -> 0 | CB9: =BZ2 -> 0 | CC9: =CA2 -> 0 | CD9: =CB2 -> 0 | CE9: =CC2 -> 0 | CF9: =CD2 -> 0 | CG9: =CE2 -> 0 | CH9: =CF2 -> 0 | CI9: =CG2 -> 0
A10: virt# | B10: =B6+ABS(B9) -> 43 | C10: 0 | D10: 4 | H10: =E2 -> 1.9 | I10: 2.9 | J10: 3.9 | K10: 4.55 | L10: 5.2 | M10: 6.2 | N10: 7.2 | O10: 6.8 | P10: 6.4 | Q10: 6.65 | R10: 6.9 | S10: 7.45 | T10: 8 | U10: 7.55 | V10: 7.1 | W10: 7.55 | X10: 8 | Y10: 8.55 | Z10: 9.1 | AA10: 10.43333333 | AB10: 11.76666667 | AC10: 13.1 | AD10: 11.76666667 | AE10: 10.43333333 | AF10: 9.1 | AG10: 8.55 | AH10: 8 | AI10: 7.55 | AJ10: 7.1 | AK10: 7.55 | AL10: 8 | AM10: 7.45 | AN10: 6.9 | AO10: 6.65 | AP10: 6.4 | AQ10: 6.8 | AR10: 7.2 | AS10: 6.2 | AT10: 5.2 | AU10: 4.55 | AV10: 3.9 | AW10: 2.9 | AX10: 1.9 | AY10: 0 | AZ10: 0 | BA10: 0 | BB10: 0 | BC10: 0 | BD10: 0 | BE10: 0 | BF10: =BC2 -> 0 | BG10: =BD2 -> 0 | BH10: =BE2 -> 0 | BI10: =BF2 -> 0 | BJ10: =BG2 -> 0 | BK10: =BH2 -> 0 | BL10: =BI2 -> 0 | BM10: =BJ2 -> 0 | BN10: =BK2 -> 0 | BO10: =BL2 -> 0 | BP10: =BM2 -> 0 | BQ10: =BN2 -> 0 | BR10: =BO2 -> 0 | BS10: =BP2 -> 0 | BT10: =BQ2 -> 0 | BU10: =BR2 -> 0 | BV10: =BS2 -> 0 | BW10: =BT2 -> 0 | BX10: =BU2 -> 0 | BY10: =BV2 -> 0 | BZ10: =BW2 -> 0 | CA10: =BX2 -> 0 | CB10: =BY2 -> 0 | CC10: =BZ2 -> 0 | CD10: =CA2 -> 0 | CE10: =CB2 -> 0 | CF10: =CC2 -> 0 | CG10: =CD2 -> 0 | CH10: =CE2 -> 0 | CI10: =CF2 -> 0 | CJ10: =CG2 -> 0
A11: virtc | B11: =ROUNDUP(B6/2,0) -> 22 | C11: -1 | D11: 5 | I11: =E2 -> 1.9 | J11: 2.9 | K11: 3.9 | L11: 4.55 | M11: 5.2 | N11: 6.2 | O11: 7.2 | P11: 6.8 | Q11: 6.4 | R11: 6.65 | S11: 6.9 | T11: 7.45 | U11: 8 | V11: 7.55 | W11: 7.1 | X11: 7.55 | Y11: 8 | Z11: 8.55 | AA11: 9.1 | AB11: 10.43333333 | AC11: 11.76666667 | AD11: 13.1 | AE11: 11.76666667 | AF11: 10.43333333 | AG11: 9.1 | AH11: 8.55 | AI11: 8 | AJ11: 7.55 | AK11: 7.1 | AL11: 7.55 | AM11: 8 | AN11: 7.45 | AO11: 6.9 | AP11: 6.65 | AQ11: 6.4 | AR11: 6.8 | AS11: 7.2 | AT11: 6.2 | AU11: 5.2 | AV11: 4.55 | AW11: 3.9 | AX11: 2.9 | AY11: 1.9 | AZ11: 0 | BA11: 0 | BB11: 0 | BC11: 0 | BD11: 0 | BE11: 0 | BF11: 0 | BG11: =BC2 -> 0 | BH11: =BD2 -> 0 | BI11: =BE2 -> 0 | BJ11: =BF2 -> 0 | BK11: =BG2 -> 0 | BL11: =BH2 -> 0 | BM11: =BI2 -> 0 | BN11: =BJ2 -> 0 | BO11: =BK2 -> 0 | BP11: =BL2 -> 0 | BQ11: =BM2 -> 0 | BR11: =BN2 -> 0 | BS11: =BO2 -> 0 | BT11: =BP2 -> 0 | BU11: =BQ2 -> 0 | BV11: =BR2 -> 0 | BW11: =BS2 -> 0 | BX11: =BT2 -> 0 | BY11: =BU2 -> 0 | BZ11: =BV2 -> 0 | CA11: =BW2 -> 0 | CB11: =BX2 -> 0 | CC11: =BY2 -> 0 | CD11: =BZ2 -> 0 | CE11: =CA2 -> 0 | CF11: =CB2 -> 0 | CG11: =CC2 -> 0 | CH11: =CD2 -> 0 | CI11: =CE2 -> 0 | CJ11: =CF2 -> 0 | CK11: =CG2 -> 0
A12: abs diff | B12: =ABS(B9) -> 0 | C12: 1 | D12: 6 | J12: =E2 -> 1.9 | K12: 2.9 | L12: 3.9 | M12: 4.55 | N12: 5.2 | O12: 6.2 | P12: 7.2 | Q12: 6.8 | R12: 6.4 | S12: 6.65 | T12: 6.9 | U12: 7.45 | V12: 8 | W12: 7.55 | X12: 7.1 | Y12: 7.55 | Z12: 8 | AA12: 8.55 | AB12: 9.1 | AC12: 10.43333333 | AD12: 11.76666667 | AE12: 13.1 | AF12: 11.76666667 | AG12: 10.43333333 | AH12: 9.1 | AI12: 8.55 | AJ12: 8 | AK12: 7.55 | AL12: 7.1 | AM12: 7.55 | AN12: 8 | AO12: 7.45 | AP12: 6.9 | AQ12: 6.65 | AR12: 6.4 | AS12: 6.8 | AT12: 7.2 | AU12: 6.2 | AV12: 5.2 | AW12: 4.55 | AX12: 3.9 | AY12: 2.9 | AZ12: 1.9 | BA12: 0 | BB12: 0 | BC12: 0 | BD12: 0 | BE12: 0 | BF12: 0 | BG12: 0 | BH12: =BC2 -> 0 | BI12: =BD2 -> 0 | BJ12: =BE2 -> 0 | BK12: =BF2 -> 0 | BL12: =BG2 -> 0 | BM12: =BH2 -> 0 | BN12: =BI2 -> 0 | BO12: =BJ2 -> 0 | BP12: =BK2 -> 0 | BQ12: =BL2 -> 0 | BR12: =BM2 -> 0 | BS12: =BN2 -> 0 | BT12: =BO2 -> 0 | BU12: =BP2 -> 0 | BV12: =BQ2 -> 0 | BW12: =BR2 -> 0 | BX12: =BS2 -> 0 | BY12: =BT2 -> 0 | BZ12: =BU2 -> 0 | CA12: =BV2 -> 0 | CB12: =BW2 -> 0 | CC12: =BX2 -> 0 | CD12: =BY2 -> 0 | CE12: =BZ2 -> 0 | CF12: =CA2 -> 0 | CG12: =CB2 -> 0 | CH12: =CC2 -> 0 | CI12: =CD2 -> 0 | CJ12: =CE2 -> 0 | CK12: =CF2 -> 0 | CL12: =CG2 -> 0
C13: 0 | D13: 7 | K13: =E2 -> 1.9 | L13: 2.9 | M13: 3.9 | N13: 4.55 | O13: 5.2 | P13: 6.2 | Q13: 7.2 | R13: 6.8 | S13: 6.4 | T13: 6.65 | U13: 6.9 | V13: 7.45 | W13: 8 | X13: 7.55 | Y13: 7.1 | Z13: 7.55 | AA13: 8 | AB13: 8.55 | AC13: 9.1 | AD13: 10.43333333 | AE13: 11.76666667 | AF13: 13.1 | AG13: 11.76666667 | AH13: 10.43333333 | AI13: 9.1 | AJ13: 8.55 | AK13: 8 | AL13: 7.55 | AM13: 7.1 | AN13: 7.55 | AO13: 8 | AP13: 7.45 | AQ13: 6.9 | AR13: 6.65 | AS13: 6.4 | AT13: 6.8 | AU13: 7.2 | AV13: 6.2 | AW13: 5.2 | AX13: 4.55 | AY13: 3.9 | AZ13: 2.9 | BA13: 1.9 | BB13: 0 | BC13: 0 | BD13: 0 | BE13: 0 | BF13: 0 | BG13: 0 | BH13: 0 | BI13: =BC2 -> 0 | BJ13: =BD2 -> 0 | BK13: =BE2 -> 0 | BL13: =BF2 -> 0 | BM13: =BG2 -> 0 | BN13: =BH2 -> 0 | BO13: =BI2 -> 0 | BP13: =BJ2 -> 0 | BQ13: =BK2 -> 0 | BR13: =BL2 -> 0 | BS13: =BM2 -> 0 | BT13: =BN2 -> 0 | BU13: =BO2 -> 0 | BV13: =BP2 -> 0 | BW13: =BQ2 -> 0 | BX13: =BR2 -> 0 | BY13: =BS2 -> 0 | BZ13: =BT2 -> 0 | CA13: =BU2 -> 0 | CB13: =BV2 -> 0 | CC13: =BW2 -> 0 | CD13: =BX2 -> 0 | CE13: =BY2 -> 0 | CF13: =BZ2 -> 0 | CG13: =CA2 -> 0 | CH13: =CB2 -> 0 | CI13: =CC2 -> 0 | CJ13: =CD2 -> 0 | CK13: =CE2 -> 0 | CL13: =CF2 -> 0 | CM13: =CG2 -> 0
C14: -1 | D14: 8 | L14: =E2 -> 1.9 | M14: 2.9 | N14: 3.9 | O14: 4.55 | P14: 5.2 | Q14: 6.2 | R14: 7.2 | S14: 6.8 | T14: 6.4 | U14: 6.65 | V14: 6.9 | W14: 7.45 | X14: 8 | Y14: 7.55 | Z14: 7.1 | AA14: 7.55 | AB14: 8 | AC14: 8.55 | AD14: 9.1 | AE14: 10.43333333 | AF14: 11.76666667 | AG14: 13.1 | AH14: 11.76666667 | AI14: 10.43333333 | AJ14: 9.1 | AK14: 8.55 | AL14: 8 | AM14: 7.55 | AN14: 7.1 | AO14: 7.55 | AP14: 8 | AQ14: 7.45 | AR14: 6.9 | AS14: 6.65 | AT14: 6.4 | AU14: 6.8 | AV14: 7.2 | AW14: 6.2 | AX14: 5.2 | AY14: 4.55 | AZ14: 3.9 | BA14: 2.9 | BB14: 1.9 | BC14: 0 | BD14: 0 | BE14: 0 | BF14: 0 | BG14: 0 | BH14: 0 | BI14: 0 | BJ14: =BC2 -> 0 | BK14: =BD2 -> 0 | BL14: =BE2 -> 0 | BM14: =BF2 -> 0 | BN14: =BG2 -> 0 | BO14: =BH2 -> 0 | BP14: =BI2 -> 0 | BQ14: =BJ2 -> 0 | BR14: =BK2 -> 0 | BS14: =BL2 -> 0 | BT14: =BM2 -> 0 | BU14: =BN2 -> 0 | BV14: =BO2 -> 0 | BW14: =BP2 -> 0 | BX14: =BQ2 -> 0 | BY14: =BR2 -> 0 | BZ14: =BS2 -> 0 | CA14: =BT2 -> 0 | CB14: =BU2 -> 0 | CC14: =BV2 -> 0 | CD14: =BW2 -> 0 | CE14: =BX2 -> 0 | CF14: =BY2 -> 0 | CG14: =BZ2 -> 0 | CH14: =CA2 -> 0 | CI14: =CB2 -> 0 | CJ14: =CC2 -> 0 | CK14: =CD2 -> 0 | CL14: =CE2 -> 0 | CM14: =CF2 -> 0 | CN14: =CG2 -> 0
C15: 1 | D15: 9 | M15: =E2 -> 1.9 | N15: 2.9 | O15: 3.9 | P15: 4.55 | Q15: 5.2 | R15: 6.2 | S15: 7.2 | T15: 6.8 | U15: 6.4 | V15: 6.65 | W15: 6.9 | X15: 7.45 | Y15: 8 | Z15: 7.55 | AA15: 7.1 | AB15: 7.55 | AC15: 8 | AD15: 8.55 | AE15: 9.1 | AF15: 10.43333333 | AG15: 11.76666667 | AH15: 13.1 | AI15: 11.76666667 | AJ15: 10.43333333 | AK15: 9.1 | AL15: 8.55 | AM15: 8 | AN15: 7.55 | AO15: 7.1 | AP15: 7.55 | AQ15: 8 | AR15: 7.45 | AS15: 6.9 | AT15: 6.65 | AU15: 6.4 | AV15: 6.8 | AW15: 7.2 | AX15: 6.2 | AY15: 5.2 | AZ15: 4.55 | BA15: 3.9 | BB15: 2.9 | BC15: 1.9 | BD15: 0 | BE15: 0 | BF15: 0 | BG15: 0 | BH15: 0 | BI15: 0 | BJ15: 0 | BK15: =BC2 -> 0 | BL15: =BD2 -> 0 | BM15: =BE2 -> 0 | BN15: =BF2 -> 0 | BO15: =BG2 -> 0 | BP15: =BH2 -> 0 | BQ15: =BI2 -> 0 | BR15: =BJ2 -> 0 | BS15: =BK2 -> 0 | BT15: =BL2 -> 0 | BU15: =BM2 -> 0 | BV15: =BN2 -> 0 | BW15: =BO2 -> 0 | BX15: =BP2 -> 0 | BY15: =BQ2 -> 0 | BZ15: =BR2 -> 0 | CA15: =BS2 -> 0 | CB15: =BT2 -> 0 | CC15: =BU2 -> 0 | CD15: =BV2 -> 0 | CE15: =BW2 -> 0 | CF15: =BX2 -> 0 | CG15: =BY2 -> 0 | CH15: =BZ2 -> 0 | CI15: =CA2 -> 0 | CJ15: =CB2 -> 0 | CK15: =CC2 -> 0 | CL15: =CD2 -> 0 | CM15: =CE2 -> 0 | CN15: =CF2 -> 0 | CO15: =CG2 -> 0
C16: 0 | D16: 10 | N16: =E2 -> 1.9 | O16: 2.9 | P16: 3.9 | Q16: 4.55 | R16: 5.2 | S16: 6.2 | T16: 7.2 | U16: 6.8 | V16: 6.4 | W16: 6.65 | X16: 6.9 | Y16: 7.45 | Z16: 8 | AA16: 7.55 | AB16: 7.1 | AC16: 7.55 | AD16: 8 | AE16: 8.55 | AF16: 9.1 | AG16: 10.43333333 | AH16: 11.76666667 | AI16: 13.1 | AJ16: 11.76666667 | AK16: 10.43333333 | AL16: 9.1 | AM16: 8.55 | AN16: 8 | AO16: 7.55 | AP16: 7.1 | AQ16: 7.55 | AR16: 8 | AS16: 7.45 | AT16: 6.9 | AU16: 6.65 | AV16: 6.4 | AW16: 6.8 | AX16: 7.2 | AY16: 6.2 | AZ16: 5.2 | BA16: 4.55 | BB16: 3.9 | BC16: 2.9 | BD16: 1.9 | BE16: 0 | BF16: 0 | BG16: 0 | BH16: 0 | BI16: 0 | BJ16: 0 | BK16: 0 | BL16: =BC2 -> 0 | BM16: =BD2 -> 0 | BN16: =BE2 -> 0 | BO16: =BF2 -> 0 | BP16: =BG2 -> 0 | BQ16: =BH2 -> 0 | BR16: =BI2 -> 0 | BS16: =BJ2 -> 0 | BT16: =BK2 -> 0 | BU16: =BL2 -> 0 | BV16: =BM2 -> 0 | BW16: =BN2 -> 0 | BX16: =BO2 -> 0 | BY16: =BP2 -> 0 | BZ16: =BQ2 -> 0 | CA16: =BR2 -> 0 | CB16: =BS2 -> 0 | CC16: =BT2 -> 0 | CD16: =BU2 -> 0 | CE16: =BV2 -> 0 | CF16: =BW2 -> 0 | CG16: =BX2 -> 0 | CH16: =BY2 -> 0 | CI16: =BZ2 -> 0 | CJ16: =CA2 -> 0 | CK16: =CB2 -> 0 | CL16: =CC2 -> 0 | CM16: =CD2 -> 0 | CN16: =CE2 -> 0 | CO16: =CF2 -> 0 | CP16: =CG2 -> 0
C17: -1 | D17: 11 | O17: =E2 -> 1.9 | P17: 2.9 | Q17: 3.9 | R17: 4.55 | S17: 5.2 | T17: 6.2 | U17: 7.2 | V17: 6.8 | W17: 6.4 | X17: 6.65 | Y17: 6.9 | Z17: 7.45 | AA17: 8 | AB17: 7.55 | AC17: 7.1 | AD17: 7.55 | AE17: 8 | AF17: 8.55 | AG17: 9.1 | AH17: 10.43333333 | AI17: 11.76666667 | AJ17: 13.1 | AK17: 11.76666667 | AL17: 10.43333333 | AM17: 9.1 | AN17: 8.55 | AO17: 8 | AP17: 7.55 | AQ17: 7.1 | AR17: 7.55 | AS17: 8 | AT17: 7.45 | AU17: 6.9 | AV17: 6.65 | AW17: 6.4 | AX17: 6.8 | AY17: 7.2 | AZ17: 6.2 | BA17: 5.2 | BB17: 4.55 | BC17: 3.9 | BD17: 2.9 | BE17: 1.9 | BF17: 0 | BG17: 0 | BH17: 0 | BI17: 0 | BJ17: 0 | BK17: 0 | BL17: 0 | BM17: =BC2 -> 0 | BN17: =BD2 -> 0 | BO17: =BE2 -> 0 | BP17: =BF2 -> 0 | BQ17: =BG2 -> 0 | BR17: =BH2 -> 0 | BS17: =BI2 -> 0 | BT17: =BJ2 -> 0 | BU17: =BK2 -> 0 | BV17: =BL2 -> 0 | BW17: =BM2 -> 0 | BX17: =BN2 -> 0 | BY17: =BO2 -> 0 | BZ17: =BP2 -> 0 | CA17: =BQ2 -> 0 | CB17: =BR2 -> 0 | CC17: =BS2 -> 0 | CD17: =BT2 -> 0 | CE17: =BU2 -> 0 | CF17: =BV2 -> 0 | CG17: =BW2 -> 0 | CH17: =BX2 -> 0 | CI17: =BY2 -> 0 | CJ17: =BZ2 -> 0 | CK17: =CA2 -> 0 | CL17: =CB2 -> 0 | CM17: =CC2 -> 0 | CN17: =CD2 -> 0 | CO17: =CE2 -> 0 | CP17: =CF2 -> 0 | CQ17: =CG2 -> 0
C18: 1 | D18: 12 | P18: =E2 -> 1.9 | Q18: 2.9 | R18: 3.9 | S18: 4.55 | T18: 5.2 | U18: 6.2 | V18: 7.2 | W18: 6.8 | X18: 6.4 | Y18: 6.65 | Z18: 6.9 | AA18: 7.45 | AB18: 8 | AC18: 7.55 | AD18: 7.1 | AE18: 7.55 | AF18: 8 | AG18: 8.55 | AH18: 9.1 | AI18: 10.43333333 | AJ18: 11.76666667 | AK18: 13.1 | AL18: 11.76666667 | AM18: 10.43333333 | AN18: 9.1 | AO18: 8.55 | AP18: 8 | AQ18: 7.55 | AR18: 7.1 | AS18: 7.55 | AT18: 8 | AU18: 7.45 | AV18: 6.9 | AW18: 6.65 | AX18: 6.4 | AY18: 6.8 | AZ18: 7.2 | BA18: 6.2 | BB18: 5.2 | BC18: 4.55 | BD18: 3.9 | BE18: 2.9 | BF18: 1.9 | BG18: 0 | BH18: 0 | BI18: 0 | BJ18: 0 | BK18: 0 | BL18: 0 | BM18: 0 | BN18: =BC2 -> 0 | BO18: =BD2 -> 0 | BP18: =BE2 -> 0 | BQ18: =BF2 -> 0 | BR18: =BG2 -> 0 | BS18: =BH2 -> 0 | BT18: =BI2 -> 0 | BU18: =BJ2 -> 0 | BV18: =BK2 -> 0 | BW18: =BL2 -> 0 | BX18: =BM2 -> 0 | BY18: =BN2 -> 0 | BZ18: =BO2 -> 0 | CA18: =BP2 -> 0 | CB18: =BQ2 -> 0 | CC18: =BR2 -> 0 | CD18: =BS2 -> 0 | CE18: =BT2 -> 0 | CF18: =BU2 -> 0 | CG18: =BV2 -> 0 | CH18: =BW2 -> 0 | CI18: =BX2 -> 0 | CJ18: =BY2 -> 0 | CK18: =BZ2 -> 0 | CL18: =CA2 -> 0 | CM18: =CB2 -> 0 | CN18: =CC2 -> 0 | CO18: =CD2 -> 0 | CP18: =CE2 -> 0 | CQ18: =CF2 -> 0 | CR18: =CG2 -> 0
C19: 0 | D19: 13 | Q19: =E2 -> 1.9 | R19: 2.9 | S19: 3.9 | T19: 4.55 | U19: 5.2 | V19: 6.2 | W19: 7.2 | X19: 6.8 | Y19: 6.4 | Z19: 6.65 | AA19: 6.9 | AB19: 7.45 | AC19: 8 | AD19: 7.55 | AE19: 7.1 | AF19: 7.55 | AG19: 8 | AH19: 8.55 | AI19: 9.1 | AJ19: 10.43333333 | AK19: 11.76666667 | AL19: 13.1 | AM19: 11.76666667 | AN19: 10.43333333 | AO19: 9.1 | AP19: 8.55 | AQ19: 8 | AR19: 7.55 | AS19: 7.1 | AT19: 7.55 | AU19: 8 | AV19: 7.45 | AW19: 6.9 | AX19: 6.65 | AY19: 6.4 | AZ19: 6.8 | BA19: 7.2 | BB19: 6.2 | BC19: 5.2 | BD19: 4.55 | BE19: 3.9 | BF19: 2.9 | BG19: 1.9 | BH19: 0 | BI19: 0 | BJ19: 0 | BK19: 0 | BL19: 0 | BM19: 0 | BN19: 0 | BO19: =BC2 -> 0 | BP19: =BD2 -> 0 | BQ19: =BE2 -> 0 | BR19: =BF2 -> 0 | BS19: =BG2 -> 0 | BT19: =BH2 -> 0 | BU19: =BI2 -> 0 | BV19: =BJ2 -> 0 | BW19: =BK2 -> 0 | BX19: =BL2 -> 0 | BY19: =BM2 -> 0 | BZ19: =BN2 -> 0 | CA19: =BO2 -> 0 | CB19: =BP2 -> 0 | CC19: =BQ2 -> 0 | CD19: =BR2 -> 0 | CE19: =BS2 -> 0 | CF19: =BT2 -> 0 | CG19: =BU2 -> 0 | CH19: =BV2 -> 0 | CI19: =BW2 -> 0 | CJ19: =BX2 -> 0 | CK19: =BY2 -> 0 | CL19: =BZ2 -> 0 | CM19: =CA2 -> 0 | CN19: =CB2 -> 0 | CO19: =CC2 -> 0 | CP19: =CD2 -> 0 | CQ19: =CE2 -> 0 | CR19: =CF2 -> 0 | CS19: =CG2 -> 0
C20: -1 | D20: 14 | R20: =E2 -> 1.9 | S20: 2.9 | T20: 3.9 | U20: 4.55 | V20: 5.2 | W20: 6.2 | X20: 7.2 | Y20: 6.8 | Z20: 6.4 | AA20: 6.65 | AB20: 6.9 | AC20: 7.45 | AD20: 8 | AE20: 7.55 | AF20: 7.1 | AG20: 7.55 | AH20: 8 | AI20: 8.55 | AJ20: 9.1 | AK20: 10.43333333 | AL20: 11.76666667 | AM20: 13.1 | AN20: 11.76666667 | AO20: 10.43333333 | AP20: 9.1 | AQ20: 8.55 | AR20: 8 | AS20: 7.55 | AT20: 7.1 | AU20: 7.55 | AV20: 8 | AW20: 7.45 | AX20: 6.9 | AY20: 6.65 | AZ20: 6.4 | BA20: 6.8 | BB20: 7.2 | BC20: 6.2 | BD20: 5.2 | BE20: 4.55 | BF20: 3.9 | BG20: 2.9 | BH20: 1.9 | BI20: 0 | BJ20: 0 | BK20: 0 | BL20: 0 | BM20: 0 | BN20: 0 | BO20: 0 | BP20: =BC2 -> 0 | BQ20: =BD2 -> 0 | BR20: =BE2 -> 0 | BS20: =BF2 -> 0 | BT20: =BG2 -> 0 | BU20: =BH2 -> 0 | BV20: =BI2 -> 0 | BW20: =BJ2 -> 0 | BX20: =BK2 -> 0 | BY20: =BL2 -> 0 | BZ20: =BM2 -> 0 | CA20: =BN2 -> 0 | CB20: =BO2 -> 0 | CC20: =BP2 -> 0 | CD20: =BQ2 -> 0 | CE20: =BR2 -> 0 | CF20: =BS2 -> 0 | CG20: =BT2 -> 0 | CH20: =BU2 -> 0 | CI20: =BV2 -> 0 | CJ20: =BW2 -> 0 | CK20: =BX2 -> 0 | CL20: =BY2 -> 0 | CM20: =BZ2 -> 0 | CN20: =CA2 -> 0 | CO20: =CB2 -> 0 | CP20: =CC2 -> 0 | CQ20: =CD2 -> 0 | CR20: =CE2 -> 0 | CS20: =CF2 -> 0 | CT20: =CG2 -> 0
C21: 1 | D21: 15 | S21: =E2 -> 1.9 | T21: 2.9 | U21: 3.9 | V21: 4.55 | W21: 5.2 | X21: 6.2 | Y21: 7.2 | Z21: 6.8 | AA21: 6.4 | AB21: 6.65 | AC21: 6.9 | AD21: 7.45 | AE21: 8 | AF21: 7.55 | AG21: 7.1 | AH21: 7.55 | AI21: 8 | AJ21: 8.55 | AK21: 9.1 | AL21: 10.43333333 | AM21: 11.76666667 | AN21: 13.1 | AO21: 11.76666667 | AP21: 10.43333333 | AQ21: 9.1 | AR21: 8.55 | AS21: 8 | AT21: 7.55 | AU21: 7.1 | AV21: 7.55 | AW21: 8 | AX21: 7.45 | AY21: 6.9 | AZ21: 6.65 | BA21: 6.4 | BB21: 6.8 | BC21: 7.2 | BD21: 6.2 | BE21: 5.2 | BF21: 4.55 | BG21: 3.9 | BH21: 2.9 | BI21: 1.9 | BJ21: 0 | BK21: 0 | BL21: 0 | BM21: 0 | BN21: 0 | BO21: 0 | BP21: 0 | BQ21: =BC2 -> 0 | BR21: =BD2 -> 0 | BS21: =BE2 -> 0 | BT21: =BF2 -> 0 | BU21: =BG2 -> 0 | BV21: =BH2 -> 0 | BW21: =BI2 -> 0 | BX21: =BJ2 -> 0 | BY21: =BK2 -> 0 | BZ21: =BL2 -> 0 | CA21: =BM2 -> 0 | CB21: =BN2 -> 0 | CC21: =BO2 -> 0 | CD21: =BP2 -> 0 | CE21: =BQ2 -> 0 | CF21: =BR2 -> 0 | CG21: =BS2 -> 0 | CH21: =BT2 -> 0 | CI21: =BU2 -> 0 | CJ21: =BV2 -> 0 | CK21: =BW2 -> 0 | CL21: =BX2 -> 0 | CM21: =BY2 -> 0 | CN21: =BZ2 -> 0 | CO21: =CA2 -> 0 | CP21: =CB2 -> 0 | CQ21: =CC2 -> 0 | CR21: =CD2 -> 0 | CS21: =CE2 -> 0 | CT21: =CF2 -> 0 | CU21: =CG2 -> 0
C22: 0 | D22: 16 | T22: =E2 -> 1.9 | U22: 2.9 | V22: 3.9 | W22: 4.55 | X22: 5.2 | Y22: 6.2 | Z22: 7.2 | AA22: 6.8 | AB22: 6.4 | AC22: 6.65 | AD22: 6.9 | AE22: 7.45 | AF22: 8 | AG22: 7.55 | AH22: 7.1 | AI22: 7.55 | AJ22: 8 | AK22: 8.55 | AL22: 9.1 | AM22: 10.43333333 | AN22: 11.76666667 | AO22: 13.1 | AP22: 11.76666667 | AQ22: 10.43333333 | AR22: 9.1 | AS22: 8.55 | AT22: 8 | AU22: 7.55 | AV22: 7.1 | AW22: 7.55 | AX22: 8 | AY22: 7.45 | AZ22: 6.9 | BA22: 6.65 | BB22: 6.4 | BC22: 6.8 | BD22: 7.2 | BE22: 6.2 | BF22: 5.2 | BG22: 4.55 | BH22: 3.9 | BI22: 2.9 | BJ22: 1.9 | BK22: 0 | BL22: 0 | BM22: 0 | BN22: 0 | BO22: 0 | BP22: 0 | BQ22: 0 | BR22: =BC2 -> 0 | BS22: =BD2 -> 0 | BT22: =BE2 -> 0 | BU22: =BF2 -> 0 | BV22: =BG2 -> 0 | BW22: =BH2 -> 0 | BX22: =BI2 -> 0 | BY22: =BJ2 -> 0 | BZ22: =BK2 -> 0 | CA22: =BL2 -> 0 | CB22: =BM2 -> 0 | CC22: =BN2 -> 0 | CD22: =BO2 -> 0 | CE22: =BP2 -> 0 | CF22: =BQ2 -> 0 | CG22: =BR2 -> 0 | CH22: =BS2 -> 0 | CI22: =BT2 -> 0 | CJ22: =BU2 -> 0 | CK22: =BV2 -> 0 | CL22: =BW2 -> 0 | CM22: =BX2 -> 0 | CN22: =BY2 -> 0 | CO22: =BZ2 -> 0 | CP22: =CA2 -> 0 | CQ22: =CB2 -> 0 | CR22: =CC2 -> 0 | CS22: =CD2 -> 0 | CT22: =CE2 -> 0 | CU22: =CF2 -> 0 | CV22: =CG2 -> 0
C23: -1 | D23: 17 | U23: =E2 -> 1.9 | V23: 2.9 | W23: 3.9 | X23: 4.55 | Y23: 5.2 | Z23: 6.2 | AA23: 7.2 | AB23: 6.8 | AC23: 6.4 | AD23: 6.65 | AE23: 6.9 | AF23: 7.45 | AG23: 8 | AH23: 7.55 | AI23: 7.1 | AJ23: 7.55 | AK23: 8 | AL23: 8.55 | AM23: 9.1 | AN23: 10.43333333 | AO23: 11.76666667 | AP23: 13.1 | AQ23: 11.76666667 | AR23: 10.43333333 | AS23: 9.1 | AT23: 8.55 | AU23: 8 | AV23: 7.55 | AW23: 7.1 | AX23: 7.55 | AY23: 8 | AZ23: 7.45 | BA23: 6.9 | BB23: 6.65 | BC23: 6.4 | BD23: 6.8 | BE23: 7.2 | BF23: 6.2 | BG23: 5.2 | BH23: 4.55 | BI23: 3.9 | BJ23: 2.9 | BK23: 1.9 | BL23: 0 | BM23: 0 | BN23: 0 | BO23: 0 | BP23: 0 | BQ23: 0 | BR23: 0 | BS23: =BC2 -> 0 | BT23: =BD2 -> 0 | BU23: =BE2 -> 0 | BV23: =BF2 -> 0 | BW23: =BG2 -> 0 | BX23: =BH2 -> 0 | BY23: =BI2 -> 0 | BZ23: =BJ2 -> 0 | CA23: =BK2 -> 0 | CB23: =BL2 -> 0 | CC23: =BM2 -> 0 | CD23: =BN2 -> 0 | CE23: =BO2 -> 0 | CF23: =BP2 -> 0 | CG23: =BQ2 -> 0 | CH23: =BR2 -> 0 | CI23: =BS2 -> 0 | CJ23: =BT2 -> 0 | CK23: =BU2 -> 0 | CL23: =BV2 -> 0 | CM23: =BW2 -> 0 | CN23: =BX2 -> 0 | CO23: =BY2 -> 0 | CP23: =BZ2 -> 0 | CQ23: =CA2 -> 0 | CR23: =CB2 -> 0 | CS23: =CC2 -> 0 | CT23: =CD2 -> 0 | CU23: =CE2 -> 0 | CV23: =CF2 -> 0 | CW23: =CG2 -> 0
C24: 1 | D24: 18 | V24: =E2 -> 1.9 | W24: 2.9 | X24: 3.9 | Y24: 4.55 | Z24: 5.2 | AA24: 6.2 | AB24: 7.2 | AC24: 6.8 | AD24: 6.4 | AE24: 6.65 | AF24: 6.9 | AG24: 7.45 | AH24: 8 | AI24: 7.55 | AJ24: 7.1 | AK24: 7.55 | AL24: 8 | AM24: 8.55 | AN24: 9.1 | AO24: 10.43333333 | AP24: 11.76666667 | AQ24: 13.1 | AR24: 11.76666667 | AS24: 10.43333333 | AT24: 9.1 | AU24: 8.55 | AV24: 8 | AW24: 7.55 | AX24: 7.1 | AY24: 7.55 | AZ24: 8 | BA24: 7.45 | BB24: 6.9 | BC24: 6.65 | BD24: 6.4 | BE24: 6.8 | BF24: 7.2 | BG24: 6.2 | BH24: 5.2 | BI24: 4.55 | BJ24: 3.9 | BK24: 2.9 | BL24: 1.9 | BM24: 0 | BN24: 0 | BO24: 0 | BP24: 0 | BQ24: 0 | BR24: 0 | BS24: 0 | BT24: =BC2 -> 0 | BU24: =BD2 -> 0 | BV24: =BE2 -> 0 | BW24: =BF2 -> 0 | BX24: =BG2 -> 0 | BY24: =BH2 -> 0 | BZ24: =BI2 -> 0 | CA24: =BJ2 -> 0 | CB24: =BK2 -> 0 | CC24: =BL2 -> 0 | CD24: =BM2 -> 0 | CE24: =BN2 -> 0 | CF24: =BO2 -> 0 | CG24: =BP2 -> 0 | CH24: =BQ2 -> 0 | CI24: =BR2 -> 0 | CJ24: =BS2 -> 0 | CK24: =BT2 -> 0 | CL24: =BU2 -> 0 | CM24: =BV2 -> 0 | CN24: =BW2 -> 0 | CO24: =BX2 -> 0 | CP24: =BY2 -> 0 | CQ24: =BZ2 -> 0 | CR24: =CA2 -> 0 | CS24: =CB2 -> 0 | CT24: =CC2 -> 0 | CU24: =CD2 -> 0 | CV24: =CE2 -> 0 | CW24: =CF2 -> 0 | CX24: =CG2 -> 0
C25: 0 | D25: 19 | W25: =E2 -> 1.9 | X25: 2.9 | Y25: 3.9 | Z25: 4.55 | AA25: 5.2 | AB25: 6.2 | AC25: 7.2 | AD25: 6.8 | AE25: 6.4 | AF25: 6.65 | AG25: 6.9 | AH25: 7.45 | AI25: 8 | AJ25: 7.55 | AK25: 7.1 | AL25: 7.55 | AM25: 8 | AN25: 8.55 | AO25: 9.1 | AP25: 10.43333333 | AQ25: 11.76666667 | AR25: 13.1 | AS25: 11.76666667 | AT25: 10.43333333 | AU25: 9.1 | AV25: 8.55 | AW25: 8 | AX25: 7.55 | AY25: 7.1 | AZ25: 7.55 | BA25: 8 | BB25: 7.45 | BC25: 6.9 | BD25: 6.65 | BE25: 6.4 | BF25: 6.8 | BG25: 7.2 | BH25: 6.2 | BI25: 5.2 | BJ25: 4.55 | BK25: 3.9 | BL25: 2.9 | BM25: 1.9 | BN25: 0 | BO25: 0 | BP25: 0 | BQ25: 0 | BR25: 0 | BS25: 0 | BT25: 0 | BU25: =BC2 -> 0 | BV25: =BD2 -> 0 | BW25: =BE2 -> 0 | BX25: =BF2 -> 0 | BY25: =BG2 -> 0 | BZ25: =BH2 -> 0 | CA25: =BI2 -> 0 | CB25: =BJ2 -> 0 | CC25: =BK2 -> 0 | CD25: =BL2 -> 0 | CE25: =BM2 -> 0 | CF25: =BN2 -> 0 | CG25: =BO2 -> 0 | CH25: =BP2 -> 0 | CI25: =BQ2 -> 0 | CJ25: =BR2 -> 0 | CK25: =BS2 -> 0 | CL25: =BT2 -> 0 | CM25: =BU2 -> 0 | CN25: =BV2 -> 0 | CO25: =BW2 -> 0 | CP25: =BX2 -> 0 | CQ25: =BY2 -> 0 | CR25: =BZ2 -> 0 | CS25: =CA2 -> 0 | CT25: =CB2 -> 0 | CU25: =CC2 -> 0 | CV25: =CD2 -> 0 | CW25: =CE2 -> 0 | CX25: =CF2 -> 0 | CY25: =CG2 -> 0
C26: -1 | D26: 20 | X26: =E2 -> 1.9 | Y26: 2.9 | Z26: 3.9 | AA26: 4.55 | AB26: 5.2 | AC26: 6.2 | AD26: 7.2 | AE26: 6.8 | AF26: 6.4 | AG26: 6.65 | AH26: 6.9 | AI26: 7.45 | AJ26: 8 | AK26: 7.55 | AL26: 7.1 | AM26: 7.55 | AN26: 8 | AO26: 8.55 | AP26: 9.1 | AQ26: 10.43333333 | AR26: 11.76666667 | AS26: 13.1 | AT26: 11.76666667 | AU26: 10.43333333 | AV26: 9.1 | AW26: 8.55 | AX26: 8 | AY26: 7.55 | AZ26: 7.1 | BA26: 7.55 | BB26: 8 | BC26: 7.45 | BD26: 6.9 | BE26: 6.65 | BF26: 6.4 | BG26: 6.8 | BH26: 7.2 | BI26: 6.2 | BJ26: 5.2 | BK26: 4.55 | BL26: 3.9 | BM26: 2.9 | BN26: 1.9 | BO26: 0 | BP26: 0 | BQ26: 0 | BR26: 0 | BS26: 0 | BT26: 0 | BU26: 0 | BV26: =BC2 -> 0 | BW26: =BD2 -> 0 | BX26: =BE2 -> 0 | BY26: =BF2 -> 0 | BZ26: =BG2 -> 0 | CA26: =BH2 -> 0 | CB26: =BI2 -> 0 | CC26: =BJ2 -> 0 | CD26: =BK2 -> 0 | CE26: =BL2 -> 0 | CF26: =BM2 -> 0 | CG26: =BN2 -> 0 | CH26: =BO2 -> 0 | CI26: =BP2 -> 0 | CJ26: =BQ2 -> 0 | CK26: =BR2 -> 0 | CL26: =BS2 -> 0 | CM26: =BT2 -> 0 | CN26: =BU2 -> 0 | CO26: =BV2 -> 0 | CP26: =BW2 -> 0 | CQ26: =BX2 -> 0 | CR26: =BY2 -> 0 | CS26: =BZ2 -> 0 | CT26: =CA2 -> 0 | CU26: =CB2 -> 0 | CV26: =CC2 -> 0 | CW26: =CD2 -> 0 | CX26: =CE2 -> 0 | CY26: =CF2 -> 0 | CZ26: =CG2 -> 0
C27: 1 | D27: 21 | Y27: =E2 -> 1.9 | Z27: 2.9 | AA27: 3.9 | AB27: 4.55 | AC27: 5.2 | AD27: 6.2 | AE27: 7.2 | AF27: 6.8 | AG27: 6.4 | AH27: 6.65 | AI27: 6.9 | AJ27: 7.45 | AK27: 8 | AL27: 7.55 | AM27: 7.1 | AN27: 7.55 | AO27: 8 | AP27: 8.55 | AQ27: 9.1 | AR27: 10.43333333 | AS27: 11.76666667 | AT27: 13.1 | AU27: 11.76666667 | AV27: 10.43333333 | AW27: 9.1 | AX27: 8.55 | AY27: 8 | AZ27: 7.55 | BA27: 7.1 | BB27: 7.55 | BC27: 8 | BD27: 7.45 | BE27: 6.9 | BF27: 6.65 | BG27: 6.4 | BH27: 6.8 | BI27: 7.2 | BJ27: 6.2 | BK27: 5.2 | BL27: 4.55 | BM27: 3.9 | BN27: 2.9 | BO27: 1.9 | BP27: 0 | BQ27: 0 | BR27: 0 | BS27: 0 | BT27: 0 | BU27: 0 | BV27: 0 | BW27: =BC2 -> 0 | BX27: =BD2 -> 0 | BY27: =BE2 -> 0 | BZ27: =BF2 -> 0 | CA27: =BG2 -> 0 | CB27: =BH2 -> 0 | CC27: =BI2 -> 0 | CD27: =BJ2 -> 0 | CE27: =BK2 -> 0 | CF27: =BL2 -> 0 | CG27: =BM2 -> 0 | CH27: =BN2 -> 0 | CI27: =BO2 -> 0 | CJ27: =BP2 -> 0 | CK27: =BQ2 -> 0 | CL27: =BR2 -> 0 | CM27: =BS2 -> 0 | CN27: =BT2 -> 0 | CO27: =BU2 -> 0 | CP27: =BV2 -> 0 | CQ27: =BW2 -> 0 | CR27: =BX2 -> 0 | CS27: =BY2 -> 0 | CT27: =BZ2 -> 0 | CU27: =CA2 -> 0 | CV27: =CB2 -> 0 | CW27: =CC2 -> 0 | CX27: =CD2 -> 0 | CY27: =CE2 -> 0 | CZ27: =CF2 -> 0 | DA27: =CG2 -> 0
C28: 0 | D28: 22 | Z28: =E2 -> 1.9 | AA28: 2.9 | AB28: 3.9 | AC28: 4.55 | AD28: 5.2 | AE28: 6.2 | AF28: 7.2 | AG28: 6.8 | AH28: 6.4 | AI28: 6.65 | AJ28: 6.9 | AK28: 7.45 | AL28: 8 | AM28: 7.55 | AN28: 7.1 | AO28: 7.55 | AP28: 8 | AQ28: 8.55 | AR28: 9.1 | AS28: 10.43333333 | AT28: 11.76666667 | AU28: 13.1 | AV28: 11.76666667 | AW28: 10.43333333 | AX28: 9.1 | AY28: 8.55 | AZ28: 8 | BA28: 7.55 | BB28: 7.1 | BC28: 7.55 | BD28: 8 | BE28: 7.45 | BF28: 6.9 | BG28: 6.65 | BH28: 6.4 | BI28: 6.8 | BJ28: 7.2 | BK28: 6.2 | BL28: 5.2 | BM28: 4.55 | BN28: 3.9 | BO28: 2.9 | BP28: 1.9 | BQ28: 0 | BR28: 0 | BS28: 0 | BT28: 0 | BU28: 0 | BV28: 0 | BW28: 0 | BX28: =BC2 -> 0 | BY28: =BD2 -> 0 | BZ28: =BE2 -> 0 | CA28: =BF2 -> 0 | CB28: =BG2 -> 0 | CC28: =BH2 -> 0 | CD28: =BI2 -> 0 | CE28: =BJ2 -> 0 | CF28: =BK2 -> 0 | CG28: =BL2 -> 0 | CH28: =BM2 -> 0 | CI28: =BN2 -> 0 | CJ28: =BO2 -> 0 | CK28: =BP2 -> 0 | CL28: =BQ2 -> 0 | CM28: =BR2 -> 0 | CN28: =BS2 -> 0 | CO28: =BT2 -> 0 | CP28: =BU2 -> 0 | CQ28: =BV2 -> 0 | CR28: =BW2 -> 0 | CS28: =BX2 -> 0 | CT28: =BY2 -> 0 | CU28: =BZ2 -> 0 | CV28: =CA2 -> 0 | CW28: =CB2 -> 0 | CX28: =CC2 -> 0 | CY28: =CD2 -> 0 | CZ28: =CE2 -> 0 | DA28: =CF2 -> 0 | DB28: =CG2 -> 0
C29: -1 | D29: 23 | AA29: =E2 -> 1.9 | AB29: 2.9 | AC29: 3.9 | AD29: 4.55 | AE29: 5.2 | AF29: 6.2 | AG29: 7.2 | AH29: 6.8 | AI29: 6.4 | AJ29: 6.65 | AK29: 6.9 | AL29: 7.45 | AM29: 8 | AN29: 7.55 | AO29: 7.1 | AP29: 7.55 | AQ29: 8 | AR29: 8.55 | AS29: 9.1 | AT29: 10.43333333 | AU29: 11.76666667 | AV29: 13.1 | AW29: 11.76666667 | AX29: 10.43333333 | AY29: 9.1 | AZ29: 8.55 | BA29: 8 | BB29: 7.55 | BC29: 7.1 | BD29: 7.55 | BE29: 8 | BF29: 7.45 | BG29: 6.9 | BH29: 6.65 | BI29: 6.4 | BJ29: 6.8 | BK29: 7.2 | BL29: 6.2 | BM29: 5.2 | BN29: 4.55 | BO29: 3.9 | BP29: 2.9 | BQ29: 1.9 | BR29: 0 | BS29: 0 | BT29: 0 | BU29: 0 | BV29: 0 | BW29: 0 | BX29: 0 | BY29: =BC2 -> 0 | BZ29: =BD2 -> 0 | CA29: =BE2 -> 0 | CB29: =BF2 -> 0 | CC29: =BG2 -> 0 | CD29: =BH2 -> 0 | CE29: =BI2 -> 0 | CF29: =BJ2 -> 0 | CG29: =BK2 -> 0 | CH29: =BL2 -> 0 | CI29: =BM2 -> 0 | CJ29: =BN2 -> 0 | CK29: =BO2 -> 0 | CL29: =BP2 -> 0 | CM29: =BQ2 -> 0 | CN29: =BR2 -> 0 | CO29: =BS2 -> 0 | CP29: =BT2 -> 0 | CQ29: =BU2 -> 0 | CR29: =BV2 -> 0 | CS29: =BW2 -> 0 | CT29: =BX2 -> 0 | CU29: =BY2 -> 0 | CV29: =BZ2 -> 0 | CW29: =CA2 -> 0 | CX29: =CB2 -> 0 | CY29: =CC2 -> 0 | CZ29: =CD2 -> 0 | DA29: =CE2 -> 0 | DB29: =CF2 -> 0 | DC29: =CG2 -> 0
C30: 1 | D30: 24 | AB30: =E2 -> 1.9 | AC30: 2.9 | AD30: 3.9 | AE30: 4.55 | AF30: 5.2 | AG30: 6.2 | AH30: 7.2 | AI30: 6.8 | AJ30: 6.4 | AK30: 6.65 | AL30: 6.9 | AM30: 7.45 | AN30: 8 | AO30: 7.55 | AP30: 7.1 | AQ30: 7.55 | AR30: 8 | AS30: 8.55 | AT30: 9.1 | AU30: 10.43333333 | AV30: 11.76666667 | AW30: 13.1 | AX30: 11.76666667 | AY30: 10.43333333 | AZ30: 9.1 | BA30: 8.55 | BB30: 8 | BC30: 7.55 | BD30: 7.1 | BE30: 7.55 | BF30: 8 | BG30: 7.45 | BH30: 6.9 | BI30: 6.65 | BJ30: 6.4 | BK30: 6.8 | BL30: 7.2 | BM30: 6.2 | BN30: 5.2 | BO30: 4.55 | BP30: 3.9 | BQ30: 2.9 | BR30: 1.9 | BS30: 0 | BT30: 0 | BU30: 0 | BV30: 0 | BW30: 0 | BX30: 0 | BY30: 0 | BZ30: =BC2 -> 0 | CA30: =BD2 -> 0 | CB30: =BE2 -> 0 | CC30: =BF2 -> 0 | CD30: =BG2 -> 0 | CE30: =BH2 -> 0 | CF30: =BI2 -> 0 | CG30: =BJ2 -> 0 | CH30: =BK2 -> 0 | CI30: =BL2 -> 0 | CJ30: =BM2 -> 0 | CK30: =BN2 -> 0 | CL30: =BO2 -> 0 | CM30: =BP2 -> 0 | CN30: =BQ2 -> 0 | CO30: =BR2 -> 0 | CP30: =BS2 -> 0 | CQ30: =BT2 -> 0 | CR30: =BU2 -> 0 | CS30: =BV2 -> 0 | CT30: =BW2 -> 0 | CU30: =BX2 -> 0 | CV30: =BY2 -> 0 | CW30: =BZ2 -> 0 | CX30: =CA2 -> 0 | CY30: =CB2 -> 0 | CZ30: =CC2 -> 0 | DA30: =CD2 -> 0 | DB30: =CE2 -> 0 | DC30: =CF2 -> 0 | DD30: =CG2 -> 0
C31: 0 | D31: 25 | AC31: =E2 -> 1.9 | AD31: 2.9 | AE31: 3.9 | AF31: 4.55 | AG31: 5.2 | AH31: 6.2 | AI31: 7.2 | AJ31: 6.8 | AK31: 6.4 | AL31: 6.65 | AM31: 6.9 | AN31: 7.45 | AO31: 8 | AP31: 7.55 | AQ31: 7.1 | AR31: 7.55 | AS31: 8 | AT31: 8.55 | AU31: 9.1 | AV31: 10.43333333 | AW31: 11.76666667 | AX31: 13.1 | AY31: 11.76666667 | AZ31: 10.43333333 | BA31: 9.1 | BB31: 8.55 | BC31: 8 | BD31: 7.55 | BE31: 7.1 | BF31: 7.55 | BG31: 8 | BH31: 7.45 | BI31: 6.9 | BJ31: 6.65 | BK31: 6.4 | BL31: 6.8 | BM31: 7.2 | BN31: 6.2 | BO31: 5.2 | BP31: 4.55 | BQ31: 3.9 | BR31: 2.9 | BS31: 1.9 | BT31: 0 | BU31: 0 | BV31: 0 | BW31: 0 | BX31: 0 | BY31: 0 | BZ31: 0 | CA31: =BC2 -> 0 | CB31: =BD2 -> 0 | CC31: =BE2 -> 0 | CD31: =BF2 -> 0 | CE31: =BG2 -> 0 | CF31: =BH2 -> 0 | CG31: =BI2 -> 0 | CH31: =BJ2 -> 0 | CI31: =BK2 -> 0 | CJ31: =BL2 -> 0 | CK31: =BM2 -> 0 | CL31: =BN2 -> 0 | CM31: =BO2 -> 0 | CN31: =BP2 -> 0 | CO31: =BQ2 -> 0 | CP31: =BR2 -> 0 | CQ31: =BS2 -> 0 | CR31: =BT2 -> 0 | CS31: =BU2 -> 0 | CT31: =BV2 -> 0 | CU31: =BW2 -> 0 | CV31: =BX2 -> 0 | CW31: =BY2 -> 0 | CX31: =BZ2 -> 0 | CY31: =CA2 -> 0 | CZ31: =CB2 -> 0 | DA31: =CC2 -> 0 | DB31: =CD2 -> 0 | DC31: =CE2 -> 0 | DD31: =CF2 -> 0 | DE31: =CG2 -> 0
C32: -1 | D32: 26 | AD32: =E2 -> 1.9 | AE32: 2.9 | AF32: 3.9 | AG32: 4.55 | AH32: 5.2 | AI32: 6.2 | AJ32: 7.2 | AK32: 6.8 | AL32: 6.4 | AM32: 6.65 | AN32: 6.9 | AO32: 7.45 | AP32: 8 | AQ32: 7.55 | AR32: 7.1 | AS32: 7.55 | AT32: 8 | AU32: 8.55 | AV32: 9.1 | AW32: 10.43333333 | AX32: 11.76666667 | AY32: 13.1 | AZ32: 11.76666667 | BA32: 10.43333333 | BB32: 9.1 | BC32: 8.55 | BD32: 8 | BE32: 7.55 | BF32: 7.1 | BG32: 7.55 | BH32: 8 | BI32: 7.45 | BJ32: 6.9 | BK32: 6.65 | BL32: 6.4 | BM32: 6.8 | BN32: 7.2 | BO32: 6.2 | BP32: 5.2 | BQ32: 4.55 | BR32: 3.9 | BS32: 2.9 | BT32: 1.9 | BU32: 0 | BV32: 0 | BW32: 0 | BX32: 0 | BY32: 0 | BZ32: 0 | CA32: 0 | CB32: =BC2 -> 0 | CC32: =BD2 -> 0 | CD32: =BE2 -> 0 | CE32: =BF2 -> 0 | CF32: =BG2 -> 0 | CG32: =BH2 -> 0 | CH32: =BI2 -> 0 | CI32: =BJ2 -> 0 | CJ32: =BK2 -> 0 | CK32: =BL2 -> 0 | CL32: =BM2 -> 0 | CM32: =BN2 -> 0 | CN32: =BO2 -> 0 | CO32: =BP2 -> 0 | CP32: =BQ2 -> 0 | CQ32: =BR2 -> 0 | CR32: =BS2 -> 0 | CS32: =BT2 -> 0 | CT32: =BU2 -> 0 | CU32: =BV2 -> 0 | CV32: =BW2 -> 0 | CW32: =BX2 -> 0 | CX32: =BY2 -> 0 | CY32: =BZ2 -> 0 | CZ32: =CA2 -> 0 | DA32: =CB2 -> 0 | DB32: =CC2 -> 0 | DC32: =CD2 -> 0 | DD32: =CE2 -> 0 | DE32: =CF2 -> 0 | DF32: =CG2 -> 0
C33: 1 | D33: 27 | AE33: =E2 -> 1.9 | AF33: 2.9 | AG33: 3.9 | AH33: 4.55 | AI33: 5.2 | AJ33: 6.2 | AK33: 7.2 | AL33: 6.8 | AM33: 6.4 | AN33: 6.65 | AO33: 6.9 | AP33: 7.45 | AQ33: 8 | AR33: 7.55 | AS33: 7.1 | AT33: 7.55 | AU33: 8 | AV33: 8.55 | AW33: 9.1 | AX33: 10.43333333 | AY33: 11.76666667 | AZ33: 13.1 | BA33: 11.76666667 | BB33: 10.43333333 | BC33: 9.1 | BD33: 8.55 | BE33: 8 | BF33: 7.55 | BG33: 7.1 | BH33: 7.55 | BI33: 8 | BJ33: 7.45 | BK33: 6.9 | BL33: 6.65 | BM33: 6.4 | BN33: 6.8 | BO33: 7.2 | BP33: 6.2 | BQ33: 5.2 | BR33: 4.55 | BS33: 3.9 | BT33: 2.9 | BU33: 1.9 | BV33: 0 | BW33: 0 | BX33: 0 | BY33: 0 | BZ33: 0 | CA33: 0 | CB33: 0 | CC33: =BC2 -> 0 | CD33: =BD2 -> 0 | CE33: =BE2 -> 0 | CF33: =BF2 -> 0 | CG33: =BG2 -> 0 | CH33: =BH2 -> 0 | CI33: =BI2 -> 0 | CJ33: =BJ2 -> 0 | CK33: =BK2 -> 0 | CL33: =BL2 -> 0 | CM33: =BM2 -> 0 | CN33: =BN2 -> 0 | CO33: =BO2 -> 0 | CP33: =BP2 -> 0 | CQ33: =BQ2 -> 0 | CR33: =BR2 -> 0 | CS33: =BS2 -> 0 | CT33: =BT2 -> 0 | CU33: =BU2 -> 0 | CV33: =BV2 -> 0 | CW33: =BW2 -> 0 | CX33: =BX2 -> 0 | CY33: =BY2 -> 0 | CZ33: =BZ2 -> 0 | DA33: =CA2 -> 0 | DB33: =CB2 -> 0 | DC33: =CC2 -> 0 | DD33: =CD2 -> 0 | DE33: =CE2 -> 0 | DF33: =CF2 -> 0 | DG33: =CG2 -> 0
C34: 0 | D34: 28 | AF34: =E2 -> 1.9 | AG34: 2.9 | AH34: 3.9 | AI34: 4.55 | AJ34: 5.2 | AK34: 6.2 | AL34: 7.2 | AM34: 6.8 | AN34: 6.4 | AO34: 6.65 | AP34: 6.9 | AQ34: 7.45 | AR34: 8 | AS34: 7.55 | AT34: 7.1 | AU34: 7.55 | AV34: 8 | AW34: 8.55 | AX34: 9.1 | AY34: 10.43333333 | AZ34: 11.76666667 | BA34: 13.1 | BB34: 11.76666667 | BC34: 10.43333333 | BD34: 9.1 | BE34: 8.55 | BF34: 8 | BG34: 7.55 | BH34: 7.1 | BI34: 7.55 | BJ34: 8 | BK34: 7.45 | BL34: 6.9 | BM34: 6.65 | BN34: 6.4 | BO34: 6.8 | BP34: 7.2 | BQ34: 6.2 | BR34: 5.2 | BS34: 4.55 | BT34: 3.9 | BU34: 2.9 | BV34: 1.9 | BW34: 0 | BX34: 0 | BY34: 0 | BZ34: 0 | CA34: 0 | CB34: 0 | CC34: 0 | CD34: =BC2 -> 0 | CE34: =BD2 -> 0 | CF34: =BE2 -> 0 | CG34: =BF2 -> 0 | CH34: =BG2 -> 0 | CI34: =BH2 -> 0 | CJ34: =BI2 -> 0 | CK34: =BJ2 -> 0 | CL34: =BK2 -> 0 | CM34: =BL2 -> 0 | CN34: =BM2 -> 0 | CO34: =BN2 -> 0 | CP34: =BO2 -> 0 | CQ34: =BP2 -> 0 | CR34: =BQ2 -> 0 | CS34: =BR2 -> 0 | CT34: =BS2 -> 0 | CU34: =BT2 -> 0 | CV34: =BU2 -> 0 | CW34: =BV2 -> 0 | CX34: =BW2 -> 0 | CY34: =BX2 -> 0 | CZ34: =BY2 -> 0 | DA34: =BZ2 -> 0 | DB34: =CA2 -> 0 | DC34: =CB2 -> 0 | DD34: =CC2 -> 0 | DE34: =CD2 -> 0 | DF34: =CE2 -> 0 | DG34: =CF2 -> 0 | DH34: =CG2 -> 0
C35: -1 | D35: 29 | AG35: =E2 -> 1.9 | AH35: 2.9 | AI35: 3.9 | AJ35: 4.55 | AK35: 5.2 | AL35: 6.2 | AM35: 7.2 | AN35: 6.8 | AO35: 6.4 | AP35: 6.65 | AQ35: 6.9 | AR35: 7.45 | AS35: 8 | AT35: 7.55 | AU35: 7.1 | AV35: 7.55 | AW35: 8 | AX35: 8.55 | AY35: 9.1 | AZ35: 10.43333333 | BA35: 11.76666667 | BB35: 13.1 | BC35: 11.76666667 | BD35: 10.43333333 | BE35: 9.1 | BF35: 8.55 | BG35: 8 | BH35: 7.55 | BI35: 7.1 | BJ35: 7.55 | BK35: 8 | BL35: 7.45 | BM35: 6.9 | BN35: 6.65 | BO35: 6.4 | BP35: 6.8 | BQ35: 7.2 | BR35: 6.2 | BS35: 5.2 | BT35: 4.55 | BU35: 3.9 | BV35: 2.9 | BW35: 1.9 | BX35: 0 | BY35: 0 | BZ35: 0 | CA35: 0 | CB35: 0 | CC35: 0 | CD35: 0 | CE35: =BC2 -> 0 | CF35: =BD2 -> 0 | CG35: =BE2 -> 0 | CH35: =BF2 -> 0 | CI35: =BG2 -> 0 | CJ35: =BH2 -> 0 | CK35: =BI2 -> 0 | CL35: =BJ2 -> 0 | CM35: =BK2 -> 0 | CN35: =BL2 -> 0 | CO35: =BM2 -> 0 | CP35: =BN2 -> 0 | CQ35: =BO2 -> 0 | CR35: =BP2 -> 0 | CS35: =BQ2 -> 0 | CT35: =BR2 -> 0 | CU35: =BS2 -> 0 | CV35: =BT2 -> 0 | CW35: =BU2 -> 0 | CX35: =BV2 -> 0 | CY35: =BW2 -> 0 | CZ35: =BX2 -> 0 | DA35: =BY2 -> 0 | DB35: =BZ2 -> 0 | DC35: =CA2 -> 0 | DD35: =CB2 -> 0 | DE35: =CC2 -> 0 | DF35: =CD2 -> 0 | DG35: =CE2 -> 0 | DH35: =CF2 -> 0 | DI35: =CG2 -> 0
C36: 1 | D36: 30 | AH36: =E2 -> 1.9 | AI36: 2.9 | AJ36: 3.9 | AK36: 4.55 | AL36: 5.2 | AM36: 6.2 | AN36: 7.2 | AO36: 6.8 | AP36: 6.4 | AQ36: 6.65 | AR36: 6.9 | AS36: 7.45 | AT36: 8 | AU36: 7.55 | AV36: 7.1 | AW36: 7.55 | AX36: 8 | AY36: 8.55 | AZ36: 9.1 | BA36: 10.43333333 | BB36: 11.76666667 | BC36: 13.1 | BD36: 11.76666667 | BE36: 10.43333333 | BF36: 9.1 | BG36: 8.55 | BH36: 8 | BI36: 7.55 | BJ36: 7.1 | BK36: 7.55 | BL36: 8 | BM36: 7.45 | BN36: 6.9 | BO36: 6.65 | BP36: 6.4 | BQ36: 6.8 | BR36: 7.2 | BS36: 6.2 | BT36: 5.2 | BU36: 4.55 | BV36: 3.9 | BW36: 2.9 | BX36: 1.9 | BY36: 0 | BZ36: 0 | CA36: 0 | CB36: 0 | CC36: 0 | CD36: 0 | CE36: 0 | CF36: =BC2 -> 0 | CG36: =BD2 -> 0 | CH36: =BE2 -> 0 | CI36: =BF2 -> 0 | CJ36: =BG2 -> 0 | CK36: =BH2 -> 0 | CL36: =BI2 -> 0 | CM36: =BJ2 -> 0 | CN36: =BK2 -> 0 | CO36: =BL2 -> 0 | CP36: =BM2 -> 0 | CQ36: =BN2 -> 0 | CR36: =BO2 -> 0 | CS36: =BP2 -> 0 | CT36: =BQ2 -> 0 | CU36: =BR2 -> 0 | CV36: =BS2 -> 0 | CW36: =BT2 -> 0 | CX36: =BU2 -> 0 | CY36: =BV2 -> 0 | CZ36: =BW2 -> 0 | DA36: =BX2 -> 0 | DB36: =BY2 -> 0 | DC36: =BZ2 -> 0 | DD36: =CA2 -> 0 | DE36: =CB2 -> 0 | DF36: =CC2 -> 0 | DG36: =CD2 -> 0 | DH36: =CE2 -> 0 | DI36: =CF2 -> 0 | DJ36: =CG2 -> 0
C37: 0 | D37: 31 | AI37: =E2 -> 1.9 | AJ37: 2.9 | AK37: 3.9 | AL37: 4.55 | AM37: 5.2 | AN37: 6.2 | AO37: 7.2 | AP37: 6.8 | AQ37: 6.4 | AR37: 6.65 | AS37: 6.9 | AT37: 7.45 | AU37: 8 | AV37: 7.55 | AW37: 7.1 | AX37: 7.55 | AY37: 8 | AZ37: 8.55 | BA37: 9.1 | BB37: 10.43333333 | BC37: 11.76666667 | BD37: 13.1 | BE37: 11.76666667 | BF37: 10.43333333 | BG37: 9.1 | BH37: 8.55 | BI37: 8 | BJ37: 7.55 | BK37: 7.1 | BL37: 7.55 | BM37: 8 | BN37: 7.45 | BO37: 6.9 | BP37: 6.65 | BQ37: 6.4 | BR37: 6.8 | BS37: 7.2 | BT37: 6.2 | BU37: 5.2 | BV37: 4.55 | BW37: 3.9 | BX37: 2.9 | BY37: 1.9 | BZ37: 0 | CA37: 0 | CB37: 0 | CC37: 0 | CD37: 0 | CE37: 0 | CF37: 0 | CG37: =BC2 -> 0 | CH37: =BD2 -> 0 | CI37: =BE2 -> 0 | CJ37: =BF2 -> 0 | CK37: =BG2 -> 0 | CL37: =BH2 -> 0 | CM37: =BI2 -> 0 | CN37: =BJ2 -> 0 | CO37: =BK2 -> 0 | CP37: =BL2 -> 0 | CQ37: =BM2 -> 0 | CR37: =BN2 -> 0 | CS37: =BO2 -> 0 | CT37: =BP2 -> 0 | CU37: =BQ2 -> 0 | CV37: =BR2 -> 0 | CW37: =BS2 -> 0 | CX37: =BT2 -> 0 | CY37: =BU2 -> 0 | CZ37: =BV2 -> 0 | DA37: =BW2 -> 0 | DB37: =BX2 -> 0 | DC37: =BY2 -> 0 | DD37: =BZ2 -> 0 | DE37: =CA2 -> 0 | DF37: =CB2 -> 0 | DG37: =CC2 -> 0 | DH37: =CD2 -> 0 | DI37: =CE2 -> 0 | DJ37: =CF2 -> 0 | DK37: =CG2 -> 0
C38: -1 | D38: 32 | AJ38: =E2 -> 1.9 | AK38: 2.9 | AL38: 3.9 | AM38: 4.55 | AN38: 5.2 | AO38: 6.2 | AP38: 7.2 | AQ38: 6.8 | AR38: 6.4 | AS38: 6.65 | AT38: 6.9 | AU38: 7.45 | AV38: 8 | AW38: 7.55 | AX38: 7.1 | AY38: 7.55 | AZ38: 8 | BA38: 8.55 | BB38: 9.1 | BC38: 10.43333333 | BD38: 11.76666667 | BE38: 13.1 | BF38: 11.76666667 | BG38: 10.43333333 | BH38: 9.1 | BI38: 8.55 | BJ38: 8 | BK38: 7.55 | BL38: 7.1 | BM38: 7.55 | BN38: 8 | BO38: 7.45 | BP38: 6.9 | BQ38: 6.65 | BR38: 6.4 | BS38: 6.8 | BT38: 7.2 | BU38: 6.2 | BV38: 5.2 | BW38: 4.55 | BX38: 3.9 | BY38: 2.9 | BZ38: 1.9 | CA38: 0 | CB38: 0 | CC38: 0 | CD38: 0 | CE38: 0 | CF38: 0 | CG38: 0 | CH38: =BC2 -> 0 | CI38: =BD2 -> 0 | CJ38: =BE2 -> 0 | CK38: =BF2 -> 0 | CL38: =BG2 -> 0 | CM38: =BH2 -> 0 | CN38: =BI2 -> 0 | CO38: =BJ2 -> 0 | CP38: =BK2 -> 0 | CQ38: =BL2 -> 0 | CR38: =BM2 -> 0 | CS38: =BN2 -> 0 | CT38: =BO2 -> 0 | CU38: =BP2 -> 0 | CV38: =BQ2 -> 0 | CW38: =BR2 -> 0 | CX38: =BS2 -> 0 | CY38: =BT2 -> 0 | CZ38: =BU2 -> 0 | DA38: =BV2 -> 0 | DB38: =BW2 -> 0 | DC38: =BX2 -> 0 | DD38: =BY2 -> 0 | DE38: =BZ2 -> 0 | DF38: =CA2 -> 0 | DG38: =CB2 -> 0 | DH38: =CC2 -> 0 | DI38: =CD2 -> 0 | DJ38: =CE2 -> 0 | DK38: =CF2 -> 0 | DL38: =CG2 -> 0
C39: =1-MOD(D39,$B$106) -> 1 | D39: 33 | AK39: =E2 -> 1.9 | AL39: 2.9 | AM39: 3.9 | AN39: 4.55 | AO39: 5.2 | AP39: 6.2 | AQ39: 7.2 | AR39: 6.8 | AS39: 6.4 | AT39: 6.65 | AU39: 6.9 | AV39: 7.45 | AW39: 8 | AX39: 7.55 | AY39: 7.1 | AZ39: 7.55 | BA39: 8 | BB39: 8.55 | BC39: 9.1 | BD39: 10.43333333 | BE39: 11.76666667 | BF39: 13.1 | BG39: 11.76666667 | BH39: 10.43333333 | BI39: 9.1 | BJ39: 8.55 | BK39: 8 | BL39: 7.55 | BM39: 7.1 | BN39: 7.55 | BO39: 8 | BP39: 7.45 | BQ39: 6.9 | BR39: 6.65 | BS39: 6.4 | BT39: 6.8 | BU39: 7.2 | BV39: 6.2 | BW39: 5.2 | BX39: 4.55 | BY39: 3.9 | BZ39: 2.9 | CA39: 1.9 | CB39: 0 | CC39: 0 | CD39: 0 | CE39: 0 | CF39: 0 | CG39: 0 | CH39: 0 | CI39: =BC2 -> 0 | CJ39: =BD2 -> 0 | CK39: =BE2 -> 0 | CL39: =BF2 -> 0 | CM39: =BG2 -> 0 | CN39: =BH2 -> 0 | CO39: =BI2 -> 0 | CP39: =BJ2 -> 0 | CQ39: =BK2 -> 0 | CR39: =BL2 -> 0 | CS39: =BM2 -> 0 | CT39: =BN2 -> 0 | CU39: =BO2 -> 0 | CV39: =BP2 -> 0 | CW39: =BQ2 -> 0 | CX39: =BR2 -> 0 | CY39: =BS2 -> 0 | CZ39: =BT2 -> 0 | DA39: =BU2 -> 0 | DB39: =BV2 -> 0 | DC39: =BW2 -> 0 | DD39: =BX2 -> 0 | DE39: =BY2 -> 0 | DF39: =BZ2 -> 0 | DG39: =CA2 -> 0 | DH39: =CB2 -> 0 | DI39: =CC2 -> 0 | DJ39: =CD2 -> 0 | DK39: =CE2 -> 0 | DL39: =CF2 -> 0 | DM39: =CG2 -> 0
C40: 0 | D40: 34 | AL40: =E2 -> 1.9 | AM40: 2.9 | AN40: 3.9 | AO40: 4.55 | AP40: 5.2 | AQ40: 6.2 | AR40: 7.2 | AS40: 6.8 | AT40: 6.4 | AU40: 6.65 | AV40: 6.9 | AW40: 7.45 | AX40: 8 | AY40: 7.55 | AZ40: 7.1 | BA40: 7.55 | BB40: 8 | BC40: 8.55 | BD40: 9.1 | BE40: 10.43333333 | BF40: 11.76666667 | BG40: 13.1 | BH40: 11.76666667 | BI40: 10.43333333 | BJ40: 9.1 | BK40: 8.55 | BL40: 8 | BM40: 7.55 | BN40: 7.1 | BO40: 7.55 | BP40: 8 | BQ40: 7.45 | BR40: 6.9 | BS40: 6.65 | BT40: 6.4 | BU40: 6.8 | BV40: 7.2 | BW40: 6.2 | BX40: 5.2 | BY40: 4.55 | BZ40: 3.9 | CA40: 2.9 | CB40: 1.9 | CC40: 0 | CD40: 0 | CE40: 0 | CF40: 0 | CG40: 0 | CH40: 0 | CI40: 0 | CJ40: =BC2 -> 0 | CK40: =BD2 -> 0 | CL40: =BE2 -> 0 | CM40: =BF2 -> 0 | CN40: =BG2 -> 0 | CO40: =BH2 -> 0 | CP40: =BI2 -> 0 | CQ40: =BJ2 -> 0 | CR40: =BK2 -> 0 | CS40: =BL2 -> 0 | CT40: =BM2 -> 0 | CU40: =BN2 -> 0 | CV40: =BO2 -> 0 | CW40: =BP2 -> 0 | CX40: =BQ2 -> 0 | CY40: =BR2 -> 0 | CZ40: =BS2 -> 0 | DA40: =BT2 -> 0 | DB40: =BU2 -> 0 | DC40: =BV2 -> 0 | DD40: =BW2 -> 0 | DE40: =BX2 -> 0 | DF40: =BY2 -> 0 | DG40: =BZ2 -> 0 | DH40: =CA2 -> 0 | DI40: =CB2 -> 0 | DJ40: =CC2 -> 0 | DK40: =CD2 -> 0 | DL40: =CE2 -> 0 | DM40: =CF2 -> 0 | DN40: =CG2 -> 0
C41: -1 | D41: 35 | AM41: =E2 -> 1.9 | AN41: 2.9 | AO41: 3.9 | AP41: 4.55 | AQ41: 5.2 | AR41: 6.2 | AS41: 7.2 | AT41: 6.8 | AU41: 6.4 | AV41: 6.65 | AW41: 6.9 | AX41: 7.45 | AY41: 8 | AZ41: 7.55 | BA41: 7.1 | BB41: 7.55 | BC41: 8 | BD41: 8.55 | BE41: 9.1 | BF41: 10.43333333 | BG41: 11.76666667 | BH41: 13.1 | BI41: 11.76666667 | BJ41: 10.43333333 | BK41: 9.1 | BL41: 8.55 | BM41: 8 | BN41: 7.55 | BO41: 7.1 | BP41: 7.55 | BQ41: 8 | BR41: 7.45 | BS41: 6.9 | BT41: 6.65 | BU41: 6.4 | BV41: 6.8 | BW41: 7.2 | BX41: 6.2 | BY41: 5.2 | BZ41: 4.55 | CA41: 3.9 | CB41: 2.9 | CC41: 1.9 | CD41: 0 | CE41: 0 | CF41: 0 | CG41: 0 | CH41: 0 | CI41: 0 | CJ41: 0 | CK41: =BC2 -> 0 | CL41: =BD2 -> 0 | CM41: =BE2 -> 0 | CN41: =BF2 -> 0 | CO41: =BG2 -> 0 | CP41: =BH2 -> 0 | CQ41: =BI2 -> 0 | CR41: =BJ2 -> 0 | CS41: =BK2 -> 0 | CT41: =BL2 -> 0 | CU41: =BM2 -> 0 | CV41: =BN2 -> 0 | CW41: =BO2 -> 0 | CX41: =BP2 -> 0 | CY41: =BQ2 -> 0 | CZ41: =BR2 -> 0 | DA41: =BS2 -> 0 | DB41: =BT2 -> 0 | DC41: =BU2 -> 0 | DD41: =BV2 -> 0 | DE41: =BW2 -> 0 | DF41: =BX2 -> 0 | DG41: =BY2 -> 0 | DH41: =BZ2 -> 0 | DI41: =CA2 -> 0 | DJ41: =CB2 -> 0 | DK41: =CC2 -> 0 | DL41: =CD2 -> 0 | DM41: =CE2 -> 0 | DN41: =CF2 -> 0 | DO41: =CG2 -> 0
C42: 1 | D42: 36 | AN42: =E2 -> 1.9 | AO42: 2.9 | AP42: 3.9 | AQ42: 4.55 | AR42: 5.2 | AS42: 6.2 | AT42: 7.2 | AU42: 6.8 | AV42: 6.4 | AW42: 6.65 | AX42: 6.9 | AY42: 7.45 | AZ42: 8 | BA42: 7.55 | BB42: 7.1 | BC42: 7.55 | BD42: 8 | BE42: 8.55 | BF42: 9.1 | BG42: 10.43333333 | BH42: 11.76666667 | BI42: 13.1 | BJ42: 11.76666667 | BK42: 10.43333333 | BL42: 9.1 | BM42: 8.55 | BN42: 8 | BO42: 7.55 | BP42: 7.1 | BQ42: 7.55 | BR42: 8 | BS42: 7.45 | BT42: 6.9 | BU42: 6.65 | BV42: 6.4 | BW42: 6.8 | BX42: 7.2 | BY42: 6.2 | BZ42: 5.2 | CA42: 4.55 | CB42: 3.9 | CC42: 2.9 | CD42: 1.9 | CE42: 0 | CF42: 0 | CG42: 0 | CH42: 0 | CI42: 0 | CJ42: 0 | CK42: 0 | CL42: =BC2 -> 0 | CM42: =BD2 -> 0 | CN42: =BE2 -> 0 | CO42: =BF2 -> 0 | CP42: =BG2 -> 0 | CQ42: =BH2 -> 0 | CR42: =BI2 -> 0 | CS42: =BJ2 -> 0 | CT42: =BK2 -> 0 | CU42: =BL2 -> 0 | CV42: =BM2 -> 0 | CW42: =BN2 -> 0 | CX42: =BO2 -> 0 | CY42: =BP2 -> 0 | CZ42: =BQ2 -> 0 | DA42: =BR2 -> 0 | DB42: =BS2 -> 0 | DC42: =BT2 -> 0 | DD42: =BU2 -> 0 | DE42: =BV2 -> 0 | DF42: =BW2 -> 0 | DG42: =BX2 -> 0 | DH42: =BY2 -> 0 | DI42: =BZ2 -> 0 | DJ42: =CA2 -> 0 | DK42: =CB2 -> 0 | DL42: =CC2 -> 0 | DM42: =CD2 -> 0 | DN42: =CE2 -> 0 | DO42: =CF2 -> 0 | DP42: =CG2 -> 0
C43: 0 | D43: 37 | AO43: =E2 -> 1.9 | AP43: 2.9 | AQ43: 3.9 | AR43: 4.55 | AS43: 5.2 | AT43: 6.2 | AU43: 7.2 | AV43: 6.8 | AW43: 6.4 | AX43: 6.65 | AY43: 6.9 | AZ43: 7.45 | BA43: 8 | BB43: 7.55 | BC43: 7.1 | BD43: 7.55 | BE43: 8 | BF43: 8.55 | BG43: 9.1 | BH43: 10.43333333 | BI43: 11.76666667 | BJ43: 13.1 | BK43: 11.76666667 | BL43: 10.43333333 | BM43: 9.1 | BN43: 8.55 | BO43: 8 | BP43: 7.55 | BQ43: 7.1 | BR43: 7.55 | BS43: 8 | BT43: 7.45 | BU43: 6.9 | BV43: 6.65 | BW43: 6.4 | BX43: 6.8 | BY43: 7.2 | BZ43: 6.2 | CA43: 5.2 | CB43: 4.55 | CC43: 3.9 | CD43: 2.9 | CE43: 1.9 | CF43: 0 | CG43: 0 | CH43: 0 | CI43: 0 | CJ43: 0 | CK43: 0 | CL43: 0 | CM43: =BC2 -> 0 | CN43: =BD2 -> 0 | CO43: =BE2 -> 0 | CP43: =BF2 -> 0 | CQ43: =BG2 -> 0 | CR43: =BH2 -> 0 | CS43: =BI2 -> 0 | CT43: =BJ2 -> 0 | CU43: =BK2 -> 0 | CV43: =BL2 -> 0 | CW43: =BM2 -> 0 | CX43: =BN2 -> 0 | CY43: =BO2 -> 0 | CZ43: =BP2 -> 0 | DA43: =BQ2 -> 0 | DB43: =BR2 -> 0 | DC43: =BS2 -> 0 | DD43: =BT2 -> 0 | DE43: =BU2 -> 0 | DF43: =BV2 -> 0 | DG43: =BW2 -> 0 | DH43: =BX2 -> 0 | DI43: =BY2 -> 0 | DJ43: =BZ2 -> 0 | DK43: =CA2 -> 0 | DL43: =CB2 -> 0 | DM43: =CC2 -> 0 | DN43: =CD2 -> 0 | DO43: =CE2 -> 0 | DP43: =CF2 -> 0 | DQ43: =CG2 -> 0
C44: -1 | D44: 38 | AP44: =E2 -> 1.9 | AQ44: 2.9 | AR44: 3.9 | AS44: 4.55 | AT44: 5.2 | AU44: 6.2 | AV44: 7.2 | AW44: 6.8 | AX44: 6.4 | AY44: 6.65 | AZ44: 6.9 | BA44: 7.45 | BB44: 8 | BC44: 7.55 | BD44: 7.1 | BE44: 7.55 | BF44: 8 | BG44: 8.55 | BH44: 9.1 | BI44: 10.43333333 | BJ44: 11.76666667 | BK44: 13.1 | BL44: 11.76666667 | BM44: 10.43333333 | BN44: 9.1 | BO44: 8.55 | BP44: 8 | BQ44: 7.55 | BR44: 7.1 | BS44: 7.55 | BT44: 8 | BU44: 7.45 | BV44: 6.9 | BW44: 6.65 | BX44: 6.4 | BY44: 6.8 | BZ44: 7.2 | CA44: 6.2 | CB44: 5.2 | CC44: 4.55 | CD44: 3.9 | CE44: 2.9 | CF44: 1.9 | CG44: 0 | CH44: 0 | CI44: 0 | CJ44: 0 | CK44: 0 | CL44: 0 | CM44: 0 | CN44: =BC2 -> 0 | CO44: =BD2 -> 0 | CP44: =BE2 -> 0 | CQ44: =BF2 -> 0 | CR44: =BG2 -> 0 | CS44: =BH2 -> 0 | CT44: =BI2 -> 0 | CU44: =BJ2 -> 0 | CV44: =BK2 -> 0 | CW44: =BL2 -> 0 | CX44: =BM2 -> 0 | CY44: =BN2 -> 0 | CZ44: =BO2 -> 0 | DA44: =BP2 -> 0 | DB44: =BQ2 -> 0 | DC44: =BR2 -> 0 | DD44: =BS2 -> 0 | DE44: =BT2 -> 0 | DF44: =BU2 -> 0 | DG44: =BV2 -> 0 | DH44: =BW2 -> 0 | DI44: =BX2 -> 0 | DJ44: =BY2 -> 0 | DK44: =BZ2 -> 0 | DL44: =CA2 -> 0 | DM44: =CB2 -> 0 | DN44: =CC2 -> 0 | DO44: =CD2 -> 0 | DP44: =CE2 -> 0 | DQ44: =CF2 -> 0 | DR44: =CG2 -> 0
C45: 1 | D45: 39 | AQ45: =E2 -> 1.9 | AR45: 2.9 | AS45: 3.9 | AT45: 4.55 | AU45: 5.2 | AV45: 6.2 | AW45: 7.2 | AX45: 6.8 | AY45: 6.4 | AZ45: 6.65 | BA45: 6.9 | BB45: 7.45 | BC45: 8 | BD45: 7.55 | BE45: 7.1 | BF45: 7.55 | BG45: 8 | BH45: 8.55 | BI45: 9.1 | BJ45: 10.43333333 | BK45: 11.76666667 | BL45: 13.1 | BM45: 11.76666667 | BN45: 10.43333333 | BO45: 9.1 | BP45: 8.55 | BQ45: 8 | BR45: 7.55 | BS45: 7.1 | BT45: 7.55 | BU45: 8 | BV45: 7.45 | BW45: 6.9 | BX45: 6.65 | BY45: 6.4 | BZ45: 6.8 | CA45: 7.2 | CB45: 6.2 | CC45: 5.2 | CD45: 4.55 | CE45: 3.9 | CF45: 2.9 | CG45: 1.9 | CH45: 0 | CI45: 0 | CJ45: 0 | CK45: 0 | CL45: 0 | CM45: 0 | CN45: 0 | CO45: =BC2 -> 0 | CP45: =BD2 -> 0 | CQ45: =BE2 -> 0 | CR45: =BF2 -> 0 | CS45: =BG2 -> 0 | CT45: =BH2 -> 0 | CU45: =BI2 -> 0 | CV45: =BJ2 -> 0 | CW45: =BK2 -> 0 | CX45: =BL2 -> 0 | CY45: =BM2 -> 0 | CZ45: =BN2 -> 0 | DA45: =BO2 -> 0 | DB45: =BP2 -> 0 | DC45: =BQ2 -> 0 | DD45: =BR2 -> 0 | DE45: =BS2 -> 0 | DF45: =BT2 -> 0 | DG45: =BU2 -> 0 | DH45: =BV2 -> 0 | DI45: =BW2 -> 0 | DJ45: =BX2 -> 0 | DK45: =BY2 -> 0 | DL45: =BZ2 -> 0 | DM45: =CA2 -> 0 | DN45: =CB2 -> 0 | DO45: =CC2 -> 0 | DP45: =CD2 -> 0 | DQ45: =CE2 -> 0 | DR45: =CF2 -> 0 | DS45: =CG2 -> 0
C46: 0 | D46: 40 | AR46: =E2 -> 1.9 | AS46: 2.9 | AT46: 3.9 | AU46: 4.55 | AV46: 5.2 | AW46: 6.2 | AX46: 7.2 | AY46: 6.8 | AZ46: 6.4 | BA46: 6.65 | BB46: 6.9 | BC46: 7.45 | BD46: 8 | BE46: 7.55 | BF46: 7.1 | BG46: 7.55 | BH46: 8 | BI46: 8.55 | BJ46: 9.1 | BK46: 10.43333333 | BL46: 11.76666667 | BM46: 13.1 | BN46: 11.76666667 | BO46: 10.43333333 | BP46: 9.1 | BQ46: 8.55 | BR46: 8 | BS46: 7.55 | BT46: 7.1 | BU46: 7.55 | BV46: 8 | BW46: 7.45 | BX46: 6.9 | BY46: 6.65 | BZ46: 6.4 | CA46: 6.8 | CB46: 7.2 | CC46: 6.2 | CD46: 5.2 | CE46: 4.55 | CF46: 3.9 | CG46: 2.9 | CH46: 1.9 | CI46: 0 | CJ46: 0 | CK46: 0 | CL46: 0 | CM46: 0 | CN46: 0 | CO46: 0 | CP46: =BC2 -> 0 | CQ46: =BD2 -> 0 | CR46: =BE2 -> 0 | CS46: =BF2 -> 0 | CT46: =BG2 -> 0 | CU46: =BH2 -> 0 | CV46: =BI2 -> 0 | CW46: =BJ2 -> 0 | CX46: =BK2 -> 0 | CY46: =BL2 -> 0 | CZ46: =BM2 -> 0 | DA46: =BN2 -> 0 | DB46: =BO2 -> 0 | DC46: =BP2 -> 0 | DD46: =BQ2 -> 0 | DE46: =BR2 -> 0 | DF46: =BS2 -> 0 | DG46: =BT2 -> 0 | DH46: =BU2 -> 0 | DI46: =BV2 -> 0 | DJ46: =BW2 -> 0 | DK46: =BX2 -> 0 | DL46: =BY2 -> 0 | DM46: =BZ2 -> 0 | DN46: =CA2 -> 0 | DO46: =CB2 -> 0 | DP46: =CC2 -> 0 | DQ46: =CD2 -> 0 | DR46: =CE2 -> 0 | DS46: =CF2 -> 0 | DT46: =CG2 -> 0
C47: -1 | D47: 41 | AS47: =E2 -> 1.9 | AT47: 2.9 | AU47: 3.9 | AV47: 4.55 | AW47: 5.2 | AX47: 6.2 | AY47: 7.2 | AZ47: 6.8 | BA47: 6.4 | BB47: 6.65 | BC47: 6.9 | BD47: 7.45 | BE47: 8 | BF47: 7.55 | BG47: 7.1 | BH47: 7.55 | BI47: 8 | BJ47: 8.55 | BK47: 9.1 | BL47: 10.43333333 | BM47: 11.76666667 | BN47: 13.1 | BO47: 11.76666667 | BP47: 10.43333333 | BQ47: 9.1 | BR47: 8.55 | BS47: 8 | BT47: 7.55 | BU47: 7.1 | BV47: 7.55 | BW47: 8 | BX47: 7.45 | BY47: 6.9 | BZ47: 6.65 | CA47: 6.4 | CB47: 6.8 | CC47: 7.2 | CD47: 6.2 | CE47: 5.2 | CF47: 4.55 | CG47: 3.9 | CH47: 2.9 | CI47: 1.9 | CJ47: 0 | CK47: 0 | CL47: 0 | CM47: 0 | CN47: 0 | CO47: 0 | CP47: 0 | CQ47: =BC2 -> 0 | CR47: =BD2 -> 0 | CS47: =BE2 -> 0 | CT47: =BF2 -> 0 | CU47: =BG2 -> 0 | CV47: =BH2 -> 0 | CW47: =BI2 -> 0 | CX47: =BJ2 -> 0 | CY47: =BK2 -> 0 | CZ47: =BL2 -> 0 | DA47: =BM2 -> 0 | DB47: =BN2 -> 0 | DC47: =BO2 -> 0 | DD47: =BP2 -> 0 | DE47: =BQ2 -> 0 | DF47: =BR2 -> 0 | DG47: =BS2 -> 0 | DH47: =BT2 -> 0 | DI47: =BU2 -> 0 | DJ47: =BV2 -> 0 | DK47: =BW2 -> 0 | DL47: =BX2 -> 0 | DM47: =BY2 -> 0 | DN47: =BZ2 -> 0 | DO47: =CA2 -> 0 | DP47: =CB2 -> 0 | DQ47: =CC2 -> 0 | DR47: =CD2 -> 0 | DS47: =CE2 -> 0 | DT47: =CF2 -> 0 | DU47: =CG2 -> 0
C48: 1 | D48: 42 | AT48: =E2 -> 1.9 | AU48: 2.9 | AV48: 3.9 | AW48: 4.55 | AX48: 5.2 | AY48: 6.2 | AZ48: 7.2 | BA48: 6.8 | BB48: 6.4 | BC48: 6.65 | BD48: 6.9 | BE48: 7.45 | BF48: 8 | BG48: 7.55 | BH48: 7.1 | BI48: 7.55 | BJ48: 8 | BK48: 8.55 | BL48: 9.1 | BM48: 10.43333333 | BN48: 11.76666667 | BO48: 13.1 | BP48: 11.76666667 | BQ48: 10.43333333 | BR48: 9.1 | BS48: 8.55 | BT48: 8 | BU48: 7.55 | BV48: 7.1 | BW48: 7.55 | BX48: 8 | BY48: 7.45 | BZ48: 6.9 | CA48: 6.65 | CB48: 6.4 | CC48: 6.8 | CD48: 7.2 | CE48: 6.2 | CF48: 5.2 | CG48: 4.55 | CH48: 3.9 | CI48: 2.9 | CJ48: 1.9 | CK48: 0 | CL48: 0 | CM48: 0 | CN48: 0 | CO48: 0 | CP48: 0 | CQ48: 0 | CR48: =BC2 -> 0 | CS48: =BD2 -> 0 | CT48: =BE2 -> 0 | CU48: =BF2 -> 0 | CV48: =BG2 -> 0 | CW48: =BH2 -> 0 | CX48: =BI2 -> 0 | CY48: =BJ2 -> 0 | CZ48: =BK2 -> 0 | DA48: =BL2 -> 0 | DB48: =BM2 -> 0 | DC48: =BN2 -> 0 | DD48: =BO2 -> 0 | DE48: =BP2 -> 0 | DF48: =BQ2 -> 0 | DG48: =BR2 -> 0 | DH48: =BS2 -> 0 | DI48: =BT2 -> 0 | DJ48: =BU2 -> 0 | DK48: =BV2 -> 0 | DL48: =BW2 -> 0 | DM48: =BX2 -> 0 | DN48: =BY2 -> 0 | DO48: =BZ2 -> 0 | DP48: =CA2 -> 0 | DQ48: =CB2 -> 0 | DR48: =CC2 -> 0 | DS48: =CD2 -> 0 | DT48: =CE2 -> 0 | DU48: =CF2 -> 0 | DV48: =CG2 -> 0
C49: 0 | D49: 43 | AU49: =E2 -> 1.9 | AV49: 2.9 | AW49: 3.9 | AX49: 4.55 | AY49: 5.2 | AZ49: 6.2 | BA49: 7.2 | BB49: 6.8 | BC49: 6.4 | BD49: 6.65 | BE49: 6.9 | BF49: 7.45 | BG49: 8 | BH49: 7.55 | BI49: 7.1 | BJ49: 7.55 | BK49: 8 | BL49: 8.55 | BM49: 9.1 | BN49: 10.43333333 | BO49: 11.76666667 | BP49: 13.1 | BQ49: 11.76666667 | BR49: 10.43333333 | BS49: 9.1 | BT49: 8.55 | BU49: 8 | BV49: 7.55 | BW49: 7.1 | BX49: 7.55 | BY49: 8 | BZ49: 7.45 | CA49: 6.9 | CB49: 6.65 | CC49: 6.4 | CD49: 6.8 | CE49: 7.2 | CF49: 6.2 | CG49: 5.2 | CH49: 4.55 | CI49: 3.9 | CJ49: 2.9 | CK49: 1.9 | CL49: 0 | CM49: 0 | CN49: 0 | CO49: 0 | CP49: 0 | CQ49: 0 | CR49: 0 | CS49: =BC2 -> 0 | CT49: =BD2 -> 0 | CU49: =BE2 -> 0 | CV49: =BF2 -> 0 | CW49: =BG2 -> 0 | CX49: =BH2 -> 0 | CY49: =BI2 -> 0 | CZ49: =BJ2 -> 0 | DA49: =BK2 -> 0 | DB49: =BL2 -> 0 | DC49: =BM2 -> 0 | DD49: =BN2 -> 0 | DE49: =BO2 -> 0 | DF49: =BP2 -> 0 | DG49: =BQ2 -> 0 | DH49: =BR2 -> 0 | DI49: =BS2 -> 0 | DJ49: =BT2 -> 0 | DK49: =BU2 -> 0 | DL49: =BV2 -> 0 | DM49: =BW2 -> 0 | DN49: =BX2 -> 0 | DO49: =BY2 -> 0 | DP49: =BZ2 -> 0 | DQ49: =CA2 -> 0 | DR49: =CB2 -> 0 | DS49: =CC2 -> 0 | DT49: =CD2 -> 0 | DU49: =CE2 -> 0 | DV49: =CF2 -> 0 | DW49: =CG2 -> 0
C50: -1 | D50: 44 | AV50: =E2 -> 1.9 | AW50: 2.9 | AX50: 3.9 | AY50: 4.55 | AZ50: 5.2 | BA50: 6.2 | BB50: 7.2 | BC50: 6.8 | BD50: 6.4 | BE50: 6.65 | BF50: 6.9 | BG50: 7.45 | BH50: 8 | BI50: 7.55 | BJ50: 7.1 | BK50: 7.55 | BL50: 8 | BM50: 8.55 | BN50: 9.1 | BO50: 10.43333333 | BP50: 11.76666667 | BQ50: 13.1 | BR50: 11.76666667 | BS50: 10.43333333 | BT50: 9.1 | BU50: 8.55 | BV50: 8 | BW50: 7.55 | BX50: 7.1 | BY50: 7.55 | BZ50: 8 | CA50: 7.45 | CB50: 6.9 | CC50: 6.65 | CD50: 6.4 | CE50: 6.8 | CF50: 7.2 | CG50: 6.2 | CH50: 5.2 | CI50: 4.55 | CJ50: 3.9 | CK50: 2.9 | CL50: 1.9 | CM50: 0 | CN50: 0 | CO50: 0 | CP50: 0 | CQ50: 0 | CR50: 0 | CS50: 0 | CT50: =BC2 -> 0 | CU50: =BD2 -> 0 | CV50: =BE2 -> 0 | CW50: =BF2 -> 0 | CX50: =BG2 -> 0 | CY50: =BH2 -> 0 | CZ50: =BI2 -> 0 | DA50: =BJ2 -> 0 | DB50: =BK2 -> 0 | DC50: =BL2 -> 0 | DD50: =BM2 -> 0 | DE50: =BN2 -> 0 | DF50: =BO2 -> 0 | DG50: =BP2 -> 0 | DH50: =BQ2 -> 0 | DI50: =BR2 -> 0 | DJ50: =BS2 -> 0 | DK50: =BT2 -> 0 | DL50: =BU2 -> 0 | DM50: =BV2 -> 0 | DN50: =BW2 -> 0 | DO50: =BX2 -> 0 | DP50: =BY2 -> 0 | DQ50: =BZ2 -> 0 | DR50: =CA2 -> 0 | DS50: =CB2 -> 0 | DT50: =CC2 -> 0 | DU50: =CD2 -> 0 | DV50: =CE2 -> 0 | DW50: =CF2 -> 0 | DX50: =CG2 -> 0
C51: 1 | D51: 45 | AW51: =E2 -> 1.9 | AX51: 2.9 | AY51: 3.9 | AZ51: 4.55 | BA51: 5.2 | BB51: 6.2 | BC51: 7.2 | BD51: 6.8 | BE51: 6.4 | BF51: 6.65 | BG51: 6.9 | BH51: 7.45 | BI51: 8 | BJ51: 7.55 | BK51: 7.1 | BL51: 7.55 | BM51: 8 | BN51: 8.55 | BO51: 9.1 | BP51: 10.43333333 | BQ51: 11.76666667 | BR51: 13.1 | BS51: 11.76666667 | BT51: 10.43333333 | BU51: 9.1 | BV51: 8.55 | BW51: 8 | BX51: 7.55 | BY51: 7.1 | BZ51: 7.55 | CA51: 8 | CB51: 7.45 | CC51: 6.9 | CD51: 6.65 | CE51: 6.4 | CF51: 6.8 | CG51: 7.2 | CH51: 6.2 | CI51: 5.2 | CJ51: 4.55 | CK51: 3.9 | CL51: 2.9 | CM51: 1.9 | CN51: 0 | CO51: 0 | CP51: 0 | CQ51: 0 | CR51: 0 | CS51: 0 | CT51: 0 | CU51: =BC2 -> 0 | CV51: =BD2 -> 0 | CW51: =BE2 -> 0 | CX51: =BF2 -> 0 | CY51: =BG2 -> 0 | CZ51: =BH2 -> 0 | DA51: =BI2 -> 0 | DB51: =BJ2 -> 0 | DC51: =BK2 -> 0 | DD51: =BL2 -> 0 | DE51: =BM2 -> 0 | DF51: =BN2 -> 0 | DG51: =BO2 -> 0 | DH51: =BP2 -> 0 | DI51: =BQ2 -> 0 | DJ51: =BR2 -> 0 | DK51: =BS2 -> 0 | DL51: =BT2 -> 0 | DM51: =BU2 -> 0 | DN51: =BV2 -> 0 | DO51: =BW2 -> 0 | DP51: =BX2 -> 0 | DQ51: =BY2 -> 0 | DR51: =BZ2 -> 0 | DS51: =CA2 -> 0 | DT51: =CB2 -> 0 | DU51: =CC2 -> 0 | DV51: =CD2 -> 0 | DW51: =CE2 -> 0 | DX51: =CF2 -> 0 | DY51: =CG2 -> 0
C52: 0 | D52: 46 | AX52: =E2 -> 1.9 | AY52: 2.9 | AZ52: 3.9 | BA52: 4.55 | BB52: 5.2 | BC52: 6.2 | BD52: 7.2 | BE52: 6.8 | BF52: 6.4 | BG52: 6.65 | BH52: 6.9 | BI52: 7.45 | BJ52: 8 | BK52: 7.55 | BL52: 7.1 | BM52: 7.55 | BN52: 8 | BO52: 8.55 | BP52: 9.1 | BQ52: 10.43333333 | BR52: 11.76666667 | BS52: 13.1 | BT52: 11.76666667 | BU52: 10.43333333 | BV52: 9.1 | BW52: 8.55 | BX52: 8 | BY52: 7.55 | BZ52: 7.1 | CA52: 7.55 | CB52: 8 | CC52: 7.45 | CD52: 6.9 | CE52: 6.65 | CF52: 6.4 | CG52: 6.8 | CH52: 7.2 | CI52: 6.2 | CJ52: 5.2 | CK52: 4.55 | CL52: 3.9 | CM52: 2.9 | CN52: 1.9 | CO52: 0 | CP52: 0 | CQ52: 0 | CR52: 0 | CS52: 0 | CT52: 0 | CU52: 0 | CV52: =BC2 -> 0 | CW52: =BD2 -> 0 | CX52: =BE2 -> 0 | CY52: =BF2 -> 0 | CZ52: =BG2 -> 0 | DA52: =BH2 -> 0 | DB52: =BI2 -> 0 | DC52: =BJ2 -> 0 | DD52: =BK2 -> 0 | DE52: =BL2 -> 0 | DF52: =BM2 -> 0 | DG52: =BN2 -> 0 | DH52: =BO2 -> 0 | DI52: =BP2 -> 0 | DJ52: =BQ2 -> 0 | DK52: =BR2 -> 0 | DL52: =BS2 -> 0 | DM52: =BT2 -> 0 | DN52: =BU2 -> 0 | DO52: =BV2 -> 0 | DP52: =BW2 -> 0 | DQ52: =BX2 -> 0 | DR52: =BY2 -> 0 | DS52: =BZ2 -> 0 | DT52: =CA2 -> 0 | DU52: =CB2 -> 0 | DV52: =CC2 -> 0 | DW52: =CD2 -> 0 | DX52: =CE2 -> 0 | DY52: =CF2 -> 0 | DZ52: =CG2 -> 0
C53: -1 | D53: 47 | AY53: =E2 -> 1.9 | AZ53: 2.9 | BA53: 3.9 | BB53: 4.55 | BC53: 5.2 | BD53: 6.2 | BE53: 7.2 | BF53: 6.8 | BG53: 6.4 | BH53: 6.65 | BI53: 6.9 | BJ53: 7.45 | BK53: 8 | BL53: 7.55 | BM53: 7.1 | BN53: 7.55 | BO53: 8 | BP53: 8.55 | BQ53: 9.1 | BR53: 10.43333333 | BS53: 11.76666667 | BT53: 13.1 | BU53: 11.76666667 | BV53: 10.43333333 | BW53: 9.1 | BX53: 8.55 | BY53: 8 | BZ53: 7.55 | CA53: 7.1 | CB53: 7.55 | CC53: 8 | CD53: 7.45 | CE53: 6.9 | CF53: 6.65 | CG53: 6.4 | CH53: 6.8 | CI53: 7.2 | CJ53: 6.2 | CK53: 5.2 | CL53: 4.55 | CM53: 3.9 | CN53: 2.9 | CO53: 1.9 | CP53: 0 | CQ53: 0 | CR53: 0 | CS53: 0 | CT53: 0 | CU53: 0 | CV53: 0 | CW53: =BC2 -> 0 | CX53: =BD2 -> 0 | CY53: =BE2 -> 0 | CZ53: =BF2 -> 0 | DA53: =BG2 -> 0 | DB53: =BH2 -> 0 | DC53: =BI2 -> 0 | DD53: =BJ2 -> 0 | DE53: =BK2 -> 0 | DF53: =BL2 -> 0 | DG53: =BM2 -> 0 | DH53: =BN2 -> 0 | DI53: =BO2 -> 0 | DJ53: =BP2 -> 0 | DK53: =BQ2 -> 0 | DL53: =BR2 -> 0 | DM53: =BS2 -> 0 | DN53: =BT2 -> 0 | DO53: =BU2 -> 0 | DP53: =BV2 -> 0 | DQ53: =BW2 -> 0 | DR53: =BX2 -> 0 | DS53: =BY2 -> 0 | DT53: =BZ2 -> 0 | DU53: =CA2 -> 0 | DV53: =CB2 -> 0 | DW53: =CC2 -> 0 | DX53: =CD2 -> 0 | DY53: =CE2 -> 0 | DZ53: =CF2 -> 0 | EA53: =CG2 -> 0
C54: 1 | D54: 48 | AZ54: =E2 -> 1.9 | BA54: 2.9 | BB54: 3.9 | BC54: 4.55 | BD54: 5.2 | BE54: 6.2 | BF54: 7.2 | BG54: 6.8 | BH54: 6.4 | BI54: 6.65 | BJ54: 6.9 | BK54: 7.45 | BL54: 8 | BM54: 7.55 | BN54: 7.1 | BO54: 7.55 | BP54: 8 | BQ54: 8.55 | BR54: 9.1 | BS54: 10.43333333 | BT54: 11.76666667 | BU54: 13.1 | BV54: 11.76666667 | BW54: 10.43333333 | BX54: 9.1 | BY54: 8.55 | BZ54: 8 | CA54: 7.55 | CB54: 7.1 | CC54: 7.55 | CD54: 8 | CE54: 7.45 | CF54: 6.9 | CG54: 6.65 | CH54: 6.4 | CI54: 6.8 | CJ54: 7.2 | CK54: 6.2 | CL54: 5.2 | CM54: 4.55 | CN54: 3.9 | CO54: 2.9 | CP54: 1.9 | CQ54: 0 | CR54: 0 | CS54: 0 | CT54: 0 | CU54: 0 | CV54: 0 | CW54: 0 | CX54: =BC2 -> 0 | CY54: =BD2 -> 0 | CZ54: =BE2 -> 0 | DA54: =BF2 -> 0 | DB54: =BG2 -> 0 | DC54: =BH2 -> 0 | DD54: =BI2 -> 0 | DE54: =BJ2 -> 0 | DF54: =BK2 -> 0 | DG54: =BL2 -> 0 | DH54: =BM2 -> 0 | DI54: =BN2 -> 0 | DJ54: =BO2 -> 0 | DK54: =BP2 -> 0 | DL54: =BQ2 -> 0 | DM54: =BR2 -> 0 | DN54: =BS2 -> 0 | DO54: =BT2 -> 0 | DP54: =BU2 -> 0 | DQ54: =BV2 -> 0 | DR54: =BW2 -> 0 | DS54: =BX2 -> 0 | DT54: =BY2 -> 0 | DU54: =BZ2 -> 0 | DV54: =CA2 -> 0 | DW54: =CB2 -> 0 | DX54: =CC2 -> 0 | DY54: =CD2 -> 0 | DZ54: =CE2 -> 0 | EA54: =CF2 -> 0 | EB54: =CG2 -> 0
C55: 0 | D55: 49 | BA55: =E2 -> 1.9 | BB55: 2.9 | BC55: 3.9 | BD55: 4.55 | BE55: 5.2 | BF55: 6.2 | BG55: 7.2 | BH55: 6.8 | BI55: 6.4 | BJ55: 6.65 | BK55: 6.9 | BL55: 7.45 | BM55: 8 | BN55: 7.55 | BO55: 7.1 | BP55: 7.55 | BQ55: 8 | BR55: 8.55 | BS55: 9.1 | BT55: 10.43333333 | BU55: 11.76666667 | BV55: 13.1 | BW55: 11.76666667 | BX55: 10.43333333 | BY55: 9.1 | BZ55: 8.55 | CA55: 8 | CB55: 7.55 | CC55: 7.1 | CD55: 7.55 | CE55: 8 | CF55: 7.45 | CG55: 6.9 | CH55: 6.65 | CI55: 6.4 | CJ55: 6.8 | CK55: 7.2 | CL55: 6.2 | CM55: 5.2 | CN55: 4.55 | CO55: 3.9 | CP55: 2.9 | CQ55: 1.9 | CR55: 0 | CS55: 0 | CT55: 0 | CU55: 0 | CV55: 0 | CW55: 0 | CX55: 0 | CY55: =BC2 -> 0 | CZ55: =BD2 -> 0 | DA55: =BE2 -> 0 | DB55: =BF2 -> 0 | DC55: =BG2 -> 0 | DD55: =BH2 -> 0 | DE55: =BI2 -> 0 | DF55: =BJ2 -> 0 | DG55: =BK2 -> 0 | DH55: =BL2 -> 0 | DI55: =BM2 -> 0 | DJ55: =BN2 -> 0 | DK55: =BO2 -> 0 | DL55: =BP2 -> 0 | DM55: =BQ2 -> 0 | DN55: =BR2 -> 0 | DO55: =BS2 -> 0 | DP55: =BT2 -> 0 | DQ55: =BU2 -> 0 | DR55: =BV2 -> 0 | DS55: =BW2 -> 0 | DT55: =BX2 -> 0 | DU55: =BY2 -> 0 | DV55: =BZ2 -> 0 | DW55: =CA2 -> 0 | DX55: =CB2 -> 0 | DY55: =CC2 -> 0 | DZ55: =CD2 -> 0 | EA55: =CE2 -> 0 | EB55: =CF2 -> 0 | EC55: =CG2 -> 0
C56: -1 | D56: 50 | BB56: =E2 -> 1.9 | BC56: 2.9 | BD56: 3.9 | BE56: 4.55 | BF56: 5.2 | BG56: 6.2 | BH56: 7.2 | BI56: 6.8 | BJ56: 6.4 | BK56: 6.65 | BL56: 6.9 | BM56: 7.45 | BN56: 8 | BO56: 7.55 | BP56: 7.1 | BQ56: 7.55 | BR56: 8 | BS56: 8.55 | BT56: 9.1 | BU56: 10.43333333 | BV56: 11.76666667 | BW56: 13.1 | BX56: 11.76666667 | BY56: 10.43333333 | BZ56: 9.1 | CA56: 8.55 | CB56: 8 | CC56: 7.55 | CD56: 7.1 | CE56: 7.55 | CF56: 8 | CG56: 7.45 | CH56: 6.9 | CI56: 6.65 | CJ56: 6.4 | CK56: 6.8 | CL56: 7.2 | CM56: 6.2 | CN56: 5.2 | CO56: 4.55 | CP56: 3.9 | CQ56: 2.9 | CR56: 1.9 | CS56: 0 | CT56: 0 | CU56: 0 | CV56: 0 | CW56: 0 | CX56: 0 | CY56: 0 | CZ56: =BC2 -> 0 | DA56: =BD2 -> 0 | DB56: =BE2 -> 0 | DC56: =BF2 -> 0 | DD56: =BG2 -> 0 | DE56: =BH2 -> 0 | DF56: =BI2 -> 0 | DG56: =BJ2 -> 0 | DH56: =BK2 -> 0 | DI56: =BL2 -> 0 | DJ56: =BM2 -> 0 | DK56: =BN2 -> 0 | DL56: =BO2 -> 0 | DM56: =BP2 -> 0 | DN56: =BQ2 -> 0 | DO56: =BR2 -> 0 | DP56: =BS2 -> 0 | DQ56: =BT2 -> 0 | DR56: =BU2 -> 0 | DS56: =BV2 -> 0 | DT56: =BW2 -> 0 | DU56: =BX2 -> 0 | DV56: =BY2 -> 0 | DW56: =BZ2 -> 0 | DX56: =CA2 -> 0 | DY56: =CB2 -> 0 | DZ56: =CC2 -> 0 | EA56: =CD2 -> 0 | EB56: =CE2 -> 0 | EC56: =CF2 -> 0 | ED56: =CG2 -> 0
C57: 1 | D57: 51 | BC57: =E2 -> 1.9 | BD57: 2.9 | BE57: 3.9 | BF57: 4.55 | BG57: 5.2 | BH57: 6.2 | BI57: 7.2 | BJ57: 6.8 | BK57: 6.4 | BL57: 6.65 | BM57: 6.9 | BN57: 7.45 | BO57: 8 | BP57: 7.55 | BQ57: 7.1 | BR57: 7.55 | BS57: 8 | BT57: 8.55 | BU57: 9.1 | BV57: 10.43333333 | BW57: 11.76666667 | BX57: 13.1 | BY57: 11.76666667 | BZ57: 10.43333333 | CA57: 9.1 | CB57: 8.55 | CC57: 8 | CD57: 7.55 | CE57: 7.1 | CF57: 7.55 | CG57: 8 | CH57: 7.45 | CI57: 6.9 | CJ57: 6.65 | CK57: 6.4 | CL57: 6.8 | CM57: 7.2 | CN57: 6.2 | CO57: 5.2 | CP57: 4.55 | CQ57: 3.9 | CR57: 2.9 | CS57: 1.9 | CT57: 0 | CU57: 0 | CV57: 0 | CW57: 0 | CX57: 0 | CY57: 0 | CZ57: 0 | DA57: =BC2 -> 0 | DB57: =BD2 -> 0 | DC57: =BE2 -> 0 | DD57: =BF2 -> 0 | DE57: =BG2 -> 0 | DF57: =BH2 -> 0 | DG57: =BI2 -> 0 | DH57: =BJ2 -> 0 | DI57: =BK2 -> 0 | DJ57: =BL2 -> 0 | DK57: =BM2 -> 0 | DL57: =BN2 -> 0 | DM57: =BO2 -> 0 | DN57: =BP2 -> 0 | DO57: =BQ2 -> 0 | DP57: =BR2 -> 0 | DQ57: =BS2 -> 0 | DR57: =BT2 -> 0 | DS57: =BU2 -> 0 | DT57: =BV2 -> 0 | DU57: =BW2 -> 0 | DV57: =BX2 -> 0 | DW57: =BY2 -> 0 | DX57: =BZ2 -> 0 | DY57: =CA2 -> 0 | DZ57: =CB2 -> 0 | EA57: =CC2 -> 0 | EB57: =CD2 -> 0 | EC57: =CE2 -> 0 | ED57: =CF2 -> 0 | EE57: =CG2 -> 0
C58: 0 | D58: 52 | BD58: =E2 -> 1.9 | BE58: 2.9 | BF58: 3.9 | BG58: 4.55 | BH58: 5.2 | BI58: 6.2 | BJ58: 7.2 | BK58: 6.8 | BL58: 6.4 | BM58: 6.65 | BN58: 6.9 | BO58: 7.45 | BP58: 8 | BQ58: 7.55 | BR58: 7.1 | BS58: 7.55 | BT58: 8 | BU58: 8.55 | BV58: 9.1 | BW58: 10.43333333 | BX58: 11.76666667 | BY58: 13.1 | BZ58: 11.76666667 | CA58: 10.43333333 | CB58: 9.1 | CC58: 8.55 | CD58: 8 | CE58: 7.55 | CF58: 7.1 | CG58: 7.55 | CH58: 8 | CI58: 7.45 | CJ58: 6.9 | CK58: 6.65 | CL58: 6.4 | CM58: 6.8 | CN58: 7.2 | CO58: 6.2 | CP58: 5.2 | CQ58: 4.55 | CR58: 3.9 | CS58: 2.9 | CT58: 1.9 | CU58: 0 | CV58: 0 | CW58: 0 | CX58: 0 | CY58: 0 | CZ58: 0 | DA58: 0 | DB58: =BC2 -> 0 | DC58: =BD2 -> 0 | DD58: =BE2 -> 0 | DE58: =BF2 -> 0 | DF58: =BG2 -> 0 | DG58: =BH2 -> 0 | DH58: =BI2 -> 0 | DI58: =BJ2 -> 0 | DJ58: =BK2 -> 0 | DK58: =BL2 -> 0 | DL58: =BM2 -> 0 | DM58: =BN2 -> 0 | DN58: =BO2 -> 0 | DO58: =BP2 -> 0 | DP58: =BQ2 -> 0 | DQ58: =BR2 -> 0 | DR58: =BS2 -> 0 | DS58: =BT2 -> 0 | DT58: =BU2 -> 0 | DU58: =BV2 -> 0 | DV58: =BW2 -> 0 | DW58: =BX2 -> 0 | DX58: =BY2 -> 0 | DY58: =BZ2 -> 0 | DZ58: =CA2 -> 0 | EA58: =CB2 -> 0 | EB58: =CC2 -> 0 | EC58: =CD2 -> 0 | ED58: =CE2 -> 0 | EE58: =CF2 -> 0 | EF58: =CG2 -> 0
C59: -1 | D59: 53 | BE59: =E2 -> 1.9 | BF59: 2.9 | BG59: 3.9 | BH59: 4.55 | BI59: 5.2 | BJ59: 6.2 | BK59: 7.2 | BL59: 6.8 | BM59: 6.4 | BN59: 6.65 | BO59: 6.9 | BP59: 7.45 | BQ59: 8 | BR59: 7.55 | BS59: 7.1 | BT59: 7.55 | BU59: 8 | BV59: 8.55 | BW59: 9.1 | BX59: 10.43333333 | BY59: 11.76666667 | BZ59: 13.1 | CA59: 11.76666667 | CB59: 10.43333333 | CC59: 9.1 | CD59: 8.55 | CE59: 8 | CF59: 7.55 | CG59: 7.1 | CH59: 7.55 | CI59: 8 | CJ59: 7.45 | CK59: 6.9 | CL59: 6.65 | CM59: 6.4 | CN59: 6.8 | CO59: 7.2 | CP59: 6.2 | CQ59: 5.2 | CR59: 4.55 | CS59: 3.9 | CT59: 2.9 | CU59: 1.9 | CV59: 0 | CW59: 0 | CX59: 0 | CY59: 0 | CZ59: 0 | DA59: 0 | DB59: 0 | DC59: =BC2 -> 0 | DD59: =BD2 -> 0 | DE59: =BE2 -> 0 | DF59: =BF2 -> 0 | DG59: =BG2 -> 0 | DH59: =BH2 -> 0 | DI59: =BI2 -> 0 | DJ59: =BJ2 -> 0 | DK59: =BK2 -> 0 | DL59: =BL2 -> 0 | DM59: =BM2 -> 0 | DN59: =BN2 -> 0 | DO59: =BO2 -> 0 | DP59: =BP2 -> 0 | DQ59: =BQ2 -> 0 | DR59: =BR2 -> 0 | DS59: =BS2 -> 0 | DT59: =BT2 -> 0 | DU59: =BU2 -> 0 | DV59: =BV2 -> 0 | DW59: =BW2 -> 0 | DX59: =BX2 -> 0 | DY59: =BY2 -> 0 | DZ59: =BZ2 -> 0 | EA59: =CA2 -> 0 | EB59: =CB2 -> 0 | EC59: =CC2 -> 0 | ED59: =CD2 -> 0 | EE59: =CE2 -> 0 | EF59: =CF2 -> 0 | EG59: =CG2 -> 0
C60: 1 | D60: 54 | BF60: =E2 -> 1.9 | BG60: 2.9 | BH60: 3.9 | BI60: 4.55 | BJ60: 5.2 | BK60: 6.2 | BL60: 7.2 | BM60: 6.8 | BN60: 6.4 | BO60: 6.65 | BP60: 6.9 | BQ60: 7.45 | BR60: 8 | BS60: 7.55 | BT60: 7.1 | BU60: 7.55 | BV60: 8 | BW60: 8.55 | BX60: 9.1 | BY60: 10.43333333 | BZ60: 11.76666667 | CA60: 13.1 | CB60: 11.76666667 | CC60: 10.43333333 | CD60: 9.1 | CE60: 8.55 | CF60: 8 | CG60: 7.55 | CH60: 7.1 | CI60: 7.55 | CJ60: 8 | CK60: 7.45 | CL60: 6.9 | CM60: 6.65 | CN60: 6.4 | CO60: 6.8 | CP60: 7.2 | CQ60: 6.2 | CR60: 5.2 | CS60: 4.55 | CT60: 3.9 | CU60: 2.9 | CV60: 1.9 | CW60: 0 | CX60: 0 | CY60: 0 | CZ60: 0 | DA60: 0 | DB60: 0 | DC60: 0 | DD60: =BC2 -> 0 | DE60: =BD2 -> 0 | DF60: =BE2 -> 0 | DG60: =BF2 -> 0 | DH60: =BG2 -> 0 | DI60: =BH2 -> 0 | DJ60: =BI2 -> 0 | DK60: =BJ2 -> 0 | DL60: =BK2 -> 0 | DM60: =BL2 -> 0 | DN60: =BM2 -> 0 | DO60: =BN2 -> 0 | DP60: =BO2 -> 0 | DQ60: =BP2 -> 0 | DR60: =BQ2 -> 0 | DS60: =BR2 -> 0 | DT60: =BS2 -> 0 | DU60: =BT2 -> 0 | DV60: =BU2 -> 0 | DW60: =BV2 -> 0 | DX60: =BW2 -> 0 | DY60: =BX2 -> 0 | DZ60: =BY2 -> 0 | EA60: =BZ2 -> 0 | EB60: =CA2 -> 0 | EC60: =CB2 -> 0 | ED60: =CC2 -> 0 | EE60: =CD2 -> 0 | EF60: =CE2 -> 0 | EG60: =CF2 -> 0 | EH60: =CG2 -> 0
C61: 0 | D61: 55 | BG61: =E2 -> 1.9 | BH61: 2.9 | BI61: 3.9 | BJ61: 4.55 | BK61: 5.2 | BL61: 6.2 | BM61: 7.2 | BN61: 6.8 | BO61: 6.4 | BP61: 6.65 | BQ61: 6.9 | BR61: 7.45 | BS61: 8 | BT61: 7.55 | BU61: 7.1 | BV61: 7.55 | BW61: 8 | BX61: 8.55 | BY61: 9.1 | BZ61: 10.43333333 | CA61: 11.76666667 | CB61: 13.1 | CC61: 11.76666667 | CD61: 10.43333333 | CE61: 9.1 | CF61: 8.55 | CG61: 8 | CH61: 7.55 | CI61: 7.1 | CJ61: 7.55 | CK61: 8 | CL61: 7.45 | CM61: 6.9 | CN61: 6.65 | CO61: 6.4 | CP61: 6.8 | CQ61: 7.2 | CR61: 6.2 | CS61: 5.2 | CT61: 4.55 | CU61: 3.9 | CV61: 2.9 | CW61: 1.9 | CX61: 0 | CY61: 0 | CZ61: 0 | DA61: 0 | DB61: 0 | DC61: 0 | DD61: 0 | DE61: =BC2 -> 0 | DF61: =BD2 -> 0 | DG61: =BE2 -> 0 | DH61: =BF2 -> 0 | DI61: =BG2 -> 0 | DJ61: =BH2 -> 0 | DK61: =BI2 -> 0 | DL61: =BJ2 -> 0 | DM61: =BK2 -> 0 | DN61: =BL2 -> 0 | DO61: =BM2 -> 0 | DP61: =BN2 -> 0 | DQ61: =BO2 -> 0 | DR61: =BP2 -> 0 | DS61: =BQ2 -> 0 | DT61: =BR2 -> 0 | DU61: =BS2 -> 0 | DV61: =BT2 -> 0 | DW61: =BU2 -> 0 | DX61: =BV2 -> 0 | DY61: =BW2 -> 0 | DZ61: =BX2 -> 0 | EA61: =BY2 -> 0 | EB61: =BZ2 -> 0 | EC61: =CA2 -> 0 | ED61: =CB2 -> 0 | EE61: =CC2 -> 0 | EF61: =CD2 -> 0 | EG61: =CE2 -> 0 | EH61: =CF2 -> 0 | EI61: =CG2 -> 0
C62: -1 | D62: 56 | BH62: =E2 -> 1.9 | BI62: 2.9 | BJ62: 3.9 | BK62: 4.55 | BL62: 5.2 | BM62: 6.2 | BN62: 7.2 | BO62: 6.8 | BP62: 6.4 | BQ62: 6.65 | BR62: 6.9 | BS62: 7.45 | BT62: 8 | BU62: 7.55 | BV62: 7.1 | BW62: 7.55 | BX62: 8 | BY62: 8.55 | BZ62: 9.1 | CA62: 10.43333333 | CB62: 11.76666667 | CC62: 13.1 | CD62: 11.76666667 | CE62: 10.43333333 | CF62: 9.1 | CG62: 8.55 | CH62: 8 | CI62: 7.55 | CJ62: 7.1 | CK62: 7.55 | CL62: 8 | CM62: 7.45 | CN62: 6.9 | CO62: 6.65 | CP62: 6.4 | CQ62: 6.8 | CR62: 7.2 | CS62: 6.2 | CT62: 5.2 | CU62: 4.55 | CV62: 3.9 | CW62: 2.9 | CX62: 1.9 | CY62: 0 | CZ62: 0 | DA62: 0 | DB62: 0 | DC62: 0 | DD62: 0 | DE62: 0 | DF62: =BC2 -> 0 | DG62: =BD2 -> 0 | DH62: =BE2 -> 0 | DI62: =BF2 -> 0 | DJ62: =BG2 -> 0 | DK62: =BH2 -> 0 | DL62: =BI2 -> 0 | DM62: =BJ2 -> 0 | DN62: =BK2 -> 0 | DO62: =BL2 -> 0 | DP62: =BM2 -> 0 | DQ62: =BN2 -> 0 | DR62: =BO2 -> 0 | DS62: =BP2 -> 0 | DT62: =BQ2 -> 0 | DU62: =BR2 -> 0 | DV62: =BS2 -> 0 | DW62: =BT2 -> 0 | DX62: =BU2 -> 0 | DY62: =BV2 -> 0 | DZ62: =BW2 -> 0 | EA62: =BX2 -> 0 | EB62: =BY2 -> 0 | EC62: =BZ2 -> 0 | ED62: =CA2 -> 0 | EE62: =CB2 -> 0 | EF62: =CC2 -> 0 | EG62: =CD2 -> 0 | EH62: =CE2 -> 0 | EI62: =CF2 -> 0 | EJ62: =CG2 -> 0
C63: 1 | D63: 57 | BI63: =E2 -> 1.9 | BJ63: 2.9 | BK63: 3.9 | BL63: 4.55 | BM63: 5.2 | BN63: 6.2 | BO63: 7.2 | BP63: 6.8 | BQ63: 6.4 | BR63: 6.65 | BS63: 6.9 | BT63: 7.45 | BU63: 8 | BV63: 7.55 | BW63: 7.1 | BX63: 7.55 | BY63: 8 | BZ63: 8.55 | CA63: 9.1 | CB63: 10.43333333 | CC63: 11.76666667 | CD63: 13.1 | CE63: 11.76666667 | CF63: 10.43333333 | CG63: 9.1 | CH63: 8.55 | CI63: 8 | CJ63: 7.55 | CK63: 7.1 | CL63: 7.55 | CM63: 8 | CN63: 7.45 | CO63: 6.9 | CP63: 6.65 | CQ63: 6.4 | CR63: 6.8 | CS63: 7.2 | CT63: 6.2 | CU63: 5.2 | CV63: 4.55 | CW63: 3.9 | CX63: 2.9 | CY63: 1.9 | CZ63: 0 | DA63: 0 | DB63: 0 | DC63: 0 | DD63: 0 | DE63: 0 | DF63: 0 | DG63: =BC2 -> 0 | DH63: =BD2 -> 0 | DI63: =BE2 -> 0 | DJ63: =BF2 -> 0 | DK63: =BG2 -> 0 | DL63: =BH2 -> 0 | DM63: =BI2 -> 0 | DN63: =BJ2 -> 0 | DO63: =BK2 -> 0 | DP63: =BL2 -> 0 | DQ63: =BM2 -> 0 | DR63: =BN2 -> 0 | DS63: =BO2 -> 0 | DT63: =BP2 -> 0 | DU63: =BQ2 -> 0 | DV63: =BR2 -> 0 | DW63: =BS2 -> 0 | DX63: =BT2 -> 0 | DY63: =BU2 -> 0 | DZ63: =BV2 -> 0 | EA63: =BW2 -> 0 | EB63: =BX2 -> 0 | EC63: =BY2 -> 0 | ED63: =BZ2 -> 0 | EE63: =CA2 -> 0 | EF63: =CB2 -> 0 | EG63: =CC2 -> 0 | EH63: =CD2 -> 0 | EI63: =CE2 -> 0 | EJ63: =CF2 -> 0 | EK63: =CG2 -> 0
C64: 0 | D64: 58 | BJ64: =E2 -> 1.9 | BK64: 2.9 | BL64: 3.9 | BM64: 4.55 | BN64: 5.2 | BO64: 6.2 | BP64: 7.2 | BQ64: 6.8 | BR64: 6.4 | BS64: 6.65 | BT64: 6.9 | BU64: 7.45 | BV64: 8 | BW64: 7.55 | BX64: 7.1 | BY64: 7.55 | BZ64: 8 | CA64: 8.55 | CB64: 9.1 | CC64: 10.43333333 | CD64: 11.76666667 | CE64: 13.1 | CF64: 11.76666667 | CG64: 10.43333333 | CH64: 9.1 | CI64: 8.55 | CJ64: 8 | CK64: 7.55 | CL64: 7.1 | CM64: 7.55 | CN64: 8 | CO64: 7.45 | CP64: 6.9 | CQ64: 6.65 | CR64: 6.4 | CS64: 6.8 | CT64: 7.2 | CU64: 6.2 | CV64: 5.2 | CW64: 4.55 | CX64: 3.9 | CY64: 2.9 | CZ64: 1.9 | DA64: 0 | DB64: 0 | DC64: 0 | DD64: 0 | DE64: 0 | DF64: 0 | DG64: 0 | DH64: =BC2 -> 0 | DI64: =BD2 -> 0 | DJ64: =BE2 -> 0 | DK64: =BF2 -> 0 | DL64: =BG2 -> 0 | DM64: =BH2 -> 0 | DN64: =BI2 -> 0 | DO64: =BJ2 -> 0 | DP64: =BK2 -> 0 | DQ64: =BL2 -> 0 | DR64: =BM2 -> 0 | DS64: =BN2 -> 0 | DT64: =BO2 -> 0 | DU64: =BP2 -> 0 | DV64: =BQ2 -> 0 | DW64: =BR2 -> 0 | DX64: =BS2 -> 0 | DY64: =BT2 -> 0 | DZ64: =BU2 -> 0 | EA64: =BV2 -> 0 | EB64: =BW2 -> 0 | EC64: =BX2 -> 0 | ED64: =BY2 -> 0 | EE64: =BZ2 -> 0 | EF64: =CA2 -> 0 | EG64: =CB2 -> 0 | EH64: =CC2 -> 0 | EI64: =CD2 -> 0 | EJ64: =CE2 -> 0 | EK64: =CF2 -> 0 | EL64: =CG2 -> 0
C65: -1 | D65: 59 | BK65: =E2 -> 1.9 | BL65: 2.9 | BM65: 3.9 | BN65: 4.55 | BO65: 5.2 | BP65: 6.2 | BQ65: 7.2 | BR65: 6.8 | BS65: 6.4 | BT65: 6.65 | BU65: 6.9 | BV65: 7.45 | BW65: 8 | BX65: 7.55 | BY65: 7.1 | BZ65: 7.55 | CA65: 8 | CB65: 8.55 | CC65: 9.1 | CD65: 10.43333333 | CE65: 11.76666667 | CF65: 13.1 | CG65: 11.76666667 | CH65: 10.43333333 | CI65: 9.1 | CJ65: 8.55 | CK65: 8 | CL65: 7.55 | CM65: 7.1 | CN65: 7.55 | CO65: 8 | CP65: 7.45 | CQ65: 6.9 | CR65: 6.65 | CS65: 6.4 | CT65: 6.8 | CU65: 7.2 | CV65: 6.2 | CW65: 5.2 | CX65: 4.55 | CY65: 3.9 | CZ65: 2.9 | DA65: 1.9 | DB65: 0 | DC65: 0 | DD65: 0 | DE65: 0 | DF65: 0 | DG65: 0 | DH65: 0 | DI65: =BC2 -> 0 | DJ65: =BD2 -> 0 | DK65: =BE2 -> 0 | DL65: =BF2 -> 0 | DM65: =BG2 -> 0 | DN65: =BH2 -> 0 | DO65: =BI2 -> 0 | DP65: =BJ2 -> 0 | DQ65: =BK2 -> 0 | DR65: =BL2 -> 0 | DS65: =BM2 -> 0 | DT65: =BN2 -> 0 | DU65: =BO2 -> 0 | DV65: =BP2 -> 0 | DW65: =BQ2 -> 0 | DX65: =BR2 -> 0 | DY65: =BS2 -> 0 | DZ65: =BT2 -> 0 | EA65: =BU2 -> 0 | EB65: =BV2 -> 0 | EC65: =BW2 -> 0 | ED65: =BX2 -> 0 | EE65: =BY2 -> 0 | EF65: =BZ2 -> 0 | EG65: =CA2 -> 0 | EH65: =CB2 -> 0 | EI65: =CC2 -> 0 | EJ65: =CD2 -> 0 | EK65: =CE2 -> 0 | EL65: =CF2 -> 0 | EM65: =CG2 -> 0
C66: 1 | D66: 60 | BL66: =E2 -> 1.9 | BM66: 2.9 | BN66: 3.9 | BO66: 4.55 | BP66: 5.2 | BQ66: 6.2 | BR66: 7.2 | BS66: 6.8 | BT66: 6.4 | BU66: 6.65 | BV66: 6.9 | BW66: 7.45 | BX66: 8 | BY66: 7.55 | BZ66: 7.1 | CA66: 7.55 | CB66: 8 | CC66: 8.55 | CD66: 9.1 | CE66: 10.43333333 | CF66: 11.76666667 | CG66: 13.1 | CH66: 11.76666667 | CI66: 10.43333333 | CJ66: 9.1 | CK66: 8.55 | CL66: 8 | CM66: 7.55 | CN66: 7.1 | CO66: 7.55 | CP66: 8 | CQ66: 7.45 | CR66: 6.9 | CS66: 6.65 | CT66: 6.4 | CU66: 6.8 | CV66: 7.2 | CW66: 6.2 | CX66: 5.2 | CY66: 4.55 | CZ66: 3.9 | DA66: 2.9 | DB66: 1.9 | DC66: 0 | DD66: 0 | DE66: 0 | DF66: 0 | DG66: 0 | DH66: 0 | DI66: 0 | DJ66: =BC2 -> 0 | DK66: =BD2 -> 0 | DL66: =BE2 -> 0 | DM66: =BF2 -> 0 | DN66: =BG2 -> 0 | DO66: =BH2 -> 0 | DP66: =BI2 -> 0 | DQ66: =BJ2 -> 0 | DR66: =BK2 -> 0 | DS66: =BL2 -> 0 | DT66: =BM2 -> 0 | DU66: =BN2 -> 0 | DV66: =BO2 -> 0 | DW66: =BP2 -> 0 | DX66: =BQ2 -> 0 | DY66: =BR2 -> 0 | DZ66: =BS2 -> 0 | EA66: =BT2 -> 0 | EB66: =BU2 -> 0 | EC66: =BV2 -> 0 | ED66: =BW2 -> 0 | EE66: =BX2 -> 0 | EF66: =BY2 -> 0 | EG66: =BZ2 -> 0 | EH66: =CA2 -> 0 | EI66: =CB2 -> 0 | EJ66: =CC2 -> 0 | EK66: =CD2 -> 0 | EL66: =CE2 -> 0 | EM66: =CF2 -> 0 | EN66: =CG2 -> 0
C67: 0 | D67: 61 | BM67: =E2 -> 1.9 | BN67: 2.9 | BO67: 3.9 | BP67: 4.55 | BQ67: 5.2 | BR67: 6.2 | BS67: 7.2 | BT67: 6.8 | BU67: 6.4 | BV67: 6.65 | BW67: 6.9 | BX67: 7.45 | BY67: 8 | BZ67: 7.55 | CA67: 7.1 | CB67: 7.55 | CC67: 8 | CD67: 8.55 | CE67: 9.1 | CF67: 10.43333333 | CG67: 11.76666667 | CH67: 13.1 | CI67: 11.76666667 | CJ67: 10.43333333 | CK67: 9.1 | CL67: 8.55 | CM67: 8 | CN67: 7.55 | CO67: 7.1 | CP67: 7.55 | CQ67: 8 | CR67: 7.45 | CS67: 6.9 | CT67: 6.65 | CU67: 6.4 | CV67: 6.8 | CW67: 7.2 | CX67: 6.2 | CY67: 5.2 | CZ67: 4.55 | DA67: 3.9 | DB67: 2.9 | DC67: 1.9 | DD67: 0 | DE67: 0 | DF67: 0 | DG67: 0 | DH67: 0 | DI67: 0 | DJ67: 0 | DK67: =BC2 -> 0 | DL67: =BD2 -> 0 | DM67: =BE2 -> 0 | DN67: =BF2 -> 0 | DO67: =BG2 -> 0 | DP67: =BH2 -> 0 | DQ67: =BI2 -> 0 | DR67: =BJ2 -> 0 | DS67: =BK2 -> 0 | DT67: =BL2 -> 0 | DU67: =BM2 -> 0 | DV67: =BN2 -> 0 | DW67: =BO2 -> 0 | DX67: =BP2 -> 0 | DY67: =BQ2 -> 0 | DZ67: =BR2 -> 0 | EA67: =BS2 -> 0 | EB67: =BT2 -> 0 | EC67: =BU2 -> 0 | ED67: =BV2 -> 0 | EE67: =BW2 -> 0 | EF67: =BX2 -> 0 | EG67: =BY2 -> 0 | EH67: =BZ2 -> 0 | EI67: =CA2 -> 0 | EJ67: =CB2 -> 0 | EK67: =CC2 -> 0 | EL67: =CD2 -> 0 | EM67: =CE2 -> 0 | EN67: =CF2 -> 0 | EO67: =CG2 -> 0
C68: -1 | D68: 62 | BN68: =E2 -> 1.9 | BO68: 2.9 | BP68: 3.9 | BQ68: 4.55 | BR68: 5.2 | BS68: 6.2 | BT68: 7.2 | BU68: 6.8 | BV68: 6.4 | BW68: 6.65 | BX68: 6.9 | BY68: 7.45 | BZ68: 8 | CA68: 7.55 | CB68: 7.1 | CC68: 7.55 | CD68: 8 | CE68: 8.55 | CF68: 9.1 | CG68: 10.43333333 | CH68: 11.76666667 | CI68: 13.1 | CJ68: 11.76666667 | CK68: 10.43333333 | CL68: 9.1 | CM68: 8.55 | CN68: 8 | CO68: 7.55 | CP68: 7.1 | CQ68: 7.55 | CR68: 8 | CS68: 7.45 | CT68: 6.9 | CU68: 6.65 | CV68: 6.4 | CW68: 6.8 | CX68: 7.2 | CY68: 6.2 | CZ68: 5.2 | DA68: 4.55 | DB68: 3.9 | DC68: 2.9 | DD68: 1.9 | DE68: 0 | DF68: 0 | DG68: 0 | DH68: 0 | DI68: 0 | DJ68: 0 | DK68: 0 | DL68: =BC2 -> 0 | DM68: =BD2 -> 0 | DN68: =BE2 -> 0 | DO68: =BF2 -> 0 | DP68: =BG2 -> 0 | DQ68: =BH2 -> 0 | DR68: =BI2 -> 0 | DS68: =BJ2 -> 0 | DT68: =BK2 -> 0 | DU68: =BL2 -> 0 | DV68: =BM2 -> 0 | DW68: =BN2 -> 0 | DX68: =BO2 -> 0 | DY68: =BP2 -> 0 | DZ68: =BQ2 -> 0 | EA68: =BR2 -> 0 | EB68: =BS2 -> 0 | EC68: =BT2 -> 0 | ED68: =BU2 -> 0 | EE68: =BV2 -> 0 | EF68: =BW2 -> 0 | EG68: =BX2 -> 0 | EH68: =BY2 -> 0 | EI68: =BZ2 -> 0 | EJ68: =CA2 -> 0 | EK68: =CB2 -> 0 | EL68: =CC2 -> 0 | EM68: =CD2 -> 0 | EN68: =CE2 -> 0 | EO68: =CF2 -> 0 | EP68: =CG2 -> 0
C69: 1 | D69: 63 | BO69: =E2 -> 1.9 | BP69: 2.9 | BQ69: 3.9 | BR69: 4.55 | BS69: 5.2 | BT69: 6.2 | BU69: 7.2 | BV69: 6.8 | BW69: 6.4 | BX69: 6.65 | BY69: 6.9 | BZ69: 7.45 | CA69: 8 | CB69: 7.55 | CC69: 7.1 | CD69: 7.55 | CE69: 8 | CF69: 8.55 | CG69: 9.1 | CH69: 10.43333333 | CI69: 11.76666667 | CJ69: 13.1 | CK69: 11.76666667 | CL69: 10.43333333 | CM69: 9.1 | CN69: 8.55 | CO69: 8 | CP69: 7.55 | CQ69: 7.1 | CR69: 7.55 | CS69: 8 | CT69: 7.45 | CU69: 6.9 | CV69: 6.65 | CW69: 6.4 | CX69: 6.8 | CY69: 7.2 | CZ69: 6.2 | DA69: 5.2 | DB69: 4.55 | DC69: 3.9 | DD69: 2.9 | DE69: 1.9 | DF69: 0 | DG69: 0 | DH69: 0 | DI69: 0 | DJ69: 0 | DK69: 0 | DL69: 0 | DM69: =BC2 -> 0 | DN69: =BD2 -> 0 | DO69: =BE2 -> 0 | DP69: =BF2 -> 0 | DQ69: =BG2 -> 0 | DR69: =BH2 -> 0 | DS69: =BI2 -> 0 | DT69: =BJ2 -> 0 | DU69: =BK2 -> 0 | DV69: =BL2 -> 0 | DW69: =BM2 -> 0 | DX69: =BN2 -> 0 | DY69: =BO2 -> 0 | DZ69: =BP2 -> 0 | EA69: =BQ2 -> 0 | EB69: =BR2 -> 0 | EC69: =BS2 -> 0 | ED69: =BT2 -> 0 | EE69: =BU2 -> 0 | EF69: =BV2 -> 0 | EG69: =BW2 -> 0 | EH69: =BX2 -> 0 | EI69: =BY2 -> 0 | EJ69: =BZ2 -> 0 | EK69: =CA2 -> 0 | EL69: =CB2 -> 0 | EM69: =CC2 -> 0 | EN69: =CD2 -> 0 | EO69: =CE2 -> 0 | EP69: =CF2 -> 0 | EQ69: =CG2 -> 0
C70: 0 | D70: 64 | BP70: =E2 -> 1.9 | BQ70: 2.9 | BR70: 3.9 | BS70: 4.55 | BT70: 5.2 | BU70: 6.2 | BV70: 7.2 | BW70: 6.8 | BX70: 6.4 | BY70: 6.65 | BZ70: 6.9 | CA70: 7.45 | CB70: 8 | CC70: 7.55 | CD70: 7.1 | CE70: 7.55 | CF70: 8 | CG70: 8.55 | CH70: 9.1 | CI70: 10.43333333 | CJ70: 11.76666667 | CK70: 13.1 | CL70: 11.76666667 | CM70: 10.43333333 | CN70: 9.1 | CO70: 8.55 | CP70: 8 | CQ70: 7.55 | CR70: 7.1 | CS70: 7.55 | CT70: 8 | CU70: 7.45 | CV70: 6.9 | CW70: 6.65 | CX70: 6.4 | CY70: 6.8 | CZ70: 7.2 | DA70: 6.2 | DB70: 5.2 | DC70: 4.55 | DD70: 3.9 | DE70: 2.9 | DF70: 1.9 | DG70: 0 | DH70: 0 | DI70: 0 | DJ70: 0 | DK70: 0 | DL70: 0 | DM70: 0 | DN70: =BC2 -> 0 | DO70: =BD2 -> 0 | DP70: =BE2 -> 0 | DQ70: =BF2 -> 0 | DR70: =BG2 -> 0 | DS70: =BH2 -> 0 | DT70: =BI2 -> 0 | DU70: =BJ2 -> 0 | DV70: =BK2 -> 0 | DW70: =BL2 -> 0 | DX70: =BM2 -> 0 | DY70: =BN2 -> 0 | DZ70: =BO2 -> 0 | EA70: =BP2 -> 0 | EB70: =BQ2 -> 0 | EC70: =BR2 -> 0 | ED70: =BS2 -> 0 | EE70: =BT2 -> 0 | EF70: =BU2 -> 0 | EG70: =BV2 -> 0 | EH70: =BW2 -> 0 | EI70: =BX2 -> 0 | EJ70: =BY2 -> 0 | EK70: =BZ2 -> 0 | EL70: =CA2 -> 0 | EM70: =CB2 -> 0 | EN70: =CC2 -> 0 | EO70: =CD2 -> 0 | EP70: =CE2 -> 0 | EQ70: =CF2 -> 0 | ER70: =CG2 -> 0
C71: =1-MOD(D71,$B$106) -> -1 | D71: 65 | BQ71: =E2 -> 1.9 | BR71: 2.9 | BS71: 3.9 | BT71: 4.55 | BU71: 5.2 | BV71: 6.2 | BW71: 7.2 | BX71: 6.8 | BY71: 6.4 | BZ71: 6.65 | CA71: 6.9 | CB71: 7.45 | CC71: 8 | CD71: 7.55 | CE71: 7.1 | CF71: 7.55 | CG71: 8 | CH71: 8.55 | CI71: 9.1 | CJ71: 10.43333333 | CK71: 11.76666667 | CL71: 13.1 | CM71: 11.76666667 | CN71: 10.43333333 | CO71: 9.1 | CP71: 8.55 | CQ71: 8 | CR71: 7.55 | CS71: 7.1 | CT71: 7.55 | CU71: 8 | CV71: 7.45 | CW71: 6.9 | CX71: 6.65 | CY71: 6.4 | CZ71: 6.8 | DA71: 7.2 | DB71: 6.2 | DC71: 5.2 | DD71: 4.55 | DE71: 3.9 | DF71: 2.9 | DG71: 1.9 | DH71: 0 | DI71: 0 | DJ71: 0 | DK71: 0 | DL71: 0 | DM71: 0 | DN71: 0 | DO71: =BC2 -> 0 | DP71: =BD2 -> 0 | DQ71: =BE2 -> 0 | DR71: =BF2 -> 0 | DS71: =BG2 -> 0 | DT71: =BH2 -> 0 | DU71: =BI2 -> 0 | DV71: =BJ2 -> 0 | DW71: =BK2 -> 0 | DX71: =BL2 -> 0 | DY71: =BM2 -> 0 | DZ71: =BN2 -> 0 | EA71: =BO2 -> 0 | EB71: =BP2 -> 0 | EC71: =BQ2 -> 0 | ED71: =BR2 -> 0 | EE71: =BS2 -> 0 | EF71: =BT2 -> 0 | EG71: =BU2 -> 0 | EH71: =BV2 -> 0 | EI71: =BW2 -> 0 | EJ71: =BX2 -> 0 | EK71: =BY2 -> 0 | EL71: =BZ2 -> 0 | EM71: =CA2 -> 0 | EN71: =CB2 -> 0 | EO71: =CC2 -> 0 | EP71: =CD2 -> 0 | EQ71: =CE2 -> 0 | ER71: =CF2 -> 0 | ES71: =CG2 -> 0
C72: 1 | D72: 66 | BR72: =E2 -> 1.9 | BS72: 2.9 | BT72: 3.9 | BU72: 4.55 | BV72: 5.2 | BW72: 6.2 | BX72: 7.2 | BY72: 6.8 | BZ72: 6.4 | CA72: 6.65 | CB72: 6.9 | CC72: 7.45 | CD72: 8 | CE72: 7.55 | CF72: 7.1 | CG72: 7.55 | CH72: 8 | CI72: 8.55 | CJ72: 9.1 | CK72: 10.43333333 | CL72: 11.76666667 | CM72: 13.1 | CN72: 11.76666667 | CO72: 10.43333333 | CP72: 9.1 | CQ72: 8.55 | CR72: 8 | CS72: 7.55 | CT72: 7.1 | CU72: 7.55 | CV72: 8 | CW72: 7.45 | CX72: 6.9 | CY72: 6.65 | CZ72: 6.4 | DA72: 6.8 | DB72: 7.2 | DC72: 6.2 | DD72: 5.2 | DE72: 4.55 | DF72: 3.9 | DG72: 2.9 | DH72: 1.9 | DI72: 0 | DJ72: 0 | DK72: 0 | DL72: 0 | DM72: 0 | DN72: 0 | DO72: 0 | DP72: =BC2 -> 0 | DQ72: =BD2 -> 0 | DR72: =BE2 -> 0 | DS72: =BF2 -> 0 | DT72: =BG2 -> 0 | DU72: =BH2 -> 0 | DV72: =BI2 -> 0 | DW72: =BJ2 -> 0 | DX72: =BK2 -> 0 | DY72: =BL2 -> 0 | DZ72: =BM2 -> 0 | EA72: =BN2 -> 0 | EB72: =BO2 -> 0 | EC72: =BP2 -> 0 | ED72: =BQ2 -> 0 | EE72: =BR2 -> 0 | EF72: =BS2 -> 0 | EG72: =BT2 -> 0 | EH72: =BU2 -> 0 | EI72: =BV2 -> 0 | EJ72: =BW2 -> 0 | EK72: =BX2 -> 0 | EL72: =BY2 -> 0 | EM72: =BZ2 -> 0 | EN72: =CA2 -> 0 | EO72: =CB2 -> 0 | EP72: =CC2 -> 0 | EQ72: =CD2 -> 0 | ER72: =CE2 -> 0 | ES72: =CF2 -> 0 | ET72: =CG2 -> 0
C73: 0 | D73: 67 | BS73: =E2 -> 1.9 | BT73: 2.9 | BU73: 3.9 | BV73: 4.55 | BW73: 5.2 | BX73: 6.2 | BY73: 7.2 | BZ73: 6.8 | CA73: 6.4 | CB73: 6.65 | CC73: 6.9 | CD73: 7.45 | CE73: 8 | CF73: 7.55 | CG73: 7.1 | CH73: 7.55 | CI73: 8 | CJ73: 8.55 | CK73: 9.1 | CL73: 10.43333333 | CM73: 11.76666667 | CN73: 13.1 | CO73: 11.76666667 | CP73: 10.43333333 | CQ73: 9.1 | CR73: 8.55 | CS73: 8 | CT73: 7.55 | CU73: 7.1 | CV73: 7.55 | CW73: 8 | CX73: 7.45 | CY73: 6.9 | CZ73: 6.65 | DA73: 6.4 | DB73: 6.8 | DC73: 7.2 | DD73: 6.2 | DE73: 5.2 | DF73: 4.55 | DG73: 3.9 | DH73: 2.9 | DI73: 1.9 | DJ73: 0 | DK73: 0 | DL73: 0 | DM73: 0 | DN73: 0 | DO73: 0 | DP73: 0 | DQ73: =BC2 -> 0 | DR73: =BD2 -> 0 | DS73: =BE2 -> 0 | DT73: =BF2 -> 0 | DU73: =BG2 -> 0 | DV73: =BH2 -> 0 | DW73: =BI2 -> 0 | DX73: =BJ2 -> 0 | DY73: =BK2 -> 0 | DZ73: =BL2 -> 0 | EA73: =BM2 -> 0 | EB73: =BN2 -> 0 | EC73: =BO2 -> 0 | ED73: =BP2 -> 0 | EE73: =BQ2 -> 0 | EF73: =BR2 -> 0 | EG73: =BS2 -> 0 | EH73: =BT2 -> 0 | EI73: =BU2 -> 0 | EJ73: =BV2 -> 0 | EK73: =BW2 -> 0 | EL73: =BX2 -> 0 | EM73: =BY2 -> 0 | EN73: =BZ2 -> 0 | EO73: =CA2 -> 0 | EP73: =CB2 -> 0 | EQ73: =CC2 -> 0 | ER73: =CD2 -> 0 | ES73: =CE2 -> 0 | ET73: =CF2 -> 0 | EU73: =CG2 -> 0
C74: -1 | D74: 68 | BT74: =E2 -> 1.9 | BU74: 2.9 | BV74: 3.9 | BW74: 4.55 | BX74: 5.2 | BY74: 6.2 | BZ74: 7.2 | CA74: 6.8 | CB74: 6.4 | CC74: 6.65 | CD74: 6.9 | CE74: 7.45 | CF74: 8 | CG74: 7.55 | CH74: 7.1 | CI74: 7.55 | CJ74: 8 | CK74: 8.55 | CL74: 9.1 | CM74: 10.43333333 | CN74: 11.76666667 | CO74: 13.1 | CP74: 11.76666667 | CQ74: 10.43333333 | CR74: 9.1 | CS74: 8.55 | CT74: 8 | CU74: 7.55 | CV74: 7.1 | CW74: 7.55 | CX74: 8 | CY74: 7.45 | CZ74: 6.9 | DA74: 6.65 | DB74: 6.4 | DC74: 6.8 | DD74: 7.2 | DE74: 6.2 | DF74: 5.2 | DG74: 4.55 | DH74: 3.9 | DI74: 2.9 | DJ74: 1.9 | DK74: 0 | DL74: 0 | DM74: 0 | DN74: 0 | DO74: 0 | DP74: 0 | DQ74: 0 | DR74: =BC2 -> 0 | DS74: =BD2 -> 0 | DT74: =BE2 -> 0 | DU74: =BF2 -> 0 | DV74: =BG2 -> 0 | DW74: =BH2 -> 0 | DX74: =BI2 -> 0 | DY74: =BJ2 -> 0 | DZ74: =BK2 -> 0 | EA74: =BL2 -> 0 | EB74: =BM2 -> 0 | EC74: =BN2 -> 0 | ED74: =BO2 -> 0 | EE74: =BP2 -> 0 | EF74: =BQ2 -> 0 | EG74: =BR2 -> 0 | EH74: =BS2 -> 0 | EI74: =BT2 -> 0 | EJ74: =BU2 -> 0 | EK74: =BV2 -> 0 | EL74: =BW2 -> 0 | EM74: =BX2 -> 0 | EN74: =BY2 -> 0 | EO74: =BZ2 -> 0 | EP74: =CA2 -> 0 | EQ74: =CB2 -> 0 | ER74: =CC2 -> 0 | ES74: =CD2 -> 0 | ET74: =CE2 -> 0 | EU74: =CF2 -> 0 | EV74: =CG2 -> 0
C75: 1 | D75: 69 | BU75: =E2 -> 1.9 | BV75: 2.9 | BW75: 3.9 | BX75: 4.55 | BY75: 5.2 | BZ75: 6.2 | CA75: 7.2 | CB75: 6.8 | CC75: 6.4 | CD75: 6.65 | CE75: 6.9 | CF75: 7.45 | CG75: 8 | CH75: 7.55 | CI75: 7.1 | CJ75: 7.55 | CK75: 8 | CL75: 8.55 | CM75: 9.1 | CN75: 10.43333333 | CO75: 11.76666667 | CP75: 13.1 | CQ75: 11.76666667 | CR75: 10.43333333 | CS75: 9.1 | CT75: 8.55 | CU75: 8 | CV75: 7.55 | CW75: 7.1 | CX75: 7.55 | CY75: 8 | CZ75: 7.45 | DA75: 6.9 | DB75: 6.65 | DC75: 6.4 | DD75: 6.8 | DE75: 7.2 | DF75: 6.2 | DG75: 5.2 | DH75: 4.55 | DI75: 3.9 | DJ75: 2.9 | DK75: 1.9 | DL75: 0 | DM75: 0 | DN75: 0 | DO75: 0 | DP75: 0 | DQ75: 0 | DR75: 0 | DS75: =BC2 -> 0 | DT75: =BD2 -> 0 | DU75: =BE2 -> 0 | DV75: =BF2 -> 0 | DW75: =BG2 -> 0 | DX75: =BH2 -> 0 | DY75: =BI2 -> 0 | DZ75: =BJ2 -> 0 | EA75: =BK2 -> 0 | EB75: =BL2 -> 0 | EC75: =BM2 -> 0 | ED75: =BN2 -> 0 | EE75: =BO2 -> 0 | EF75: =BP2 -> 0 | EG75: =BQ2 -> 0 | EH75: =BR2 -> 0 | EI75: =BS2 -> 0 | EJ75: =BT2 -> 0 | EK75: =BU2 -> 0 | EL75: =BV2 -> 0 | EM75: =BW2 -> 0 | EN75: =BX2 -> 0 | EO75: =BY2 -> 0 | EP75: =BZ2 -> 0 | EQ75: =CA2 -> 0 | ER75: =CB2 -> 0 | ES75: =CC2 -> 0 | ET75: =CD2 -> 0 | EU75: =CE2 -> 0 | EV75: =CF2 -> 0 | EW75: =CG2 -> 0
C76: 0 | D76: 70 | BV76: =E2 -> 1.9 | BW76: 2.9 | BX76: 3.9 | BY76: 4.55 | BZ76: 5.2 | CA76: 6.2 | CB76: 7.2 | CC76: 6.8 | CD76: 6.4 | CE76: 6.65 | CF76: 6.9 | CG76: 7.45 | CH76: 8 | CI76: 7.55 | CJ76: 7.1 | CK76: 7.55 | CL76: 8 | CM76: 8.55 | CN76: 9.1 | CO76: 10.43333333 | CP76: 11.76666667 | CQ76: 13.1 | CR76: 11.76666667 | CS76: 10.43333333 | CT76: 9.1 | CU76: 8.55 | CV76: 8 | CW76: 7.55 | CX76: 7.1 | CY76: 7.55 | CZ76: 8 | DA76: 7.45 | DB76: 6.9 | DC76: 6.65 | DD76: 6.4 | DE76: 6.8 | DF76: 7.2 | DG76: 6.2 | DH76: 5.2 | DI76: 4.55 | DJ76: 3.9 | DK76: 2.9 | DL76: 1.9 | DM76: 0 | DN76: 0 | DO76: 0 | DP76: 0 | DQ76: 0 | DR76: 0 | DS76: 0 | DT76: =BC2 -> 0 | DU76: =BD2 -> 0 | DV76: =BE2 -> 0 | DW76: =BF2 -> 0 | DX76: =BG2 -> 0 | DY76: =BH2 -> 0 | DZ76: =BI2 -> 0 | EA76: =BJ2 -> 0 | EB76: =BK2 -> 0 | EC76: =BL2 -> 0 | ED76: =BM2 -> 0 | EE76: =BN2 -> 0 | EF76: =BO2 -> 0 | EG76: =BP2 -> 0 | EH76: =BQ2 -> 0 | EI76: =BR2 -> 0 | EJ76: =BS2 -> 0 | EK76: =BT2 -> 0 | EL76: =BU2 -> 0 | EM76: =BV2 -> 0 | EN76: =BW2 -> 0 | EO76: =BX2 -> 0 | EP76: =BY2 -> 0 | EQ76: =BZ2 -> 0 | ER76: =CA2 -> 0 | ES76: =CB2 -> 0 | ET76: =CC2 -> 0 | EU76: =CD2 -> 0 | EV76: =CE2 -> 0 | EW76: =CF2 -> 0 | EX76: =CG2 -> 0
C77: -1 | D77: 71 | BW77: =E2 -> 1.9 | BX77: 2.9 | BY77: 3.9 | BZ77: 4.55 | CA77: 5.2 | CB77: 6.2 | CC77: 7.2 | CD77: 6.8 | CE77: 6.4 | CF77: 6.65 | CG77: 6.9 | CH77: 7.45 | CI77: 8 | CJ77: 7.55 | CK77: 7.1 | CL77: 7.55 | CM77: 8 | CN77: 8.55 | CO77: 9.1 | CP77: 10.43333333 | CQ77: 11.76666667 | CR77: 13.1 | CS77: 11.76666667 | CT77: 10.43333333 | CU77: 9.1 | CV77: 8.55 | CW77: 8 | CX77: 7.55 | CY77: 7.1 | CZ77: 7.55 | DA77: 8 | DB77: 7.45 | DC77: 6.9 | DD77: 6.65 | DE77: 6.4 | DF77: 6.8 | DG77: 7.2 | DH77: 6.2 | DI77: 5.2 | DJ77: 4.55 | DK77: 3.9 | DL77: 2.9 | DM77: 1.9 | DN77: 0 | DO77: 0 | DP77: 0 | DQ77: 0 | DR77: 0 | DS77: 0 | DT77: 0 | DU77: =BC2 -> 0 | DV77: =BD2 -> 0 | DW77: =BE2 -> 0 | DX77: =BF2 -> 0 | DY77: =BG2 -> 0 | DZ77: =BH2 -> 0 | EA77: =BI2 -> 0 | EB77: =BJ2 -> 0 | EC77: =BK2 -> 0 | ED77: =BL2 -> 0 | EE77: =BM2 -> 0 | EF77: =BN2 -> 0 | EG77: =BO2 -> 0 | EH77: =BP2 -> 0 | EI77: =BQ2 -> 0 | EJ77: =BR2 -> 0 | EK77: =BS2 -> 0 | EL77: =BT2 -> 0 | EM77: =BU2 -> 0 | EN77: =BV2 -> 0 | EO77: =BW2 -> 0 | EP77: =BX2 -> 0 | EQ77: =BY2 -> 0 | ER77: =BZ2 -> 0 | ES77: =CA2 -> 0 | ET77: =CB2 -> 0 | EU77: =CC2 -> 0 | EV77: =CD2 -> 0 | EW77: =CE2 -> 0 | EX77: =CF2 -> 0 | EY77: =CG2 -> 0
C78: 1 | D78: 72 | BX78: =E2 -> 1.9 | BY78: 2.9 | BZ78: 3.9 | CA78: 4.55 | CB78: 5.2 | CC78: 6.2 | CD78: 7.2 | CE78: 6.8 | CF78: 6.4 | CG78: 6.65 | CH78: 6.9 | CI78: 7.45 | CJ78: 8 | CK78: 7.55 | CL78: 7.1 | CM78: 7.55 | CN78: 8 | CO78: 8.55 | CP78: 9.1 | CQ78: 10.43333333 | CR78: 11.76666667 | CS78: 13.1 | CT78: 11.76666667 | CU78: 10.43333333 | CV78: 9.1 | CW78: 8.55 | CX78: 8 | CY78: 7.55 | CZ78: 7.1 | DA78: 7.55 | DB78: 8 | DC78: 7.45 | DD78: 6.9 | DE78: 6.65 | DF78: 6.4 | DG78: 6.8 | DH78: 7.2 | DI78: 6.2 | DJ78: 5.2 | DK78: 4.55 | DL78: 3.9 | DM78: 2.9 | DN78: 1.9 | DO78: 0 | DP78: 0 | DQ78: 0 | DR78: 0 | DS78: 0 | DT78: 0 | DU78: 0 | DV78: =BC2 -> 0 | DW78: =BD2 -> 0 | DX78: =BE2 -> 0 | DY78: =BF2 -> 0 | DZ78: =BG2 -> 0 | EA78: =BH2 -> 0 | EB78: =BI2 -> 0 | EC78: =BJ2 -> 0 | ED78: =BK2 -> 0 | EE78: =BL2 -> 0 | EF78: =BM2 -> 0 | EG78: =BN2 -> 0 | EH78: =BO2 -> 0 | EI78: =BP2 -> 0 | EJ78: =BQ2 -> 0 | EK78: =BR2 -> 0 | EL78: =BS2 -> 0 | EM78: =BT2 -> 0 | EN78: =BU2 -> 0 | EO78: =BV2 -> 0 | EP78: =BW2 -> 0 | EQ78: =BX2 -> 0 | ER78: =BY2 -> 0 | ES78: =BZ2 -> 0 | ET78: =CA2 -> 0 | EU78: =CB2 -> 0 | EV78: =CC2 -> 0 | EW78: =CD2 -> 0 | EX78: =CE2 -> 0 | EY78: =CF2 -> 0 | EZ78: =CG2 -> 0
C79: 0 | D79: 73 | BY79: =E2 -> 1.9 | BZ79: 2.9 | CA79: 3.9 | CB79: 4.55 | CC79: 5.2 | CD79: 6.2 | CE79: 7.2 | CF79: 6.8 | CG79: 6.4 | CH79: 6.65 | CI79: 6.9 | CJ79: 7.45 | CK79: 8 | CL79: 7.55 | CM79: 7.1 | CN79: 7.55 | CO79: 8 | CP79: 8.55 | CQ79: 9.1 | CR79: 10.43333333 | CS79: 11.76666667 | CT79: 13.1 | CU79: 11.76666667 | CV79: 10.43333333 | CW79: 9.1 | CX79: 8.55 | CY79: 8 | CZ79: 7.55 | DA79: 7.1 | DB79: 7.55 | DC79: 8 | DD79: 7.45 | DE79: 6.9 | DF79: 6.65 | DG79: 6.4 | DH79: 6.8 | DI79: 7.2 | DJ79: 6.2 | DK79: 5.2 | DL79: 4.55 | DM79: 3.9 | DN79: 2.9 | DO79: 1.9 | DP79: 0 | DQ79: 0 | DR79: 0 | DS79: 0 | DT79: 0 | DU79: 0 | DV79: 0 | DW79: =BC2 -> 0 | DX79: =BD2 -> 0 | DY79: =BE2 -> 0 | DZ79: =BF2 -> 0 | EA79: =BG2 -> 0 | EB79: =BH2 -> 0 | EC79: =BI2 -> 0 | ED79: =BJ2 -> 0 | EE79: =BK2 -> 0 | EF79: =BL2 -> 0 | EG79: =BM2 -> 0 | EH79: =BN2 -> 0 | EI79: =BO2 -> 0 | EJ79: =BP2 -> 0 | EK79: =BQ2 -> 0 | EL79: =BR2 -> 0 | EM79: =BS2 -> 0 | EN79: =BT2 -> 0 | EO79: =BU2 -> 0 | EP79: =BV2 -> 0 | EQ79: =BW2 -> 0 | ER79: =BX2 -> 0 | ES79: =BY2 -> 0 | ET79: =BZ2 -> 0 | EU79: =CA2 -> 0 | EV79: =CB2 -> 0 | EW79: =CC2 -> 0 | EX79: =CD2 -> 0 | EY79: =CE2 -> 0 | EZ79: =CF2 -> 0 | FA79: =CG2 -> 0
C80: -1 | D80: 74 | BZ80: =E2 -> 1.9 | CA80: 2.9 | CB80: 3.9 | CC80: 4.55 | CD80: 5.2 | CE80: 6.2 | CF80: 7.2 | CG80: 6.8 | CH80: 6.4 | CI80: 6.65 | CJ80: 6.9 | CK80: 7.45 | CL80: 8 | CM80: 7.55 | CN80: 7.1 | CO80: 7.55 | CP80: 8 | CQ80: 8.55 | CR80: 9.1 | CS80: 10.43333333 | CT80: 11.76666667 | CU80: 13.1 | CV80: 11.76666667 | CW80: 10.43333333 | CX80: 9.1 | CY80: 8.55 | CZ80: 8 | DA80: 7.55 | DB80: 7.1 | DC80: 7.55 | DD80: 8 | DE80: 7.45 | DF80: 6.9 | DG80: 6.65 | DH80: 6.4 | DI80: 6.8 | DJ80: 7.2 | DK80: 6.2 | DL80: 5.2 | DM80: 4.55 | DN80: 3.9 | DO80: 2.9 | DP80: 1.9 | DQ80: 0 | DR80: 0 | DS80: 0 | DT80: 0 | DU80: 0 | DV80: 0 | DW80: 0 | DX80: =BC2 -> 0 | DY80: =BD2 -> 0 | DZ80: =BE2 -> 0 | EA80: =BF2 -> 0 | EB80: =BG2 -> 0 | EC80: =BH2 -> 0 | ED80: =BI2 -> 0 | EE80: =BJ2 -> 0 | EF80: =BK2 -> 0 | EG80: =BL2 -> 0 | EH80: =BM2 -> 0 | EI80: =BN2 -> 0 | EJ80: =BO2 -> 0 | EK80: =BP2 -> 0 | EL80: =BQ2 -> 0 | EM80: =BR2 -> 0 | EN80: =BS2 -> 0 | EO80: =BT2 -> 0 | EP80: =BU2 -> 0 | EQ80: =BV2 -> 0 | ER80: =BW2 -> 0 | ES80: =BX2 -> 0 | ET80: =BY2 -> 0 | EU80: =BZ2 -> 0 | EV80: =CA2 -> 0 | EW80: =CB2 -> 0 | EX80: =CC2 -> 0 | EY80: =CD2 -> 0 | EZ80: =CE2 -> 0 | FA80: =CF2 -> 0 | FB80: =CG2 -> 0
C81: 1 | D81: 75 | CA81: =E2 -> 1.9 | CB81: 2.9 | CC81: 3.9 | CD81: 4.55 | CE81: 5.2 | CF81: 6.2 | CG81: 7.2 | CH81: 6.8 | CI81: 6.4 | CJ81: 6.65 | CK81: 6.9 | CL81: 7.45 | CM81: 8 | CN81: 7.55 | CO81: 7.1 | CP81: 7.55 | CQ81: 8 | CR81: 8.55 | CS81: 9.1 | CT81: 10.43333333 | CU81: 11.76666667 | CV81: 13.1 | CW81: 11.76666667 | CX81: 10.43333333 | CY81: 9.1 | CZ81: 8.55 | DA81: 8 | DB81: 7.55 | DC81: 7.1 | DD81: 7.55 | DE81: 8 | DF81: 7.45 | DG81: 6.9 | DH81: 6.65 | DI81: 6.4 | DJ81: 6.8 | DK81: 7.2 | DL81: 6.2 | DM81: 5.2 | DN81: 4.55 | DO81: 3.9 | DP81: 2.9 | DQ81: 1.9 | DR81: 0 | DS81: 0 | DT81: 0 | DU81: 0 | DV81: 0 | DW81: 0 | DX81: 0 | DY81: =BC2 -> 0 | DZ81: =BD2 -> 0 | EA81: =BE2 -> 0 | EB81: =BF2 -> 0 | EC81: =BG2 -> 0 | ED81: =BH2 -> 0 | EE81: =BI2 -> 0 | EF81: =BJ2 -> 0 | EG81: =BK2 -> 0 | EH81: =BL2 -> 0 | EI81: =BM2 -> 0 | EJ81: =BN2 -> 0 | EK81: =BO2 -> 0 | EL81: =BP2 -> 0 | EM81: =BQ2 -> 0 | EN81: =BR2 -> 0 | EO81: =BS2 -> 0 | EP81: =BT2 -> 0 | EQ81: =BU2 -> 0 | ER81: =BV2 -> 0 | ES81: =BW2 -> 0 | ET81: =BX2 -> 0 | EU81: =BY2 -> 0 | EV81: =BZ2 -> 0 | EW81: =CA2 -> 0 | EX81: =CB2 -> 0 | EY81: =CC2 -> 0 | EZ81: =CD2 -> 0 | FA81: =CE2 -> 0 | FB81: =CF2 -> 0 | FC81: =CG2 -> 0
C82: 0 | D82: 76 | CB82: =E2 -> 1.9 | CC82: =F2 -> 2.9 | CD82: 3.9 | CE82: 4.55 | CF82: 5.2 | CG82: 6.2 | CH82: 7.2 | CI82: 6.8 | CJ82: 6.4 | CK82: 6.65 | CL82: 6.9 | CM82: 7.45 | CN82: 8 | CO82: 7.55 | CP82: 7.1 | CQ82: 7.55 | CR82: 8 | CS82: 8.55 | CT82: 9.1 | CU82: 10.43333333 | CV82: 11.76666667 | CW82: 13.1 | CX82: 11.76666667 | CY82: 10.43333333 | CZ82: 9.1 | DA82: 8.55 | DB82: 8 | DC82: 7.55 | DD82: 7.1 | DE82: 7.55 | DF82: 8 | DG82: 7.45 | DH82: 6.9 | DI82: 6.65 | DJ82: 6.4 | DK82: 6.8 | DL82: 7.2 | DM82: 6.2 | DN82: 5.2 | DO82: 4.55 | DP82: 3.9 | DQ82: 2.9 | DR82: 1.9 | DS82: 0 | DT82: 0 | DU82: 0 | DV82: 0 | DW82: 0 | DX82: 0 | DY82: 0 | DZ82: 0 | EA82: 0 | EB82: 0 | EC82: 0 | ED82: 0 | EE82: 0 | EF82: 0 | EG82: 0 | EH82: 0 | EI82: 0 | EJ82: 0 | EK82: 0 | EL82: 0 | EM82: 0 | EN82: 0 | EO82: =BR2 -> 0 | EP82: 0 | EQ82: 0 | ER82: 0 | ES82: 0 | ET82: 0 | EU82: 0 | EV82: 0 | EW82: 0 | EX82: 0 | EY82: 0 | EZ82: 0 | FA82: 0 | FB82: 0 | FC82: 0 | FD82: 0
C83: -1 | D83: 77 | CC83: =E2 -> 1.9 | CD83: =F2 -> 2.9 | CE83: 3.9 | CF83: 4.55 | CG83: 5.2 | CH83: 6.2 | CI83: 7.2 | CJ83: 6.8 | CK83: 6.4 | CL83: 6.65 | CM83: 6.9 | CN83: 7.45 | CO83: 8 | CP83: 7.55 | CQ83: 7.1 | CR83: 7.55 | CS83: 8 | CT83: 8.55 | CU83: 9.1 | CV83: 10.43333333 | CW83: 11.76666667 | CX83: 13.1 | CY83: 11.76666667 | CZ83: 10.43333333 | DA83: 9.1 | DB83: 8.55 | DC83: 8 | DD83: 7.55 | DE83: 7.1 | DF83: 7.55 | DG83: 8 | DH83: 7.45 | DI83: 6.9 | DJ83: 6.65 | DK83: 6.4 | DL83: 6.8 | DM83: 7.2 | DN83: 6.2 | DO83: 5.2 | DP83: 4.55 | DQ83: 3.9 | DR83: 2.9 | DS83: 1.9 | DT83: 0 | DU83: 0 | DV83: 0 | DW83: 0 | DX83: 0 | DY83: 0 | DZ83: 0 | EA83: 0 | EB83: 0 | EC83: 0 | ED83: 0 | EE83: 0 | EF83: 0 | EG83: 0 | EH83: 0 | EI83: 0 | EJ83: 0 | EK83: 0 | EL83: 0 | EM83: 0 | EN83: 0 | EO83: 0 | EP83: =BR2 -> 0 | EQ83: 0 | ER83: 0 | ES83: 0 | ET83: 0 | EU83: 0 | EV83: 0 | EW83: 0 | EX83: 0 | EY83: 0 | EZ83: 0 | FA83: 0 | FB83: 0 | FC83: 0 | FD83: 0 | FE83: 0
C84: 1 | D84: 78 | CD84: =E2 -> 1.9 | CE84: =F2 -> 2.9 | CF84: 3.9 | CG84: 4.55 | CH84: 5.2 | CI84: 6.2 | CJ84: 7.2 | CK84: 6.8 | CL84: 6.4 | CM84: 6.65 | CN84: 6.9 | CO84: 7.45 | CP84: 8 | CQ84: 7.55 | CR84: 7.1 | CS84: 7.55 | CT84: 8 | CU84: 8.55 | CV84: 9.1 | CW84: 10.43333333 | CX84: 11.76666667 | CY84: 13.1 | CZ84: 11.76666667 | DA84: 10.43333333 | DB84: 9.1 | DC84: 8.55 | DD84: 8 | DE84: 7.55 | DF84: 7.1 | DG84: 7.55 | DH84: 8 | DI84: 7.45 | DJ84: 6.9 | DK84: 6.65 | DL84: 6.4 | DM84: 6.8 | DN84: 7.2 | DO84: 6.2 | DP84: 5.2 | DQ84: 4.55 | DR84: 3.9 | DS84: 2.9 | DT84: 1.9 | DU84: 0 | DV84: 0 | DW84: 0 | DX84: 0 | DY84: 0 | DZ84: 0 | EA84: 0 | EB84: 0 | EC84: 0 | ED84: 0 | EE84: 0 | EF84: 0 | EG84: 0 | EH84: 0 | EI84: 0 | EJ84: 0 | EK84: 0 | EL84: 0 | EM84: 0 | EN84: 0 | EO84: 0 | EP84: 0 | EQ84: =BR2 -> 0 | ER84: 0 | ES84: 0 | ET84: 0 | EU84: 0 | EV84: 0 | EW84: 0 | EX84: 0 | EY84: 0 | EZ84: 0 | FA84: 0 | FB84: 0 | FC84: 0 | FD84: 0 | FE84: 0 | FF84: 0
C85: 0 | D85: 79 | CE85: =E2 -> 1.9 | CF85: =F2 -> 2.9 | CG85: 3.9 | CH85: 4.55 | CI85: 5.2 | CJ85: 6.2 | CK85: 7.2 | CL85: 6.8 | CM85: 6.4 | CN85: 6.65 | CO85: 6.9 | CP85: 7.45 | CQ85: 8 | CR85: 7.55 | CS85: 7.1 | CT85: 7.55 | CU85: 8 | CV85: 8.55 | CW85: 9.1 | CX85: 10.43333333 | CY85: 11.76666667 | CZ85: 13.1 | DA85: 11.76666667 | DB85: 10.43333333 | DC85: 9.1 | DD85: 8.55 | DE85: 8 | DF85: 7.55 | DG85: 7.1 | DH85: 7.55 | DI85: 8 | DJ85: 7.45 | DK85: 6.9 | DL85: 6.65 | DM85: 6.4 | DN85: 6.8 | DO85: 7.2 | DP85: 6.2 | DQ85: 5.2 | DR85: 4.55 | DS85: 3.9 | DT85: 2.9 | DU85: 1.9 | DV85: 0 | DW85: 0 | DX85: 0 | DY85: 0 | DZ85: 0 | EA85: 0 | EB85: 0 | EC85: 0 | ED85: 0 | EE85: 0 | EF85: 0 | EG85: 0 | EH85: 0 | EI85: 0 | EJ85: 0 | EK85: 0 | EL85: 0 | EM85: 0 | EN85: 0 | EO85: 0 | EP85: 0 | EQ85: 0 | ER85: =BR2 -> 0 | ES85: 0 | ET85: 0 | EU85: 0 | EV85: 0 | EW85: 0 | EX85: 0 | EY85: 0 | EZ85: 0 | FA85: 0 | FB85: 0 | FC85: 0 | FD85: 0 | FE85: 0 | FF85: 0 | FG85: 0
C86: -1 | D86: 80 | CF86: =E2 -> 1.9 | CG86: =F2 -> 2.9 | CH86: 3.9 | CI86: 4.55 | CJ86: 5.2 | CK86: 6.2 | CL86: 7.2 | CM86: 6.8 | CN86: 6.4 | CO86: 6.65 | CP86: 6.9 | CQ86: 7.45 | CR86: 8 | CS86: 7.55 | CT86: 7.1 | CU86: 7.55 | CV86: 8 | CW86: 8.55 | CX86: 9.1 | CY86: 10.43333333 | CZ86: 11.76666667 | DA86: 13.1 | DB86: 11.76666667 | DC86: 10.43333333 | DD86: 9.1 | DE86: 8.55 | DF86: 8 | DG86: 7.55 | DH86: 7.1 | DI86: 7.55 | DJ86: 8 | DK86: 7.45 | DL86: 6.9 | DM86: 6.65 | DN86: 6.4 | DO86: 6.8 | DP86: 7.2 | DQ86: 6.2 | DR86: 5.2 | DS86: 4.55 | DT86: 3.9 | DU86: 2.9 | DV86: 1.9 | DW86: 0 | DX86: 0 | DY86: 0 | DZ86: 0 | EA86: 0 | EB86: 0 | EC86: 0 | ED86: 0 | EE86: 0 | EF86: 0 | EG86: 0 | EH86: 0 | EI86: 0 | EJ86: 0 | EK86: 0 | EL86: 0 | EM86: 0 | EN86: 0 | EO86: 0 | EP86: 0 | EQ86: 0 | ER86: 0 | ES86: =BR2 -> 0 | ET86: 0 | EU86: 0 | EV86: 0 | EW86: 0 | EX86: 0 | EY86: 0 | EZ86: 0 | FA86: 0 | FB86: 0 | FC86: 0 | FD86: 0 | FE86: 0 | FF86: 0 | FG86: 0 | FH86: 0
C87: 1 | D87: 81 | CG87: =E2 -> 1.9 | CH87: =F2 -> 2.9 | CI87: 3.9 | CJ87: 4.55 | CK87: 5.2 | CL87: 6.2 | CM87: 7.2 | CN87: 6.8 | CO87: 6.4 | CP87: 6.65 | CQ87: 6.9 | CR87: 7.45 | CS87: 8 | CT87: 7.55 | CU87: 7.1 | CV87: 7.55 | CW87: 8 | CX87: 8.55 | CY87: 9.1 | CZ87: 10.43333333 | DA87: 11.76666667 | DB87: 13.1 | DC87: 11.76666667 | DD87: 10.43333333 | DE87: 9.1 | DF87: 8.55 | DG87: 8 | DH87: 7.55 | DI87: 7.1 | DJ87: 7.55 | DK87: 8 | DL87: 7.45 | DM87: 6.9 | DN87: 6.65 | DO87: 6.4 | DP87: 6.8 | DQ87: 7.2 | DR87: 6.2 | DS87: 5.2 | DT87: 4.55 | DU87: 3.9 | DV87: 2.9 | DW87: 1.9 | DX87: 0 | DY87: 0 | DZ87: 0 | EA87: 0 | EB87: 0 | EC87: 0 | ED87: 0 | EE87: 0 | EF87: 0 | EG87: 0 | EH87: 0 | EI87: 0 | EJ87: 0 | EK87: 0 | EL87: 0 | EM87: 0 | EN87: 0 | EO87: 0 | EP87: 0 | EQ87: 0 | ER87: 0 | ES87: 0 | ET87: =BR2 -> 0 | EU87: 0 | EV87: 0 | EW87: 0 | EX87: 0 | EY87: 0 | EZ87: 0 | FA87: 0 | FB87: 0 | FC87: 0 | FD87: 0 | FE87: 0 | FF87: 0 | FG87: 0 | FH87: 0 | FI87: 0
C88: 0 | D88: 82 | CH88: =E2 -> 1.9 | CI88: =F2 -> 2.9 | CJ88: 3.9 | CK88: 4.55 | CL88: 5.2 | CM88: 6.2 | CN88: 7.2 | CO88: 6.8 | CP88: 6.4 | CQ88: 6.65 | CR88: 6.9 | CS88: 7.45 | CT88: 8 | CU88: 7.55 | CV88: 7.1 | CW88: 7.55 | CX88: 8 | CY88: 8.55 | CZ88: 9.1 | DA88: 10.43333333 | DB88: 11.76666667 | DC88: 13.1 | DD88: 11.76666667 | DE88: 10.43333333 | DF88: 9.1 | DG88: 8.55 | DH88: 8 | DI88: 7.55 | DJ88: 7.1 | DK88: 7.55 | DL88: 8 | DM88: 7.45 | DN88: 6.9 | DO88: 6.65 | DP88: 6.4 | DQ88: 6.8 | DR88: 7.2 | DS88: 6.2 | DT88: 5.2 | DU88: 4.55 | DV88: 3.9 | DW88: 2.9 | DX88: 1.9 | DY88: 0 | DZ88: 0 | EA88: 0 | EB88: 0 | EC88: 0 | ED88: 0 | EE88: 0 | EF88: 0 | EG88: 0 | EH88: 0 | EI88: 0 | EJ88: 0 | EK88: 0 | EL88: 0 | EM88: 0 | EN88: 0 | EO88: 0 | EP88: 0 | EQ88: 0 | ER88: 0 | ES88: 0 | ET88: 0 | EU88: =BR2 -> 0 | EV88: 0 | EW88: 0 | EX88: 0 | EY88: 0 | EZ88: 0 | FA88: 0 | FB88: 0 | FC88: 0 | FD88: 0 | FE88: 0 | FF88: 0 | FG88: 0 | FH88: 0 | FI88: 0 | FJ88: 0
C89: -1 | D89: 83 | CI89: =E2 -> 1.9 | CJ89: =F2 -> 2.9 | CK89: 3.9 | CL89: 4.55 | CM89: 5.2 | CN89: 6.2 | CO89: 7.2 | CP89: 6.8 | CQ89: 6.4 | CR89: 6.65 | CS89: 6.9 | CT89: 7.45 | CU89: 8 | CV89: 7.55 | CW89: 7.1 | CX89: 7.55 | CY89: 8 | CZ89: 8.55 | DA89: 9.1 | DB89: 10.43333333 | DC89: 11.76666667 | DD89: 13.1 | DE89: 11.76666667 | DF89: 10.43333333 | DG89: 9.1 | DH89: 8.55 | DI89: 8 | DJ89: 7.55 | DK89: 7.1 | DL89: 7.55 | DM89: 8 | DN89: 7.45 | DO89: 6.9 | DP89: 6.65 | DQ89: 6.4 | DR89: 6.8 | DS89: 7.2 | DT89: 6.2 | DU89: 5.2 | DV89: 4.55 | DW89: 3.9 | DX89: 2.9 | DY89: 1.9 | DZ89: 0 | EA89: 0 | EB89: 0 | EC89: 0 | ED89: 0 | EE89: 0 | EF89: 0 | EG89: 0 | EH89: 0 | EI89: 0 | EJ89: 0 | EK89: 0 | EL89: 0 | EM89: 0 | EN89: 0 | EO89: 0 | EP89: 0 | EQ89: 0 | ER89: 0 | ES89: 0 | ET89: 0 | EU89: 0 | EV89: =BR2 -> 0 | EW89: 0 | EX89: 0 | EY89: 0 | EZ89: 0 | FA89: 0 | FB89: 0 | FC89: 0 | FD89: 0 | FE89: 0 | FF89: 0 | FG89: 0 | FH89: 0 | FI89: 0 | FJ89: 0 | FK89: 0
C90: 1 | D90: 84 | CJ90: =E2 -> 1.9 | CK90: =F2 -> 2.9 | CL90: 3.9 | CM90: 4.55 | CN90: 5.2 | CO90: 6.2 | CP90: 7.2 | CQ90: 6.8 | CR90: 6.4 | CS90: 6.65 | CT90: 6.9 | CU90: 7.45 | CV90: 8 | CW90: 7.55 | CX90: 7.1 | CY90: 7.55 | CZ90: 8 | DA90: 8.55 | DB90: 9.1 | DC90: 10.43333333 | DD90: 11.76666667 | DE90: 13.1 | DF90: 11.76666667 | DG90: 10.43333333 | DH90: 9.1 | DI90: 8.55 | DJ90: 8 | DK90: 7.55 | DL90: 7.1 | DM90: 7.55 | DN90: 8 | DO90: 7.45 | DP90: 6.9 | DQ90: 6.65 | DR90: 6.4 | DS90: 6.8 | DT90: 7.2 | DU90: 6.2 | DV90: 5.2 | DW90: 4.55 | DX90: 3.9 | DY90: 2.9 | DZ90: 1.9 | EA90: 0 | EB90: 0 | EC90: 0 | ED90: 0 | EE90: 0 | EF90: 0 | EG90: 0 | EH90: 0 | EI90: 0 | EJ90: 0 | EK90: 0 | EL90: 0 | EM90: 0 | EN90: 0 | EO90: 0 | EP90: 0 | EQ90: 0 | ER90: 0 | ES90: 0 | ET90: 0 | EU90: 0 | EV90: 0 | EW90: =BR2 -> 0 | EX90: 0 | EY90: 0 | EZ90: 0 | FA90: 0 | FB90: 0 | FC90: 0 | FD90: 0 | FE90: 0 | FF90: 0 | FG90: 0 | FH90: 0 | FI90: 0 | FJ90: 0 | FK90: 0 | FL90: 0
C91: 0 | D91: 85 | CK91: =E2 -> 1.9 | CL91: =F2 -> 2.9 | CM91: 3.9 | CN91: 4.55 | CO91: 5.2 | CP91: 6.2 | CQ91: 7.2 | CR91: 6.8 | CS91: 6.4 | CT91: 6.65 | CU91: 6.9 | CV91: 7.45 | CW91: 8 | CX91: 7.55 | CY91: 7.1 | CZ91: 7.55 | DA91: 8 | DB91: 8.55 | DC91: 9.1 | DD91: 10.43333333 | DE91: 11.76666667 | DF91: 13.1 | DG91: 11.76666667 | DH91: 10.43333333 | DI91: 9.1 | DJ91: 8.55 | DK91: 8 | DL91: 7.55 | DM91: 7.1 | DN91: 7.55 | DO91: 8 | DP91: 7.45 | DQ91: 6.9 | DR91: 6.65 | DS91: 6.4 | DT91: 6.8 | DU91: 7.2 | DV91: 6.2 | DW91: 5.2 | DX91: 4.55 | DY91: 3.9 | DZ91: 2.9 | EA91: 1.9 | EB91: 0 | EC91: 0 | ED91: 0 | EE91: 0 | EF91: 0 | EG91: 0 | EH91: 0 | EI91: 0 | EJ91: 0 | EK91: 0 | EL91: 0 | EM91: 0 | EN91: 0 | EO91: 0 | EP91: 0 | EQ91: 0 | ER91: 0 | ES91: 0 | ET91: 0 | EU91: 0 | EV91: 0 | EW91: 0 | EX91: =BR2 -> 0 | EY91: 0 | EZ91: 0 | FA91: 0 | FB91: 0 | FC91: 0 | FD91: 0 | FE91: 0 | FF91: 0 | FG91: 0 | FH91: 0 | FI91: 0 | FJ91: 0 | FK91: 0 | FL91: 0 | FM91: 0
C92: -1 | D92: 86 | CL92: =E2 -> 1.9 | CM92: =F2 -> 2.9 | CN92: 3.9 | CO92: 4.55 | CP92: 5.2 | CQ92: 6.2 | CR92: 7.2 | CS92: 6.8 | CT92: 6.4 | CU92: 6.65 | CV92: 6.9 | CW92: 7.45 | CX92: 8 | CY92: 7.55 | CZ92: 7.1 | DA92: 7.55 | DB92: 8 | DC92: 8.55 | DD92: 9.1 | DE92: 10.43333333 | DF92: 11.76666667 | DG92: 13.1 | DH92: 11.76666667 | DI92: 10.43333333 | DJ92: 9.1 | DK92: 8.55 | DL92: 8 | DM92: 7.55 | DN92: 7.1 | DO92: 7.55 | DP92: 8 | DQ92: 7.45 | DR92: 6.9 | DS92: 6.65 | DT92: 6.4 | DU92: 6.8 | DV92: 7.2 | DW92: 6.2 | DX92: 5.2 | DY92: 4.55 | DZ92: 3.9 | EA92: 2.9 | EB92: 1.9 | EC92: 0 | ED92: 0 | EE92: 0 | EF92: 0 | EG92: 0 | EH92: 0 | EI92: 0 | EJ92: 0 | EK92: 0 | EL92: 0 | EM92: 0 | EN92: 0 | EO92: 0 | EP92: 0 | EQ92: 0 | ER92: 0 | ES92: 0 | ET92: 0 | EU92: 0 | EV92: 0 | EW92: 0 | EX92: 0 | EY92: =BR2 -> 0 | EZ92: 0 | FA92: 0 | FB92: 0 | FC92: 0 | FD92: 0 | FE92: 0 | FF92: 0 | FG92: 0 | FH92: 0 | FI92: 0 | FJ92: 0 | FK92: 0 | FL92: 0 | FM92: 0 | FN92: 0
C93: 1 | D93: 87 | CM93: =E2 -> 1.9 | CN93: =F2 -> 2.9 | CO93: 3.9 | CP93: 4.55 | CQ93: 5.2 | CR93: 6.2 | CS93: 7.2 | CT93: 6.8 | CU93: 6.4 | CV93: 6.65 | CW93: 6.9 | CX93: 7.45 | CY93: 8 | CZ93: 7.55 | DA93: 7.1 | DB93: 7.55 | DC93: 8 | DD93: 8.55 | DE93: 9.1 | DF93: 10.43333333 | DG93: 11.76666667 | DH93: 13.1 | DI93: 11.76666667 | DJ93: 10.43333333 | DK93: 9.1 | DL93: 8.55 | DM93: 8 | DN93: 7.55 | DO93: 7.1 | DP93: 7.55 | DQ93: 8 | DR93: 7.45 | DS93: 6.9 | DT93: 6.65 | DU93: 6.4 | DV93: 6.8 | DW93: 7.2 | DX93: 6.2 | DY93: 5.2 | DZ93: 4.55 | EA93: 3.9 | EB93: 2.9 | EC93: 1.9 | ED93: 0 | EE93: 0 | EF93: 0 | EG93: 0 | EH93: 0 | EI93: 0 | EJ93: 0 | EK93: 0 | EL93: 0 | EM93: 0 | EN93: 0 | EO93: 0 | EP93: 0 | EQ93: 0 | ER93: 0 | ES93: 0 | ET93: 0 | EU93: 0 | EV93: 0 | EW93: 0 | EX93: 0 | EY93: 0 | EZ93: =BR2 -> 0 | FA93: 0 | FB93: 0 | FC93: 0 | FD93: 0 | FE93: 0 | FF93: 0 | FG93: 0 | FH93: 0 | FI93: 0 | FJ93: 0 | FK93: 0 | FL93: 0 | FM93: 0 | FN93: 0 | FO93: 0
C94: 0 | D94: 88 | CN94: =E2 -> 1.9 | CO94: =F2 -> 2.9 | CP94: 3.9 | CQ94: 4.55 | CR94: 5.2 | CS94: 6.2 | CT94: 7.2 | CU94: 6.8 | CV94: 6.4 | CW94: 6.65 | CX94: 6.9 | CY94: 7.45 | CZ94: 8 | DA94: 7.55 | DB94: 7.1 | DC94: 7.55 | DD94: 8 | DE94: 8.55 | DF94: 9.1 | DG94: 10.43333333 | DH94: 11.76666667 | DI94: 13.1 | DJ94: 11.76666667 | DK94: 10.43333333 | DL94: 9.1 | DM94: 8.55 | DN94: 8 | DO94: 7.55 | DP94: 7.1 | DQ94: 7.55 | DR94: 8 | DS94: 7.45 | DT94: 6.9 | DU94: 6.65 | DV94: 6.4 | DW94: 6.8 | DX94: 7.2 | DY94: 6.2 | DZ94: 5.2 | EA94: 4.55 | EB94: 3.9 | EC94: 2.9 | ED94: 1.9 | EE94: 0 | EF94: 0 | EG94: 0 | EH94: 0 | EI94: 0 | EJ94: 0 | EK94: 0 | EL94: 0 | EM94: 0 | EN94: 0 | EO94: 0 | EP94: 0 | EQ94: 0 | ER94: 0 | ES94: 0 | ET94: 0 | EU94: 0 | EV94: 0 | EW94: 0 | EX94: 0 | EY94: 0 | EZ94: 0 | FA94: =BR2 -> 0 | FB94: 0 | FC94: 0 | FD94: 0 | FE94: 0 | FF94: 0 | FG94: 0 | FH94: 0 | FI94: 0 | FJ94: 0 | FK94: 0 | FL94: 0 | FM94: 0 | FN94: 0 | FO94: 0 | FP94: 0
C95: -1 | D95: 89 | CO95: =E2 -> 1.9 | CP95: =F2 -> 2.9 | CQ95: 3.9 | CR95: 4.55 | CS95: 5.2 | CT95: 6.2 | CU95: 7.2 | CV95: 6.8 | CW95: 6.4 | CX95: 6.65 | CY95: 6.9 | CZ95: 7.45 | DA95: 8 | DB95: 7.55 | DC95: 7.1 | DD95: 7.55 | DE95: 8 | DF95: 8.55 | DG95: 9.1 | DH95: 10.43333333 | DI95: 11.76666667 | DJ95: 13.1 | DK95: 11.76666667 | DL95: 10.43333333 | DM95: 9.1 | DN95: 8.55 | DO95: 8 | DP95: 7.55 | DQ95: 7.1 | DR95: 7.55 | DS95: 8 | DT95: 7.45 | DU95: 6.9 | DV95: 6.65 | DW95: 6.4 | DX95: 6.8 | DY95: 7.2 | DZ95: 6.2 | EA95: 5.2 | EB95: 4.55 | EC95: 3.9 | ED95: 2.9 | EE95: 1.9 | EF95: 0 | EG95: 0 | EH95: 0 | EI95: 0 | EJ95: 0 | EK95: 0 | EL95: 0 | EM95: 0 | EN95: 0 | EO95: 0 | EP95: 0 | EQ95: 0 | ER95: 0 | ES95: 0 | ET95: 0 | EU95: 0 | EV95: 0 | EW95: 0 | EX95: 0 | EY95: 0 | EZ95: 0 | FA95: 0 | FB95: =BR2 -> 0 | FC95: 0 | FD95: 0 | FE95: 0 | FF95: 0 | FG95: 0 | FH95: 0 | FI95: 0 | FJ95: 0 | FK95: 0 | FL95: 0 | FM95: 0 | FN95: 0 | FO95: 0 | FP95: 0 | FQ95: 0
C96: 1 | D96: 90 | CP96: =E2 -> 1.9 | CQ96: =F2 -> 2.9 | CR96: 3.9 | CS96: 4.55 | CT96: 5.2 | CU96: 6.2 | CV96: 7.2 | CW96: 6.8 | CX96: 6.4 | CY96: 6.65 | CZ96: 6.9 | DA96: 7.45 | DB96: 8 | DC96: 7.55 | DD96: 7.1 | DE96: 7.55 | DF96: 8 | DG96: 8.55 | DH96: 9.1 | DI96: 10.43333333 | DJ96: 11.76666667 | DK96: 13.1 | DL96: 11.76666667 | DM96: 10.43333333 | DN96: 9.1 | DO96: 8.55 | DP96: 8 | DQ96: 7.55 | DR96: 7.1 | DS96: 7.55 | DT96: 8 | DU96: 7.45 | DV96: 6.9 | DW96: 6.65 | DX96: 6.4 | DY96: 6.8 | DZ96: 7.2 | EA96: 6.2 | EB96: 5.2 | EC96: 4.55 | ED96: 3.9 | EE96: 2.9 | EF96: 1.9 | EG96: 0 | EH96: 0 | EI96: 0 | EJ96: 0 | EK96: 0 | EL96: 0 | EM96: 0 | EN96: 0 | EO96: 0 | EP96: 0 | EQ96: 0 | ER96: 0 | ES96: 0 | ET96: 0 | EU96: 0 | EV96: 0 | EW96: 0 | EX96: 0 | EY96: 0 | EZ96: 0 | FA96: 0 | FB96: 0 | FC96: =BR2 -> 0 | FD96: 0 | FE96: 0 | FF96: 0 | FG96: 0 | FH96: 0 | FI96: 0 | FJ96: 0 | FK96: 0 | FL96: 0 | FM96: 0 | FN96: 0 | FO96: 0 | FP96: 0 | FQ96: 0 | FR96: 0
C97: 0 | D97: 91 | CQ97: =E2 -> 1.9 | CR97: =F2 -> 2.9 | CS97: 3.9 | CT97: 4.55 | CU97: 5.2 | CV97: 6.2 | CW97: 7.2 | CX97: 6.8 | CY97: 6.4 | CZ97: 6.65 | DA97: 6.9 | DB97: 7.45 | DC97: 8 | DD97: 7.55 | DE97: 7.1 | DF97: 7.55 | DG97: 8 | DH97: 8.55 | DI97: 9.1 | DJ97: 10.43333333 | DK97: 11.76666667 | DL97: 13.1 | DM97: 11.76666667 | DN97: 10.43333333 | DO97: 9.1 | DP97: 8.55 | DQ97: 8 | DR97: 7.55 | DS97: 7.1 | DT97: 7.55 | DU97: 8 | DV97: 7.45 | DW97: 6.9 | DX97: 6.65 | DY97: 6.4 | DZ97: 6.8 | EA97: 7.2 | EB97: 6.2 | EC97: 5.2 | ED97: 4.55 | EE97: 3.9 | EF97: 2.9 | EG97: 1.9 | EH97: 0 | EI97: 0 | EJ97: 0 | EK97: 0 | EL97: 0 | EM97: 0 | EN97: 0 | EO97: 0 | EP97: 0 | EQ97: 0 | ER97: 0 | ES97: 0 | ET97: 0 | EU97: 0 | EV97: 0 | EW97: 0 | EX97: 0 | EY97: 0 | EZ97: 0 | FA97: 0 | FB97: 0 | FC97: 0 | FD97: =BR2 -> 0 | FE97: 0 | FF97: 0 | FG97: 0 | FH97: 0 | FI97: 0 | FJ97: 0 | FK97: 0 | FL97: 0 | FM97: 0 | FN97: 0 | FO97: 0 | FP97: 0 | FQ97: 0 | FR97: 0 | FS97: 0
C98: -1 | D98: 92 | CR98: =E2 -> 1.9 | CS98: =F2 -> 2.9 | CT98: 3.9 | CU98: 4.55 | CV98: 5.2 | CW98: 6.2 | CX98: 7.2 | CY98: 6.8 | CZ98: 6.4 | DA98: 6.65 | DB98: 6.9 | DC98: 7.45 | DD98: 8 | DE98: 7.55 | DF98: 7.1 | DG98: 7.55 | DH98: 8 | DI98: 8.55 | DJ98: 9.1 | DK98: 10.43333333 | DL98: 11.76666667 | DM98: 13.1 | DN98: 11.76666667 | DO98: 10.43333333 | DP98: 9.1 | DQ98: 8.55 | DR98: 8 | DS98: 7.55 | DT98: 7.1 | DU98: 7.55 | DV98: 8 | DW98: 7.45 | DX98: 6.9 | DY98: 6.65 | DZ98: 6.4 | EA98: 6.8 | EB98: 7.2 | EC98: 6.2 | ED98: 5.2 | EE98: 4.55 | EF98: 3.9 | EG98: 2.9 | EH98: 1.9 | EI98: 0 | EJ98: 0 | EK98: 0 | EL98: 0 | EM98: 0 | EN98: 0 | EO98: 0 | EP98: 0 | EQ98: 0 | ER98: 0 | ES98: 0 | ET98: 0 | EU98: 0 | EV98: 0 | EW98: 0 | EX98: 0 | EY98: 0 | EZ98: 0 | FA98: 0 | FB98: 0 | FC98: 0 | FD98: 0 | FE98: =BR2 -> 0 | FF98: 0 | FG98: 0 | FH98: 0 | FI98: 0 | FJ98: 0 | FK98: 0 | FL98: 0 | FM98: 0 | FN98: 0 | FO98: 0 | FP98: 0 | FQ98: 0 | FR98: 0 | FS98: 0 | FT98: 0
C99: 1 | D99: 93 | CS99: =E2 -> 1.9 | CT99: =F2 -> 2.9 | CU99: 3.9 | CV99: 4.55 | CW99: 5.2 | CX99: 6.2 | CY99: 7.2 | CZ99: 6.8 | DA99: 6.4 | DB99: 6.65 | DC99: 6.9 | DD99: 7.45 | DE99: 8 | DF99: 7.55 | DG99: 7.1 | DH99: 7.55 | DI99: 8 | DJ99: 8.55 | DK99: 9.1 | DL99: 10.43333333 | DM99: 11.76666667 | DN99: 13.1 | DO99: 11.76666667 | DP99: 10.43333333 | DQ99: 9.1 | DR99: 8.55 | DS99: 8 | DT99: 7.55 | DU99: 7.1 | DV99: 7.55 | DW99: 8 | DX99: 7.45 | DY99: 6.9 | DZ99: 6.65 | EA99: 6.4 | EB99: 6.8 | EC99: 7.2 | ED99: 6.2 | EE99: 5.2 | EF99: 4.55 | EG99: 3.9 | EH99: 2.9 | EI99: 1.9 | EJ99: 0 | EK99: 0 | EL99: 0 | EM99: 0 | EN99: 0 | EO99: 0 | EP99: 0 | EQ99: 0 | ER99: 0 | ES99: 0 | ET99: 0 | EU99: 0 | EV99: 0 | EW99: 0 | EX99: 0 | EY99: 0 | EZ99: 0 | FA99: 0 | FB99: 0 | FC99: 0 | FD99: 0 | FE99: 0 | FF99: =BR2 -> 0 | FG99: 0 | FH99: 0 | FI99: 0 | FJ99: 0 | FK99: 0 | FL99: 0 | FM99: 0 | FN99: 0 | FO99: 0 | FP99: 0 | FQ99: 0 | FR99: 0 | FS99: 0 | FT99: 0 | FU99: 0
C100: 0 | D100: 94 | CT100: =E2 -> 1.9 | CU100: =F2 -> 2.9 | CV100: 3.9 | CW100: 4.55 | CX100: 5.2 | CY100: 6.2 | CZ100: 7.2 | DA100: 6.8 | DB100: 6.4 | DC100: 6.65 | DD100: 6.9 | DE100: 7.45 | DF100: 8 | DG100: 7.55 | DH100: 7.1 | DI100: 7.55 | DJ100: 8 | DK100: 8.55 | DL100: 9.1 | DM100: 10.43333333 | DN100: 11.76666667 | DO100: 13.1 | DP100: 11.76666667 | DQ100: 10.43333333 | DR100: 9.1 | DS100: 8.55 | DT100: 8 | DU100: 7.55 | DV100: 7.1 | DW100: 7.55 | DX100: 8 | DY100: 7.45 | DZ100: 6.9 | EA100: 6.65 | EB100: 6.4 | EC100: 6.8 | ED100: 7.2 | EE100: 6.2 | EF100: 5.2 | EG100: 4.55 | EH100: 3.9 | EI100: 2.9 | EJ100: 1.9 | EK100: 0 | EL100: 0 | EM100: 0 | EN100: 0 | EO100: 0 | EP100: 0 | EQ100: 0 | ER100: 0 | ES100: 0 | ET100: 0 | EU100: 0 | EV100: 0 | EW100: 0 | EX100: 0 | EY100: 0 | EZ100: 0 | FA100: 0 | FB100: 0 | FC100: 0 | FD100: 0 | FE100: 0 | FF100: 0 | FG100: =BR2 -> 0 | FH100: 0 | FI100: 0 | FJ100: 0 | FK100: 0 | FL100: 0 | FM100: 0 | FN100: 0 | FO100: 0 | FP100: 0 | FQ100: 0 | FR100: 0 | FS100: 0 | FT100: 0 | FU100: 0 | FV100: 0
C101: -1 | D101: 95 | CU101: =E2 -> 1.9 | CV101: =F2 -> 2.9 | CW101: 3.9 | CX101: 4.55 | CY101: 5.2 | CZ101: 6.2 | DA101: 7.2 | DB101: 6.8 | DC101: 6.4 | DD101: 6.65 | DE101: 6.9 | DF101: 7.45 | DG101: 8 | DH101: 7.55 | DI101: 7.1 | DJ101: 7.55 | DK101: 8 | DL101: 8.55 | DM101: 9.1 | DN101: 10.43333333 | DO101: 11.76666667 | DP101: 13.1 | DQ101: 11.76666667 | DR101: 10.43333333 | DS101: 9.1 | DT101: 8.55 | DU101: 8 | DV101: 7.55 | DW101: 7.1 | DX101: 7.55 | DY101: 8 | DZ101: 7.45 | EA101: 6.9 | EB101: 6.65 | EC101: 6.4 | ED101: 6.8 | EE101: 7.2 | EF101: 6.2 | EG101: 5.2 | EH101: 4.55 | EI101: 3.9 | EJ101: 2.9 | EK101: 1.9 | EL101: 0 | EM101: 0 | EN101: 0 | EO101: 0 | EP101: 0 | EQ101: 0 | ER101: 0 | ES101: 0 | ET101: 0 | EU101: 0 | EV101: 0 | EW101: 0 | EX101: 0 | EY101: 0 | EZ101: 0 | FA101: 0 | FB101: 0 | FC101: 0 | FD101: 0 | FE101: 0 | FF101: 0 | FG101: 0 | FH101: =BR2 -> 0 | FI101: 0 | FJ101: 0 | FK101: 0 | FL101: 0 | FM101: 0 | FN101: 0 | FO101: 0 | FP101: 0 | FQ101: 0 | FR101: 0 | FS101: 0 | FT101: 0 | FU101: 0 | FV101: 0 | FW101: 0
C102: 1 | D102: 96 | CV102: =E2 -> 1.9 | CW102: =F2 -> 2.9 | CX102: 3.9 | CY102: 4.55 | CZ102: 5.2 | DA102: 6.2 | DB102: 7.2 | DC102: 6.8 | DD102: 6.4 | DE102: 6.65 | DF102: 6.9 | DG102: 7.45 | DH102: 8 | DI102: 7.55 | DJ102: 7.1 | DK102: 7.55 | DL102: 8 | DM102: 8.55 | DN102: 9.1 | DO102: 10.43333333 | DP102: 11.76666667 | DQ102: 13.1 | DR102: 11.76666667 | DS102: 10.43333333 | DT102: 9.1 | DU102: 8.55 | DV102: 8 | DW102: 7.55 | DX102: 7.1 | DY102: 7.55 | DZ102: 8 | EA102: 7.45 | EB102: 6.9 | EC102: 6.65 | ED102: 6.4 | EE102: 6.8 | EF102: 7.2 | EG102: 6.2 | EH102: 5.2 | EI102: 4.55 | EJ102: 3.9 | EK102: 2.9 | EL102: 1.9 | EM102: 0 | EN102: 0 | EO102: 0 | EP102: 0 | EQ102: 0 | ER102: 0 | ES102: 0 | ET102: 0 | EU102: 0 | EV102: 0 | EW102: 0 | EX102: 0 | EY102: 0 | EZ102: 0 | FA102: 0 | FB102: 0 | FC102: 0 | FD102: 0 | FE102: 0 | FF102: 0 | FG102: 0 | FH102: 0 | FI102: =BR2 -> 0 | FJ102: 0 | FK102: 0 | FL102: 0 | FM102: 0 | FN102: 0 | FO102: 0 | FP102: 0 | FQ102: 0 | FR102: 0 | FS102: 0 | FT102: 0 | FU102: 0 | FV102: 0 | FW102: 0 | FX102: 0
C103: =1-MOD(D103,$B$106) -> 0 | D103: 97 | CW103: =E2 -> 1.9 | CX103: =F2 -> 2.9 | CY103: 3.9 | CZ103: 4.55 | DA103: 5.2 | DB103: 6.2 | DC103: 7.2 | DD103: 6.8 | DE103: 6.4 | DF103: 6.65 | DG103: 6.9 | DH103: 7.45 | DI103: 8 | DJ103: 7.55 | DK103: 7.1 | DL103: 7.55 | DM103: 8 | DN103: 8.55 | DO103: 9.1 | DP103: 10.43333333 | DQ103: 11.76666667 | DR103: 13.1 | DS103: 11.76666667 | DT103: 10.43333333 | DU103: 9.1 | DV103: 8.55 | DW103: 8 | DX103: 7.55 | DY103: 7.1 | DZ103: 7.55 | EA103: 8 | EB103: 7.45 | EC103: 6.9 | ED103: 6.65 | EE103: 6.4 | EF103: 6.8 | EG103: 7.2 | EH103: 6.2 | EI103: 5.2 | EJ103: 4.55 | EK103: 3.9 | EL103: 2.9 | EM103: 1.9 | EN103: 0 | EO103: 0 | EP103: 0 | EQ103: 0 | ER103: 0 | ES103: 0 | ET103: 0 | EU103: 0 | EV103: 0 | EW103: 0 | EX103: 0 | EY103: 0 | EZ103: 0 | FA103: 0 | FB103: 0 | FC103: 0 | FD103: 0 | FE103: 0 | FF103: 0 | FG103: 0 | FH103: 0 | FI103: 0 | FJ103: =BR2 -> 0 | FK103: 0 | FL103: 0 | FM103: 0 | FN103: 0 | FO103: 0 | FP103: 0 | FQ103: 0 | FR103: 0 | FS103: 0 | FT103: 0 | FU103: 0 | FV103: 0 | FW103: 0 | FX103: 0 | FY103: 0
C104: -1 | D104: 98 | CX104: =E2 -> 1.9 | CY104: =F2 -> 2.9 | CZ104: 3.9 | DA104: 4.55 | DB104: 5.2 | DC104: 6.2 | DD104: 7.2 | DE104: 6.8 | DF104: 6.4 | DG104: 6.65 | DH104: 6.9 | DI104: 7.45 | DJ104: 8 | DK104: 7.55 | DL104: 7.1 | DM104: 7.55 | DN104: 8 | DO104: 8.55 | DP104: 9.1 | DQ104: 10.43333333 | DR104: 11.76666667 | DS104: 13.1 | DT104: 11.76666667 | DU104: 10.43333333 | DV104: 9.1 | DW104: 8.55 | DX104: 8 | DY104: 7.55 | DZ104: 7.1 | EA104: 7.55 | EB104: 8 | EC104: 7.45 | ED104: 6.9 | EE104: 6.65 | EF104: 6.4 | EG104: 6.8 | EH104: 7.2 | EI104: 6.2 | EJ104: 5.2 | EK104: 4.55 | EL104: 3.9 | EM104: 2.9 | EN104: 1.9 | EO104: 0 | EP104: 0 | EQ104: 0 | ER104: 0 | ES104: 0 | ET104: 0 | EU104: 0 | EV104: 0 | EW104: 0 | EX104: 0 | EY104: 0 | EZ104: 0 | FA104: 0 | FB104: 0 | FC104: 0 | FD104: 0 | FE104: 0 | FF104: 0 | FG104: 0 | FH104: 0 | FI104: 0 | FJ104: 0 | FK104: =BR2 -> 0 | FL104: 0 | FM104: 0 | FN104: 0 | FO104: 0 | FP104: 0 | FQ104: 0 | FR104: 0 | FS104: 0 | FT104: 0 | FU104: 0 | FV104: 0 | FW104: 0 | FX104: 0 | FY104: 0 | FZ104: 0
C105: 1 | D105: 99 | CY105: =E2 -> 1.9 | CZ105: =F2 -> 2.9 | DA105: 3.9 | DB105: 4.55 | DC105: 5.2 | DD105: 6.2 | DE105: 7.2 | DF105: 6.8 | DG105: 6.4 | DH105: 6.65 | DI105: 6.9 | DJ105: 7.45 | DK105: 8 | DL105: 7.55 | DM105: 7.1 | DN105: 7.55 | DO105: 8 | DP105: 8.55 | DQ105: 9.1 | DR105: 10.43333333 | DS105: 11.76666667 | DT105: 13.1 | DU105: 11.76666667 | DV105: 10.43333333 | DW105: 9.1 | DX105: 8.55 | DY105: 8 | DZ105: 7.55 | EA105: 7.1 | EB105: 7.55 | EC105: 8 | ED105: 7.45 | EE105: 6.9 | EF105: 6.65 | EG105: 6.4 | EH105: 6.8 | EI105: 7.2 | EJ105: 6.2 | EK105: 5.2 | EL105: 4.55 | EM105: 3.9 | EN105: 2.9 | EO105: 1.9 | EP105: 0 | EQ105: 0 | ER105: 0 | ES105: 0 | ET105: 0 | EU105: 0 | EV105: 0 | EW105: 0 | EX105: 0 | EY105: 0 | EZ105: 0 | FA105: 0 | FB105: 0 | FC105: 0 | FD105: 0 | FE105: 0 | FF105: 0 | FG105: 0 | FH105: 0 | FI105: 0 | FJ105: 0 | FK105: 0 | FL105: =BR2 -> 0 | FM105: 0 | FN105: 0 | FO105: 0 | FP105: 0 | FQ105: 0 | FR105: 0 | FS105: 0 | FT105: 0 | FU105: 0 | FV105: 0 | FW105: 0 | FX105: 0 | FY105: 0 | FZ105: 0 | GA105: 0
B106: 3 | C106: 0 | D106: 100 | CZ106: =E2 -> 1.9 | DA106: =F2 -> 2.9 | DB106: 3.9 | DC106: 4.55 | DD106: 5.2 | DE106: 6.2 | DF106: 7.2 | DG106: 6.8 | DH106: 6.4 | DI106: 6.65 | DJ106: 6.9 | DK106: 7.45 | DL106: 8 | DM106: 7.55 | DN106: 7.1 | DO106: 7.55 | DP106: 8 | DQ106: 8.55 | DR106: 9.1 | DS106: 10.43333333 | DT106: 11.76666667 | DU106: 13.1 | DV106: 11.76666667 | DW106: 10.43333333 | DX106: 9.1 | DY106: 8.55 | DZ106: 8 | EA106: 7.55 | EB106: 7.1 | EC106: 7.55 | ED106: 8 | EE106: 7.45 | EF106: 6.9 | EG106: 6.65 | EH106: 6.4 | EI106: 6.8 | EJ106: 7.2 | EK106: 6.2 | EL106: 5.2 | EM106: 4.55 | EN106: 3.9 | EO106: 2.9 | EP106: 1.9 | EQ106: 0 | ER106: 0 | ES106: 0 | ET106: 0 | EU106: 0 | EV106: 0 | EW106: 0 | EX106: 0 | EY106: 0 | EZ106: 0 | FA106: 0 | FB106: 0 | FC106: 0 | FD106: 0 | FE106: 0 | FF106: 0 | FG106: 0 | FH106: 0 | FI106: 0 | FJ106: 0 | FK106: 0 | FL106: 0 | FM106: =BR2 -> 0 | FN106: 0 | FO106: 0 | FP106: 0 | FQ106: 0 | FR106: 0 | FS106: 0 | FT106: 0 | FU106: 0 | FV106: 0 | FW106: 0 | FX106: 0 | FY106: 0 | FZ106: 0 | GA106: 0 | GB106: 0
B108: racetrack
A109: Bout | B109: cv | C109: average
A110: 1 | B110: =IF($D110<=$B$6,STDEV(OFFSET(D110,0,2*$B$11-D110+$B$12):OFFSET(D110,0,2*$B$11-1+$B$12))/C110,"") ->  | C110: =IF($D110<=$B$6,AVERAGE(OFFSET(D110,0,2*$B$11-D110+$B$12):OFFSET(D110,0,2*$B$11-1+$B$12)),"") -> 301.3 | D110: =D7 -> 1 | E110: =SUM(E7:E106) -> 1.9 | F110: =SUM(F7:F106) -> 4.8 | G110: 8.7 | H110: 13.25 | I110: 18.45 | J110: 24.65 | K110: 31.85 | L110: 38.65 | M110: 45.05 | N110: 51.7 | O110: 58.6 | P110: 66.05 | Q110: 74.05 | R110: 81.6 | S110: 88.7 | T110: 96.25 | U110: 104.25 | V110: 112.8 | W110: 121.9 | X110: 132.3333333 | Y110: 144.1 | Z110: 157.2 | AA110: 168.9666667 | AB110: 179.4 | AC110: 188.5 | AD110: 197.05 | AE110: 205.05 | AF110: 212.6 | AG110: 219.7 | AH110: 227.25 | AI110: 235.25 | AJ110: 242.7 | AK110: 249.6 | AL110: 256.25 | AM110: 262.65 | AN110: 269.45 | AO110: 276.65 | AP110: 282.85 | AQ110: 288.05 | AR110: 292.6 | AS110: 296.5 | AT110: 299.4 | AU110: 301.3 | AV110: 301.3 | AW110: 301.3 | AX110: 301.3 | AY110: 301.3 | AZ110: 301.3 | BA110: 301.3 | BB110: 301.3 | BC110: 301.3 | BD110: 301.3 | BE110: 301.3 | BF110: 301.3 | BG110: 301.3 | BH110: 301.3 | BI110: 301.3 | BJ110: 301.3 | BK110: 301.3 | BL110: 301.3 | BM110: 301.3 | BN110: 301.3 | BO110: 301.3 | BP110: 301.3 | BQ110: 301.3 | BR110: =SUM(BR7:BR106) -> 301.3 | BS110: 301.3 | BT110: 301.3 | BU110: 301.3 | BV110: 301.3 | BW110: 301.3 | BX110: 301.3 | BY110: 301.3 | BZ110: 301.3 | CA110: 301.3 | CB110: 301.3 | CC110: 301.3 | CD110: 301.3 | CE110: 301.3 | CF110: 301.3 | CG110: 301.3
A111: 2 | B111: =IF($D111<=$B$6,STDEV(OFFSET(D111,0,2*$B$11-D111+$B$12):OFFSET(D111,0,2*$B$11-1+$B$12))/C111,"") -> 0.002659766629 | C111: =IF($D111<=$B$6,AVERAGE(OFFSET(D111,0,2*$B$11-D111+$B$12):OFFSET(D111,0,2*$B$11-1+$B$12)),"") -> 150.65 | D111: 2 | E111: =E7+E9+E11+E13+E15+E17+E19+E21+E23+E25+E27+E29+E31+E33+E35+E37+E39+E41+E43+E45+E47+E49+E51+E53+E55+E57+E59+E61+E63+E65+E67+E69+E71+E73+E75+E77+E79+E81+E83+E85+E87+E89+E91+E93+E95+E97+E99+E101+E103+E105 -> 1.9 | F111: =F7+F9+F11+F13+F15+F17+F19+F21+F23+F25+F27+F29+F31+F33+F35+F37+F39+F41+F43+F45+F47+F49+F51+F53+F55+F57+F59+F61+F63+F65+F67+F69+F71+F73+F75+F77+F79+F81+F83+F85+F87+F89+F91+F93+F95+F97+F99+F101+F103+F105 -> 2.9 | G111: 5.8 | H111: 7.45 | I111: 11 | J111: 13.65 | K111: 18.2 | L111: 20.45 | M111: 24.6 | N111: 27.1 | O111: 31.5 | P111: 34.55 | Q111: 39.5 | R111: 42.1 | S111: 46.6 | T111: 49.65 | U111: 54.6 | V111: 58.2 | W111: 63.7 | X111: 68.63333333 | Y111: 75.46666667 | Z111: 81.73333333 | AA111: 87.23333333 | AB111: 92.16666667 | AC111: 96.33333333 | AD111: 100.7166667 | AE111: 104.3333333 | AF111: 108.2666667 | AG111: 111.4333333 | AH111: 115.8166667 | AI111: 119.4333333 | AJ111: 123.2666667 | AK111: 126.3333333 | AL111: 129.9166667 | AM111: 132.7333333 | AN111: 136.7166667 | AO111: 139.9333333 | AP111: 142.9166667 | AQ111: 145.1333333 | AR111: 147.4666667 | AS111: 149.0333333 | AT111: 150.3666667 | AU111: 150.9333333 | AV111: 150.3666667 | AW111: 150.9333333 | AX111: 150.3666667 | AY111: 150.9333333 | AZ111: 150.3666667 | BA111: 150.9333333 | BB111: 150.3666667 | BC111: 150.9333333 | BD111: 150.3666667 | BE111: 150.9333333 | BF111: 150.3666667 | BG111: 150.9333333 | BH111: 150.3666667 | BI111: 150.9333333 | BJ111: 150.3666667 | BK111: 150.9333333 | BL111: 150.3666667 | BM111: 150.9333333 | BN111: 150.3666667 | BO111: 150.9333333 | BP111: 150.3666667 | BQ111: 150.9333333 | BR111: =BR7+BR9+BR11+BR13+BR15+BR17+BR19+BR21+BR23+BR25+BR27+BR29+BR31+BR33+BR35+BR37+BR39+BR41+BR43+BR45+BR47+BR49+BR51+BR53+BR55+BR57+BR59+BR61+BR63+BR65+BR67+BR69+BR71+BR73+BR75+BR77+BR79+BR81+BR83+BR85+BR87+BR89+BR91+BR93+BR95+BR97+BR99+BR101+BR103+BR105 -> 150.3666667 | BS111: 150.9333333 | BT111: 150.3666667 | BU111: 150.9333333 | BV111: 150.3666667 | BW111: 150.9333333 | BX111: 150.3666667 | BY111: 150.9333333 | BZ111: 150.3666667 | CA111: 150.9333333 | CB111: 150.3666667 | CC111: 150.9333333 | CD111: 150.3666667 | CE111: 150.9333333 | CF111: 150.3666667 | CG111: 150.9333333 | CH111: 150.3666667
A112: 3 | B112: =IF($D112<=$B$6,STDEV(OFFSET(D112,0,2*$B$11-D112+$B$12):OFFSET(D112,0,2*$B$11-1+$B$12))/C112,"") -> 0.02213207969 | C112: =IF($D112<=$B$6,AVERAGE(OFFSET(D112,0,2*$B$11-D112+$B$12):OFFSET(D112,0,2*$B$11-1+$B$12)),"") -> 100.4333333 | D112: 3 | E112: =E7+E10+E13+E16+E19+E22+E25+E28+E31+E34+E37+E40+E43+E46+E49+E52+E55+E58+E61+E64+E67+E70+E73+E76+E79+E82+E85+E88+E91+E94+E97+E100+E103+E106 -> 1.9 | F112: =F7+F10+F13+F16+F19+F22+F25+F28+F31+F34+F37+F40+F43+F46+F49+F52+F55+F58+F61+F64+F67+F70+F73+F76+F79+F82+F85+F88+F91+F94+F97+F100+F103+F106 -> 2.9 | G112: 3.9 | H112: 6.45 | I112: 8.1 | J112: 10.1 | K112: 13.65 | L112: 14.9 | M112: 16.5 | N112: 20.3 | O112: 21.8 | P112: 23.95 | Q112: 28.3 | R112: 29.35 | S112: 31.05 | T112: 35.85 | U112: 37.35 | V112: 39.6 | W112: 44.95 | X112: 47.78333333 | Y112: 51.36666667 | Z112: 58.05 | AA112: 59.55 | AB112: 61.8 | AC112: 67.15 | AD112: 68.1 | AE112: 69.8 | AF112: 74.7 | AG112: 75.2 | AH112: 77.35 | AI112: 82.7 | AJ112: 82.65 | AK112: 84.25 | AL112: 89.35 | AM112: 89.05 | AN112: 91.05 | AO112: 96.55 | AP112: 95.25 | AQ112: 96.25 | AR112: 101.1 | AS112: 99.15 | AT112: 99.15 | AU112: 103 | AV112: 99.15 | AW112: 99.15 | AX112: 103 | AY112: 99.15 | AZ112: 99.15 | BA112: 103 | BB112: 99.15 | BC112: 99.15 | BD112: 103 | BE112: 99.15 | BF112: 99.15 | BG112: 103 | BH112: 99.15 | BI112: 99.15 | BJ112: 103 | BK112: 99.15 | BL112: 99.15 | BM112: 103 | BN112: 99.15 | BO112: 99.15 | BP112: 103 | BQ112: 99.15 | BR112: =BR7+BR10+BR13+BR16+BR19+BR22+BR25+BR28+BR31+BR34+BR37+BR40+BR43+BR46+BR49+BR52+BR55+BR58+BR61+BR64+BR67+BR70+BR73+BR76+BR79+BR82+BR85+BR88+BR91+BR94+BR97+BR100+BR103+BR106 -> 99.15 | BS112: 103 | BT112: 99.15 | BU112: 99.15 | BV112: 103 | BW112: 99.15 | BX112: 99.15 | BY112: 103 | BZ112: 99.15 | CA112: 99.15 | CB112: 103 | CC112: 99.15 | CD112: 99.15 | CE112: 103 | CF112: 99.15 | CG112: 99.15 | CH112: 103 | CI112: 99.15
A113: 4 | B113: =IF($D113<=$B$6,STDEV(OFFSET(D113,0,2*$B$11-D113+$B$12):OFFSET(D113,0,2*$B$11-1+$B$12))/C113,"") -> 0.0176581513 | C113: =IF($D113<=$B$6,AVERAGE(OFFSET(D113,0,2*$B$11-D113+$B$12):OFFSET(D113,0,2*$B$11-1+$B$12)),"") -> 75.325 | D113: 4 | E113: =E7+E11+E15+E19+E23+E27+E31+E35+E39+E43+E47+E83+E87+E91+E95+E99+E103+E51+E55+E59+E63+E67+E71+E75+E79 -> 1.9 | F113: =F7+F11+F15+F19+F23+F27+F31+F35+F39+F43+F47+F83+F87+F91+F95+F99+F103+F51+F55+F59+F63+F67+F71+F75+F79 -> 2.9 | G113: 3.9 | H113: 4.55 | I113: 7.1 | J113: 9.1 | K113: 11.1 | L113: 11.35 | M113: 13.5 | N113: 15.75 | O113: 18 | P113: 18.8 | Q113: 21.5 | R113: 23.3 | S113: 25.1 | T113: 26.35 | U113: 29.5 | V113: 31.85 | W113: 34.2 | X113: 36.78333333 | Y113: 41.26666667 | Z113: 44.95 | AA113: 45.96666667 | AB113: 47.21666667 | AC113: 50.36666667 | AD113: 53.5 | AE113: 53.96666667 | AF113: 54.76666667 | AG113: 57.46666667 | AH113: 61.05 | AI113: 61.96666667 | AJ113: 62.21666667 | AK113: 64.36666667 | AL113: 67.7 | AM113: 68.36666667 | AN113: 69.01666667 | AO113: 71.56666667 | AP113: 73.9 | AQ113: 73.56666667 | AR113: 73.56666667 | AS113: 75.46666667 | AT113: 76.8 | AU113: 75.46666667 | AV113: 73.56666667 | AW113: 75.46666667 | AX113: 76.8 | AY113: 75.46666667 | AZ113: 73.56666667 | BA113: 75.46666667 | BB113: 76.8 | BC113: 75.46666667 | BD113: 73.56666667 | BE113: 75.46666667 | BF113: 76.8 | BG113: 75.46666667 | BH113: 73.56666667 | BI113: 75.46666667 | BJ113: 76.8 | BK113: 75.46666667 | BL113: 73.56666667 | BM113: 75.46666667 | BN113: 76.8 | BO113: 75.46666667 | BP113: 73.56666667 | BQ113: 75.46666667 | BR113: =BR7+BR11+BR15+BR19+BR23+BR27+BR31+BR35+BR39+BR43+BR47+BR83+BR87+BR91+BR95+BR99+BR103+BR51+BR55+BR59+BR63+BR67+BR71+BR75+BR79 -> 76.8 | BS113: 75.46666667 | BT113: 73.56666667 | BU113: 75.46666667 | BV113: 76.8 | BW113: 75.46666667 | BX113: 73.56666667 | BY113: 75.46666667 | BZ113: 76.8 | CA113: 75.46666667 | CB113: 73.56666667 | CC113: 75.46666667 | CD113: 76.8 | CE113: 75.46666667 | CF113: 73.56666667 | CG113: 75.46666667 | CH113: 76.8 | CI113: 75.46666667 | CJ113: 73.56666667
A114: 5 | B114: =IF($D114<=$B$6,STDEV(OFFSET(D114,0,2*$B$11-D114+$B$12):OFFSET(D114,0,2*$B$11-1+$B$12))/C114,"") -> 0.05274642915 | C114: =IF($D114<=$B$6,AVERAGE(OFFSET(D114,0,2*$B$11-D114+$B$12):OFFSET(D114,0,2*$B$11-1+$B$12)),"") -> 60.26 | D114: 5 | E114: =E7+E12+E17+E22+E27+E32+E37+E42+E47+E52+E57+E62+E67+E72+E77+E82+E87+E92+E97+E102 -> 1.9 | F114: =F7+F12+F17+F22+F27+F32+F37+F42+F47+F52+F57+F62+F67+F72+F77+F82+F87+F92+F97+F102 -> 2.9 | G114: 3.9 | H114: 4.55 | I114: 5.2 | J114: 8.1 | K114: 10.1 | L114: 10.7 | M114: 10.95 | N114: 11.85 | O114: 15 | P114: 17.55 | Q114: 18.7 | R114: 18.5 | S114: 18.95 | T114: 22.55 | U114: 25.55 | V114: 27.25 | W114: 27.6 | X114: 29.38333333 | Y114: 34.31666667 | Z114: 38.65 | AA114: 39.01666667 | AB114: 38.03333333 | AC114: 38.48333333 | AD114: 42.86666667 | AE114: 46.65 | AF114: 46.56666667 | AG114: 45.13333333 | AH114: 46.03333333 | AI114: 50.86666667 | AJ114: 54.1 | AK114: 53.46666667 | AL114: 51.78333333 | AM114: 52.43333333 | AN114: 57.66666667 | AO114: 61.3 | AP114: 59.66666667 | AQ114: 56.98333333 | AR114: 56.98333333 | AS114: 61.56666667 | AT114: 64.2 | AU114: 61.56666667 | AV114: 56.98333333 | AW114: 56.98333333 | AX114: 61.56666667 | AY114: 64.2 | AZ114: 61.56666667 | BA114: 56.98333333 | BB114: 56.98333333 | BC114: 61.56666667 | BD114: 64.2 | BE114: 61.56666667 | BF114: 56.98333333 | BG114: 56.98333333 | BH114: 61.56666667 | BI114: 64.2 | BJ114: 61.56666667 | BK114: 56.98333333 | BL114: 56.98333333 | BM114: 61.56666667 | BN114: 64.2 | BO114: 61.56666667 | BP114: 56.98333333 | BQ114: 56.98333333 | BR114: =BR7+BR12+BR17+BR22+BR27+BR32+BR37+BR42+BR47+BR52+BR57+BR62+BR67+BR72+BR77+BR82+BR87+BR92+BR97+BR102 -> 61.56666667 | BS114: 64.2 | BT114: 61.56666667 | BU114: 56.98333333 | BV114: 56.98333333 | BW114: 61.56666667 | BX114: 64.2 | BY114: 61.56666667 | BZ114: 56.98333333 | CA114: 56.98333333 | CB114: 61.56666667 | CC114: 64.2 | CD114: 61.56666667 | CE114: 56.98333333 | CF114: 56.98333333 | CG114: 61.56666667 | CH114: 64.2 | CI114: 61.56666667 | CJ114: 56.98333333 | CK114: 56.98333333
A115: 6 | B115: =IF($D115<=$B$6,STDEV(OFFSET(D115,0,2*$B$11-D115+$B$12):OFFSET(D115,0,2*$B$11-1+$B$12))/C115,"") -> 0.02346289596 | C115: =IF($D115<=$B$6,AVERAGE(OFFSET(D115,0,2*$B$11-D115+$B$12):OFFSET(D115,0,2*$B$11-1+$B$12)),"") -> 50.21666667 | D115: 6 | E115: =E7+E13+E19+E25+E31+E37+E43+E49+E55+E61+E67+E73+E79+E85+E91+E97+E103 -> 1.9 | F115: =F7+F13+F19+F25+F31+F37+F43+F49+F55+F61+F67+F73+F79+F85+F91+F97+F103 -> 2.9 | G115: 3.9 | H115: 4.55 | I115: 5.2 | J115: 6.2 | K115: 9.1 | L115: 9.7 | M115: 10.3 | N115: 11.2 | O115: 12.1 | P115: 13.65 | Q115: 17.1 | R115: 17.25 | S115: 17.4 | T115: 18.75 | U115: 20.1 | V115: 22.2 | W115: 26.2 | X115: 27.68333333 | Y115: 29.16666667 | Z115: 31.85 | AA115: 31.86666667 | AB115: 32.63333333 | AC115: 35.3 | AD115: 36.23333333 | AE115: 37.16666667 | AF115: 39.4 | AG115: 38.96666667 | AH115: 40.18333333 | AI115: 43.3 | AJ115: 43.68333333 | AK115: 44.06666667 | AL115: 46.05 | AM115: 45.36666667 | AN115: 46.98333333 | AO115: 50.5 | AP115: 49.88333333 | AQ115: 49.26666667 | AR115: 50.6 | AS115: 49.26666667 | AT115: 49.88333333 | AU115: 52.4 | AV115: 49.88333333 | AW115: 49.26666667 | AX115: 50.6 | AY115: 49.26666667 | AZ115: 49.88333333 | BA115: 52.4 | BB115: 49.88333333 | BC115: 49.26666667 | BD115: 50.6 | BE115: 49.26666667 | BF115: 49.88333333 | BG115: 52.4 | BH115: 49.88333333 | BI115: 49.26666667 | BJ115: 50.6 | BK115: 49.26666667 | BL115: 49.88333333 | BM115: 52.4 | BN115: 49.88333333 | BO115: 49.26666667 | BP115: 50.6 | BQ115: 49.26666667 | BR115: =BR7+BR13+BR19+BR25+BR31+BR37+BR43+BR49+BR55+BR61+BR67+BR73+BR79+BR85+BR91+BR97+BR103 -> 49.88333333 | BS115: 52.4 | BT115: 49.88333333 | BU115: 49.26666667 | BV115: 50.6 | BW115: 49.26666667 | BX115: 49.88333333 | BY115: 52.4 | BZ115: 49.88333333 | CA115: 49.26666667 | CB115: 50.6 | CC115: 49.26666667 | CD115: 49.88333333 | CE115: 52.4 | CF115: 49.88333333 | CG115: 49.26666667 | CH115: 50.6 | CI115: 49.26666667 | CJ115: 49.88333333 | CK115: 52.4 | CL115: 49.88333333
A116: 7 | B116: =IF($D116<=$B$6,STDEV(OFFSET(D116,0,2*$B$11-D116+$B$12):OFFSET(D116,0,2*$B$11-1+$B$12))/C116,"") -> 0.02387855827 | C116: =IF($D116<=$B$6,AVERAGE(OFFSET(D116,0,2*$B$11-D116+$B$12):OFFSET(D116,0,2*$B$11-1+$B$12)),"") -> 43.04285714 | D116: 7 | E116: =E7+E14+E21+E28+E35+E42+E49+E56+E63+E70+E77+E84+E91+E98+E105 -> 1.9 | F116: =F7+F14+F21+F28+F35+F42+F49+F56+F63+F70+F77+F84+F91+F98+F105 -> 2.9 | G116: 3.9 | H116: 4.55 | I116: 5.2 | J116: 6.2 | K116: 7.2 | L116: 8.7 | M116: 9.3 | N116: 10.55 | O116: 11.45 | P116: 12.65 | Q116: 14.2 | R116: 14.75 | S116: 15.8 | T116: 16.85 | U116: 18.55 | V116: 20 | W116: 21.75 | X116: 24.63333333 | Y116: 26.51666667 | Z116: 28.9 | AA116: 28.61666667 | AB116: 28.98333333 | AC116: 29.1 | AD116: 30.3 | AE116: 32.63333333 | AF116: 34.06666667 | AG116: 36 | AH116: 36.16666667 | AI116: 36.98333333 | AJ116: 36.55 | AK116: 37.2 | AL116: 39.28333333 | AM116: 40.46666667 | AN116: 42.8 | AO116: 43.36666667 | AP116: 43.18333333 | AQ116: 41.75 | AR116: 41.75 | AS116: 43.18333333 | AT116: 43.36666667 | AU116: 44.7 | AV116: 43.36666667 | AW116: 43.18333333 | AX116: 41.75 | AY116: 41.75 | AZ116: 43.18333333 | BA116: 43.36666667 | BB116: 44.7 | BC116: 43.36666667 | BD116: 43.18333333 | BE116: 41.75 | BF116: 41.75 | BG116: 43.18333333 | BH116: 43.36666667 | BI116: 44.7 | BJ116: 43.36666667 | BK116: 43.18333333 | BL116: 41.75 | BM116: 41.75 | BN116: 43.18333333 | BO116: 43.36666667 | BP116: 44.7 | BQ116: 43.36666667 | BR116: =BR7+BR14+BR21+BR28+BR35+BR42+BR49+BR56+BR63+BR70+BR77+BR84+BR91+BR98+BR105 -> 43.18333333 | BS116: 41.75 | BT116: 41.75 | BU116: 43.18333333 | BV116: 43.36666667 | BW116: 44.7 | BX116: 43.36666667 | BY116: 43.18333333 | BZ116: 41.75 | CA116: 41.75 | CB116: 43.18333333 | CC116: 43.36666667 | CD116: 44.7 | CE116: 43.36666667 | CF116: 43.18333333 | CG116: 41.75 | CH116: 41.75 | CI116: 43.18333333 | CJ116: 43.36666667 | CK116: 44.7 | CL116: 43.36666667 | CM116: 43.18333333
A117: 8 | B117: =IF($D117<=$B$6,STDEV(OFFSET(D117,0,2*$B$11-D117+$B$12):OFFSET(D117,0,2*$B$11-1+$B$12))/C117,"") -> 0.04679005653 | C117: =IF($D117<=$B$6,AVERAGE(OFFSET(D117,0,2*$B$11-D117+$B$12):OFFSET(D117,0,2*$B$11-1+$B$12)),"") -> 37.6625 | D117: 8 | E117: =E7+E15+E23+E31+E39+E47+E55+E63+E71+E79+E87+E95+E103 -> 1.9 | F117: =F7+F15+F23+F31+F39+F47+F55+F63+F71+F79+F87+F95+F103 -> 2.9 | G117: 3.9 | H117: 4.55 | I117: 5.2 | J117: 6.2 | K117: 7.2 | L117: 6.8 | M117: 8.3 | N117: 9.55 | O117: 10.8 | P117: 12 | Q117: 13.2 | R117: 13.75 | S117: 14.3 | T117: 14.35 | U117: 16.3 | V117: 18.1 | W117: 19.9 | X117: 22.43333333 | Y117: 24.96666667 | Z117: 26.85 | AA117: 26.06666667 | AB117: 24.78333333 | AC117: 25.4 | AD117: 26.65 | AE117: 27.9 | AF117: 29.98333333 | AG117: 32.06666667 | AH117: 34.4 | AI117: 34.06666667 | AJ117: 32.23333333 | AK117: 32.3 | AL117: 33.3 | AM117: 34.3 | AN117: 36.78333333 | AO117: 39.26666667 | AP117: 40.6 | AQ117: 39.26666667 | AR117: 36.78333333 | AS117: 36.2 | AT117: 36.2 | AU117: 36.2 | AV117: 36.78333333 | AW117: 39.26666667 | AX117: 40.6 | AY117: 39.26666667 | AZ117: 36.78333333 | BA117: 36.2 | BB117: 36.2 | BC117: 36.2 | BD117: 36.78333333 | BE117: 39.26666667 | BF117: 40.6 | BG117: 39.26666667 | BH117: 36.78333333 | BI117: 36.2 | BJ117: 36.2 | BK117: 36.2 | BL117: 36.78333333 | BM117: 39.26666667 | BN117: 40.6 | BO117: 39.26666667 | BP117: 36.78333333 | BQ117: 36.2 | BR117: =BR7+BR15+BR23+BR31+BR39+BR47+BR55+BR63+BR71+BR79+BR87+BR95+BR103 -> 36.2 | BS117: 36.2 | BT117: 36.78333333 | BU117: 39.26666667 | BV117: 40.6 | BW117: 39.26666667 | BX117: 36.78333333 | BY117: 36.2 | BZ117: 36.2 | CA117: 36.2 | CB117: 36.78333333 | CC117: 39.26666667 | CD117: 40.6 | CE117: 39.26666667 | CF117: 36.78333333 | CG117: 36.2 | CH117: 36.2 | CI117: 36.2 | CJ117: 36.78333333 | CK117: 39.26666667 | CL117: 40.6 | CM117: 39.26666667 | CN117: 36.78333333
A118: 9 | B118: =IF($D118<=$B$6,STDEV(OFFSET(D118,0,2*$B$11-D118+$B$12):OFFSET(D118,0,2*$B$11-1+$B$12))/C118,"") -> 0.08437772576 | C118: =IF($D118<=$B$6,AVERAGE(OFFSET(D118,0,2*$B$11-D118+$B$12):OFFSET(D118,0,2*$B$11-1+$B$12)),"") -> 33.47777778 | D118: 9 | E118: =E7+E16+E25+E34+E43+E52+E61+E70+E79+E88+E97+E106 -> 1.9 | F118: =F7+F16+F25+F34+F43+F52+F61+F70+F79+F88+F97+F106 -> 2.9 | G118: 3.9 | H118: 4.55 | I118: 5.2 | J118: 6.2 | K118: 7.2 | L118: 6.8 | M118: 6.4 | N118: 8.55 | O118: 9.8 | P118: 11.35 | Q118: 12.55 | R118: 12.75 | S118: 13.3 | T118: 14.75 | U118: 14.8 | V118: 14.95 | W118: 17.65 | X118: 20.23333333 | Y118: 23.11666667 | Z118: 25.65 | AA118: 24.51666667 | AB118: 23.73333333 | AC118: 23.85 | AD118: 23.35 | AE118: 22.95 | AF118: 25.2 | AG118: 27.33333333 | AH118: 30.66666667 | AI118: 33.65 | AJ118: 31.96666667 | AK118: 30.63333333 | AL118: 30.5 | AM118: 29.75 | AN118: 29.75 | AO118: 32.4 | AP118: 33.53333333 | AQ118: 35.86666667 | AR118: 38.2 | AS118: 35.86666667 | AT118: 33.53333333 | AU118: 32.4 | AV118: 29.75 | AW118: 29.75 | AX118: 32.4 | AY118: 33.53333333 | AZ118: 35.86666667 | BA118: 38.2 | BB118: 35.86666667 | BC118: 33.53333333 | BD118: 32.4 | BE118: 29.75 | BF118: 29.75 | BG118: 32.4 | BH118: 33.53333333 | BI118: 35.86666667 | BJ118: 38.2 | BK118: 35.86666667 | BL118: 33.53333333 | BM118: 32.4 | BN118: 29.75 | BO118: 29.75 | BP118: 32.4 | BQ118: 33.53333333 | BR118: =BR7+BR16+BR25+BR34+BR43+BR52+BR61+BR70+BR79+BR88+BR97+BR106 -> 35.86666667 | BS118: 38.2 | BT118: 35.86666667 | BU118: 33.53333333 | BV118: 32.4 | BW118: 29.75 | BX118: 29.75 | BY118: 32.4 | BZ118: 33.53333333 | CA118: 35.86666667 | CB118: 38.2 | CC118: 35.86666667 | CD118: 33.53333333 | CE118: 32.4 | CF118: 29.75 | CG118: 29.75 | CH118: 32.4 | CI118: 33.53333333 | CJ118: 35.86666667 | CK118: 38.2 | CL118: 35.86666667 | CM118: 33.53333333 | CN118: 32.4 | CO118: 29.75
A119: 10 | B119: =IF($D119<=$B$6,STDEV(OFFSET(D119,0,2*$B$11-D119+$B$12):OFFSET(D119,0,2*$B$11-1+$B$12))/C119,"") -> 0.06929624112 | C119: =IF($D119<=$B$6,AVERAGE(OFFSET(D119,0,2*$B$11-D119+$B$12):OFFSET(D119,0,2*$B$11-1+$B$12)),"") -> 30.13 | D119: 10 | E119: =E7+E17+E27+E37+E47+E57+E67+E77+E87+E97 -> 1.9 | F119: =F7+F17+F27+F37+F47+F57+F67+F77+F87+F97 -> 2.9 | G119: 3.9 | H119: 4.55 | I119: 5.2 | J119: 6.2 | K119: 7.2 | L119: 6.8 | M119: 6.4 | N119: 6.65 | O119: 8.8 | P119: 10.35 | Q119: 11.9 | R119: 12.1 | S119: 12.3 | T119: 13.75 | U119: 15.2 | V119: 15.35 | W119: 15.5 | X119: 17.08333333 | Y119: 20.56666667 | Z119: 23.45 | AA119: 23.66666667 | AB119: 22.53333333 | AC119: 21.4 | AD119: 22.3 | AE119: 23.2 | AF119: 22.9 | AG119: 22.6 | AH119: 24.63333333 | AI119: 28.56666667 | AJ119: 30.9 | AK119: 30.56666667 | AL119: 29.18333333 | AM119: 27.8 | AN119: 29.1 | AO119: 30.4 | AP119: 29.1 | AQ119: 27.8 | AR119: 29.18333333 | AS119: 32.46666667 | AT119: 33.8 | AU119: 32.46666667 | AV119: 29.18333333 | AW119: 27.8 | AX119: 29.1 | AY119: 30.4 | AZ119: 29.1 | BA119: 27.8 | BB119: 29.18333333 | BC119: 32.46666667 | BD119: 33.8 | BE119: 32.46666667 | BF119: 29.18333333 | BG119: 27.8 | BH119: 29.1 | BI119: 30.4 | BJ119: 29.1 | BK119: 27.8 | BL119: 29.18333333 | BM119: 32.46666667 | BN119: 33.8 | BO119: 32.46666667 | BP119: 29.18333333 | BQ119: 27.8 | BR119: =BR7+BR17+BR27+BR37+BR47+BR57+BR67+BR77+BR87+BR97 -> 29.1 | BS119: 30.4 | BT119: 29.1 | BU119: 27.8 | BV119: 29.18333333 | BW119: 32.46666667 | BX119: 33.8 | BY119: 32.46666667 | BZ119: 29.18333333 | CA119: 27.8 | CB119: 29.1 | CC119: 30.4 | CD119: 29.1 | CE119: 27.8 | CF119: 29.18333333 | CG119: 32.46666667 | CH119: 33.8 | CI119: 32.46666667 | CJ119: 29.18333333 | CK119: 27.8 | CL119: 29.1 | CM119: 30.4 | CN119: 29.1 | CO119: 27.8 | CP119: 29.18333333
A120: 11 | B120: =IF($D120<=$B$6,STDEV(OFFSET(D120,0,2*$B$11-D120+$B$12):OFFSET(D120,0,2*$B$11-1+$B$12))/C120,"") -> 0.01238170968 | C120: =IF($D120<=$B$6,AVERAGE(OFFSET(D120,0,2*$B$11-D120+$B$12):OFFSET(D120,0,2*$B$11-1+$B$12)),"") -> 27.39090909 | D120: 11 | E120: =E7+E18+E29+E40+E51+E62+E73+E84+E95+E106 -> 1.9 | F120: =F7+F18+F29+F40+F51+F62+F73+F84+F95+F106 -> 2.9 | G120: 3.9 | H120: 4.55 | I120: 5.2 | J120: 6.2 | K120: 7.2 | L120: 6.8 | M120: 6.4 | N120: 6.65 | O120: 6.9 | P120: 9.35 | Q120: 10.9 | R120: 11.45 | S120: 11.65 | T120: 12.75 | U120: 14.2 | V120: 15.75 | W120: 15.9 | X120: 16.83333333 | Y120: 18.41666667 | Z120: 20 | AA120: 21.11666667 | AB120: 21.33333333 | AC120: 20.55 | AD120: 20.2 | AE120: 20.75 | AF120: 21.75 | AG120: 22.85 | AH120: 23.45 | AI120: 24.83333333 | AJ120: 25.86666667 | AK120: 26.9 | AL120: 27.76666667 | AM120: 27.73333333 | AN120: 27.35 | AO120: 27.4 | AP120: 26.95 | AQ120: 26.95 | AR120: 27.4 | AS120: 27.35 | AT120: 27.73333333 | AU120: 27.76666667 | AV120: 26.9 | AW120: 27.76666667 | AX120: 27.73333333 | AY120: 27.35 | AZ120: 27.4 | BA120: 26.95 | BB120: 26.95 | BC120: 27.4 | BD120: 27.35 | BE120: 27.73333333 | BF120: 27.76666667 | BG120: 26.9 | BH120: 27.76666667 | BI120: 27.73333333 | BJ120: 27.35 | BK120: 27.4 | BL120: 26.95 | BM120: 26.95 | BN120: 27.4 | BO120: 27.35 | BP120: 27.73333333 | BQ120: 27.76666667 | BR120: =BR7+BR18+BR29+BR40+BR51+BR62+BR73+BR84+BR95+BR106 -> 26.9 | BS120: 27.76666667 | BT120: 27.73333333 | BU120: 27.35 | BV120: 27.4 | BW120: 26.95 | BX120: 26.95 | BY120: 27.4 | BZ120: 27.35 | CA120: 27.73333333 | CB120: 27.76666667 | CC120: 26.9 | CD120: 27.76666667 | CE120: 27.73333333 | CF120: 27.35 | CG120: 27.4 | CH120: 26.95 | CI120: 26.95 | CJ120: 27.4 | CK120: 27.35 | CL120: 27.73333333 | CM120: 27.76666667 | CN120: 26.9 | CO120: 27.76666667 | CP120: 27.73333333 | CQ120: 27.35
A121: 12 | B121: =IF($D121<=$B$6,STDEV(OFFSET(D121,0,2*$B$11-D121+$B$12):OFFSET(D121,0,2*$B$11-1+$B$12))/C121,"") -> 0.03156320857 | C121: =IF($D121<=$B$6,AVERAGE(OFFSET(D121,0,2*$B$11-D121+$B$12):OFFSET(D121,0,2*$B$11-1+$B$12)),"") -> 25.10833333 | D121: 12 | E121: =E7+E19+E31+E43+E55+E67+E79+E91+E103 -> 1.9 | F121: =F7+F19+F31+F43+F55+F67+F79+F91+F103 -> 2.9 | G121: 3.9 | H121: 4.55 | I121: 5.2 | J121: 6.2 | K121: 7.2 | L121: 6.8 | M121: 6.4 | N121: 6.65 | O121: 6.9 | P121: 7.45 | Q121: 9.9 | R121: 10.45 | S121: 11 | T121: 12.1 | U121: 13.2 | V121: 14.75 | W121: 16.3 | X121: 17.23333333 | Y121: 18.16666667 | Z121: 19.75 | AA121: 18.66666667 | AB121: 17.88333333 | AC121: 19 | AD121: 19 | AE121: 19 | AF121: 19.65 | AG121: 20.3 | AH121: 22.3 | AI121: 24.3 | AJ121: 24.68333333 | AK121: 25.06666667 | AL121: 26.4 | AM121: 25.06666667 | AN121: 24.68333333 | AO121: 26.2 | AP121: 25.2 | AQ121: 24.2 | AR121: 24.2 | AS121: 24.2 | AT121: 25.2 | AU121: 26.2 | AV121: 24.68333333 | AW121: 25.06666667 | AX121: 26.4 | AY121: 25.06666667 | AZ121: 24.68333333 | BA121: 26.2 | BB121: 25.2 | BC121: 24.2 | BD121: 24.2 | BE121: 24.2 | BF121: 25.2 | BG121: 26.2 | BH121: 24.68333333 | BI121: 25.06666667 | BJ121: 26.4 | BK121: 25.06666667 | BL121: 24.68333333 | BM121: 26.2 | BN121: 25.2 | BO121: 24.2 | BP121: 24.2 | BQ121: 24.2 | BR121: =BR7+BR19+BR31+BR43+BR55+BR67+BR79+BR91+BR103 -> 25.2 | BS121: 26.2 | BT121: 24.68333333 | BU121: 25.06666667 | BV121: 26.4 | BW121: 25.06666667 | BX121: 24.68333333 | BY121: 26.2 | BZ121: 25.2 | CA121: 24.2 | CB121: 24.2 | CC121: 24.2 | CD121: 25.2 | CE121: 26.2 | CF121: 24.68333333 | CG121: 25.06666667 | CH121: 26.4 | CI121: 25.06666667 | CJ121: 24.68333333 | CK121: 26.2 | CL121: 25.2 | CM121: 24.2 | CN121: 24.2 | CO121: 24.2 | CP121: 25.2 | CQ121: 26.2 | CR121: 24.68333333
A122: 13 | B122: =IF($D122<=$B$6,STDEV(OFFSET(D122,0,2*$B$11-D122+$B$12):OFFSET(D122,0,2*$B$11-1+$B$12))/C122,"") -> 0.07110158171 | C122: =IF($D122<=$B$6,AVERAGE(OFFSET(D122,0,2*$B$11-D122+$B$12):OFFSET(D122,0,2*$B$11-1+$B$12)),"") -> 23.17692308 | D122: 13 | E122: =E7+E20+E33+E46+E59+E72+E85+E98 -> 1.9 | F122: =F7+F20+F33+F46+F59+F72+F85+F98 -> 2.9 | G122: 3.9 | H122: 4.55 | I122: 5.2 | J122: 6.2 | K122: 7.2 | L122: 6.8 | M122: 6.4 | N122: 6.65 | O122: 6.9 | P122: 7.45 | Q122: 8 | R122: 9.45 | S122: 10 | T122: 11.45 | U122: 12.55 | V122: 13.75 | W122: 15.3 | X122: 17.63333333 | Y122: 18.56666667 | Z122: 19.5 | AA122: 18.41666667 | AB122: 17.33333333 | AC122: 16.55 | AD122: 16.55 | AE122: 17.45 | AF122: 17.55 | AG122: 18.55 | AH122: 20.1 | AI122: 21.75 | AJ122: 22.75 | AK122: 24.53333333 | AL122: 25.21666667 | AM122: 25.9 | AN122: 25.21666667 | AO122: 24.53333333 | AP122: 22.75 | AQ122: 21.75 | AR122: 22 | AS122: 21.45 | AT122: 21.45 | AU122: 22 | AV122: 21.75 | AW122: 22.75 | AX122: 24.53333333 | AY122: 25.21666667 | AZ122: 25.9 | BA122: 25.21666667 | BB122: 24.53333333 | BC122: 22.75 | BD122: 21.75 | BE122: 22 | BF122: 21.45 | BG122: 21.45 | BH122: 22 | BI122: 21.75 | BJ122: 22.75 | BK122: 24.53333333 | BL122: 25.21666667 | BM122: 25.9 | BN122: 25.21666667 | BO122: 24.53333333 | BP122: 22.75 | BQ122: 21.75 | BR122: =BR7+BR20+BR33+BR46+BR59+BR72+BR85+BR98 -> 22 | BS122: 21.45 | BT122: 21.45 | BU122: 22 | BV122: 21.75 | BW122: 22.75 | BX122: 24.53333333 | BY122: 25.21666667 | BZ122: 25.9 | CA122: 25.21666667 | CB122: 24.53333333 | CC122: 22.75 | CD122: 21.75 | CE122: 22 | CF122: 21.45 | CG122: 21.45 | CH122: 22 | CI122: 21.75 | CJ122: 22.75 | CK122: 24.53333333 | CL122: 25.21666667 | CM122: 25.9 | CN122: 25.21666667 | CO122: 24.53333333 | CP122: 22.75 | CQ122: 21.75 | CR122: 22 | CS122: 21.45
A123: 14 | B123: =IF($D123<=$B$6,STDEV(OFFSET(D123,0,2*$B$11-D123+$B$12):OFFSET(D123,0,2*$B$11-1+$B$12))/C123,"") -> 0.1334000676 | C123: =IF($D123<=$B$6,AVERAGE(OFFSET(D123,0,2*$B$11-D123+$B$12):OFFSET(D123,0,2*$B$11-1+$B$12)),"") -> 21.52142857 | D123: 14 | E123: =E7+E21+E35+E49+E63+E77+E91+E105 -> 1.9 | F123: =F7+F21+F35+F49+F63+F77+F91+F105 -> 2.9 | G123: 3.9 | H123: 4.55 | I123: 5.2 | J123: 6.2 | K123: 7.2 | L123: 6.8 | M123: 6.4 | N123: 6.65 | O123: 6.9 | P123: 7.45 | Q123: 8 | R123: 7.55 | S123: 9 | T123: 10.45 | U123: 11.9 | V123: 13.1 | W123: 14.3 | X123: 16.63333333 | Y123: 18.96666667 | Z123: 19.9 | AA123: 18.16666667 | AB123: 17.08333333 | AC123: 16 | AD123: 16 | AE123: 16 | AF123: 15.1 | AG123: 16.1 | AH123: 18 | AI123: 19.9 | AJ123: 20.55 | AK123: 21.2 | AL123: 23.28333333 | AM123: 25.36666667 | AN123: 26.7 | AO123: 25.36666667 | AP123: 23.28333333 | AQ123: 21.2 | AR123: 20.55 | AS123: 19.9 | AT123: 18 | AU123: 18 | AV123: 18 | AW123: 19.9 | AX123: 20.55 | AY123: 21.2 | AZ123: 23.28333333 | BA123: 25.36666667 | BB123: 26.7 | BC123: 25.36666667 | BD123: 23.28333333 | BE123: 21.2 | BF123: 20.55 | BG123: 19.9 | BH123: 18 | BI123: 18 | BJ123: 18 | BK123: 19.9 | BL123: 20.55 | BM123: 21.2 | BN123: 23.28333333 | BO123: 25.36666667 | BP123: 26.7 | BQ123: 25.36666667 | BR123: =BR7+BR21+BR35+BR49+BR63+BR77+BR91+BR105 -> 23.28333333 | BS123: 21.2 | BT123: 20.55 | BU123: 19.9 | BV123: 18 | BW123: 18 | BX123: 18 | BY123: 19.9 | BZ123: 20.55 | CA123: 21.2 | CB123: 23.28333333 | CC123: 25.36666667 | CD123: 26.7 | CE123: 25.36666667 | CF123: 23.28333333 | CG123: 21.2 | CH123: 20.55 | CI123: 19.9 | CJ123: 18 | CK123: 18 | CL123: 18 | CM123: 19.9 | CN123: 20.55 | CO123: 21.2 | CP123: 23.28333333 | CQ123: 25.36666667 | CR123: 26.7 | CS123: 25.36666667 | CT123: 23.28333333
A124: 15 | B124: =IF($D124<=$B$6,STDEV(OFFSET(D124,0,2*$B$11-D124+$B$12):OFFSET(D124,0,2*$B$11-1+$B$12))/C124,"") -> 0.1817386111 | C124: =IF($D124<=$B$6,AVERAGE(OFFSET(D124,0,2*$B$11-D124+$B$12):OFFSET(D124,0,2*$B$11-1+$B$12)),"") -> 20.08666667 | D124: 15 | E124: =E7+E22+E37+E52+E67+E82+E97 -> 1.9 | F124: =F7+F22+F37+F52+F67+F82+F97 -> 2.9 | G124: 3.9 | H124: 4.55 | I124: 5.2 | J124: 6.2 | K124: 7.2 | L124: 6.8 | M124: 6.4 | N124: 6.65 | O124: 6.9 | P124: 7.45 | Q124: 8 | R124: 7.55 | S124: 7.1 | T124: 9.45 | U124: 10.9 | V124: 12.45 | W124: 13.65 | X124: 15.63333333 | Y124: 17.96666667 | Z124: 20.3 | AA124: 18.56666667 | AB124: 16.83333333 | AC124: 15.75 | AD124: 15.45 | AE124: 15.45 | AF124: 15.55 | AG124: 14.65 | AH124: 14.65 | AI124: 17.45 | AJ124: 18.35 | AK124: 19.35 | AL124: 20.3 | AM124: 22.03333333 | AN124: 24.76666667 | AO124: 27.5 | AP124: 24.76666667 | AQ124: 22.03333333 | AR124: 20.3 | AS124: 19.35 | AT124: 18.35 | AU124: 17.45 | AV124: 14.65 | AW124: 14.65 | AX124: 17.45 | AY124: 18.35 | AZ124: 19.35 | BA124: 20.3 | BB124: 22.03333333 | BC124: 24.76666667 | BD124: 27.5 | BE124: 24.76666667 | BF124: 22.03333333 | BG124: 20.3 | BH124: 19.35 | BI124: 18.35 | BJ124: 17.45 | BK124: 14.65 | BL124: 14.65 | BM124: 17.45 | BN124: 18.35 | BO124: 19.35 | BP124: 20.3 | BQ124: 22.03333333 | BR124: =BR7+BR22+BR37+BR52+BR67+BR82+BR97 -> 24.76666667 | BS124: 27.5 | BT124: 24.76666667 | BU124: 22.03333333 | BV124: 20.3 | BW124: 19.35 | BX124: 18.35 | BY124: 17.45 | BZ124: 14.65 | CA124: 14.65 | CB124: 17.45 | CC124: 18.35 | CD124: 19.35 | CE124: 20.3 | CF124: 22.03333333 | CG124: 24.76666667 | CH124: 27.5 | CI124: 24.76666667 | CJ124: 22.03333333 | CK124: 20.3 | CL124: 19.35 | CM124: 18.35 | CN124: 17.45 | CO124: 14.65 | CP124: 14.65 | CQ124: 17.45 | CR124: 18.35 | CS124: 19.35 | CT124: 20.3 | CU124: 22.03333333
A125: 16 | B125: =IF($D125<=$B$6,STDEV(OFFSET(D125,0,2*$B$11-D125+$B$12):OFFSET(D125,0,2*$B$11-1+$B$12))/C125,"") -> 0.193870224 | C125: =IF($D125<=$B$6,AVERAGE(OFFSET(D125,0,2*$B$11-D125+$B$12):OFFSET(D125,0,2*$B$11-1+$B$12)),"") -> 18.83125 | D125: 16 | E125: =E7+E23+E39+E55+E71+E87+E103 -> 1.9 | F125: =F7+F23+F39+F55+F71+F87+F103 -> 2.9 | G125: 3.9 | H125: 4.55 | I125: 5.2 | J125: 6.2 | K125: 7.2 | L125: 6.8 | M125: 6.4 | N125: 6.65 | O125: 6.9 | P125: 7.45 | Q125: 8 | R125: 7.55 | S125: 7.1 | T125: 7.55 | U125: 9.9 | V125: 11.45 | W125: 13 | X125: 14.98333333 | Y125: 16.96666667 | Z125: 19.3 | AA125: 18.96666667 | AB125: 17.23333333 | AC125: 15.5 | AD125: 15.2 | AE125: 14.9 | AF125: 15 | AG125: 15.1 | AH125: 15.1 | AI125: 15.1 | AJ125: 15 | AK125: 16.8 | AL125: 18.1 | AM125: 19.4 | AN125: 21.78333333 | AO125: 24.16666667 | AP125: 25.5 | AQ125: 24.16666667 | AR125: 21.78333333 | AS125: 19.4 | AT125: 18.1 | AU125: 16.8 | AV125: 15 | AW125: 15.1 | AX125: 15.1 | AY125: 15.1 | AZ125: 15 | BA125: 16.8 | BB125: 18.1 | BC125: 19.4 | BD125: 21.78333333 | BE125: 24.16666667 | BF125: 25.5 | BG125: 24.16666667 | BH125: 21.78333333 | BI125: 19.4 | BJ125: 18.1 | BK125: 16.8 | BL125: 15 | BM125: 15.1 | BN125: 15.1 | BO125: 15.1 | BP125: 15 | BQ125: 16.8 | BR125: =BR7+BR23+BR39+BR55+BR71+BR87+BR103 -> 18.1 | BS125: 19.4 | BT125: 21.78333333 | BU125: 24.16666667 | BV125: 25.5 | BW125: 24.16666667 | BX125: 21.78333333 | BY125: 19.4 | BZ125: 18.1 | CA125: 16.8 | CB125: 15 | CC125: 15.1 | CD125: 15.1 | CE125: 15.1 | CF125: 15 | CG125: 16.8 | CH125: 18.1 | CI125: 19.4 | CJ125: 21.78333333 | CK125: 24.16666667 | CL125: 25.5 | CM125: 24.16666667 | CN125: 21.78333333 | CO125: 19.4 | CP125: 18.1 | CQ125: 16.8 | CR125: 15 | CS125: 15.1 | CT125: 15.1 | CU125: 15.1 | CV125: 15
A126: 17 | B126: =IF($D126<=$B$6,STDEV(OFFSET(D126,0,2*$B$11-D126+$B$12):OFFSET(D126,0,2*$B$11-1+$B$12))/C126,"") -> 0.1903490758 | C126: =IF($D126<=$B$6,AVERAGE(OFFSET(D126,0,2*$B$11-D126+$B$12):OFFSET(D126,0,2*$B$11-1+$B$12)),"") -> 17.72352941 | D126: 17 | E126: =E7+E24+E41+E58+E75+E92 -> 1.9 | F126: =F7+F24+F41+F58+F75+F92 -> 2.9 | G126: 3.9 | H126: 4.55 | I126: 5.2 | J126: 6.2 | K126: 7.2 | L126: 6.8 | M126: 6.4 | N126: 6.65 | O126: 6.9 | P126: 7.45 | Q126: 8 | R126: 7.55 | S126: 7.1 | T126: 7.55 | U126: 8 | V126: 10.45 | W126: 12 | X126: 14.33333333 | Y126: 16.31666667 | Z126: 18.3 | AA126: 17.96666667 | AB126: 17.63333333 | AC126: 15.9 | AD126: 14.95 | AE126: 14.65 | AF126: 14.45 | AG126: 14.55 | AH126: 15.55 | AI126: 15.55 | AJ126: 14.55 | AK126: 14.45 | AL126: 14.65 | AM126: 16.85 | AN126: 18.8 | AO126: 21.53333333 | AP126: 22.51666667 | AQ126: 23.5 | AR126: 22.51666667 | AS126: 21.53333333 | AT126: 18.8 | AU126: 16.85 | AV126: 14.65 | AW126: 14.45 | AX126: 14.55 | AY126: 15.55 | AZ126: 15.55 | BA126: 14.55 | BB126: 14.45 | BC126: 14.65 | BD126: 16.85 | BE126: 18.8 | BF126: 21.53333333 | BG126: 22.51666667 | BH126: 23.5 | BI126: 22.51666667 | BJ126: 21.53333333 | BK126: 18.8 | BL126: 16.85 | BM126: 14.65 | BN126: 14.45 | BO126: 14.55 | BP126: 15.55 | BQ126: 15.55 | BR126: =BR7+BR24+BR41+BR58+BR75+BR92 -> 14.55 | BS126: 14.45 | BT126: 14.65 | BU126: 16.85 | BV126: 18.8 | BW126: 21.53333333 | BX126: 22.51666667 | BY126: 23.5 | BZ126: 22.51666667 | CA126: 21.53333333 | CB126: 18.8 | CC126: 16.85 | CD126: 14.65 | CE126: 14.45 | CF126: 14.55 | CG126: 15.55 | CH126: 15.55 | CI126: 14.55 | CJ126: 14.45 | CK126: 14.65 | CL126: 16.85 | CM126: 18.8 | CN126: 21.53333333 | CO126: 22.51666667 | CP126: 23.5 | CQ126: 22.51666667 | CR126: 21.53333333 | CS126: 18.8 | CT126: 16.85 | CU126: 14.65 | CV126: 14.45 | CW126: 14.55
A127: 18 | B127: =IF($D127<=$B$6,STDEV(OFFSET(D127,0,2*$B$11-D127+$B$12):OFFSET(D127,0,2*$B$11-1+$B$12))/C127,"") -> 0.1671467962 | C127: =IF($D127<=$B$6,AVERAGE(OFFSET(D127,0,2*$B$11-D127+$B$12):OFFSET(D127,0,2*$B$11-1+$B$12)),"") -> 16.73888889 | D127: 18 | E127: =E7+E25+E43+E61+E79+E97 -> 1.9 | F127: =F7+F25+F43+F61+F79+F97 -> 2.9 | G127: 3.9 | H127: 4.55 | I127: 5.2 | J127: 6.2 | K127: 7.2 | L127: 6.8 | M127: 6.4 | N127: 6.65 | O127: 6.9 | P127: 7.45 | Q127: 8 | R127: 7.55 | S127: 7.1 | T127: 7.55 | U127: 8 | V127: 8.55 | W127: 11 | X127: 13.33333333 | Y127: 15.66666667 | Z127: 17.65 | AA127: 16.96666667 | AB127: 16.63333333 | AC127: 16.3 | AD127: 15.35 | AE127: 14.4 | AF127: 14.2 | AG127: 14 | AH127: 15 | AI127: 16 | AJ127: 15 | AK127: 14 | AL127: 14.2 | AM127: 14.4 | AN127: 15.35 | AO127: 18.2 | AP127: 19.53333333 | AQ127: 20.86666667 | AR127: 22.2 | AS127: 20.86666667 | AT127: 19.53333333 | AU127: 18.2 | AV127: 15.35 | AW127: 14.4 | AX127: 14.2 | AY127: 14 | AZ127: 15 | BA127: 16 | BB127: 15 | BC127: 14 | BD127: 14.2 | BE127: 14.4 | BF127: 15.35 | BG127: 18.2 | BH127: 19.53333333 | BI127: 20.86666667 | BJ127: 22.2 | BK127: 20.86666667 | BL127: 19.53333333 | BM127: 18.2 | BN127: 15.35 | BO127: 14.4 | BP127: 14.2 | BQ127: 14 | BR127: =BR7+BR25+BR43+BR61+BR79+BR97 -> 15 | BS127: 16 | BT127: 15 | BU127: 14 | BV127: 14.2 | BW127: 14.4 | BX127: 15.35 | BY127: 18.2 | BZ127: 19.53333333 | CA127: 20.86666667 | CB127: 22.2 | CC127: 20.86666667 | CD127: 19.53333333 | CE127: 18.2 | CF127: 15.35 | CG127: 14.4 | CH127: 14.2 | CI127: 14 | CJ127: 15 | CK127: 16 | CL127: 15 | CM127: 14 | CN127: 14.2 | CO127: 14.4 | CP127: =CP7+CP25+CP43+CP61+CP79+CP97 -> 15.35 | CQ127: 18.2 | CR127: 19.53333333 | CS127: 20.86666667 | CT127: 22.2 | CU127: 20.86666667 | CV127: 19.53333333 | CW127: 18.2 | CX127: 15.35
A128: 19 | B128: =IF($D128<=$B$6,STDEV(OFFSET(D128,0,2*$B$11-D128+$B$12):OFFSET(D128,0,2*$B$11-1+$B$12))/C128,"") -> 0.1303812882 | C128: =IF($D128<=$B$6,AVERAGE(OFFSET(D128,0,2*$B$11-D128+$B$12):OFFSET(D128,0,2*$B$11-1+$B$12)),"") -> 15.85789474 | D128: 19 | E128: =E7+E26+E45+E64+E83+E102 -> 1.9 | F128: =F7+F26+F45+F64+F83+F102 -> 2.9 | G128: 3.9 | H128: 4.55 | I128: 5.2 | J128: 6.2 | K128: 7.2 | L128: 6.8 | M128: 6.4 | N128: 6.65 | O128: 6.9 | P128: 7.45 | Q128: 8 | R128: 7.55 | S128: 7.1 | T128: 7.55 | U128: 8 | V128: 8.55 | W128: 9.1 | X128: 12.33333333 | Y128: 14.66666667 | Z128: 17 | AA128: 16.31666667 | AB128: 15.63333333 | AC128: 15.3 | AD128: 15.75 | AE128: 14.8 | AF128: 13.95 | AG128: 13.75 | AH128: 14.45 | AI128: 15.45 | AJ128: 15.45 | AK128: 14.45 | AL128: 13.75 | AM128: 13.95 | AN128: 14.8 | AO128: 15.75 | AP128: 15.3 | AQ128: 17.53333333 | AR128: 19.21666667 | AS128: 20.9 | AT128: 19.21666667 | AU128: 17.53333333 | AV128: 15.3 | AW128: 15.75 | AX128: 14.8 | AY128: 13.95 | AZ128: 13.75 | BA128: 14.45 | BB128: 15.45 | BC128: 15.45 | BD128: 14.45 | BE128: 13.75 | BF128: 13.95 | BG128: 14.8 | BH128: 15.75 | BI128: 15.3 | BJ128: 17.53333333 | BK128: 19.21666667 | BL128: 20.9 | BM128: 19.21666667 | BN128: 17.53333333 | BO128: 15.3 | BP128: 15.75 | BQ128: 14.8 | BR128: =BR7+BR26+BR45+BR64+BR83+BR102 -> 13.95 | BS128: 13.75 | BT128: 14.45 | BU128: 15.45 | BV128: 15.45 | BW128: 14.45 | BX128: 13.75 | BY128: 13.95 | BZ128: 14.8 | CA128: 15.75 | CB128: 15.3 | CC128: 17.53333333 | CD128: 19.21666667 | CE128: 20.9 | CF128: 19.21666667 | CG128: 17.53333333 | CH128: 15.3 | CI128: 15.75 | CJ128: 14.8 | CK128: 13.95 | CL128: 13.75 | CM128: 14.45 | CN128: 15.45 | CO128: 15.45 | CP128: 14.45 | CQ128: 13.75 | CR128: 13.95 | CS128: 14.8 | CT128: 15.75 | CU128: 15.3 | CV128: 17.53333333 | CW128: 19.21666667 | CX128: 20.9 | CY128: 19.21666667
A129: 20 | B129: =IF($D129<=$B$6,STDEV(OFFSET(D129,0,2*$B$11-D129+$B$12):OFFSET(D129,0,2*$B$11-1+$B$12))/C129,"") -> 0.09154988809 | C129: =IF($D129<=$B$6,AVERAGE(OFFSET(D129,0,2*$B$11-D129+$B$12):OFFSET(D129,0,2*$B$11-1+$B$12)),"") -> 15.065 | D129: 20 | E129: =E7+E27+E47+E67+E87 -> 1.9 | F129: =F7+F27+F47+F67+F87 -> 2.9 | G129: 3.9 | H129: 4.55 | I129: 5.2 | J129: 6.2 | K129: 7.2 | L129: 6.8 | M129: 6.4 | N129: 6.65 | O129: 6.9 | P129: 7.45 | Q129: 8 | R129: 7.55 | S129: 7.1 | T129: 7.55 | U129: 8 | V129: 8.55 | W129: 9.1 | X129: 10.43333333 | Y129: 13.66666667 | Z129: 16 | AA129: 15.66666667 | AB129: 14.98333333 | AC129: 14.3 | AD129: 14.75 | AE129: 15.2 | AF129: 14.35 | AG129: 13.5 | AH129: 14.2 | AI129: 14.9 | AJ129: 14.9 | AK129: 14.9 | AL129: 14.2 | AM129: 13.5 | AN129: 14.35 | AO129: 15.2 | AP129: 14.75 | AQ129: 14.3 | AR129: 14.98333333 | AS129: 17.56666667 | AT129: 18.9 | AU129: 17.56666667 | AV129: 14.98333333 | AW129: 14.3 | AX129: 14.75 | AY129: 15.2 | AZ129: 14.35 | BA129: 13.5 | BB129: 14.2 | BC129: 14.9 | BD129: 14.9 | BE129: 14.9 | BF129: 14.2 | BG129: 13.5 | BH129: 14.35 | BI129: 15.2 | BJ129: 14.75 | BK129: 14.3 | BL129: 14.98333333 | BM129: 17.56666667 | BN129: 18.9 | BO129: 17.56666667 | BP129: 14.98333333 | BQ129: 14.3 | BR129: =BR7+BR27+BR47+BR67+BR87 -> 14.75 | BS129: 15.2 | BT129: 14.35 | BU129: 13.5 | BV129: 14.2 | BW129: 14.9 | BX129: 14.9 | BY129: 14.9 | BZ129: 14.2 | CA129: 13.5 | CB129: 14.35 | CC129: 15.2 | CD129: 14.75 | CE129: 14.3 | CF129: 14.98333333 | CG129: 17.56666667 | CH129: 18.9 | CI129: 17.56666667 | CJ129: 14.98333333 | CK129: 14.3 | CL129: 14.75 | CM129: 15.2 | CN129: 14.35 | CO129: 13.5 | CP129: 14.2 | CQ129: 14.9 | CR129: 14.9 | CS129: 14.9 | CT129: 14.2 | CU129: 13.5 | CV129: 14.35 | CW129: 15.2 | CX129: 14.75 | CY129: 14.3 | CZ129: 14.98333333
A130: 21 | B130: =IF($D130<=$B$6,STDEV(OFFSET(D130,0,2*$B$11-D130+$B$12):OFFSET(D130,0,2*$B$11-1+$B$12))/C130,"") -> 0.04847265467 | C130: =IF($D130<=$B$6,AVERAGE(OFFSET(D130,0,2*$B$11-D130+$B$12):OFFSET(D130,0,2*$B$11-1+$B$12)),"") -> 14.34761905 | D130: 21 | E130: =E7+E28+E49+E70+E91 -> 1.9 | F130: =F7+F28+F49+F70+F91 -> 2.9 | G130: 3.9 | H130: 4.55 | I130: 5.2 | J130: 6.2 | K130: 7.2 | L130: 6.8 | M130: 6.4 | N130: 6.65 | O130: 6.9 | P130: 7.45 | Q130: 8 | R130: 7.55 | S130: 7.1 | T130: 7.55 | U130: 8 | V130: 8.55 | W130: 9.1 | X130: 10.43333333 | Y130: 11.76666667 | Z130: 15 | AA130: 14.66666667 | AB130: 14.33333333 | AC130: 13.65 | AD130: 13.75 | AE130: 14.2 | AF130: 14.75 | AG130: 13.9 | AH130: 13.95 | AI130: 14.65 | AJ130: 14.35 | AK130: 14.35 | AL130: 14.65 | AM130: 13.95 | AN130: 13.9 | AO130: 14.75 | AP130: 14.2 | AQ130: 13.75 | AR130: 13.65 | AS130: 14.33333333 | AT130: 14.66666667 | AU130: 16.9 | AV130: 14.66666667 | AW130: 14.33333333 | AX130: 13.65 | AY130: 13.75 | AZ130: 14.2 | BA130: 14.75 | BB130: 13.9 | BC130: 13.95 | BD130: 14.65 | BE130: 14.35 | BF130: 14.35 | BG130: 14.65 | BH130: 13.95 | BI130: 13.9 | BJ130: 14.75 | BK130: 14.2 | BL130: 13.75 | BM130: 13.65 | BN130: 14.33333333 | BO130: 14.66666667 | BP130: 16.9 | BQ130: 14.66666667 | BR130: =BR7+BR28+BR49+BR70+BR91 -> 14.33333333 | BS130: 13.65 | BT130: 13.75 | BU130: 14.2 | BV130: 14.75 | BW130: 13.9 | BX130: 13.95 | BY130: 14.65 | BZ130: 14.35 | CA130: 14.35 | CB130: 14.65 | CC130: 13.95 | CD130: 13.9 | CE130: 14.75 | CF130: 14.2 | CG130: 13.75 | CH130: 13.65 | CI130: 14.33333333 | CJ130: 14.66666667 | CK130: 16.9 | CL130: 14.66666667 | CM130: 14.33333333 | CN130: 13.65 | CO130: 13.75 | CP130: 14.2 | CQ130: 14.75 | CR130: 13.9 | CS130: 13.95 | CT130: 14.65 | CU130: 14.35 | CV130: 14.35 | CW130: 14.65 | CX130: 13.95 | CY130: 13.9 | CZ130: 14.75 | DA130: 14.2
A131: 22 | B131: =IF($D131<=$B$6,STDEV(OFFSET(D131,0,2*$B$11-D131+$B$12):OFFSET(D131,0,2*$B$11-1+$B$12))/C131,"") -> 0.03807649142 | C131: =IF($D131<=$B$6,AVERAGE(OFFSET(D131,0,2*$B$11-D131+$B$12):OFFSET(D131,0,2*$B$11-1+$B$12)),"") -> 13.69545455 | D131: 22 | E131: =E7+E29+E51+E73+E95 -> 1.9 | F131: =F7+F29+F51+F73+F95 -> 2.9 | G131: 3.9 | H131: 4.55 | I131: 5.2 | J131: 6.2 | K131: 7.2 | L131: 6.8 | M131: 6.4 | N131: 6.65 | O131: 6.9 | P131: 7.45 | Q131: 8 | R131: 7.55 | S131: 7.1 | T131: 7.55 | U131: 8 | V131: 8.55 | W131: 9.1 | X131: 10.43333333 | Y131: 11.76666667 | Z131: 13.1 | AA131: 13.66666667 | AB131: 13.33333333 | AC131: 13 | AD131: 13.1 | AE131: 13.2 | AF131: 13.75 | AG131: 14.3 | AH131: 14.35 | AI131: 14.4 | AJ131: 14.1 | AK131: 13.8 | AL131: 14.1 | AM131: 14.4 | AN131: 14.35 | AO131: 14.3 | AP131: 13.75 | AQ131: 13.2 | AR131: 13.1 | AS131: 13 | AT131: 13.33333333 | AU131: 13.66666667 | AV131: 13.1 | AW131: 13.66666667 | AX131: 13.33333333 | AY131: 13 | AZ131: 13.1 | BA131: 13.2 | BB131: 13.75 | BC131: 14.3 | BD131: 14.35 | BE131: 14.4 | BF131: 14.1 | BG131: 13.8 | BH131: 14.1 | BI131: 14.4 | BJ131: 14.35 | BK131: 14.3 | BL131: 13.75 | BM131: 13.2 | BN131: 13.1 | BO131: 13 | BP131: 13.33333333 | BQ131: 13.66666667 | BR131: =BR7+BR29+BR51+BR73+BR95 -> 13.1 | BS131: 13.66666667 | BT131: 13.33333333 | BU131: 13 | BV131: 13.1 | BW131: 13.2 | BX131: 13.75 | BY131: 14.3 | BZ131: 14.35 | CA131: 14.4 | CB131: 14.1 | CC131: 13.8 | CD131: 14.1 | CE131: 14.4 | CF131: 14.35 | CG131: 14.3 | CH131: 13.75 | CI131: 13.2 | CJ131: 13.1 | CK131: 13 | CL131: 13.33333333 | CM131: 13.66666667 | CN131: 13.1 | CO131: 13.66666667 | CP131: 13.33333333 | CQ131: 13 | CR131: 13.1 | CS131: 13.2 | CT131: 13.75 | CU131: 14.3 | CV131: 14.35 | CW131: 14.4 | CX131: 14.1 | CY131: 13.8 | CZ131: 14.1 | DA131: 14.4 | DB131: 14.35
A132: 23 | B132: =IF($D132<=$B$6,STDEV(OFFSET(D132,0,2*$B$11-D132+$B$12):OFFSET(D132,0,2*$B$11-1+$B$12))/C132,"") -> 0.07578061605 | C132: =IF($D132<=$B$6,AVERAGE(OFFSET(D132,0,2*$B$11-D132+$B$12):OFFSET(D132,0,2*$B$11-1+$B$12)),"") -> 13.1 | D132: 23 | E132: =E7+E30+E53+E76+E99 -> 1.9 | F132: =F7+F30+F53+F76+F99 -> 2.9 | G132: 3.9 | H132: 4.55 | I132: 5.2 | J132: 6.2 | K132: 7.2 | L132: 6.8 | M132: 6.4 | N132: 6.65 | O132: 6.9 | P132: 7.45 | Q132: 8 | R132: 7.55 | S132: 7.1 | T132: 7.55 | U132: 8 | V132: 8.55 | W132: 9.1 | X132: 10.43333333 | Y132: 11.76666667 | Z132: 13.1 | AA132: 11.76666667 | AB132: 12.33333333 | AC132: 12 | AD132: 12.45 | AE132: 12.55 | AF132: 12.75 | AG132: 13.3 | AH132: 14.75 | AI132: 14.8 | AJ132: 13.85 | AK132: 13.55 | AL132: 13.55 | AM132: 13.85 | AN132: 14.8 | AO132: 14.75 | AP132: 13.3 | AQ132: 12.75 | AR132: 12.55 | AS132: 12.45 | AT132: 12 | AU132: 12.33333333 | AV132: 11.76666667 | AW132: 13.1 | AX132: 11.76666667 | AY132: 12.33333333 | AZ132: 12 | BA132: 12.45 | BB132: 12.55 | BC132: 12.75 | BD132: 13.3 | BE132: 14.75 | BF132: 14.8 | BG132: 13.85 | BH132: 13.55 | BI132: 13.55 | BJ132: 13.85 | BK132: 14.8 | BL132: 14.75 | BM132: 13.3 | BN132: 12.75 | BO132: 12.55 | BP132: 12.45 | BQ132: 12 | BR132: =BR7+BR30+BR53+BR76+BR99 -> 12.33333333 | BS132: 11.76666667 | BT132: 13.1 | BU132: 11.76666667 | BV132: 12.33333333 | BW132: 12 | BX132: 12.45 | BY132: 12.55 | BZ132: 12.75 | CA132: 13.3 | CB132: 14.75 | CC132: 14.8 | CD132: 13.85 | CE132: 13.55 | CF132: 13.55 | CG132: 13.85 | CH132: 14.8 | CI132: 14.75 | CJ132: 13.3 | CK132: 12.75 | CL132: 12.55 | CM132: 12.45 | CN132: 12 | CO132: 12.33333333 | CP132: 11.76666667 | CQ132: 13.1 | CR132: 11.76666667 | CS132: 12.33333333 | CT132: 12 | CU132: 12.45 | CV132: 12.55 | CW132: 12.75 | CX132: 13.3 | CY132: 14.75 | CZ132: 14.8 | DA132: 13.85 | DB132: 13.55 | DC132: 13.55
A133: 24 | B133: =IF($D133<=$B$6,STDEV(OFFSET(D133,0,2*$B$11-D133+$B$12):OFFSET(D133,0,2*$B$11-1+$B$12))/C133,"") -> 0.1095228537 | C133: =IF($D133<=$B$6,AVERAGE(OFFSET(D133,0,2*$B$11-D133+$B$12):OFFSET(D133,0,2*$B$11-1+$B$12)),"") -> 12.55416667 | D133: 24 | E133: =E7+E31+E55+E79+E103 -> 1.9 | F133: =F7+F31+F55+F79+F103 -> 2.9 | G133: 3.9 | H133: 4.55 | I133: 5.2 | J133: 6.2 | K133: 7.2 | L133: 6.8 | M133: 6.4 | N133: 6.65 | O133: 6.9 | P133: 7.45 | Q133: 8 | R133: 7.55 | S133: 7.1 | T133: 7.55 | U133: 8 | V133: 8.55 | W133: 9.1 | X133: 10.43333333 | Y133: 11.76666667 | Z133: 13.1 | AA133: 11.76666667 | AB133: 10.43333333 | AC133: 11 | AD133: 11.45 | AE133: 11.9 | AF133: 12.1 | AG133: 12.3 | AH133: 13.75 | AI133: 15.2 | AJ133: 14.25 | AK133: 13.3 | AL133: 13.3 | AM133: 13.3 | AN133: 14.25 | AO133: 15.2 | AP133: 13.75 | AQ133: 12.3 | AR133: 12.1 | AS133: 11.9 | AT133: 11.45 | AU133: 11 | AV133: 10.43333333 | AW133: 11.76666667 | AX133: 13.1 | AY133: 11.76666667 | AZ133: 10.43333333 | BA133: 11 | BB133: 11.45 | BC133: 11.9 | BD133: 12.1 | BE133: 12.3 | BF133: 13.75 | BG133: 15.2 | BH133: 14.25 | BI133: 13.3 | BJ133: 13.3 | BK133: 13.3 | BL133: 14.25 | BM133: 15.2 | BN133: 13.75 | BO133: 12.3 | BP133: 12.1 | BQ133: 11.9 | BR133: =BR7+BR31+BR55+BR79+BR103 -> 11.45 | BS133: 11 | BT133: 10.43333333 | BU133: 11.76666667 | BV133: 13.1 | BW133: 11.76666667 | BX133: 10.43333333 | BY133: 11 | BZ133: 11.45 | CA133: 11.9 | CB133: 12.1 | CC133: 12.3 | CD133: 13.75 | CE133: 15.2 | CF133: 14.25 | CG133: 13.3 | CH133: 13.3 | CI133: 13.3 | CJ133: 14.25 | CK133: 15.2 | CL133: 13.75 | CM133: 12.3 | CN133: 12.1 | CO133: 11.9 | CP133: 11.45 | CQ133: 11 | CR133: 10.43333333 | CS133: 11.76666667 | CT133: 13.1 | CU133: 11.76666667 | CV133: 10.43333333 | CW133: 11 | CX133: 11.45 | CY133: 11.9 | CZ133: 12.1 | DA133: 12.3 | DB133: 13.75 | DC133: 15.2 | DD133: 14.25
A134: 25 | B134: =IF($D134<=$B$6,STDEV(OFFSET(D134,0,2*$B$11-D134+$B$12):OFFSET(D134,0,2*$B$11-1+$B$12))/C134,"") -> 0.1353793125 | C134: =IF($D134<=$B$6,AVERAGE(OFFSET(D134,0,2*$B$11-D134+$B$12):OFFSET(D134,0,2*$B$11-1+$B$12)),"") -> 12.052 | D134: 25 | E134: =E7+E32+E57+E82 -> 1.9 | F134: =F7+F32+F57+F82 -> 2.9 | G134: 3.9 | H134: 4.55 | I134: 5.2 | J134: 6.2 | K134: 7.2 | L134: 6.8 | M134: 6.4 | N134: 6.65 | O134: 6.9 | P134: 7.45 | Q134: 8 | R134: 7.55 | S134: 7.1 | T134: 7.55 | U134: 8 | V134: 8.55 | W134: 9.1 | X134: 10.43333333 | Y134: 11.76666667 | Z134: 13.1 | AA134: 11.76666667 | AB134: 10.43333333 | AC134: 9.1 | AD134: 10.45 | AE134: 10.9 | AF134: 11.45 | AG134: 11.65 | AH134: 12.75 | AI134: 14.2 | AJ134: 14.65 | AK134: 13.7 | AL134: 13.05 | AM134: 13.05 | AN134: 13.7 | AO134: 14.65 | AP134: 14.2 | AQ134: 12.75 | AR134: 11.65 | AS134: 11.45 | AT134: 10.9 | AU134: 10.45 | AV134: 9.1 | AW134: 10.43333333 | AX134: 11.76666667 | AY134: 13.1 | AZ134: 11.76666667 | BA134: 10.43333333 | BB134: 9.1 | BC134: 10.45 | BD134: 10.9 | BE134: 11.45 | BF134: 11.65 | BG134: 12.75 | BH134: 14.2 | BI134: 14.65 | BJ134: 13.7 | BK134: 13.05 | BL134: 13.05 | BM134: 13.7 | BN134: 14.65 | BO134: 14.2 | BP134: 12.75 | BQ134: 11.65 | BR134: =BR7+BR32+BR57+BR82 -> 11.45 | BS134: 10.9 | BT134: 10.45 | BU134: 9.1 | BV134: 10.43333333 | BW134: 11.76666667 | BX134: 13.1 | BY134: 11.76666667 | BZ134: 10.43333333 | CA134: 9.1 | CB134: 10.45 | CC134: 10.9 | CD134: 11.45 | CE134: 11.65 | CF134: 12.75 | CG134: 14.2 | CH134: 14.65 | CI134: 13.7 | CJ134: 13.05 | CK134: 13.05 | CL134: 13.7 | CM134: 14.65 | CN134: 14.2 | CO134: 12.75 | CP134: 11.65 | CQ134: 11.45 | CR134: 10.9 | CS134: 10.45 | CT134: 9.1 | CU134: 10.43333333 | CV134: 11.76666667 | CW134: 13.1 | CX134: 11.76666667 | CY134: 10.43333333 | CZ134: 9.1 | DA134: 8.55 | DB134: 8 | DC134: 7.55 | DD134: 7.1 | DE134: 7.55
A135: 26 | B135: =IF($D135<=$B$6,STDEV(OFFSET(D135,0,2*$B$11-D135+$B$12):OFFSET(D135,0,2*$B$11-1+$B$12))/C135,"") -> 0.1544464562 | C135: =IF($D135<=$B$6,AVERAGE(OFFSET(D135,0,2*$B$11-D135+$B$12):OFFSET(D135,0,2*$B$11-1+$B$12)),"") -> 11.58846154 | D135: 26 | E135: =E7+E33+E59+E85 -> 1.9 | F135: =F7+F33+F59+F85 -> 2.9 | G135: 3.9 | H135: 4.55 | I135: 5.2 | J135: 6.2 | K135: 7.2 | L135: 6.8 | M135: 6.4 | N135: 6.65 | O135: 6.9 | P135: 7.45 | Q135: 8 | R135: 7.55 | S135: 7.1 | T135: 7.55 | U135: 8 | V135: 8.55 | W135: 9.1 | X135: 10.43333333 | Y135: 11.76666667 | Z135: 13.1 | AA135: 11.76666667 | AB135: 10.43333333 | AC135: 9.1 | AD135: 8.55 | AE135: 9.9 | AF135: 10.45 | AG135: 11 | AH135: 12.1 | AI135: 13.2 | AJ135: 13.65 | AK135: 14.1 | AL135: 13.45 | AM135: 12.8 | AN135: 13.45 | AO135: 14.1 | AP135: 13.65 | AQ135: 13.2 | AR135: 12.1 | AS135: 11 | AT135: 10.45 | AU135: 9.9 | AV135: 8.55 | AW135: 9.1 | AX135: 10.43333333 | AY135: 11.76666667 | AZ135: 13.1 | BA135: 11.76666667 | BB135: 10.43333333 | BC135: 9.1 | BD135: 8.55 | BE135: 9.9 | BF135: 10.45 | BG135: 11 | BH135: 12.1 | BI135: 13.2 | BJ135: 13.65 | BK135: 14.1 | BL135: 13.45 | BM135: 12.8 | BN135: 13.45 | BO135: 14.1 | BP135: 13.65 | BQ135: 13.2 | BR135: =BR7+BR33+BR59+BR85 -> 12.1 | BS135: 11 | BT135: 10.45 | BU135: 9.9 | BV135: 8.55 | BW135: 9.1 | BX135: 10.43333333 | BY135: 11.76666667 | BZ135: 13.1 | CA135: 11.76666667 | CB135: 10.43333333 | CC135: 9.1 | CD135: 8.55 | CE135: 9.9 | CF135: 10.45 | CG135: 11 | CH135: 12.1 | CI135: 13.2 | CJ135: 13.65 | CK135: 14.1 | CL135: 13.45 | CM135: 12.8 | CN135: 13.45 | CO135: 14.1 | CP135: 13.65 | CQ135: 13.2 | CR135: 12.1 | CS135: 11 | CT135: 10.45 | CU135: 9.9 | CV135: 8.55 | CW135: 9.1 | CX135: 10.43333333 | CY135: 11.76666667 | CZ135: 13.1 | DA135: 11.76666667 | DB135: 10.43333333 | DC135: 9.1 | DD135: 8.55 | DE135: 8 | DF135: 7.55
A136: 27 | B136: =IF($D136<=$B$6,STDEV(OFFSET(D136,0,2*$B$11-D136+$B$12):OFFSET(D136,0,2*$B$11-1+$B$12))/C136,"") -> 0.1712686806 | C136: =IF($D136<=$B$6,AVERAGE(OFFSET(D136,0,2*$B$11-D136+$B$12):OFFSET(D136,0,2*$B$11-1+$B$12)),"") -> 11.15925926 | D136: 27 | E136: =E7+E34+E61+E88 -> 1.9 | F136: =F7+F34+F61+F88 -> 2.9 | G136: 3.9 | H136: 4.55 | I136: 5.2 | J136: 6.2 | K136: 7.2 | L136: 6.8 | M136: 6.4 | N136: 6.65 | O136: 6.9 | P136: 7.45 | Q136: 8 | R136: 7.55 | S136: 7.1 | T136: 7.55 | U136: 8 | V136: 8.55 | W136: 9.1 | X136: 10.43333333 | Y136: 11.76666667 | Z136: 13.1 | AA136: 11.76666667 | AB136: 10.43333333 | AC136: 9.1 | AD136: 8.55 | AE136: 8 | AF136: 9.45 | AG136: 10 | AH136: 11.45 | AI136: 12.55 | AJ136: 12.65 | AK136: 13.1 | AL136: 13.85 | AM136: 13.2 | AN136: 13.2 | AO136: 13.85 | AP136: 13.1 | AQ136: 12.65 | AR136: 12.55 | AS136: 11.45 | AT136: 10 | AU136: 9.45 | AV136: 8 | AW136: 8.55 | AX136: 9.1 | AY136: 10.43333333 | AZ136: 11.76666667 | BA136: 13.1 | BB136: 11.76666667 | BC136: 10.43333333 | BD136: 9.1 | BE136: 8.55 | BF136: 8 | BG136: 9.45 | BH136: 10 | BI136: 11.45 | BJ136: 12.55 | BK136: 12.65 | BL136: 13.1 | BM136: 13.85 | BN136: 13.2 | BO136: 13.2 | BP136: 13.85 | BQ136: 13.1 | BR136: =BR7+BR34+BR61+BR88 -> 12.65 | BS136: 12.55 | BT136: 11.45 | BU136: 10 | BV136: 9.45 | BW136: 8 | BX136: 8.55 | BY136: 9.1 | BZ136: 10.43333333 | CA136: 11.76666667 | CB136: 13.1 | CC136: 11.76666667 | CD136: 10.43333333 | CE136: 9.1 | CF136: 8.55 | CG136: 8 | CH136: 9.45 | CI136: 10 | CJ136: 11.45 | CK136: 12.55 | CL136: 12.65 | CM136: 13.1 | CN136: 13.85 | CO136: 13.2 | CP136: 13.2 | CQ136: 13.85 | CR136: 13.1 | CS136: 12.65 | CT136: 12.55 | CU136: 11.45 | CV136: 10 | CW136: 9.45 | CX136: 8 | CY136: 8.55 | CZ136: 9.1 | DA136: 10.43333333 | DB136: 11.76666667 | DC136: 13.1 | DD136: 11.76666667 | DE136: 10.43333333 | DF136: 9.1 | DG136: 8.55
A137: 28 | B137: =IF($D137<=$B$6,STDEV(OFFSET(D137,0,2*$B$11-D137+$B$12):OFFSET(D137,0,2*$B$11-1+$B$12))/C137,"") -> 0.1853654613 | C137: =IF($D137<=$B$6,AVERAGE(OFFSET(D137,0,2*$B$11-D137+$B$12):OFFSET(D137,0,2*$B$11-1+$B$12)),"") -> 10.76071429 | D137: 28 | E137: =E7+E35+E63+E91 -> 1.9 | F137: =F7+F35+F63+F91 -> 2.9 | G137: 3.9 | H137: 4.55 | I137: 5.2 | J137: 6.2 | K137: 7.2 | L137: 6.8 | M137: 6.4 | N137: 6.65 | O137: 6.9 | P137: 7.45 | Q137: 8 | R137: 7.55 | S137: 7.1 | T137: 7.55 | U137: 8 | V137: 8.55 | W137: 9.1 | X137: 10.43333333 | Y137: 11.76666667 | Z137: 13.1 | AA137: 11.76666667 | AB137: 10.43333333 | AC137: 9.1 | AD137: 8.55 | AE137: 8 | AF137: 7.55 | AG137: 9 | AH137: 10.45 | AI137: 11.9 | AJ137: 12 | AK137: 12.1 | AL137: 12.85 | AM137: 13.6 | AN137: 13.6 | AO137: 13.6 | AP137: 12.85 | AQ137: 12.1 | AR137: 12 | AS137: 11.9 | AT137: 10.45 | AU137: 9 | AV137: 7.55 | AW137: 8 | AX137: 8.55 | AY137: 9.1 | AZ137: 10.43333333 | BA137: 11.76666667 | BB137: 13.1 | BC137: 11.76666667 | BD137: 10.43333333 | BE137: 9.1 | BF137: 8.55 | BG137: 8 | BH137: 7.55 | BI137: 9 | BJ137: 10.45 | BK137: 11.9 | BL137: 12 | BM137: 12.1 | BN137: 12.85 | BO137: 13.6 | BP137: 13.6 | BQ137: 13.6 | BR137: =BR7+BR35+BR63+BR91 -> 12.85 | BS137: 12.1 | BT137: 12 | BU137: 11.9 | BV137: 10.45 | BW137: 9 | BX137: 7.55 | BY137: 8 | BZ137: 8.55 | CA137: 9.1 | CB137: 10.43333333 | CC137: 11.76666667 | CD137: 13.1 | CE137: 11.76666667 | CF137: 10.43333333 | CG137: 9.1 | CH137: 8.55 | CI137: 8 | CJ137: 7.55 | CK137: 9 | CL137: 10.45 | CM137: 11.9 | CN137: 12 | CO137: 12.1 | CP137: 12.85 | CQ137: 13.6 | CR137: 13.6 | CS137: 13.6 | CT137: 12.85 | CU137: 12.1 | CV137: 12 | CW137: 11.9 | CX137: 10.45 | CY137: 9 | CZ137: 7.55 | DA137: 8 | DB137: 8.55 | DC137: 9.1 | DD137: 10.43333333 | DE137: 11.76666667 | DF137: 13.1 | DG137: 11.76666667 | DH137: 10.43333333
A138: 29 | B138: =IF($D138<=$B$6,STDEV(OFFSET(D138,0,2*$B$11-D138+$B$12):OFFSET(D138,0,2*$B$11-1+$B$12))/C138,"") -> 0.1966773566 | C138: =IF($D138<=$B$6,AVERAGE(OFFSET(D138,0,2*$B$11-D138+$B$12):OFFSET(D138,0,2*$B$11-1+$B$12)),"") -> 10.38965517 | D138: 29 | E138: =E7+E36+E65+E94 -> 1.9 | F138: =F7+F36+F65+F94 -> 2.9 | G138: 3.9 | H138: 4.55 | I138: 5.2 | J138: 6.2 | K138: 7.2 | L138: 6.8 | M138: 6.4 | N138: 6.65 | O138: 6.9 | P138: 7.45 | Q138: 8 | R138: 7.55 | S138: 7.1 | T138: 7.55 | U138: 8 | V138: 8.55 | W138: 9.1 | X138: 10.43333333 | Y138: 11.76666667 | Z138: 13.1 | AA138: 11.76666667 | AB138: 10.43333333 | AC138: 9.1 | AD138: 8.55 | AE138: 8 | AF138: 7.55 | AG138: 7.1 | AH138: 9.45 | AI138: 10.9 | AJ138: 11.35 | AK138: 11.45 | AL138: 11.85 | AM138: 12.6 | AN138: 14 | AO138: 14 | AP138: 12.6 | AQ138: 11.85 | AR138: 11.45 | AS138: 11.35 | AT138: 10.9 | AU138: 9.45 | AV138: 7.1 | AW138: 7.55 | AX138: 8 | AY138: 8.55 | AZ138: 9.1 | BA138: 10.43333333 | BB138: 11.76666667 | BC138: 13.1 | BD138: 11.76666667 | BE138: 10.43333333 | BF138: 9.1 | BG138: 8.55 | BH138: 8 | BI138: 7.55 | BJ138: 7.1 | BK138: 9.45 | BL138: 10.9 | BM138: 11.35 | BN138: 11.45 | BO138: 11.85 | BP138: 12.6 | BQ138: 14 | BR138: =BR7+BR36+BR65+BR94 -> 14 | BS138: 12.6 | BT138: 11.85 | BU138: 11.45 | BV138: 11.35 | BW138: 10.9 | BX138: 9.45 | BY138: 7.1 | BZ138: 7.55 | CA138: 8 | CB138: 8.55 | CC138: 9.1 | CD138: 10.43333333 | CE138: 11.76666667 | CF138: 13.1 | CG138: 11.76666667 | CH138: 10.43333333 | CI138: 9.1 | CJ138: 8.55 | CK138: 8 | CL138: 7.55 | CM138: 7.1 | CN138: 9.45 | CO138: 10.9 | CP138: 11.35 | CQ138: 11.45 | CR138: 11.85 | CS138: 12.6 | CT138: 14 | CU138: 14 | CV138: 12.6 | CW138: 11.85 | CX138: 11.45 | CY138: 11.35 | CZ138: 10.9 | DA138: 9.45 | DB138: 7.1 | DC138: 7.55 | DD138: 8 | DE138: 8.55 | DF138: 9.1 | DG138: 10.43333333 | DH138: 11.76666667 | DI138: 13.1
A139: 30 | B139: =IF($D139<=$B$6,STDEV(OFFSET(D139,0,2*$B$11-D139+$B$12):OFFSET(D139,0,2*$B$11-1+$B$12))/C139,"") -> 0.2006177523 | C139: =IF($D139<=$B$6,AVERAGE(OFFSET(D139,0,2*$B$11-D139+$B$12):OFFSET(D139,0,2*$B$11-1+$B$12)),"") -> 10.04333333 | D139: 30 | E139: =E7+E37+E67+E97 -> 1.9 | F139: =F7+F37+F67+F97 -> 2.9 | G139: 3.9 | H139: 4.55 | I139: 5.2 | J139: 6.2 | K139: 7.2 | L139: 6.8 | M139: 6.4 | N139: 6.65 | O139: 6.9 | P139: 7.45 | Q139: 8 | R139: 7.55 | S139: 7.1 | T139: 7.55 | U139: 8 | V139: 8.55 | W139: 9.1 | X139: 10.43333333 | Y139: 11.76666667 | Z139: 13.1 | AA139: 11.76666667 | AB139: 10.43333333 | AC139: 9.1 | AD139: 8.55 | AE139: 8 | AF139: 7.55 | AG139: 7.1 | AH139: 7.55 | AI139: 9.9 | AJ139: 10.35 | AK139: 10.8 | AL139: 11.2 | AM139: 11.6 | AN139: 13 | AO139: 14.4 | AP139: 13 | AQ139: 11.6 | AR139: 11.2 | AS139: 10.8 | AT139: 10.35 | AU139: 9.9 | AV139: 7.55 | AW139: 7.1 | AX139: 7.55 | AY139: 8 | AZ139: 8.55 | BA139: 9.1 | BB139: 10.43333333 | BC139: 11.76666667 | BD139: 13.1 | BE139: 11.76666667 | BF139: 10.43333333 | BG139: 9.1 | BH139: 8.55 | BI139: 8 | BJ139: 7.55 | BK139: 7.1 | BL139: 7.55 | BM139: 9.9 | BN139: 10.35 | BO139: 10.8 | BP139: 11.2 | BQ139: 11.6 | BR139: =BR7+BR37+BR67+BR97 -> 13 | BS139: 14.4 | BT139: 13 | BU139: 11.6 | BV139: 11.2 | BW139: 10.8 | BX139: 10.35 | BY139: 9.9 | BZ139: 7.55 | CA139: 7.1 | CB139: 7.55 | CC139: 8 | CD139: 8.55 | CE139: 9.1 | CF139: 10.43333333 | CG139: 11.76666667 | CH139: 13.1 | CI139: 11.76666667 | CJ139: 10.43333333 | CK139: 9.1 | CL139: 8.55 | CM139: 8 | CN139: 7.55 | CO139: 7.1 | CP139: 7.55 | CQ139: 9.9 | CR139: 10.35 | CS139: 10.8 | CT139: 11.2 | CU139: 11.6 | CV139: 13 | CW139: 14.4 | CX139: 13 | CY139: 11.6 | CZ139: 11.2 | DA139: 10.8 | DB139: 10.35 | DC139: 9.9 | DD139: 7.55 | DE139: 7.1 | DF139: 7.55 | DG139: 8 | DH139: 8.55 | DI139: 9.1 | DJ139: 10.43333333
A140: 31 | B140: =IF($D140<=$B$6,STDEV(OFFSET(D140,0,2*$B$11-D140+$B$12):OFFSET(D140,0,2*$B$11-1+$B$12))/C140,"") -> 0.1978154455 | C140: =IF($D140<=$B$6,AVERAGE(OFFSET(D140,0,2*$B$11-D140+$B$12):OFFSET(D140,0,2*$B$11-1+$B$12)),"") -> 9.719354839 | D140: 31 | E140: =E7+E38+E69+E100 -> 1.9 | F140: =F7+F38+F69+F100 -> 2.9 | G140: 3.9 | H140: 4.55 | I140: 5.2 | J140: 6.2 | K140: 7.2 | L140: 6.8 | M140: 6.4 | N140: 6.65 | O140: 6.9 | P140: 7.45 | Q140: 8 | R140: 7.55 | S140: 7.1 | T140: 7.55 | U140: 8 | V140: 8.55 | W140: 9.1 | X140: 10.43333333 | Y140: 11.76666667 | Z140: 13.1 | AA140: 11.76666667 | AB140: 10.43333333 | AC140: 9.1 | AD140: 8.55 | AE140: 8 | AF140: 7.55 | AG140: 7.1 | AH140: 7.55 | AI140: 8 | AJ140: 9.35 | AK140: 9.8 | AL140: 10.55 | AM140: 10.95 | AN140: 12 | AO140: 13.4 | AP140: 13.4 | AQ140: 12 | AR140: 10.95 | AS140: 10.55 | AT140: 9.8 | AU140: 9.35 | AV140: 8 | AW140: 7.55 | AX140: 7.1 | AY140: 7.55 | AZ140: 8 | BA140: 8.55 | BB140: 9.1 | BC140: 10.43333333 | BD140: 11.76666667 | BE140: 13.1 | BF140: 11.76666667 | BG140: 10.43333333 | BH140: 9.1 | BI140: 8.55 | BJ140: 8 | BK140: 7.55 | BL140: 7.1 | BM140: 7.55 | BN140: 8 | BO140: 9.35 | BP140: 9.8 | BQ140: 10.55 | BR140: =BR7+BR38+BR69+BR100 -> 10.95 | BS140: 12 | BT140: 13.4 | BU140: 13.4 | BV140: 12 | BW140: 10.95 | BX140: 10.55 | BY140: 9.8 | BZ140: 9.35 | CA140: 8 | CB140: 7.55 | CC140: 7.1 | CD140: 7.55 | CE140: 8 | CF140: 8.55 | CG140: 9.1 | CH140: 10.43333333 | CI140: 11.76666667 | CJ140: 13.1 | CK140: 11.76666667 | CL140: 10.43333333 | CM140: 9.1 | CN140: 8.55 | CO140: 8 | CP140: 7.55 | CQ140: 7.1 | CR140: 7.55 | CS140: 8 | CT140: 9.35 | CU140: 9.8 | CV140: 10.55 | CW140: 10.95 | CX140: 12 | CY140: 13.4 | CZ140: 13.4 | DA140: 12 | DB140: 10.95 | DC140: 10.55 | DD140: 9.8 | DE140: 9.35 | DF140: 8 | DG140: 7.55 | DH140: 7.1 | DI140: 7.55 | DJ140: 8 | DK140: 8.55
A141: 32 | B141: =IF($D141<=$B$6,STDEV(OFFSET(D141,0,2*$B$11-D141+$B$12):OFFSET(D141,0,2*$B$11-1+$B$12))/C141,"") -> 0.1957885086 | C141: =IF($D141<=$B$6,AVERAGE(OFFSET(D141,0,2*$B$11-D141+$B$12):OFFSET(D141,0,2*$B$11-1+$B$12)),"") -> 9.415625 | D141: 32 | E141: =E7+E39+E71+E103 -> 1.9 | F141: =F7+F39+F71+F103 -> 2.9 | G141: 3.9 | H141: 4.55 | I141: 5.2 | J141: 6.2 | K141: 7.2 | L141: 6.8 | M141: 6.4 | N141: 6.65 | O141: 6.9 | P141: 7.45 | Q141: 8 | R141: 7.55 | S141: 7.1 | T141: 7.55 | U141: 8 | V141: 8.55 | W141: 9.1 | X141: 10.43333333 | Y141: 11.76666667 | Z141: 13.1 | AA141: 11.76666667 | AB141: 10.43333333 | AC141: 9.1 | AD141: 8.55 | AE141: 8 | AF141: 7.55 | AG141: 7.1 | AH141: 7.55 | AI141: 8 | AJ141: 7.45 | AK141: 8.8 | AL141: 9.55 | AM141: 10.3 | AN141: 11.35 | AO141: 12.4 | AP141: 12.4 | AQ141: 12.4 | AR141: 11.35 | AS141: 10.3 | AT141: 9.55 | AU141: 8.8 | AV141: 7.45 | AW141: 8 | AX141: 7.55 | AY141: 7.1 | AZ141: 7.55 | BA141: 8 | BB141: 8.55 | BC141: 9.1 | BD141: 10.43333333 | BE141: 11.76666667 | BF141: 13.1 | BG141: 11.76666667 | BH141: 10.43333333 | BI141: 9.1 | BJ141: 8.55 | BK141: 8 | BL141: 7.55 | BM141: 7.1 | BN141: 7.55 | BO141: 8 | BP141: 7.45 | BQ141: 8.8 | BR141: =BR7+BR39+BR71+BR103 -> 9.55 | BS141: 10.3 | BT141: 11.35 | BU141: 12.4 | BV141: 12.4 | BW141: 12.4 | BX141: 11.35 | BY141: 10.3 | BZ141: 9.55 | CA141: 8.8 | CB141: 7.45 | CC141: 8 | CD141: 7.55 | CE141: 7.1 | CF141: 7.55 | CG141: 8 | CH141: 8.55 | CI141: 9.1 | CJ141: 10.43333333 | CK141: 11.76666667 | CL141: 13.1 | CM141: 11.76666667 | CN141: 10.43333333 | CO141: 9.1 | CP141: 8.55 | CQ141: 8 | CR141: 7.55 | CS141: 7.1 | CT141: 7.55 | CU141: 8 | CV141: 7.45 | CW141: 8.8 | CX141: 9.55 | CY141: 10.3 | CZ141: 11.35 | DA141: 12.4 | DB141: 12.4 | DC141: 12.4 | DD141: 11.35 | DE141: 10.3 | DF141: 9.55 | DG141: 8.8 | DH141: 7.45 | DI141: 8 | DJ141: 7.55 | DK141: 7.1 | DL141: 7.55
A142: 33 | B142: =IF($D142<=$B$6,STDEV(OFFSET(D142,0,2*$B$11-D142+$B$12):OFFSET(D142,0,2*$B$11-1+$B$12))/C142,"") -> 0.1958842872 | C142: =IF($D142<=$B$6,AVERAGE(OFFSET(D142,0,2*$B$11-D142+$B$12):OFFSET(D142,0,2*$B$11-1+$B$12)),"") -> 9.13030303 | D142: 33 | E142: =E7+E40+E73+E106 -> 1.9 | F142: =F7+F40+F73+F106 -> 2.9 | G142: 3.9 | H142: 4.55 | I142: 5.2 | J142: 6.2 | K142: 7.2 | L142: 6.8 | M142: 6.4 | N142: 6.65 | O142: 6.9 | P142: 7.45 | Q142: 8 | R142: 7.55 | S142: 7.1 | T142: 7.55 | U142: 8 | V142: 8.55 | W142: 9.1 | X142: 10.43333333 | Y142: 11.76666667 | Z142: 13.1 | AA142: 11.76666667 | AB142: 10.43333333 | AC142: 9.1 | AD142: 8.55 | AE142: 8 | AF142: 7.55 | AG142: 7.1 | AH142: 7.55 | AI142: 8 | AJ142: 7.45 | AK142: 6.9 | AL142: 8.55 | AM142: 9.3 | AN142: 10.7 | AO142: 11.75 | AP142: 11.4 | AQ142: 11.4 | AR142: 11.75 | AS142: 10.7 | AT142: 9.3 | AU142: 8.55 | AV142: 6.9 | AW142: 7.45 | AX142: 8 | AY142: 7.55 | AZ142: 7.1 | BA142: 7.55 | BB142: 8 | BC142: 8.55 | BD142: 9.1 | BE142: 10.43333333 | BF142: 11.76666667 | BG142: 13.1 | BH142: 11.76666667 | BI142: 10.43333333 | BJ142: 9.1 | BK142: 8.55 | BL142: 8 | BM142: 7.55 | BN142: 7.1 | BO142: 7.55 | BP142: 8 | BQ142: 7.45 | BR142: =BR7+BR40+BR73+BR106 -> 6.9 | BS142: 8.55 | BT142: 9.3 | BU142: 10.7 | BV142: 11.75 | BW142: 11.4 | BX142: 11.4 | BY142: 11.75 | BZ142: 10.7 | CA142: 9.3 | CB142: 8.55 | CC142: 6.9 | CD142: 7.45 | CE142: 8 | CF142: 7.55 | CG142: 7.1 | CH142: 7.55 | CI142: 8 | CJ142: 8.55 | CK142: 9.1 | CL142: 10.43333333 | CM142: 11.76666667 | CN142: 13.1 | CO142: 11.76666667 | CP142: 10.43333333 | CQ142: 9.1 | CR142: 8.55 | CS142: 8 | CT142: 7.55 | CU142: 7.1 | CV142: 7.55 | CW142: 8 | CX142: 7.45 | CY142: 6.9 | CZ142: 8.55 | DA142: 9.3 | DB142: 10.7 | DC142: 11.75 | DD142: 11.4 | DE142: 11.4 | DF142: 11.75 | DG142: 10.7 | DH142: 9.3 | DI142: 8.55 | DJ142: 6.9 | DK142: 7.45 | DL142: 8 | DM142: 7.55
A143: 34 | B143: =IF($D143<=$B$6,STDEV(OFFSET(D143,0,2*$B$11-D143+$B$12):OFFSET(D143,0,2*$B$11-1+$B$12))/C143,"") -> 0.1956179711 | C143: =IF($D143<=$B$6,AVERAGE(OFFSET(D143,0,2*$B$11-D143+$B$12):OFFSET(D143,0,2*$B$11-1+$B$12)),"") -> 8.861764706 | D143: 34 | E143: =E7+E41+E75 -> 1.9 | F143: =F7+F41+F75 -> 2.9 | G143: 3.9 | H143: 4.55 | I143: 5.2 | J143: 6.2 | K143: 7.2 | L143: 6.8 | M143: 6.4 | N143: 6.65 | O143: 6.9 | P143: 7.45 | Q143: 8 | R143: 7.55 | S143: 7.1 | T143: 7.55 | U143: 8 | V143: 8.55 | W143: 9.1 | X143: 10.43333333 | Y143: 11.76666667 | Z143: 13.1 | AA143: 11.76666667 | AB143: 10.43333333 | AC143: 9.1 | AD143: 8.55 | AE143: 8 | AF143: 7.55 | AG143: 7.1 | AH143: 7.55 | AI143: 8 | AJ143: 7.45 | AK143: 6.9 | AL143: 6.65 | AM143: 8.3 | AN143: 9.7 | AO143: 11.1 | AP143: 10.75 | AQ143: 10.4 | AR143: 10.75 | AS143: 11.1 | AT143: 9.7 | AU143: 8.3 | AV143: 6.65 | AW143: 6.9 | AX143: 7.45 | AY143: 8 | AZ143: 7.55 | BA143: 7.1 | BB143: 7.55 | BC143: 8 | BD143: 8.55 | BE143: 9.1 | BF143: 10.43333333 | BG143: 11.76666667 | BH143: 13.1 | BI143: 11.76666667 | BJ143: 10.43333333 | BK143: 9.1 | BL143: 8.55 | BM143: 8 | BN143: 7.55 | BO143: 7.1 | BP143: 7.55 | BQ143: 8 | BR143: =BR7+BR41+BR75 -> 7.45 | BS143: 6.9 | BT143: 6.65 | BU143: 8.3 | BV143: 9.7 | BW143: 11.1 | BX143: 10.75 | BY143: 10.4 | BZ143: 10.75 | CA143: 11.1 | CB143: 9.7 | CC143: 8.3 | CD143: 6.65 | CE143: 6.9 | CF143: 7.45 | CG143: 8 | CH143: 7.55 | CI143: 7.1 | CJ143: 7.55 | CK143: 8 | CL143: 8.55 | CM143: 9.1 | CN143: 10.43333333 | CO143: 11.76666667 | CP143: 13.1 | CQ143: 11.76666667 | CR143: 10.43333333 | CS143: 9.1 | CT143: 8.55 | CU143: 8 | CV143: 7.55 | CW143: 7.1 | CX143: 7.55 | CY143: 8 | CZ143: 7.45 | DA143: 6.9 | DB143: 6.65 | DC143: 6.4 | DD143: 6.8 | DE143: 7.2 | DF143: 6.2 | DG143: 5.2 | DH143: 4.55 | DI143: 3.9 | DJ143: 2.9 | DK143: 1.9 | DL143: 0 | DM143: 0 | DN143: 0
A144: 35 | B144: =IF($D144<=$B$6,STDEV(OFFSET(D144,0,2*$B$11-D144+$B$12):OFFSET(D144,0,2*$B$11-1+$B$12))/C144,"") -> 0.1944347183 | C144: =IF($D144<=$B$6,AVERAGE(OFFSET(D144,0,2*$B$11-D144+$B$12):OFFSET(D144,0,2*$B$11-1+$B$12)),"") -> 8.608571429 | D144: 35 | E144: =E7+E42+E77 -> 1.9 | F144: =F7+F42+F77 -> 2.9 | G144: 3.9 | H144: 4.55 | I144: 5.2 | J144: 6.2 | K144: 7.2 | L144: 6.8 | M144: 6.4 | N144: 6.65 | O144: 6.9 | P144: 7.45 | Q144: 8 | R144: 7.55 | S144: 7.1 | T144: 7.55 | U144: 8 | V144: 8.55 | W144: 9.1 | X144: 10.43333333 | Y144: 11.76666667 | Z144: 13.1 | AA144: 11.76666667 | AB144: 10.43333333 | AC144: 9.1 | AD144: 8.55 | AE144: 8 | AF144: 7.55 | AG144: 7.1 | AH144: 7.55 | AI144: 8 | AJ144: 7.45 | AK144: 6.9 | AL144: 6.65 | AM144: 6.4 | AN144: 8.7 | AO144: 10.1 | AP144: 10.1 | AQ144: 9.75 | AR144: 9.75 | AS144: 10.1 | AT144: 10.1 | AU144: 8.7 | AV144: 6.4 | AW144: 6.65 | AX144: 6.9 | AY144: 7.45 | AZ144: 8 | BA144: 7.55 | BB144: 7.1 | BC144: 7.55 | BD144: 8 | BE144: 8.55 | BF144: 9.1 | BG144: 10.43333333 | BH144: 11.76666667 | BI144: 13.1 | BJ144: 11.76666667 | BK144: 10.43333333 | BL144: 9.1 | BM144: 8.55 | BN144: 8 | BO144: 7.55 | BP144: 7.1 | BQ144: 7.55 | BR144: =BR7+BR42+BR77 -> 8 | BS144: 7.45 | BT144: 6.9 | BU144: 6.65 | BV144: 6.4 | BW144: 8.7 | BX144: 10.1 | BY144: 10.1 | BZ144: 9.75 | CA144: 9.75 | CB144: 10.1 | CC144: 10.1 | CD144: 8.7 | CE144: 6.4 | CF144: 6.65 | CG144: 6.9 | CH144: 7.45 | CI144: 8 | CJ144: 7.55 | CK144: 7.1 | CL144: 7.55 | CM144: 8 | CN144: 8.55 | CO144: 9.1 | CP144: 10.43333333 | CQ144: 11.76666667 | CR144: 13.1 | CS144: 11.76666667 | CT144: 10.43333333 | CU144: 9.1 | CV144: 8.55 | CW144: 8 | CX144: 7.55 | CY144: 7.1 | CZ144: 7.55 | DA144: 8 | DB144: 7.45 | DC144: 6.9 | DD144: 6.65 | DE144: 6.4 | DF144: 6.8 | DG144: 7.2 | DH144: 6.2 | DI144: 5.2 | DJ144: 4.55 | DK144: 3.9 | DL144: 2.9 | DM144: 1.9 | DN144: 0 | DO144: 0
A145: 36 | B145: =IF($D145<=$B$6,STDEV(OFFSET(D145,0,2*$B$11-D145+$B$12):OFFSET(D145,0,2*$B$11-1+$B$12))/C145,"") -> 0.1915011265 | C145: =IF($D145<=$B$6,AVERAGE(OFFSET(D145,0,2*$B$11-D145+$B$12):OFFSET(D145,0,2*$B$11-1+$B$12)),"") -> 8.369444444 | D145: 36 | E145: =E7+E43+E79 -> 1.9 | F145: =F7+F43+F79 -> 2.9 | G145: 3.9 | H145: 4.55 | I145: 5.2 | J145: 6.2 | K145: 7.2 | L145: 6.8 | M145: 6.4 | N145: 6.65 | O145: 6.9 | P145: 7.45 | Q145: 8 | R145: 7.55 | S145: 7.1 | T145: 7.55 | U145: 8 | V145: 8.55 | W145: 9.1 | X145: 10.43333333 | Y145: 11.76666667 | Z145: 13.1 | AA145: 11.76666667 | AB145: 10.43333333 | AC145: 9.1 | AD145: 8.55 | AE145: 8 | AF145: 7.55 | AG145: 7.1 | AH145: 7.55 | AI145: 8 | AJ145: 7.45 | AK145: 6.9 | AL145: 6.65 | AM145: 6.4 | AN145: 6.8 | AO145: 9.1 | AP145: 9.1 | AQ145: 9.1 | AR145: 9.1 | AS145: 9.1 | AT145: 9.1 | AU145: 9.1 | AV145: 6.8 | AW145: 6.4 | AX145: 6.65 | AY145: 6.9 | AZ145: 7.45 | BA145: 8 | BB145: 7.55 | BC145: 7.1 | BD145: 7.55 | BE145: 8 | BF145: 8.55 | BG145: 9.1 | BH145: 10.43333333 | BI145: 11.76666667 | BJ145: 13.1 | BK145: 11.76666667 | BL145: 10.43333333 | BM145: 9.1 | BN145: 8.55 | BO145: 8 | BP145: 7.55 | BQ145: 7.1 | BR145: =BR7+BR43+BR79 -> 7.55 | BS145: 8 | BT145: 7.45 | BU145: 6.9 | BV145: 6.65 | BW145: 6.4 | BX145: 6.8 | BY145: 9.1 | BZ145: 9.1 | CA145: 9.1 | CB145: 9.1 | CC145: 9.1 | CD145: 9.1 | CE145: 9.1 | CF145: 6.8 | CG145: 6.4 | CH145: 6.65 | CI145: 6.9 | CJ145: 7.45 | CK145: 8 | CL145: 7.55 | CM145: 7.1 | CN145: 7.55 | CO145: 8 | CP145: 8.55 | CQ145: 9.1 | CR145: 10.43333333 | CS145: 11.76666667 | CT145: 13.1 | CU145: 11.76666667 | CV145: 10.43333333 | CW145: 9.1 | CX145: 8.55 | CY145: 8 | CZ145: 7.55 | DA145: 7.1 | DB145: 7.55 | DC145: 8 | DD145: 7.45 | DE145: 6.9 | DF145: 6.65 | DG145: 6.4 | DH145: 6.8 | DI145: 7.2 | DJ145: 6.2 | DK145: 5.2 | DL145: 4.55 | DM145: 3.9 | DN145: 2.9 | DO145: 1.9 | DP145: 0
A146: 37 | B146: =IF($D146<=$B$6,STDEV(OFFSET(D146,0,2*$B$11-D146+$B$12):OFFSET(D146,0,2*$B$11-1+$B$12))/C146,"") -> 0.191251432 | C146: =IF($D146<=$B$6,AVERAGE(OFFSET(D146,0,2*$B$11-D146+$B$12):OFFSET(D146,0,2*$B$11-1+$B$12)),"") -> 8.143243243 | D146: 37 | E146: =E$7+E44+E81 -> 1.9 | F146: =F$7+F44+F81 -> 2.9 | G146: 3.9 | H146: 4.55 | I146: 5.2 | J146: 6.2 | K146: 7.2 | L146: 6.8 | M146: 6.4 | N146: 6.65 | O146: 6.9 | P146: 7.45 | Q146: 8 | R146: 7.55 | S146: 7.1 | T146: 7.55 | U146: 8 | V146: 8.55 | W146: 9.1 | X146: 10.43333333 | Y146: 11.76666667 | Z146: 13.1 | AA146: 11.76666667 | AB146: 10.43333333 | AC146: 9.1 | AD146: 8.55 | AE146: 8 | AF146: 7.55 | AG146: 7.1 | AH146: 7.55 | AI146: 8 | AJ146: 7.45 | AK146: 6.9 | AL146: 6.65 | AM146: 6.4 | AN146: 6.8 | AO146: 7.2 | AP146: 8.1 | AQ146: 8.1 | AR146: 8.45 | AS146: 8.45 | AT146: 8.1 | AU146: 8.1 | AV146: 7.2 | AW146: 6.8 | AX146: 6.4 | AY146: 6.65 | AZ146: 6.9 | BA146: 7.45 | BB146: 8 | BC146: 7.55 | BD146: 7.1 | BE146: 7.55 | BF146: 8 | BG146: 8.55 | BH146: 9.1 | BI146: 10.43333333 | BJ146: 11.76666667 | BK146: 13.1 | BL146: 11.76666667 | BM146: 10.43333333 | BN146: 9.1 | BO146: 8.55 | BP146: 8 | BQ146: 7.55 | BR146: =BR$7+BR44+BR81 -> 7.1 | BS146: 7.55 | BT146: 8 | BU146: 7.45 | BV146: 6.9 | BW146: 6.65 | BX146: 6.4 | BY146: 6.8 | BZ146: 7.2 | CA146: 8.1 | CB146: 8.1 | CC146: 8.45 | CD146: 8.45 | CE146: 8.1 | CF146: 8.1 | CG146: 7.2 | CH146: 6.8 | CI146: 6.4 | CJ146: 6.65 | CK146: 6.9 | CL146: 7.45 | CM146: 8 | CN146: 7.55 | CO146: 7.1 | CP146: 7.55 | CQ146: 8 | CR146: 8.55 | CS146: 9.1 | CT146: 10.43333333 | CU146: 11.76666667 | CV146: 13.1 | CW146: 11.76666667 | CX146: 10.43333333 | CY146: 9.1 | CZ146: 8.55 | DA146: 8 | DB146: 7.55 | DC146: 7.1 | DD146: 7.55 | DE146: 8 | DF146: 7.45 | DG146: 6.9 | DH146: 6.65 | DI146: 6.4 | DJ146: 6.8 | DK146: 7.2 | DL146: 6.2 | DM146: 5.2 | DN146: 4.55 | DO146: 3.9 | DP146: 2.9 | DQ146: 1.9
A147: 38 | B147: =IF($D147<=$B$6,STDEV(OFFSET(D147,0,2*$B$11-D147+$B$12):OFFSET(D147,0,2*$B$11-1+$B$12))/C147,"") -> 0.2033477587 | C147: =IF($D147<=$B$6,AVERAGE(OFFSET(D147,0,2*$B$11-D147+$B$12):OFFSET(D147,0,2*$B$11-1+$B$12)),"") -> 7.928947368 | D147: 38 | E147: =E$7+E45+E83 -> 1.9 | F147: =F$7+F45+F83 -> 2.9 | G147: 3.9 | H147: 4.55 | I147: 5.2 | J147: 6.2 | K147: 7.2 | L147: 6.8 | M147: 6.4 | N147: 6.65 | O147: 6.9 | P147: 7.45 | Q147: 8 | R147: 7.55 | S147: 7.1 | T147: 7.55 | U147: 8 | V147: 8.55 | W147: 9.1 | X147: 10.43333333 | Y147: 11.76666667 | Z147: 13.1 | AA147: 11.76666667 | AB147: 10.43333333 | AC147: 9.1 | AD147: 8.55 | AE147: 8 | AF147: 7.55 | AG147: 7.1 | AH147: 7.55 | AI147: 8 | AJ147: 7.45 | AK147: 6.9 | AL147: 6.65 | AM147: 6.4 | AN147: 6.8 | AO147: 7.2 | AP147: 6.2 | AQ147: 7.1 | AR147: 7.45 | AS147: 7.8 | AT147: 7.45 | AU147: 7.1 | AV147: 6.2 | AW147: 7.2 | AX147: 6.8 | AY147: 6.4 | AZ147: 6.65 | BA147: 6.9 | BB147: 7.45 | BC147: 8 | BD147: 7.55 | BE147: 7.1 | BF147: 7.55 | BG147: 8 | BH147: 8.55 | BI147: 9.1 | BJ147: 10.43333333 | BK147: 11.76666667 | BL147: 13.1 | BM147: 11.76666667 | BN147: 10.43333333 | BO147: 9.1 | BP147: 8.55 | BQ147: 8 | BR147: =BR$7+BR45+BR83 -> 7.55 | BS147: 7.1 | BT147: 7.55 | BU147: 8 | BV147: 7.45 | BW147: 6.9 | BX147: 6.65 | BY147: 6.4 | BZ147: 6.8 | CA147: 7.2 | CB147: 6.2 | CC147: 7.1 | CD147: 7.45 | CE147: 7.8 | CF147: 7.45 | CG147: 7.1 | CH147: 6.2 | CI147: 7.2 | CJ147: 6.8 | CK147: 6.4 | CL147: 6.65 | CM147: 6.9 | CN147: 7.45 | CO147: 8 | CP147: 7.55 | CQ147: 7.1 | CR147: 7.55 | CS147: 8 | CT147: 8.55 | CU147: 9.1 | CV147: 10.43333333 | CW147: 11.76666667 | CX147: 13.1 | CY147: 11.76666667 | CZ147: 10.43333333 | DA147: 9.1 | DB147: 8.55 | DC147: 8 | DD147: 7.55 | DE147: 7.1 | DF147: 7.55 | DG147: 8 | DH147: 7.45 | DI147: 6.9 | DJ147: 6.65 | DK147: 6.4 | DL147: 6.8 | DM147: 7.2 | DN147: 6.2 | DO147: 5.2 | DP147: 4.55 | DQ147: 3.9 | DR147: 2.9
A148: 39 | B148: =IF($D148<=$B$6,STDEV(OFFSET(D148,0,2*$B$11-D148+$B$12):OFFSET(D148,0,2*$B$11-1+$B$12))/C148,"") -> 0.2247275501 | C148: =IF($D148<=$B$6,AVERAGE(OFFSET(D148,0,2*$B$11-D148+$B$12):OFFSET(D148,0,2*$B$11-1+$B$12)),"") -> 7.725641026 | D148: 39 | E148: =E$7+E46+E85 -> 1.9 | F148: =F$7+F46+F85 -> 2.9 | G148: 3.9 | H148: 4.55 | I148: 5.2 | J148: 6.2 | K148: 7.2 | L148: 6.8 | M148: 6.4 | N148: 6.65 | O148: 6.9 | P148: 7.45 | Q148: 8 | R148: 7.55 | S148: 7.1 | T148: 7.55 | U148: 8 | V148: 8.55 | W148: 9.1 | X148: 10.43333333 | Y148: 11.76666667 | Z148: 13.1 | AA148: 11.76666667 | AB148: 10.43333333 | AC148: 9.1 | AD148: 8.55 | AE148: 8 | AF148: 7.55 | AG148: 7.1 | AH148: 7.55 | AI148: 8 | AJ148: 7.45 | AK148: 6.9 | AL148: 6.65 | AM148: 6.4 | AN148: 6.8 | AO148: 7.2 | AP148: 6.2 | AQ148: 5.2 | AR148: 6.45 | AS148: 6.8 | AT148: 6.8 | AU148: 6.45 | AV148: 5.2 | AW148: 6.2 | AX148: 7.2 | AY148: 6.8 | AZ148: 6.4 | BA148: 6.65 | BB148: 6.9 | BC148: 7.45 | BD148: 8 | BE148: 7.55 | BF148: 7.1 | BG148: 7.55 | BH148: 8 | BI148: 8.55 | BJ148: 9.1 | BK148: 10.43333333 | BL148: 11.76666667 | BM148: 13.1 | BN148: 11.76666667 | BO148: 10.43333333 | BP148: 9.1 | BQ148: 8.55 | BR148: =BR$7+BR46+BR85 -> 8 | BS148: 7.55 | BT148: 7.1 | BU148: 7.55 | BV148: 8 | BW148: 7.45 | BX148: 6.9 | BY148: 6.65 | BZ148: 6.4 | CA148: 6.8 | CB148: 7.2 | CC148: 6.2 | CD148: 5.2 | CE148: 6.45 | CF148: 6.8 | CG148: 6.8 | CH148: 6.45 | CI148: 5.2 | CJ148: 6.2 | CK148: 7.2 | CL148: 6.8 | CM148: 6.4 | CN148: 6.65 | CO148: 6.9 | CP148: 7.45 | CQ148: 8 | CR148: 7.55 | CS148: 7.1 | CT148: 7.55 | CU148: 8 | CV148: 8.55 | CW148: 9.1 | CX148: 10.43333333 | CY148: 11.76666667 | CZ148: 13.1 | DA148: 11.76666667 | DB148: 10.43333333 | DC148: 9.1 | DD148: 8.55 | DE148: 8 | DF148: 7.55 | DG148: 7.1 | DH148: 7.55 | DI148: 8 | DJ148: 7.45 | DK148: 6.9 | DL148: 6.65 | DM148: 6.4 | DN148: 6.8 | DO148: 7.2 | DP148: 6.2 | DQ148: 5.2 | DR148: 4.55 | DS148: 3.9
A149: 40 | B149: =IF($D149<=$B$6,STDEV(OFFSET(D149,0,2*$B$11-D149+$B$12):OFFSET(D149,0,2*$B$11-1+$B$12))/C149,"") -> 0.2509700046 | C149: =IF($D149<=$B$6,AVERAGE(OFFSET(D149,0,2*$B$11-D149+$B$12):OFFSET(D149,0,2*$B$11-1+$B$12)),"") -> 7.5325 | D149: 40 | E149: =E$7+E47+E87 -> 1.9 | F149: =F$7+F47+F87 -> 2.9 | G149: 3.9 | H149: 4.55 | I149: 5.2 | J149: 6.2 | K149: 7.2 | L149: 6.8 | M149: 6.4 | N149: 6.65 | O149: 6.9 | P149: 7.45 | Q149: 8 | R149: 7.55 | S149: 7.1 | T149: 7.55 | U149: 8 | V149: 8.55 | W149: 9.1 | X149: 10.43333333 | Y149: 11.76666667 | Z149: 13.1 | AA149: 11.76666667 | AB149: 10.43333333 | AC149: 9.1 | AD149: 8.55 | AE149: 8 | AF149: 7.55 | AG149: 7.1 | AH149: 7.55 | AI149: 8 | AJ149: 7.45 | AK149: 6.9 | AL149: 6.65 | AM149: 6.4 | AN149: 6.8 | AO149: 7.2 | AP149: 6.2 | AQ149: 5.2 | AR149: 4.55 | AS149: 5.8 | AT149: 5.8 | AU149: 5.8 | AV149: 4.55 | AW149: 5.2 | AX149: 6.2 | AY149: 7.2 | AZ149: 6.8 | BA149: 6.4 | BB149: 6.65 | BC149: 6.9 | BD149: 7.45 | BE149: 8 | BF149: 7.55 | BG149: 7.1 | BH149: 7.55 | BI149: 8 | BJ149: 8.55 | BK149: 9.1 | BL149: 10.43333333 | BM149: 11.76666667 | BN149: 13.1 | BO149: 11.76666667 | BP149: 10.43333333 | BQ149: 9.1 | BR149: =BR$7+BR47+BR87 -> 8.55 | BS149: 8 | BT149: 7.55 | BU149: 7.1 | BV149: 7.55 | BW149: 8 | BX149: 7.45 | BY149: 6.9 | BZ149: 6.65 | CA149: 6.4 | CB149: 6.8 | CC149: 7.2 | CD149: 6.2 | CE149: 5.2 | CF149: 4.55 | CG149: 5.8 | CH149: 5.8 | CI149: 5.8 | CJ149: 4.55 | CK149: 5.2 | CL149: 6.2 | CM149: 7.2 | CN149: 6.8 | CO149: 6.4 | CP149: 6.65 | CQ149: 6.9 | CR149: 7.45 | CS149: 8 | CT149: 7.55 | CU149: 7.1 | CV149: 7.55 | CW149: 8 | CX149: 8.55 | CY149: 9.1 | CZ149: 10.43333333 | DA149: 11.76666667 | DB149: 13.1 | DC149: 11.76666667 | DD149: 10.43333333 | DE149: 9.1 | DF149: 8.55 | DG149: 8 | DH149: 7.55 | DI149: 7.1 | DJ149: 7.55 | DK149: 8 | DL149: 7.45 | DM149: 6.9 | DN149: 6.65 | DO149: 6.4 | DP149: 6.8 | DQ149: 7.2 | DR149: 6.2 | DS149: 5.2 | DT149: 4.55
A150: 41 | B150: =IF($D150<=$B$6,STDEV(OFFSET(D150,0,2*$B$11-D150+$B$12):OFFSET(D150,0,2*$B$11-1+$B$12))/C150,"") -> 0.2807857609 | C150: =IF($D150<=$B$6,AVERAGE(OFFSET(D150,0,2*$B$11-D150+$B$12):OFFSET(D150,0,2*$B$11-1+$B$12)),"") -> 7.348780488 | D150: 41 | E150: =E$7+E48+E89 -> 1.9 | F150: =F$7+F48+F89 -> 2.9 | G150: 3.9 | H150: 4.55 | I150: 5.2 | J150: 6.2 | K150: 7.2 | L150: 6.8 | M150: 6.4 | N150: 6.65 | O150: 6.9 | P150: 7.45 | Q150: 8 | R150: 7.55 | S150: 7.1 | T150: 7.55 | U150: 8 | V150: 8.55 | W150: 9.1 | X150: 10.43333333 | Y150: 11.76666667 | Z150: 13.1 | AA150: 11.76666667 | AB150: 10.43333333 | AC150: 9.1 | AD150: 8.55 | AE150: 8 | AF150: 7.55 | AG150: 7.1 | AH150: 7.55 | AI150: 8 | AJ150: 7.45 | AK150: 6.9 | AL150: 6.65 | AM150: 6.4 | AN150: 6.8 | AO150: 7.2 | AP150: 6.2 | AQ150: 5.2 | AR150: 4.55 | AS150: 3.9 | AT150: 4.8 | AU150: 4.8 | AV150: 3.9 | AW150: 4.55 | AX150: 5.2 | AY150: 6.2 | AZ150: 7.2 | BA150: 6.8 | BB150: 6.4 | BC150: 6.65 | BD150: 6.9 | BE150: 7.45 | BF150: 8 | BG150: 7.55 | BH150: 7.1 | BI150: 7.55 | BJ150: 8 | BK150: 8.55 | BL150: 9.1 | BM150: 10.43333333 | BN150: 11.76666667 | BO150: 13.1 | BP150: 11.76666667 | BQ150: 10.43333333 | BR150: =BR$7+BR48+BR89 -> 9.1 | BS150: 8.55 | BT150: 8 | BU150: 7.55 | BV150: 7.1 | BW150: 7.55 | BX150: 8 | BY150: 7.45 | BZ150: 6.9 | CA150: 6.65 | CB150: 6.4 | CC150: 6.8 | CD150: 7.2 | CE150: 6.2 | CF150: 5.2 | CG150: 4.55 | CH150: 3.9 | CI150: 4.8 | CJ150: 4.8 | CK150: 3.9 | CL150: 4.55 | CM150: 5.2 | CN150: 6.2 | CO150: 7.2 | CP150: 6.8 | CQ150: 6.4 | CR150: 6.65 | CS150: 6.9 | CT150: 7.45 | CU150: 8 | CV150: 7.55 | CW150: 7.1 | CX150: 7.55 | CY150: 8 | CZ150: 8.55 | DA150: 9.1 | DB150: 10.43333333 | DC150: 11.76666667 | DD150: 13.1 | DE150: 11.76666667 | DF150: 10.43333333 | DG150: 9.1 | DH150: 8.55 | DI150: 8 | DJ150: 7.55 | DK150: 7.1 | DL150: 7.55 | DM150: 8 | DN150: 7.45 | DO150: 6.9 | DP150: 6.65 | DQ150: 6.4 | DR150: 6.8 | DS150: 7.2 | DT150: 6.2 | DU150: 5.2
A151: 42 | B151: =IF($D151<=$B$6,STDEV(OFFSET(D151,0,2*$B$11-D151+$B$12):OFFSET(D151,0,2*$B$11-1+$B$12))/C151,"") -> 0.3141289383 | C151: =IF($D151<=$B$6,AVERAGE(OFFSET(D151,0,2*$B$11-D151+$B$12):OFFSET(D151,0,2*$B$11-1+$B$12)),"") -> 7.173809524 | D151: 42 | E151: =E$7+E49+E91 -> 1.9 | F151: =F$7+F49+F91 -> 2.9 | G151: 3.9 | H151: 4.55 | I151: 5.2 | J151: 6.2 | K151: 7.2 | L151: 6.8 | M151: 6.4 | N151: 6.65 | O151: 6.9 | P151: 7.45 | Q151: 8 | R151: 7.55 | S151: 7.1 | T151: 7.55 | U151: 8 | V151: 8.55 | W151: 9.1 | X151: 10.43333333 | Y151: 11.76666667 | Z151: 13.1 | AA151: 11.76666667 | AB151: 10.43333333 | AC151: 9.1 | AD151: 8.55 | AE151: 8 | AF151: 7.55 | AG151: 7.1 | AH151: 7.55 | AI151: 8 | AJ151: 7.45 | AK151: 6.9 | AL151: 6.65 | AM151: 6.4 | AN151: 6.8 | AO151: 7.2 | AP151: 6.2 | AQ151: 5.2 | AR151: 4.55 | AS151: 3.9 | AT151: 2.9 | AU151: 3.8 | AV151: 2.9 | AW151: 3.9 | AX151: 4.55 | AY151: 5.2 | AZ151: 6.2 | BA151: 7.2 | BB151: 6.8 | BC151: 6.4 | BD151: 6.65 | BE151: 6.9 | BF151: 7.45 | BG151: 8 | BH151: 7.55 | BI151: 7.1 | BJ151: 7.55 | BK151: 8 | BL151: 8.55 | BM151: 9.1 | BN151: 10.43333333 | BO151: 11.76666667 | BP151: 13.1 | BQ151: 11.76666667 | BR151: =BR$7+BR49+BR91 -> 10.43333333 | BS151: 9.1 | BT151: 8.55 | BU151: 8 | BV151: 7.55 | BW151: 7.1 | BX151: 7.55 | BY151: 8 | BZ151: 7.45 | CA151: 6.9 | CB151: 6.65 | CC151: 6.4 | CD151: 6.8 | CE151: 7.2 | CF151: 6.2 | CG151: 5.2 | CH151: 4.55 | CI151: 3.9 | CJ151: 2.9 | CK151: 3.8 | CL151: 2.9 | CM151: 3.9 | CN151: 4.55 | CO151: 5.2 | CP151: 6.2 | CQ151: 7.2 | CR151: 6.8 | CS151: 6.4 | CT151: 6.65 | CU151: 6.9 | CV151: 7.45 | CW151: 8 | CX151: 7.55 | CY151: 7.1 | CZ151: 7.55 | DA151: 8 | DB151: 8.55 | DC151: 9.1 | DD151: 10.43333333 | DE151: 11.76666667 | DF151: 13.1 | DG151: 11.76666667 | DH151: 10.43333333 | DI151: 9.1 | DJ151: 8.55 | DK151: 8 | DL151: 7.55 | DM151: 7.1 | DN151: 7.55 | DO151: 8 | DP151: 7.45 | DQ151: 6.9 | DR151: 6.65 | DS151: 6.4 | DT151: 6.8 | DU151: 7.2 | DV151: 6.2
A152: 43 | B152: =IF($D152<=$B$6,STDEV(OFFSET(D152,0,2*$B$11-D152+$B$12):OFFSET(D152,0,2*$B$11-1+$B$12))/C152,"") -> 0.3490620436 | C152: =IF($D152<=$B$6,AVERAGE(OFFSET(D152,0,2*$B$11-D152+$B$12):OFFSET(D152,0,2*$B$11-1+$B$12)),"") -> 7.006976744 | D152: 43 | E152: =E$7+E50+E93 -> 1.9 | F152: =F$7+F50+F93 -> 2.9 | G152: 3.9 | H152: 4.55 | I152: 5.2 | J152: 6.2 | K152: 7.2 | L152: 6.8 | M152: 6.4 | N152: 6.65 | O152: 6.9 | P152: 7.45 | Q152: 8 | R152: 7.55 | S152: 7.1 | T152: 7.55 | U152: 8 | V152: 8.55 | W152: 9.1 | X152: 10.43333333 | Y152: 11.76666667 | Z152: 13.1 | AA152: 11.76666667 | AB152: 10.43333333 | AC152: 9.1 | AD152: 8.55 | AE152: 8 | AF152: 7.55 | AG152: 7.1 | AH152: 7.55 | AI152: 8 | AJ152: 7.45 | AK152: 6.9 | AL152: 6.65 | AM152: 6.4 | AN152: 6.8 | AO152: 7.2 | AP152: 6.2 | AQ152: 5.2 | AR152: 4.55 | AS152: 3.9 | AT152: 2.9 | AU152: 1.9 | AV152: 1.9 | AW152: 2.9 | AX152: 3.9 | AY152: 4.55 | AZ152: 5.2 | BA152: 6.2 | BB152: 7.2 | BC152: 6.8 | BD152: 6.4 | BE152: 6.65 | BF152: 6.9 | BG152: 7.45 | BH152: 8 | BI152: 7.55 | BJ152: 7.1 | BK152: 7.55 | BL152: 8 | BM152: 8.55 | BN152: 9.1 | BO152: 10.43333333 | BP152: 11.76666667 | BQ152: 13.1 | BR152: =BR$7+BR50+BR93 -> 11.76666667 | BS152: 10.43333333 | BT152: 9.1 | BU152: 8.55 | BV152: 8 | BW152: 7.55 | BX152: 7.1 | BY152: 7.55 | BZ152: 8 | CA152: 7.45 | CB152: 6.9 | CC152: 6.65 | CD152: 6.4 | CE152: 6.8 | CF152: 7.2 | CG152: 6.2 | CH152: 5.2 | CI152: 4.55 | CJ152: 3.9 | CK152: 2.9 | CL152: 1.9 | CM152: 1.9 | CN152: 2.9 | CO152: 3.9 | CP152: 4.55 | CQ152: 5.2 | CR152: 6.2 | CS152: 7.2 | CT152: 6.8 | CU152: 6.4 | CV152: 6.65 | CW152: 6.9 | CX152: 7.45 | CY152: 8 | CZ152: 7.55 | DA152: 7.1 | DB152: 7.55 | DC152: 8 | DD152: 8.55 | DE152: 9.1 | DF152: 10.43333333 | DG152: 11.76666667 | DH152: 13.1 | DI152: 11.76666667 | DJ152: 10.43333333 | DK152: 9.1 | DL152: 8.55 | DM152: 8 | DN152: 7.55 | DO152: 7.1 | DP152: 7.55 | DQ152: 8 | DR152: 7.45 | DS152: 6.9 | DT152: 6.65 | DU152: 6.4 | DV152: 6.8 | DW152: 7.2
A153: 44 | B153: =IF($D153<=$B$6,STDEV(OFFSET(D153,0,2*$B$11-D153+$B$12):OFFSET(D153,0,2*$B$11-1+$B$12))/C153,"") ->  | C153: =IF($D153<=$B$6,AVERAGE(OFFSET(D153,0,2*$B$11-D153+$B$12):OFFSET(D153,0,2*$B$11-1+$B$12)),"") ->  | D153: 44 | E153: =E$7+E51+E95 -> 1.9 | F153: =F$7+F51+F95 -> 2.9 | G153: 3.9 | H153: 4.55 | I153: 5.2 | J153: 6.2 | K153: 7.2 | L153: 6.8 | M153: 6.4 | N153: 6.65 | O153: 6.9 | P153: 7.45 | Q153: 8 | R153: 7.55 | S153: 7.1 | T153: 7.55 | U153: 8 | V153: 8.55 | W153: 9.1 | X153: 10.43333333 | Y153: 11.76666667 | Z153: 13.1 | AA153: 11.76666667 | AB153: 10.43333333 | AC153: 9.1 | AD153: 8.55 | AE153: 8 | AF153: 7.55 | AG153: 7.1 | AH153: 7.55 | AI153: 8 | AJ153: 7.45 | AK153: 6.9 | AL153: 6.65 | AM153: 6.4 | AN153: 6.8 | AO153: 7.2 | AP153: 6.2 | AQ153: 5.2 | AR153: 4.55 | AS153: 3.9 | AT153: 2.9 | AU153: 1.9 | AV153: 0 | AW153: 1.9 | AX153: 2.9 | AY153: 3.9 | AZ153: 4.55 | BA153: 5.2 | BB153: 6.2 | BC153: 7.2 | BD153: 6.8 | BE153: 6.4 | BF153: 6.65 | BG153: 6.9 | BH153: 7.45 | BI153: 8 | BJ153: 7.55 | BK153: 7.1 | BL153: 7.55 | BM153: 8 | BN153: 8.55 | BO153: 9.1 | BP153: 10.43333333 | BQ153: 11.76666667 | BR153: =BR$7+BR51+BR95 -> 13.1 | BS153: 11.76666667 | BT153: 10.43333333 | BU153: 9.1 | BV153: 8.55 | BW153: 8 | BX153: 7.55 | BY153: 7.1 | BZ153: 7.55 | CA153: 8 | CB153: 7.45 | CC153: 6.9 | CD153: 6.65 | CE153: 6.4 | CF153: 6.8 | CG153: 7.2 | CH153: 6.2 | CI153: 5.2 | CJ153: 4.55 | CK153: 3.9 | CL153: 2.9 | CM153: 1.9 | CN153: 0 | CO153: 1.9 | CP153: 2.9 | CQ153: 3.9 | CR153: 4.55 | CS153: 5.2 | CT153: 6.2 | CU153: 7.2 | CV153: 6.8 | CW153: 6.4 | CX153: 6.65 | CY153: 6.9 | CZ153: 7.45 | DA153: 8 | DB153: 7.55 | DC153: 7.1 | DD153: 7.55 | DE153: 8 | DF153: 8.55 | DG153: 9.1 | DH153: 10.43333333 | DI153: 11.76666667 | DJ153: 13.1 | DK153: 11.76666667 | DL153: 10.43333333 | DM153: 9.1 | DN153: 8.55 | DO153: 8 | DP153: 7.55 | DQ153: 7.1 | DR153: 7.55 | DS153: 8 | DT153: 7.45 | DU153: 6.9 | DV153: 6.65 | DW153: 6.4 | DX153: 6.8
A154: 45 | B154: =IF($D154<=$B$6,STDEV(OFFSET(D154,0,2*$B$11-D154+$B$12):OFFSET(D154,0,2*$B$11-1+$B$12))/C154,"") ->  | C154: =IF($D154<=$B$6,AVERAGE(OFFSET(D154,0,2*$B$11-D154+$B$12):OFFSET(D154,0,2*$B$11-1+$B$12)),"") ->  | D154: 45 | E154: =E$7+E52+E97 -> 1.9 | F154: =F$7+F52+F97 -> 2.9 | G154: 3.9 | H154: 4.55 | I154: 5.2 | J154: 6.2 | K154: 7.2 | L154: 6.8 | M154: 6.4 | N154: 6.65 | O154: 6.9 | P154: 7.45 | Q154: 8 | R154: 7.55 | S154: 7.1 | T154: 7.55 | U154: 8 | V154: 8.55 | W154: 9.1 | X154: 10.43333333 | Y154: 11.76666667 | Z154: 13.1 | AA154: 11.76666667 | AB154: 10.43333333 | AC154: 9.1 | AD154: 8.55 | AE154: 8 | AF154: 7.55 | AG154: 7.1 | AH154: 7.55 | AI154: 8 | AJ154: 7.45 | AK154: 6.9 | AL154: 6.65 | AM154: 6.4 | AN154: 6.8 | AO154: 7.2 | AP154: 6.2 | AQ154: 5.2 | AR154: 4.55 | AS154: 3.9 | AT154: 2.9 | AU154: 1.9 | AV154: 0 | AW154: 0 | AX154: 1.9 | AY154: 2.9 | AZ154: 3.9 | BA154: 4.55 | BB154: 5.2 | BC154: 6.2 | BD154: 7.2 | BE154: 6.8 | BF154: 6.4 | BG154: 6.65 | BH154: 6.9 | BI154: 7.45 | BJ154: 8 | BK154: 7.55 | BL154: 7.1 | BM154: 7.55 | BN154: 8 | BO154: 8.55 | BP154: 9.1 | BQ154: 10.43333333 | BR154: =BR$7+BR52+BR97 -> 11.76666667 | BS154: 13.1 | BT154: 11.76666667 | BU154: 10.43333333 | BV154: 9.1 | BW154: 8.55 | BX154: 8 | BY154: 7.55 | BZ154: 7.1 | CA154: 7.55 | CB154: 8 | CC154: 7.45 | CD154: 6.9 | CE154: 6.65 | CF154: 6.4 | CG154: 6.8 | CH154: 7.2 | CI154: 6.2 | CJ154: 5.2 | CK154: 4.55 | CL154: 3.9 | CM154: 2.9 | CN154: 1.9 | CO154: 0 | CP154: 0 | CQ154: 1.9 | CR154: 2.9 | CS154: 3.9 | CT154: 4.55 | CU154: 5.2 | CV154: 6.2 | CW154: 7.2 | CX154: 6.8 | CY154: 6.4 | CZ154: 6.65 | DA154: 6.9 | DB154: 7.45 | DC154: 8 | DD154: 7.55 | DE154: 7.1 | DF154: 7.55 | DG154: 8 | DH154: 8.55 | DI154: 9.1 | DJ154: 10.43333333 | DK154: 11.76666667 | DL154: 13.1 | DM154: 11.76666667 | DN154: 10.43333333 | DO154: 9.1 | DP154: 8.55 | DQ154: 8 | DR154: 7.55 | DS154: 7.1 | DT154: 7.55 | DU154: 8 | DV154: 7.45 | DW154: 6.9 | DX154: 6.65 | DY154: 6.4
A155: 46 | B155: =IF($D155<=$B$6,STDEV(OFFSET(D155,0,2*$B$11-D155+$B$12):OFFSET(D155,0,2*$B$11-1+$B$12))/C155,"") ->  | C155: =IF($D155<=$B$6,AVERAGE(OFFSET(D155,0,2*$B$11-D155+$B$12):OFFSET(D155,0,2*$B$11-1+$B$12)),"") ->  | D155: 46 | E155: =E$7+E53+E99 -> 1.9 | F155: =F$7+F53+F99 -> 2.9 | G155: 3.9 | H155: 4.55 | I155: 5.2 | J155: 6.2 | K155: 7.2 | L155: 6.8 | M155: 6.4 | N155: 6.65 | O155: 6.9 | P155: 7.45 | Q155: 8 | R155: 7.55 | S155: 7.1 | T155: 7.55 | U155: 8 | V155: 8.55 | W155: 9.1 | X155: 10.43333333 | Y155: 11.76666667 | Z155: 13.1 | AA155: 11.76666667 | AB155: 10.43333333 | AC155: 9.1 | AD155: 8.55 | AE155: 8 | AF155: 7.55 | AG155: 7.1 | AH155: 7.55 | AI155: 8 | AJ155: 7.45 | AK155: 6.9 | AL155: 6.65 | AM155: 6.4 | AN155: 6.8 | AO155: 7.2 | AP155: 6.2 | AQ155: 5.2 | AR155: 4.55 | AS155: 3.9 | AT155: 2.9 | AU155: 1.9 | AV155: 0 | AW155: 0 | AX155: 0 | AY155: 1.9 | AZ155: 2.9 | BA155: 3.9 | BB155: 4.55 | BC155: 5.2 | BD155: 6.2 | BE155: 7.2 | BF155: 6.8 | BG155: 6.4 | BH155: 6.65 | BI155: 6.9 | BJ155: 7.45 | BK155: 8 | BL155: 7.55 | BM155: 7.1 | BN155: 7.55 | BO155: 8 | BP155: 8.55 | BQ155: 9.1 | BR155: =BR$7+BR53+BR99 -> 10.43333333 | BS155: 11.76666667 | BT155: 13.1 | BU155: 11.76666667 | BV155: 10.43333333 | BW155: 9.1 | BX155: 8.55 | BY155: 8 | BZ155: 7.55 | CA155: 7.1 | CB155: 7.55 | CC155: 8 | CD155: 7.45 | CE155: 6.9 | CF155: 6.65 | CG155: 6.4 | CH155: 6.8 | CI155: 7.2 | CJ155: 6.2 | CK155: 5.2 | CL155: 4.55 | CM155: 3.9 | CN155: 2.9 | CO155: 1.9 | CP155: 0 | CQ155: 0 | CR155: 0 | CS155: 1.9 | CT155: 2.9 | CU155: 3.9 | CV155: 4.55 | CW155: 5.2 | CX155: 6.2 | CY155: 7.2 | CZ155: 6.8 | DA155: 6.4 | DB155: 6.65 | DC155: 6.9 | DD155: 7.45 | DE155: 8 | DF155: 7.55 | DG155: 7.1 | DH155: 7.55 | DI155: 8 | DJ155: 8.55 | DK155: 9.1 | DL155: 10.43333333 | DM155: 11.76666667 | DN155: 13.1 | DO155: 11.76666667 | DP155: 10.43333333 | DQ155: 9.1 | DR155: 8.55 | DS155: 8 | DT155: 7.55 | DU155: 7.1 | DV155: 7.55 | DW155: 8 | DX155: 7.45 | DY155: 6.9 | DZ155: 6.65
A156: 47 | B156: =IF($D156<=$B$6,STDEV(OFFSET(D156,0,2*$B$11-D156+$B$12):OFFSET(D156,0,2*$B$11-1+$B$12))/C156,"") ->  | C156: =IF($D156<=$B$6,AVERAGE(OFFSET(D156,0,2*$B$11-D156+$B$12):OFFSET(D156,0,2*$B$11-1+$B$12)),"") ->  | D156: 47 | E156: =E$7+E54+E101 -> 1.9 | F156: =F$7+F54+F101 -> 2.9 | G156: 3.9 | H156: 4.55 | I156: 5.2 | J156: 6.2 | K156: 7.2 | L156: 6.8 | M156: 6.4 | N156: 6.65 | O156: 6.9 | P156: 7.45 | Q156: 8 | R156: 7.55 | S156: 7.1 | T156: 7.55 | U156: 8 | V156: 8.55 | W156: 9.1 | X156: 10.43333333 | Y156: 11.76666667 | Z156: 13.1 | AA156: 11.76666667 | AB156: 10.43333333 | AC156: 9.1 | AD156: 8.55 | AE156: 8 | AF156: 7.55 | AG156: 7.1 | AH156: 7.55 | AI156: 8 | AJ156: 7.45 | AK156: 6.9 | AL156: 6.65 | AM156: 6.4 | AN156: 6.8 | AO156: 7.2 | AP156: 6.2 | AQ156: 5.2 | AR156: 4.55 | AS156: 3.9 | AT156: 2.9 | AU156: 1.9 | AV156: 0 | AW156: 0 | AX156: 0 | AY156: 0 | AZ156: 1.9 | BA156: 2.9 | BB156: 3.9 | BC156: 4.55 | BD156: 5.2 | BE156: 6.2 | BF156: 7.2 | BG156: 6.8 | BH156: 6.4 | BI156: 6.65 | BJ156: 6.9 | BK156: 7.45 | BL156: 8 | BM156: 7.55 | BN156: 7.1 | BO156: 7.55 | BP156: 8 | BQ156: 8.55 | BR156: =BR$7+BR54+BR101 -> 9.1 | BS156: 10.43333333 | BT156: 11.76666667 | BU156: 13.1 | BV156: 11.76666667 | BW156: 10.43333333 | BX156: 9.1 | BY156: 8.55 | BZ156: 8 | CA156: 7.55 | CB156: 7.1 | CC156: 7.55 | CD156: 8 | CE156: 7.45 | CF156: 6.9 | CG156: 6.65 | CH156: 6.4 | CI156: 6.8 | CJ156: 7.2 | CK156: 6.2 | CL156: 5.2 | CM156: 4.55 | CN156: 3.9 | CO156: 2.9 | CP156: 1.9 | CQ156: 0 | CR156: 0 | CS156: 0 | CT156: 0 | CU156: 1.9 | CV156: 2.9 | CW156: 3.9 | CX156: 4.55 | CY156: 5.2 | CZ156: 6.2 | DA156: 7.2 | DB156: 6.8 | DC156: 6.4 | DD156: 6.65 | DE156: 6.9 | DF156: 7.45 | DG156: 8 | DH156: 7.55 | DI156: 7.1 | DJ156: 7.55 | DK156: 8 | DL156: 8.55 | DM156: 9.1 | DN156: 10.43333333 | DO156: 11.76666667 | DP156: 13.1 | DQ156: 11.76666667 | DR156: 10.43333333 | DS156: 9.1 | DT156: 8.55 | DU156: 8 | DV156: 7.55 | DW156: 7.1 | DX156: 7.55 | DY156: 8 | DZ156: 7.45 | EA156: 6.9
A157: 48 | B157: =IF($D157<=$B$6,STDEV(OFFSET(D157,0,2*$B$11-D157+$B$12):OFFSET(D157,0,2*$B$11-1+$B$12))/C157,"") ->  | C157: =IF($D157<=$B$6,AVERAGE(OFFSET(D157,0,2*$B$11-D157+$B$12):OFFSET(D157,0,2*$B$11-1+$B$12)),"") ->  | D157: 48 | E157: =E$7+E55+E103 -> 1.9 | F157: =F$7+F55+F103 -> 2.9 | G157: 3.9 | H157: 4.55 | I157: 5.2 | J157: 6.2 | K157: 7.2 | L157: 6.8 | M157: 6.4 | N157: 6.65 | O157: 6.9 | P157: 7.45 | Q157: 8 | R157: 7.55 | S157: 7.1 | T157: 7.55 | U157: 8 | V157: 8.55 | W157: 9.1 | X157: 10.43333333 | Y157: 11.76666667 | Z157: 13.1 | AA157: 11.76666667 | AB157: 10.43333333 | AC157: 9.1 | AD157: 8.55 | AE157: 8 | AF157: 7.55 | AG157: 7.1 | AH157: 7.55 | AI157: 8 | AJ157: 7.45 | AK157: 6.9 | AL157: 6.65 | AM157: 6.4 | AN157: 6.8 | AO157: 7.2 | AP157: 6.2 | AQ157: 5.2 | AR157: 4.55 | AS157: 3.9 | AT157: 2.9 | AU157: 1.9 | AV157: 0 | AW157: 0 | AX157: 0 | AY157: 0 | AZ157: 0 | BA157: 1.9 | BB157: 2.9 | BC157: 3.9 | BD157: 4.55 | BE157: 5.2 | BF157: 6.2 | BG157: 7.2 | BH157: 6.8 | BI157: 6.4 | BJ157: 6.65 | BK157: 6.9 | BL157: 7.45 | BM157: 8 | BN157: 7.55 | BO157: 7.1 | BP157: 7.55 | BQ157: 8 | BR157: =BR$7+BR55+BR103 -> 8.55 | BS157: 9.1 | BT157: 10.43333333 | BU157: 11.76666667 | BV157: 13.1 | BW157: 11.76666667 | BX157: 10.43333333 | BY157: 9.1 | BZ157: 8.55 | CA157: 8 | CB157: 7.55 | CC157: 7.1 | CD157: 7.55 | CE157: 8 | CF157: 7.45 | CG157: 6.9 | CH157: 6.65 | CI157: 6.4 | CJ157: 6.8 | CK157: 7.2 | CL157: 6.2 | CM157: 5.2 | CN157: 4.55 | CO157: 3.9 | CP157: 2.9 | CQ157: 1.9 | CR157: 0 | CS157: 0 | CT157: 0 | CU157: 0 | CV157: 0 | CW157: 1.9 | CX157: 2.9 | CY157: 3.9 | CZ157: 4.55 | DA157: 5.2 | DB157: 6.2 | DC157: 7.2 | DD157: 6.8 | DE157: 6.4 | DF157: 6.65 | DG157: 6.9 | DH157: 7.45 | DI157: 8 | DJ157: 7.55 | DK157: 7.1 | DL157: 7.55 | DM157: 8 | DN157: 8.55 | DO157: 9.1 | DP157: 10.43333333 | DQ157: 11.76666667 | DR157: 13.1 | DS157: 11.76666667 | DT157: 10.43333333 | DU157: 9.1 | DV157: 8.55 | DW157: 8 | DX157: 7.55 | DY157: 7.1 | DZ157: 7.55 | EA157: 8 | EB157: 7.45
A158: 49 | B158: =IF($D158<=$B$6,STDEV(OFFSET(D158,0,2*$B$11-D158+$B$12):OFFSET(D158,0,2*$B$11-1+$B$12))/C158,"") ->  | C158: =IF($D158<=$B$6,AVERAGE(OFFSET(D158,0,2*$B$11-D158+$B$12):OFFSET(D158,0,2*$B$11-1+$B$12)),"") ->  | D158: 49 | E158: =E$7+E56+E105 -> 1.9 | F158: =F$7+F56+F105 -> 2.9 | G158: 3.9 | H158: 4.55 | I158: 5.2 | J158: 6.2 | K158: 7.2 | L158: 6.8 | M158: 6.4 | N158: 6.65 | O158: 6.9 | P158: 7.45 | Q158: 8 | R158: 7.55 | S158: 7.1 | T158: 7.55 | U158: 8 | V158: 8.55 | W158: 9.1 | X158: 10.43333333 | Y158: 11.76666667 | Z158: 13.1 | AA158: 11.76666667 | AB158: 10.43333333 | AC158: 9.1 | AD158: 8.55 | AE158: 8 | AF158: 7.55 | AG158: 7.1 | AH158: 7.55 | AI158: 8 | AJ158: 7.45 | AK158: 6.9 | AL158: 6.65 | AM158: 6.4 | AN158: 6.8 | AO158: 7.2 | AP158: 6.2 | AQ158: 5.2 | AR158: 4.55 | AS158: 3.9 | AT158: 2.9 | AU158: 1.9 | AV158: 0 | AW158: 0 | AX158: 0 | AY158: 0 | AZ158: 0 | BA158: 0 | BB158: 1.9 | BC158: 2.9 | BD158: 3.9 | BE158: 4.55 | BF158: 5.2 | BG158: 6.2 | BH158: 7.2 | BI158: 6.8 | BJ158: 6.4 | BK158: 6.65 | BL158: 6.9 | BM158: 7.45 | BN158: 8 | BO158: 7.55 | BP158: 7.1 | BQ158: 7.55 | BR158: =BR$7+BR56+BR105 -> 8 | BS158: 8.55 | BT158: 9.1 | BU158: 10.43333333 | BV158: 11.76666667 | BW158: 13.1 | BX158: 11.76666667 | BY158: 10.43333333 | BZ158: 9.1 | CA158: 8.55 | CB158: 8 | CC158: 7.55 | CD158: 7.1 | CE158: 7.55 | CF158: 8 | CG158: 7.45 | CH158: 6.9 | CI158: 6.65 | CJ158: 6.4 | CK158: 6.8 | CL158: 7.2 | CM158: 6.2 | CN158: 5.2 | CO158: 4.55 | CP158: 3.9 | CQ158: 2.9 | CR158: 1.9 | CS158: 0 | CT158: 0 | CU158: 0 | CV158: 0 | CW158: 0 | CX158: 0 | CY158: 1.9 | CZ158: 2.9 | DA158: 3.9 | DB158: 4.55 | DC158: 5.2 | DD158: 6.2 | DE158: 7.2 | DF158: 6.8 | DG158: 6.4 | DH158: 6.65 | DI158: 6.9 | DJ158: 7.45 | DK158: 8 | DL158: 7.55 | DM158: 7.1 | DN158: 7.55 | DO158: 8 | DP158: 8.55 | DQ158: 9.1 | DR158: 10.43333333 | DS158: 11.76666667 | DT158: 13.1 | DU158: 11.76666667 | DV158: 10.43333333 | DW158: 9.1 | DX158: 8.55 | DY158: 8 | DZ158: 7.55 | EA158: 7.1 | EB158: 7.55 | EC158: 8
A159: 50 | B159: =IF($D159<=$B$6,STDEV(OFFSET(D159,0,2*$B$11-D159+$B$12):OFFSET(D159,0,2*$B$11-1+$B$12))/C159,"") ->  | C159: =IF($D159<=$B$6,AVERAGE(OFFSET(D159,0,2*$B$11-D159+$B$12):OFFSET(D159,0,2*$B$11-1+$B$12)),"") ->  | D159: =D56 -> 50 | E159: =E$7+E57 -> 1.9 | F159: 2.9 | G159: 3.9 | H159: 4.55 | I159: 5.2 | J159: 6.2 | K159: 7.2 | L159: 6.8 | M159: 6.4 | N159: 6.65 | O159: 6.9 | P159: 7.45 | Q159: 8 | R159: 7.55 | S159: 7.1 | T159: 7.55 | U159: 8 | V159: 8.55 | W159: 9.1 | X159: 10.43333333 | Y159: 11.76666667 | Z159: 13.1 | AA159: 11.76666667 | AB159: 10.43333333 | AC159: 9.1 | AD159: 8.55 | AE159: 8 | AF159: 7.55 | AG159: 7.1 | AH159: 7.55 | AI159: 8 | AJ159: 7.45 | AK159: =AK$7+AK57 -> 6.9 | AL159: 6.65 | AM159: 6.4 | AN159: 6.8 | AO159: 7.2 | AP159: 6.2 | AQ159: 5.2 | AR159: 4.55 | AS159: 3.9 | AT159: 2.9 | AU159: 1.9 | AV159: 0 | AW159: 0 | AX159: 0 | AY159: 0 | AZ159: 0 | BA159: 0 | BB159: 0 | BC159: 1.9 | BD159: 2.9 | BE159: 3.9 | BF159: 4.55 | BG159: 5.2 | BH159: 6.2 | BI159: 7.2 | BJ159: 6.8 | BK159: 6.4 | BL159: 6.65 | BM159: 6.9 | BN159: 7.45 | BO159: 8 | BP159: 7.55 | BQ159: 7.1 | BR159: 7.55 | BS159: 8 | BT159: 8.55 | BU159: 9.1 | BV159: 10.43333333 | BW159: 11.76666667 | BX159: 13.1 | BY159: 11.76666667 | BZ159: 10.43333333 | CA159: 9.1 | CB159: 8.55 | CC159: 8 | CD159: 7.55 | CE159: 7.1 | CF159: 7.55 | CG159: 8 | CH159: 7.45 | CI159: 6.9 | CJ159: 6.65 | CK159: 6.4 | CL159: 6.8 | CM159: 7.2 | CN159: 6.2 | CO159: 5.2 | CP159: 4.55 | CQ159: 3.9 | CR159: 2.9 | CS159: 1.9 | CT159: 0 | CU159: 0 | CV159: 0 | CW159: =CW$7+CW57 -> 0 | CX159: 0 | CY159: 0 | CZ159: 0 | DA159: 0 | DB159: 0 | DC159: 0 | DD159: 0 | DE159: 0 | DF159: 0 | DG159: 0 | DH159: 0 | DI159: 0 | DJ159: 0 | DK159: 0 | DL159: 0 | DM159: 0 | DN159: 0 | DO159: 0 | DP159: 0 | DQ159: 0 | DR159: 0 | DS159: 0 | DT159: 0 | DU159: 0 | DV159: 0 | DW159: 0 | DX159: 0 | DY159: 0 | DZ159: 0 | EA159: 0 | EB159: 0 | EC159: 0 | ED159: 0
A160: 51 | B160: =IF($D160<=$B$6,STDEV(OFFSET(D160,0,2*$B$11-D160+$B$12):OFFSET(D160,0,2*$B$11-1+$B$12))/C160,"") ->  | C160: =IF($D160<=$B$6,AVERAGE(OFFSET(D160,0,2*$B$11-D160+$B$12):OFFSET(D160,0,2*$B$11-1+$B$12)),"") ->  | D160: =D57 -> 51 | E160: =E$7+E58 -> 1.9 | F160: 2.9 | G160: 3.9 | H160: 4.55 | I160: 5.2 | J160: 6.2 | K160: 7.2 | L160: 6.8 | M160: 6.4 | N160: 6.65 | O160: 6.9 | P160: 7.45 | Q160: 8 | R160: 7.55 | S160: 7.1 | T160: 7.55 | U160: =U$7+U58 -> 8 | V160: 8.55 | W160: 9.1 | X160: 10.43333333 | Y160: 11.76666667 | Z160: 13.1 | AA160: 11.76666667 | AB160: 10.43333333 | AC160: 9.1 | AD160: 8.55 | AE160: 8 | AF160: 7.55 | AG160: 7.1 | AH160: 7.55 | AI160: 8 | AJ160: 7.45 | AK160: 6.9 | AL160: 6.65 | AM160: 6.4 | AN160: 6.8 | AO160: 7.2 | AP160: 6.2 | AQ160: 5.2 | AR160: 4.55 | AS160: 3.9 | AT160: 2.9 | AU160: 1.9 | AV160: 0 | AW160: 0 | AX160: 0 | AY160: 0 | AZ160: 0 | BA160: 0 | BB160: 0 | BC160: 0 | BD160: 1.9 | BE160: 2.9 | BF160: 3.9 | BG160: 4.55 | BH160: 5.2 | BI160: 6.2 | BJ160: 7.2 | BK160: 6.8 | BL160: 6.4 | BM160: 6.65 | BN160: 6.9 | BO160: 7.45 | BP160: 8 | BQ160: 7.55 | BR160: 7.1 | BS160: 7.55 | BT160: 8 | BU160: 8.55 | BV160: 9.1 | BW160: 10.43333333 | BX160: 11.76666667 | BY160: 13.1 | BZ160: 11.76666667 | CA160: 10.43333333 | CB160: 9.1 | CC160: 8.55 | CD160: 8 | CE160: 7.55 | CF160: 7.1 | CG160: 7.55 | CH160: 8 | CI160: 7.45 | CJ160: 6.9 | CK160: 6.65 | CL160: 6.4 | CM160: 6.8 | CN160: 7.2 | CO160: 6.2 | CP160: 5.2 | CQ160: 4.55 | CR160: 3.9 | CS160: 2.9 | CT160: 1.9 | CU160: 0 | CV160: 0 | CW160: 0 | CX160: 0 | CY160: 0 | CZ160: 0 | DA160: 0 | DB160: 0 | DC160: 0 | DD160: 0 | DE160: 0 | DF160: 0 | DG160: 0 | DH160: 0 | DI160: 0 | DJ160: 0 | DK160: 0 | DL160: 0 | DM160: 0 | DN160: 0 | DO160: 0 | DP160: 0 | DQ160: 0 | DR160: 0 | DS160: 0 | DT160: 0 | DU160: 0 | DV160: 0 | DW160: 0 | DX160: 0 | DY160: 0 | DZ160: 0 | EA160: 0 | EB160: 0 | EC160: 0 | ED160: 0 | EE160: =EE$7+EE58 -> 0
A161: 52 | B161: =IF($D161<=$B$6,STDEV(OFFSET(D161,0,2*$B$11-D161+$B$12):OFFSET(D161,0,2*$B$11-1+$B$12))/C161,"") ->  | C161: =IF($D161<=$B$6,AVERAGE(OFFSET(D161,0,2*$B$11-D161+$B$12):OFFSET(D161,0,2*$B$11-1+$B$12)),"") ->  | D161: 52 | E161: 1.9 | F161: 2.9 | G161: 3.9 | H161: 4.55 | I161: 5.2 | J161: 6.2 | K161: 7.2 | L161: 6.8 | M161: 6.4 | N161: 6.65 | O161: 6.9 | P161: 7.45 | Q161: 8 | R161: 7.55 | S161: 7.1 | T161: 7.55 | U161: 8 | V161: 8.55 | W161: 9.1 | X161: 10.43333333 | Y161: 11.76666667 | Z161: 13.1 | AA161: 11.76666667 | AB161: 10.43333333 | AC161: 9.1 | AD161: 8.55 | AE161: 8 | AF161: 7.55 | AG161: 7.1 | AH161: 7.55 | AI161: 8 | AJ161: 7.45 | AK161: 6.9 | AL161: 6.65 | AM161: 6.4 | AN161: 6.8 | AO161: 7.2 | AP161: 6.2 | AQ161: 5.2 | AR161: 4.55 | AS161: 3.9 | AT161: 2.9 | AU161: 1.9 | AV161: 0 | AW161: 0 | AX161: 0 | AY161: 0 | AZ161: 0 | BA161: 0 | BB161: 0 | BC161: 0 | BD161: 0 | BE161: 1.9 | BF161: 2.9 | BG161: 3.9 | BH161: 4.55 | BI161: 5.2 | BJ161: 6.2 | BK161: 7.2 | BL161: 6.8 | BM161: 6.4 | BN161: 6.65 | BO161: 6.9 | BP161: 7.45 | BQ161: 8 | BR161: 7.55 | BS161: 7.1 | BT161: 7.55 | BU161: 8 | BV161: 8.55 | BW161: 9.1 | BX161: 10.43333333 | BY161: 11.76666667 | BZ161: 13.1 | CA161: 11.76666667 | CB161: 10.43333333 | CC161: 9.1 | CD161: 8.55 | CE161: 8 | CF161: 7.55 | CG161: 7.1 | CH161: 7.55 | CI161: 8 | CJ161: 7.45 | CK161: 6.9 | CL161: 6.65 | CM161: 6.4 | CN161: 6.8 | CO161: 7.2 | CP161: 6.2 | CQ161: 5.2 | CR161: 4.55 | CS161: 3.9 | CT161: 2.9 | CU161: 1.9 | CV161: 0 | CW161: 0 | CX161: 0 | CY161: 0 | CZ161: 0 | DA161: 0 | DB161: 0 | DC161: 0 | DD161: 0 | DE161: 0 | DF161: 0 | DG161: 0 | DH161: 0 | DI161: 0 | DJ161: 0 | DK161: 0 | DL161: 0 | DM161: 0 | DN161: 0 | DO161: 0 | DP161: 0 | DQ161: 0 | DR161: 0 | DS161: 0 | DT161: 0 | DU161: 0 | DV161: 0 | DW161: 0 | DX161: 0 | DY161: 0 | DZ161: 0 | EA161: 0 | EB161: 0 | EC161: 0 | ED161: 0 | EE161: 0 | EF161: 0
A162: 53 | B162: =IF($D162<=$B$6,STDEV(OFFSET(D162,0,2*$B$11-D162+$B$12):OFFSET(D162,0,2*$B$11-1+$B$12))/C162,"") ->  | C162: =IF($D162<=$B$6,AVERAGE(OFFSET(D162,0,2*$B$11-D162+$B$12):OFFSET(D162,0,2*$B$11-1+$B$12)),"") ->  | D162: 53 | E162: 1.9 | F162: =F$7+F60 -> 2.9 | G162: 3.9 | H162: 4.55 | I162: 5.2 | J162: 6.2 | K162: 7.2 | L162: 6.8 | M162: 6.4 | N162: 6.65 | O162: 6.9 | P162: 7.45 | Q162: 8 | R162: 7.55 | S162: 7.1 | T162: 7.55 | U162: 8 | V162: 8.55 | W162: 9.1 | X162: 10.43333333 | Y162: 11.76666667 | Z162: 13.1 | AA162: 11.76666667 | AB162: 10.43333333 | AC162: 9.1 | AD162: 8.55 | AE162: 8 | AF162: 7.55 | AG162: 7.1 | AH162: 7.55 | AI162: 8 | AJ162: 7.45 | AK162: 6.9 | AL162: 6.65 | AM162: 6.4 | AN162: 6.8 | AO162: 7.2 | AP162: 6.2 | AQ162: 5.2 | AR162: 4.55 | AS162: 3.9 | AT162: 2.9 | AU162: 1.9 | AV162: 0 | AW162: 0 | AX162: 0 | AY162: 0 | AZ162: 0 | BA162: 0 | BB162: 0 | BC162: 0 | BD162: 0 | BE162: 0 | BF162: 1.9 | BG162: 2.9 | BH162: 3.9 | BI162: 4.55 | BJ162: 5.2 | BK162: 6.2 | BL162: 7.2 | BM162: 6.8 | BN162: 6.4 | BO162: 6.65 | BP162: 6.9 | BQ162: 7.45 | BR162: =BR$7+BR60 -> 8 | BS162: 7.55 | BT162: 7.1 | BU162: 7.55 | BV162: 8 | BW162: 8.55 | BX162: 9.1 | BY162: 10.43333333 | BZ162: 11.76666667 | CA162: 13.1 | CB162: 11.76666667 | CC162: 10.43333333 | CD162: 9.1 | CE162: 8.55 | CF162: 8 | CG162: 7.55 | CH162: 7.1 | CI162: 7.55 | CJ162: 8 | CK162: 7.45 | CL162: 6.9 | CM162: 6.65 | CN162: 6.4 | CO162: 6.8 | CP162: 7.2 | CQ162: 6.2 | CR162: 5.2 | CS162: 4.55 | CT162: 3.9 | CU162: 2.9 | CV162: 1.9 | CW162: 0 | CX162: 0 | CY162: 0 | CZ162: 0 | DA162: 0 | DB162: 0 | DC162: 0 | DD162: 0 | DE162: 0 | DF162: 0 | DG162: 0 | DH162: 0 | DI162: 0 | DJ162: 0 | DK162: 0 | DL162: 0 | DM162: 0 | DN162: 0 | DO162: 0 | DP162: 0 | DQ162: 0 | DR162: 0 | DS162: 0 | DT162: 0 | DU162: 0 | DV162: 0 | DW162: 0 | DX162: 0 | DY162: 0 | DZ162: 0 | EA162: 0 | EB162: 0 | EC162: 0 | ED162: =ED$7+ED60 -> 0 | EE162: 0 | EF162: 0 | EG162: 0
A163: 54 | B163: =IF($D163<=$B$6,STDEV(OFFSET(D163,0,2*$B$11-D163+$B$12):OFFSET(D163,0,2*$B$11-1+$B$12))/C163,"") ->  | C163: =IF($D163<=$B$6,AVERAGE(OFFSET(D163,0,2*$B$11-D163+$B$12):OFFSET(D163,0,2*$B$11-1+$B$12)),"") ->  | D163: 54 | E163: 1.9 | F163: =F$7+F61 -> 2.9 | G163: 3.9 | H163: 4.55 | I163: 5.2 | J163: 6.2 | K163: 7.2 | L163: 6.8 | M163: 6.4 | N163: 6.65 | O163: 6.9 | P163: 7.45 | Q163: 8 | R163: 7.55 | S163: 7.1 | T163: 7.55 | U163: 8 | V163: 8.55 | W163: 9.1 | X163: 10.43333333 | Y163: 11.76666667 | Z163: 13.1 | AA163: 11.76666667 | AB163: 10.43333333 | AC163: 9.1 | AD163: 8.55 | AE163: 8 | AF163: 7.55 | AG163: 7.1 | AH163: 7.55 | AI163: 8 | AJ163: 7.45 | AK163: 6.9 | AL163: 6.65 | AM163: 6.4 | AN163: 6.8 | AO163: 7.2 | AP163: 6.2 | AQ163: 5.2 | AR163: 4.55 | AS163: 3.9 | AT163: 2.9 | AU163: 1.9 | AV163: 0 | AW163: 0 | AX163: 0 | AY163: 0 | AZ163: 0 | BA163: 0 | BB163: 0 | BC163: 0 | BD163: 0 | BE163: 0 | BF163: 0 | BG163: 1.9 | BH163: 2.9 | BI163: 3.9 | BJ163: 4.55 | BK163: 5.2 | BL163: 6.2 | BM163: 7.2 | BN163: 6.8 | BO163: 6.4 | BP163: 6.65 | BQ163: 6.9 | BR163: =BR$7+BR61 -> 7.45 | BS163: 8 | BT163: 7.55 | BU163: 7.1 | BV163: 7.55 | BW163: 8 | BX163: 8.55 | BY163: 9.1 | BZ163: 10.43333333 | CA163: 11.76666667 | CB163: 13.1 | CC163: 11.76666667 | CD163: 10.43333333 | CE163: 9.1 | CF163: 8.55 | CG163: 8 | CH163: 7.55 | CI163: 7.1 | CJ163: 7.55 | CK163: 8 | CL163: 7.45 | CM163: 6.9 | CN163: 6.65 | CO163: 6.4 | CP163: 6.8 | CQ163: 7.2 | CR163: 6.2 | CS163: 5.2 | CT163: 4.55 | CU163: 3.9 | CV163: 2.9 | CW163: 1.9 | CX163: 0 | CY163: 0 | CZ163: 0 | DA163: 0 | DB163: 0 | DC163: 0 | DD163: 0 | DE163: 0 | DF163: 0 | DG163: 0 | DH163: 0 | DI163: 0 | DJ163: 0 | DK163: 0 | DL163: 0 | DM163: 0 | DN163: 0 | DO163: 0 | DP163: 0 | DQ163: 0 | DR163: 0 | DS163: 0 | DT163: 0 | DU163: 0 | DV163: 0 | DW163: 0 | DX163: 0 | DY163: 0 | DZ163: 0 | EA163: 0 | EB163: 0 | EC163: 0 | ED163: =ED$7+ED61 -> 0 | EE163: 0 | EF163: 0 | EG163: 0 | EH163: =EH$7+EH61 -> 0
A164: 55 | B164: =IF($D164<=$B$6,STDEV(OFFSET(D164,0,2*$B$11-D164+$B$12):OFFSET(D164,0,2*$B$11-1+$B$12))/C164,"") ->  | C164: =IF($D164<=$B$6,AVERAGE(OFFSET(D164,0,2*$B$11-D164+$B$12):OFFSET(D164,0,2*$B$11-1+$B$12)),"") ->  | D164: 55 | E164: 1.9 | F164: =F$7+F62 -> 2.9 | G164: 3.9 | H164: 4.55 | I164: 5.2 | J164: 6.2 | K164: 7.2 | L164: 6.8 | M164: 6.4 | N164: 6.65 | O164: 6.9 | P164: 7.45 | Q164: 8 | R164: 7.55 | S164: 7.1 | T164: 7.55 | U164: 8 | V164: 8.55 | W164: 9.1 | X164: 10.43333333 | Y164: 11.76666667 | Z164: 13.1 | AA164: 11.76666667 | AB164: 10.43333333 | AC164: 9.1 | AD164: 8.55 | AE164: 8 | AF164: 7.55 | AG164: 7.1 | AH164: 7.55 | AI164: 8 | AJ164: 7.45 | AK164: 6.9 | AL164: 6.65 | AM164: 6.4 | AN164: 6.8 | AO164: 7.2 | AP164: 6.2 | AQ164: 5.2 | AR164: 4.55 | AS164: 3.9 | AT164: 2.9 | AU164: 1.9 | AV164: 0 | AW164: 0 | AX164: 0 | AY164: 0 | AZ164: 0 | BA164: 0 | BB164: 0 | BC164: 0 | BD164: 0 | BE164: 0 | BF164: 0 | BG164: 0 | BH164: 1.9 | BI164: 2.9 | BJ164: 3.9 | BK164: 4.55 | BL164: 5.2 | BM164: 6.2 | BN164: 7.2 | BO164: 6.8 | BP164: 6.4 | BQ164: 6.65 | BR164: =BR$7+BR62 -> 6.9 | BS164: 7.45 | BT164: 8 | BU164: 7.55 | BV164: 7.1 | BW164: 7.55 | BX164: 8 | BY164: 8.55 | BZ164: 9.1 | CA164: 10.43333333 | CB164: 11.76666667 | CC164: 13.1 | CD164: 11.76666667 | CE164: 10.43333333 | CF164: 9.1 | CG164: 8.55 | CH164: 8 | CI164: 7.55 | CJ164: 7.1 | CK164: 7.55 | CL164: 8 | CM164: 7.45 | CN164: 6.9 | CO164: 6.65 | CP164: 6.4 | CQ164: 6.8 | CR164: 7.2 | CS164: 6.2 | CT164: 5.2 | CU164: 4.55 | CV164: 3.9 | CW164: 2.9 | CX164: 1.9 | CY164: 0 | CZ164: 0 | DA164: 0 | DB164: 0 | DC164: 0 | DD164: 0 | DE164: 0 | DF164: 0 | DG164: 0 | DH164: 0 | DI164: 0 | DJ164: 0 | DK164: 0 | DL164: 0 | DM164: 0 | DN164: 0 | DO164: 0 | DP164: 0 | DQ164: 0 | DR164: 0 | DS164: 0 | DT164: 0 | DU164: 0 | DV164: 0 | DW164: 0 | DX164: 0 | DY164: 0 | DZ164: 0 | EA164: 0 | EB164: 0 | EC164: 0 | ED164: =ED$7+ED62 -> 0 | EE164: 0 | EF164: 0 | EG164: 0 | EH164: =EH$7+EH62 -> 0 | EI164: 0
A165: 56 | B165: =IF($D165<=$B$6,STDEV(OFFSET(D165,0,2*$B$11-D165+$B$12):OFFSET(D165,0,2*$B$11-1+$B$12))/C165,"") ->  | C165: =IF($D165<=$B$6,AVERAGE(OFFSET(D165,0,2*$B$11-D165+$B$12):OFFSET(D165,0,2*$B$11-1+$B$12)),"") ->  | D165: 56 | E165: 1.9 | F165: =F$7+F63 -> 2.9 | G165: 3.9 | H165: 4.55 | I165: 5.2 | J165: 6.2 | K165: 7.2 | L165: 6.8 | M165: 6.4 | N165: 6.65 | O165: 6.9 | P165: 7.45 | Q165: 8 | R165: 7.55 | S165: 7.1 | T165: 7.55 | U165: 8 | V165: 8.55 | W165: 9.1 | X165: 10.43333333 | Y165: 11.76666667 | Z165: 13.1 | AA165: 11.76666667 | AB165: 10.43333333 | AC165: 9.1 | AD165: 8.55 | AE165: 8 | AF165: 7.55 | AG165: 7.1 | AH165: 7.55 | AI165: 8 | AJ165: 7.45 | AK165: 6.9 | AL165: 6.65 | AM165: 6.4 | AN165: 6.8 | AO165: 7.2 | AP165: 6.2 | AQ165: 5.2 | AR165: 4.55 | AS165: 3.9 | AT165: 2.9 | AU165: 1.9 | AV165: 0 | AW165: 0 | AX165: 0 | AY165: 0 | AZ165: 0 | BA165: 0 | BB165: 0 | BC165: 0 | BD165: 0 | BE165: 0 | BF165: 0 | BG165: 0 | BH165: 0 | BI165: 1.9 | BJ165: 2.9 | BK165: 3.9 | BL165: 4.55 | BM165: 5.2 | BN165: 6.2 | BO165: 7.2 | BP165: 6.8 | BQ165: 6.4 | BR165: =BR$7+BR63 -> 6.65 | BS165: 6.9 | BT165: 7.45 | BU165: 8 | BV165: 7.55 | BW165: 7.1 | BX165: 7.55 | BY165: 8 | BZ165: 8.55 | CA165: 9.1 | CB165: 10.43333333 | CC165: 11.76666667 | CD165: 13.1 | CE165: 11.76666667 | CF165: 10.43333333 | CG165: 9.1 | CH165: 8.55 | CI165: 8 | CJ165: 7.55 | CK165: 7.1 | CL165: 7.55 | CM165: 8 | CN165: 7.45 | CO165: 6.9 | CP165: 6.65 | CQ165: 6.4 | CR165: 6.8 | CS165: 7.2 | CT165: 6.2 | CU165: 5.2 | CV165: 4.55 | CW165: 3.9 | CX165: 2.9 | CY165: 1.9 | CZ165: 0 | DA165: 0 | DB165: 0 | DC165: 0 | DD165: 0 | DE165: 0 | DF165: 0 | DG165: 0 | DH165: 0 | DI165: 0 | DJ165: 0 | DK165: 0 | DL165: 0 | DM165: 0 | DN165: 0 | DO165: 0 | DP165: 0 | DQ165: 0 | DR165: 0 | DS165: 0 | DT165: 0 | DU165: 0 | DV165: 0 | DW165: 0 | DX165: 0 | DY165: 0 | DZ165: 0 | EA165: 0 | EB165: 0 | EC165: 0 | ED165: =ED$7+ED63 -> 0 | EE165: 0 | EF165: 0 | EG165: 0 | EH165: =EH$7+EH63 -> 0 | EI165: 0 | EJ165: =EJ$7+EJ63 -> 0
A166: 57 | B166: =IF($D166<=$B$6,STDEV(OFFSET(D166,0,2*$B$11-D166+$B$12):OFFSET(D166,0,2*$B$11-1+$B$12))/C166,"") ->  | C166: =IF($D166<=$B$6,AVERAGE(OFFSET(D166,0,2*$B$11-D166+$B$12):OFFSET(D166,0,2*$B$11-1+$B$12)),"") ->  | D166: 57 | E166: 1.9 | F166: =F$7+F64 -> 2.9 | G166: 3.9 | H166: 4.55 | I166: 5.2 | J166: 6.2 | K166: 7.2 | L166: 6.8 | M166: 6.4 | N166: 6.65 | O166: 6.9 | P166: 7.45 | Q166: 8 | R166: 7.55 | S166: 7.1 | T166: 7.55 | U166: 8 | V166: 8.55 | W166: 9.1 | X166: 10.43333333 | Y166: 11.76666667 | Z166: 13.1 | AA166: 11.76666667 | AB166: 10.43333333 | AC166: 9.1 | AD166: 8.55 | AE166: 8 | AF166: 7.55 | AG166: 7.1 | AH166: 7.55 | AI166: 8 | AJ166: 7.45 | AK166: 6.9 | AL166: 6.65 | AM166: 6.4 | AN166: 6.8 | AO166: 7.2 | AP166: 6.2 | AQ166: 5.2 | AR166: 4.55 | AS166: 3.9 | AT166: 2.9 | AU166: 1.9 | AV166: 0 | AW166: 0 | AX166: 0 | AY166: 0 | AZ166: 0 | BA166: 0 | BB166: 0 | BC166: 0 | BD166: 0 | BE166: 0 | BF166: 0 | BG166: 0 | BH166: 0 | BI166: 0 | BJ166: 1.9 | BK166: 2.9 | BL166: 3.9 | BM166: 4.55 | BN166: 5.2 | BO166: 6.2 | BP166: 7.2 | BQ166: 6.8 | BR166: =BR$7+BR64 -> 6.4 | BS166: 6.65 | BT166: 6.9 | BU166: 7.45 | BV166: 8 | BW166: 7.55 | BX166: 7.1 | BY166: 7.55 | BZ166: 8 | CA166: 8.55 | CB166: 9.1 | CC166: 10.43333333 | CD166: 11.76666667 | CE166: 13.1 | CF166: 11.76666667 | CG166: 10.43333333 | CH166: 9.1 | CI166: 8.55 | CJ166: 8 | CK166: 7.55 | CL166: 7.1 | CM166: 7.55 | CN166: 8 | CO166: 7.45 | CP166: 6.9 | CQ166: 6.65 | CR166: 6.4 | CS166: 6.8 | CT166: 7.2 | CU166: 6.2 | CV166: 5.2 | CW166: 4.55 | CX166: 3.9 | CY166: 2.9 | CZ166: 1.9 | DA166: 0 | DB166: 0 | DC166: 0 | DD166: 0 | DE166: 0 | DF166: 0 | DG166: 0 | DH166: 0 | DI166: 0 | DJ166: 0 | DK166: 0 | DL166: 0 | DM166: 0 | DN166: 0 | DO166: 0 | DP166: 0 | DQ166: 0 | DR166: 0 | DS166: 0 | DT166: 0 | DU166: 0 | DV166: 0 | DW166: 0 | DX166: 0 | DY166: 0 | DZ166: 0 | EA166: 0 | EB166: 0 | EC166: 0 | ED166: =ED$7+ED64 -> 0 | EE166: 0 | EF166: 0 | EG166: 0 | EH166: =EH$7+EH64 -> 0 | EI166: 0 | EJ166: =EJ$7+EJ64 -> 0 | EK166: 0
A167: 58 | B167: =IF($D167<=$B$6,STDEV(OFFSET(D167,0,2*$B$11-D167+$B$12):OFFSET(D167,0,2*$B$11-1+$B$12))/C167,"") ->  | C167: =IF($D167<=$B$6,AVERAGE(OFFSET(D167,0,2*$B$11-D167+$B$12):OFFSET(D167,0,2*$B$11-1+$B$12)),"") ->  | D167: 58 | E167: 1.9 | F167: =F$7+F65 -> 2.9 | G167: 3.9 | H167: 4.55 | I167: 5.2 | J167: 6.2 | K167: 7.2 | L167: 6.8 | M167: 6.4 | N167: 6.65 | O167: 6.9 | P167: 7.45 | Q167: 8 | R167: 7.55 | S167: 7.1 | T167: 7.55 | U167: 8 | V167: 8.55 | W167: 9.1 | X167: 10.43333333 | Y167: 11.76666667 | Z167: 13.1 | AA167: 11.76666667 | AB167: 10.43333333 | AC167: 9.1 | AD167: 8.55 | AE167: 8 | AF167: 7.55 | AG167: 7.1 | AH167: 7.55 | AI167: 8 | AJ167: 7.45 | AK167: 6.9 | AL167: 6.65 | AM167: 6.4 | AN167: 6.8 | AO167: 7.2 | AP167: 6.2 | AQ167: 5.2 | AR167: 4.55 | AS167: 3.9 | AT167: 2.9 | AU167: 1.9 | AV167: 0 | AW167: 0 | AX167: 0 | AY167: 0 | AZ167: 0 | BA167: 0 | BB167: 0 | BC167: 0 | BD167: 0 | BE167: 0 | BF167: 0 | BG167: 0 | BH167: 0 | BI167: 0 | BJ167: 0 | BK167: 1.9 | BL167: 2.9 | BM167: 3.9 | BN167: 4.55 | BO167: 5.2 | BP167: 6.2 | BQ167: 7.2 | BR167: =BR$7+BR65 -> 6.8 | BS167: 6.4 | BT167: 6.65 | BU167: 6.9 | BV167: 7.45 | BW167: 8 | BX167: 7.55 | BY167: 7.1 | BZ167: 7.55 | CA167: 8 | CB167: 8.55 | CC167: 9.1 | CD167: 10.43333333 | CE167: 11.76666667 | CF167: 13.1 | CG167: 11.76666667 | CH167: 10.43333333 | CI167: 9.1 | CJ167: 8.55 | CK167: 8 | CL167: 7.55 | CM167: 7.1 | CN167: 7.55 | CO167: 8 | CP167: 7.45 | CQ167: 6.9 | CR167: 6.65 | CS167: 6.4 | CT167: 6.8 | CU167: 7.2 | CV167: 6.2 | CW167: 5.2 | CX167: 4.55 | CY167: 3.9 | CZ167: 2.9 | DA167: 1.9 | DB167: 0 | DC167: 0 | DD167: 0 | DE167: 0 | DF167: 0 | DG167: 0 | DH167: 0 | DI167: 0 | DJ167: 0 | DK167: 0 | DL167: 0 | DM167: 0 | DN167: 0 | DO167: 0 | DP167: 0 | DQ167: 0 | DR167: 0 | DS167: 0 | DT167: 0 | DU167: 0 | DV167: 0 | DW167: 0 | DX167: 0 | DY167: 0 | DZ167: 0 | EA167: 0 | EB167: 0 | EC167: 0 | ED167: =ED$7+ED65 -> 0 | EE167: 0 | EF167: 0 | EG167: 0 | EH167: =EH$7+EH65 -> 0 | EI167: 0 | EJ167: =EJ$7+EJ65 -> 0 | EK167: 0 | EL167: =EL$7+EL65 -> 0
A168: 59 | B168: =IF($D168<=$B$6,STDEV(OFFSET(D168,0,2*$B$11-D168+$B$12):OFFSET(D168,0,2*$B$11-1+$B$12))/C168,"") ->  | C168: =IF($D168<=$B$6,AVERAGE(OFFSET(D168,0,2*$B$11-D168+$B$12):OFFSET(D168,0,2*$B$11-1+$B$12)),"") ->  | D168: 59 | E168: 1.9 | F168: =F$7+F66 -> 2.9 | G168: 3.9 | H168: 4.55 | I168: 5.2 | J168: 6.2 | K168: 7.2 | L168: 6.8 | M168: 6.4 | N168: 6.65 | O168: 6.9 | P168: 7.45 | Q168: 8 | R168: 7.55 | S168: 7.1 | T168: 7.55 | U168: 8 | V168: 8.55 | W168: 9.1 | X168: 10.43333333 | Y168: 11.76666667 | Z168: 13.1 | AA168: 11.76666667 | AB168: 10.43333333 | AC168: 9.1 | AD168: 8.55 | AE168: 8 | AF168: 7.55 | AG168: 7.1 | AH168: 7.55 | AI168: 8 | AJ168: 7.45 | AK168: 6.9 | AL168: 6.65 | AM168: 6.4 | AN168: 6.8 | AO168: 7.2 | AP168: 6.2 | AQ168: 5.2 | AR168: 4.55 | AS168: 3.9 | AT168: 2.9 | AU168: 1.9 | AV168: 0 | AW168: 0 | AX168: 0 | AY168: 0 | AZ168: 0 | BA168: 0 | BB168: 0 | BC168: 0 | BD168: 0 | BE168: 0 | BF168: 0 | BG168: 0 | BH168: 0 | BI168: 0 | BJ168: 0 | BK168: 0 | BL168: 1.9 | BM168: 2.9 | BN168: 3.9 | BO168: 4.55 | BP168: 5.2 | BQ168: 6.2 | BR168: =BR$7+BR66 -> 7.2 | BS168: 6.8 | BT168: 6.4 | BU168: 6.65 | BV168: 6.9 | BW168: 7.45 | BX168: 8 | BY168: 7.55 | BZ168: 7.1 | CA168: 7.55 | CB168: 8 | CC168: 8.55 | CD168: 9.1 | CE168: 10.43333333 | CF168: 11.76666667 | CG168: 13.1 | CH168: 11.76666667 | CI168: 10.43333333 | CJ168: 9.1 | CK168: 8.55 | CL168: 8 | CM168: 7.55 | CN168: 7.1 | CO168: 7.55 | CP168: 8 | CQ168: 7.45 | CR168: 6.9 | CS168: 6.65 | CT168: 6.4 | CU168: 6.8 | CV168: 7.2 | CW168: 6.2 | CX168: 5.2 | CY168: 4.55 | CZ168: 3.9 | DA168: 2.9 | DB168: 1.9 | DC168: 0 | DD168: 0 | DE168: 0 | DF168: 0 | DG168: 0 | DH168: 0 | DI168: 0 | DJ168: 0 | DK168: 0 | DL168: 0 | DM168: 0 | DN168: 0 | DO168: 0 | DP168: 0 | DQ168: 0 | DR168: 0 | DS168: 0 | DT168: 0 | DU168: 0 | DV168: 0 | DW168: 0 | DX168: 0 | DY168: 0 | DZ168: 0 | EA168: 0 | EB168: 0 | EC168: 0 | ED168: =ED$7+ED66 -> 0 | EE168: 0 | EF168: 0 | EG168: 0 | EH168: =EH$7+EH66 -> 0 | EI168: 0 | EJ168: =EJ$7+EJ66 -> 0 | EK168: 0 | EL168: =EL$7+EL66 -> 0 | EM168: 0
A169: 60 | B169: =IF($D169<=$B$6,STDEV(OFFSET(D169,0,2*$B$11-D169+$B$12):OFFSET(D169,0,2*$B$11-1+$B$12))/C169,"") ->  | C169: =IF($D169<=$B$6,AVERAGE(OFFSET(D169,0,2*$B$11-D169+$B$12):OFFSET(D169,0,2*$B$11-1+$B$12)),"") ->  | D169: 60 | E169: 1.9 | F169: =F$7+F67 -> 2.9 | G169: 3.9 | H169: 4.55 | I169: 5.2 | J169: 6.2 | K169: 7.2 | L169: 6.8 | M169: 6.4 | N169: 6.65 | O169: 6.9 | P169: 7.45 | Q169: 8 | R169: 7.55 | S169: 7.1 | T169: 7.55 | U169: 8 | V169: 8.55 | W169: 9.1 | X169: 10.43333333 | Y169: 11.76666667 | Z169: 13.1 | AA169: 11.76666667 | AB169: 10.43333333 | AC169: 9.1 | AD169: 8.55 | AE169: 8 | AF169: 7.55 | AG169: 7.1 | AH169: 7.55 | AI169: 8 | AJ169: 7.45 | AK169: 6.9 | AL169: 6.65 | AM169: 6.4 | AN169: 6.8 | AO169: 7.2 | AP169: 6.2 | AQ169: 5.2 | AR169: 4.55 | AS169: 3.9 | AT169: 2.9 | AU169: 1.9 | AV169: 0 | AW169: 0 | AX169: 0 | AY169: 0 | AZ169: 0 | BA169: 0 | BB169: 0 | BC169: 0 | BD169: 0 | BE169: 0 | BF169: 0 | BG169: 0 | BH169: 0 | BI169: 0 | BJ169: 0 | BK169: 0 | BL169: 0 | BM169: 1.9 | BN169: 2.9 | BO169: 3.9 | BP169: 4.55 | BQ169: 5.2 | BR169: =BR$7+BR67 -> 6.2 | BS169: 7.2 | BT169: 6.8 | BU169: 6.4 | BV169: 6.65 | BW169: 6.9 | BX169: 7.45 | BY169: 8 | BZ169: 7.55 | CA169: 7.1 | CB169: 7.55 | CC169: 8 | CD169: 8.55 | CE169: 9.1 | CF169: 10.43333333 | CG169: 11.76666667 | CH169: 13.1 | CI169: 11.76666667 | CJ169: 10.43333333 | CK169: 9.1 | CL169: 8.55 | CM169: 8 | CN169: 7.55 | CO169: 7.1 | CP169: 7.55 | CQ169: 8 | CR169: 7.45 | CS169: 6.9 | CT169: 6.65 | CU169: 6.4 | CV169: 6.8 | CW169: 7.2 | CX169: 6.2 | CY169: 5.2 | CZ169: 4.55 | DA169: 3.9 | DB169: 2.9 | DC169: 1.9 | DD169: 0 | DE169: 0 | DF169: 0 | DG169: 0 | DH169: 0 | DI169: 0 | DJ169: 0 | DK169: 0 | DL169: 0 | DM169: 0 | DN169: 0 | DO169: 0 | DP169: 0 | DQ169: 0 | DR169: 0 | DS169: 0 | DT169: 0 | DU169: 0 | DV169: 0 | DW169: 0 | DX169: 0 | DY169: 0 | DZ169: 0 | EA169: 0 | EB169: 0 | EC169: 0 | ED169: =ED$7+ED67 -> 0 | EE169: 0 | EF169: 0 | EG169: 0 | EH169: =EH$7+EH67 -> 0 | EI169: 0 | EJ169: =EJ$7+EJ67 -> 0 | EK169: 0 | EL169: =EL$7+EL67 -> 0 | EM169: 0 | EN169: =EN$7+EN67 -> 0
A170: 61 | B170: =IF($D170<=$B$6,STDEV(OFFSET(D170,0,2*$B$11-D170+$B$12):OFFSET(D170,0,2*$B$11-1+$B$12))/C170,"") ->  | C170: =IF($D170<=$B$6,AVERAGE(OFFSET(D170,0,2*$B$11-D170+$B$12):OFFSET(D170,0,2*$B$11-1+$B$12)),"") ->  | D170: 61 | E170: 1.9 | F170: =F$7+F68 -> 2.9 | G170: 3.9 | H170: 4.55 | I170: 5.2 | J170: 6.2 | K170: 7.2 | L170: 6.8 | M170: 6.4 | N170: 6.65 | O170: 6.9 | P170: 7.45 | Q170: 8 | R170: 7.55 | S170: 7.1 | T170: 7.55 | U170: 8 | V170: 8.55 | W170: 9.1 | X170: 10.43333333 | Y170: 11.76666667 | Z170: 13.1 | AA170: 11.76666667 | AB170: 10.43333333 | AC170: 9.1 | AD170: 8.55 | AE170: 8 | AF170: 7.55 | AG170: 7.1 | AH170: 7.55 | AI170: 8 | AJ170: 7.45 | AK170: 6.9 | AL170: 6.65 | AM170: 6.4 | AN170: 6.8 | AO170: 7.2 | AP170: 6.2 | AQ170: 5.2 | AR170: 4.55 | AS170: 3.9 | AT170: 2.9 | AU170: 1.9 | AV170: 0 | AW170: 0 | AX170: 0 | AY170: 0 | AZ170: 0 | BA170: 0 | BB170: 0 | BC170: 0 | BD170: 0 | BE170: 0 | BF170: 0 | BG170: 0 | BH170: 0 | BI170: 0 | BJ170: 0 | BK170: 0 | BL170: 0 | BM170: 0 | BN170: 1.9 | BO170: 2.9 | BP170: 3.9 | BQ170: 4.55 | BR170: =BR$7+BR68 -> 5.2 | BS170: 6.2 | BT170: 7.2 | BU170: 6.8 | BV170: 6.4 | BW170: 6.65 | BX170: 6.9 | BY170: 7.45 | BZ170: 8 | CA170: 7.55 | CB170: 7.1 | CC170: 7.55 | CD170: 8 | CE170: 8.55 | CF170: 9.1 | CG170: 10.43333333 | CH170: 11.76666667 | CI170: 13.1 | CJ170: 11.76666667 | CK170: 10.43333333 | CL170: 9.1 | CM170: 8.55 | CN170: 8 | CO170: 7.55 | CP170: 7.1 | CQ170: 7.55 | CR170: 8 | CS170: 7.45 | CT170: 6.9 | CU170: 6.65 | CV170: 6.4 | CW170: 6.8 | CX170: 7.2 | CY170: 6.2 | CZ170: 5.2 | DA170: 4.55 | DB170: 3.9 | DC170: 2.9 | DD170: 1.9 | DE170: 0 | DF170: 0 | DG170: 0 | DH170: 0 | DI170: 0 | DJ170: 0 | DK170: 0 | DL170: 0 | DM170: 0 | DN170: 0 | DO170: 0 | DP170: 0 | DQ170: 0 | DR170: 0 | DS170: 0 | DT170: 0 | DU170: 0 | DV170: 0 | DW170: 0 | DX170: 0 | DY170: 0 | DZ170: 0 | EA170: 0 | EB170: 0 | EC170: 0 | ED170: =ED$7+ED68 -> 0 | EE170: 0 | EF170: 0 | EG170: 0 | EH170: =EH$7+EH68 -> 0 | EI170: 0 | EJ170: =EJ$7+EJ68 -> 0 | EK170: 0 | EL170: =EL$7+EL68 -> 0 | EM170: 0 | EN170: =EN$7+EN68 -> 0 | EO170: 0
A171: 62 | B171: =IF($D171<=$B$6,STDEV(OFFSET(D171,0,2*$B$11-D171+$B$12):OFFSET(D171,0,2*$B$11-1+$B$12))/C171,"") ->  | C171: =IF($D171<=$B$6,AVERAGE(OFFSET(D171,0,2*$B$11-D171+$B$12):OFFSET(D171,0,2*$B$11-1+$B$12)),"") ->  | D171: 62 | E171: 1.9 | F171: =F$7+F69 -> 2.9 | G171: 3.9 | H171: 4.55 | I171: 5.2 | J171: 6.2 | K171: 7.2 | L171: 6.8 | M171: 6.4 | N171: 6.65 | O171: 6.9 | P171: 7.45 | Q171: 8 | R171: 7.55 | S171: 7.1 | T171: 7.55 | U171: 8 | V171: 8.55 | W171: 9.1 | X171: 10.43333333 | Y171: 11.76666667 | Z171: 13.1 | AA171: 11.76666667 | AB171: 10.43333333 | AC171: 9.1 | AD171: 8.55 | AE171: 8 | AF171: 7.55 | AG171: 7.1 | AH171: 7.55 | AI171: 8 | AJ171: 7.45 | AK171: 6.9 | AL171: 6.65 | AM171: 6.4 | AN171: 6.8 | AO171: 7.2 | AP171: 6.2 | AQ171: 5.2 | AR171: 4.55 | AS171: 3.9 | AT171: 2.9 | AU171: 1.9 | AV171: 0 | AW171: 0 | AX171: 0 | AY171: 0 | AZ171: 0 | BA171: 0 | BB171: 0 | BC171: 0 | BD171: 0 | BE171: 0 | BF171: 0 | BG171: 0 | BH171: 0 | BI171: 0 | BJ171: 0 | BK171: 0 | BL171: 0 | BM171: 0 | BN171: 0 | BO171: 1.9 | BP171: 2.9 | BQ171: 3.9 | BR171: =BR$7+BR69 -> 4.55 | BS171: 5.2 | BT171: 6.2 | BU171: 7.2 | BV171: 6.8 | BW171: 6.4 | BX171: 6.65 | BY171: 6.9 | BZ171: 7.45 | CA171: 8 | CB171: 7.55 | CC171: 7.1 | CD171: 7.55 | CE171: 8 | CF171: 8.55 | CG171: 9.1 | CH171: 10.43333333 | CI171: 11.76666667 | CJ171: 13.1 | CK171: 11.76666667 | CL171: 10.43333333 | CM171: 9.1 | CN171: 8.55 | CO171: 8 | CP171: 7.55 | CQ171: 7.1 | CR171: 7.55 | CS171: 8 | CT171: 7.45 | CU171: 6.9 | CV171: 6.65 | CW171: 6.4 | CX171: 6.8 | CY171: 7.2 | CZ171: 6.2 | DA171: 5.2 | DB171: 4.55 | DC171: 3.9 | DD171: 2.9 | DE171: 1.9 | DF171: 0 | DG171: 0 | DH171: 0 | DI171: 0 | DJ171: 0 | DK171: 0 | DL171: 0 | DM171: 0 | DN171: 0 | DO171: 0 | DP171: 0 | DQ171: 0 | DR171: 0 | DS171: 0 | DT171: 0 | DU171: 0 | DV171: 0 | DW171: 0 | DX171: 0 | DY171: 0 | DZ171: 0 | EA171: 0 | EB171: 0 | EC171: 0 | ED171: =ED$7+ED69 -> 0 | EE171: 0 | EF171: 0 | EG171: 0 | EH171: =EH$7+EH69 -> 0 | EI171: 0 | EJ171: =EJ$7+EJ69 -> 0 | EK171: 0 | EL171: =EL$7+EL69 -> 0 | EM171: 0 | EN171: =EN$7+EN69 -> 0 | EO171: 0 | EP171: =EP$7+EP69 -> 0
A172: 63 | B172: =IF($D172<=$B$6,STDEV(OFFSET(D172,0,2*$B$11-D172+$B$12):OFFSET(D172,0,2*$B$11-1+$B$12))/C172,"") ->  | C172: =IF($D172<=$B$6,AVERAGE(OFFSET(D172,0,2*$B$11-D172+$B$12):OFFSET(D172,0,2*$B$11-1+$B$12)),"") ->  | D172: 63 | E172: 1.9 | F172: =F$7+F70 -> 2.9 | G172: 3.9 | H172: 4.55 | I172: 5.2 | J172: 6.2 | K172: 7.2 | L172: 6.8 | M172: 6.4 | N172: 6.65 | O172: 6.9 | P172: 7.45 | Q172: 8 | R172: 7.55 | S172: 7.1 | T172: 7.55 | U172: 8 | V172: 8.55 | W172: 9.1 | X172: 10.43333333 | Y172: 11.76666667 | Z172: 13.1 | AA172: 11.76666667 | AB172: 10.43333333 | AC172: 9.1 | AD172: 8.55 | AE172: 8 | AF172: 7.55 | AG172: 7.1 | AH172: 7.55 | AI172: 8 | AJ172: 7.45 | AK172: 6.9 | AL172: 6.65 | AM172: 6.4 | AN172: 6.8 | AO172: 7.2 | AP172: 6.2 | AQ172: 5.2 | AR172: 4.55 | AS172: 3.9 | AT172: 2.9 | AU172: 1.9 | AV172: 0 | AW172: 0 | AX172: 0 | AY172: 0 | AZ172: 0 | BA172: 0 | BB172: 0 | BC172: 0 | BD172: 0 | BE172: 0 | BF172: 0 | BG172: 0 | BH172: 0 | BI172: 0 | BJ172: 0 | BK172: 0 | BL172: 0 | BM172: 0 | BN172: 0 | BO172: 0 | BP172: 1.9 | BQ172: 2.9 | BR172: =BR$7+BR70 -> 3.9 | BS172: 4.55 | BT172: 5.2 | BU172: 6.2 | BV172: 7.2 | BW172: 6.8 | BX172: 6.4 | BY172: 6.65 | BZ172: 6.9 | CA172: 7.45 | CB172: 8 | CC172: 7.55 | CD172: 7.1 | CE172: 7.55 | CF172: 8 | CG172: 8.55 | CH172: 9.1 | CI172: 10.43333333 | CJ172: 11.76666667 | CK172: 13.1 | CL172: 11.76666667 | CM172: 10.43333333 | CN172: 9.1 | CO172: 8.55 | CP172: 8 | CQ172: 7.55 | CR172: 7.1 | CS172: 7.55 | CT172: 8 | CU172: 7.45 | CV172: 6.9 | CW172: 6.65 | CX172: 6.4 | CY172: 6.8 | CZ172: 7.2 | DA172: 6.2 | DB172: 5.2 | DC172: 4.55 | DD172: 3.9 | DE172: 2.9 | DF172: 1.9 | DG172: 0 | DH172: 0 | DI172: 0 | DJ172: 0 | DK172: 0 | DL172: 0 | DM172: 0 | DN172: 0 | DO172: 0 | DP172: 0 | DQ172: 0 | DR172: 0 | DS172: 0 | DT172: 0 | DU172: 0 | DV172: 0 | DW172: 0 | DX172: 0 | DY172: 0 | DZ172: 0 | EA172: 0 | EB172: 0 | EC172: 0 | ED172: =ED$7+ED70 -> 0 | EE172: 0 | EF172: 0 | EG172: 0 | EH172: =EH$7+EH70 -> 0 | EI172: 0 | EJ172: =EJ$7+EJ70 -> 0 | EK172: 0 | EL172: =EL$7+EL70 -> 0 | EM172: 0 | EN172: =EN$7+EN70 -> 0 | EO172: 0 | EP172: =EP$7+EP70 -> 0 | EQ172: 0
A173: 64 | B173: =IF($D173<=$B$6,STDEV(OFFSET(D173,0,2*$B$11-D173+$B$12):OFFSET(D173,0,2*$B$11-1+$B$12))/C173,"") ->  | C173: =IF($D173<=$B$6,AVERAGE(OFFSET(D173,0,2*$B$11-D173+$B$12):OFFSET(D173,0,2*$B$11-1+$B$12)),"") ->  | D173: 64 | E173: 1.9 | F173: =F$7+F71 -> 2.9 | G173: 3.9 | H173: 4.55 | I173: 5.2 | J173: 6.2 | K173: 7.2 | L173: 6.8 | M173: 6.4 | N173: 6.65 | O173: 6.9 | P173: 7.45 | Q173: 8 | R173: 7.55 | S173: 7.1 | T173: 7.55 | U173: 8 | V173: 8.55 | W173: 9.1 | X173: 10.43333333 | Y173: 11.76666667 | Z173: 13.1 | AA173: 11.76666667 | AB173: 10.43333333 | AC173: 9.1 | AD173: 8.55 | AE173: 8 | AF173: 7.55 | AG173: 7.1 | AH173: 7.55 | AI173: 8 | AJ173: 7.45 | AK173: 6.9 | AL173: 6.65 | AM173: 6.4 | AN173: 6.8 | AO173: 7.2 | AP173: 6.2 | AQ173: 5.2 | AR173: 4.55 | AS173: 3.9 | AT173: 2.9 | AU173: 1.9 | AV173: 0 | AW173: 0 | AX173: 0 | AY173: 0 | AZ173: 0 | BA173: 0 | BB173: 0 | BC173: 0 | BD173: 0 | BE173: 0 | BF173: 0 | BG173: 0 | BH173: 0 | BI173: 0 | BJ173: 0 | BK173: 0 | BL173: 0 | BM173: 0 | BN173: 0 | BO173: 0 | BP173: 0 | BQ173: 1.9 | BR173: =BR$7+BR71 -> 2.9 | BS173: 3.9 | BT173: 4.55 | BU173: 5.2 | BV173: 6.2 | BW173: 7.2 | BX173: 6.8 | BY173: 6.4 | BZ173: 6.65 | CA173: 6.9 | CB173: 7.45 | CC173: 8 | CD173: 7.55 | CE173: 7.1 | CF173: 7.55 | CG173: 8 | CH173: 8.55 | CI173: 9.1 | CJ173: 10.43333333 | CK173: 11.76666667 | CL173: 13.1 | CM173: 11.76666667 | CN173: 10.43333333 | CO173: 9.1 | CP173: 8.55 | CQ173: 8 | CR173: 7.55 | CS173: 7.1 | CT173: 7.55 | CU173: 8 | CV173: 7.45 | CW173: 6.9 | CX173: 6.65 | CY173: 6.4 | CZ173: 6.8 | DA173: 7.2 | DB173: 6.2 | DC173: 5.2 | DD173: 4.55 | DE173: 3.9 | DF173: 2.9 | DG173: 1.9 | DH173: 0 | DI173: 0 | DJ173: 0 | DK173: 0 | DL173: 0 | DM173: 0 | DN173: 0 | DO173: 0 | DP173: 0 | DQ173: 0 | DR173: 0 | DS173: 0 | DT173: 0 | DU173: 0 | DV173: 0 | DW173: 0 | DX173: 0 | DY173: 0 | DZ173: 0 | EA173: 0 | EB173: 0 | EC173: 0 | ED173: =ED$7+ED71 -> 0 | EE173: 0 | EF173: 0 | EG173: 0 | EH173: =EH$7+EH71 -> 0 | EI173: 0 | EJ173: =EJ$7+EJ71 -> 0 | EK173: 0 | EL173: =EL$7+EL71 -> 0 | EM173: 0 | EN173: =EN$7+EN71 -> 0 | EO173: 0 | EP173: =EP$7+EP71 -> 0 | EQ173: 0 | ER173: =ER$7+ER71 -> 0
A174: 65 | B174: =IF($D174<=$B$6,STDEV(OFFSET(D174,0,2*$B$11-D174+$B$12):OFFSET(D174,0,2*$B$11-1+$B$12))/C174,"") ->  | C174: =IF($D174<=$B$6,AVERAGE(OFFSET(D174,0,2*$B$11-D174+$B$12):OFFSET(D174,0,2*$B$11-1+$B$12)),"") ->  | D174: 65 | E174: 1.9 | F174: =F$7+F72 -> 2.9 | G174: 3.9 | H174: 4.55 | I174: 5.2 | J174: 6.2 | K174: 7.2 | L174: 6.8 | M174: 6.4 | N174: 6.65 | O174: 6.9 | P174: 7.45 | Q174: 8 | R174: 7.55 | S174: 7.1 | T174: 7.55 | U174: 8 | V174: 8.55 | W174: 9.1 | X174: 10.43333333 | Y174: 11.76666667 | Z174: 13.1 | AA174: 11.76666667 | AB174: 10.43333333 | AC174: 9.1 | AD174: 8.55 | AE174: 8 | AF174: 7.55 | AG174: 7.1 | AH174: 7.55 | AI174: 8 | AJ174: 7.45 | AK174: 6.9 | AL174: 6.65 | AM174: 6.4 | AN174: 6.8 | AO174: 7.2 | AP174: 6.2 | AQ174: 5.2 | AR174: 4.55 | AS174: 3.9 | AT174: 2.9 | AU174: 1.9 | AV174: 0 | AW174: 0 | AX174: 0 | AY174: 0 | AZ174: 0 | BA174: 0 | BB174: 0 | BC174: 0 | BD174: 0 | BE174: 0 | BF174: 0 | BG174: 0 | BH174: 0 | BI174: 0 | BJ174: 0 | BK174: 0 | BL174: 0 | BM174: 0 | BN174: 0 | BO174: 0 | BP174: 0 | BQ174: 0 | BR174: =BR$7+BR72 -> 1.9 | BS174: 2.9 | BT174: 3.9 | BU174: 4.55 | BV174: 5.2 | BW174: 6.2 | BX174: 7.2 | BY174: 6.8 | BZ174: 6.4 | CA174: 6.65 | CB174: 6.9 | CC174: 7.45 | CD174: 8 | CE174: 7.55 | CF174: 7.1 | CG174: 7.55 | CH174: 8 | CI174: 8.55 | CJ174: 9.1 | CK174: 10.43333333 | CL174: 11.76666667 | CM174: 13.1 | CN174: 11.76666667 | CO174: 10.43333333 | CP174: 9.1 | CQ174: 8.55 | CR174: 8 | CS174: 7.55 | CT174: 7.1 | CU174: 7.55 | CV174: 8 | CW174: 7.45 | CX174: 6.9 | CY174: 6.65 | CZ174: 6.4 | DA174: 6.8 | DB174: 7.2 | DC174: 6.2 | DD174: 5.2 | DE174: 4.55 | DF174: 3.9 | DG174: 2.9 | DH174: 1.9 | DI174: 0 | DJ174: 0 | DK174: 0 | DL174: 0 | DM174: 0 | DN174: 0 | DO174: 0 | DP174: 0 | DQ174: 0 | DR174: 0 | DS174: 0 | DT174: 0 | DU174: 0 | DV174: 0 | DW174: 0 | DX174: 0 | DY174: 0 | DZ174: 0 | EA174: 0 | EB174: 0 | EC174: 0 | ED174: =ED$7+ED72 -> 0 | EE174: 0 | EF174: 0 | EG174: 0 | EH174: =EH$7+EH72 -> 0 | EI174: 0 | EJ174: =EJ$7+EJ72 -> 0 | EK174: 0 | EL174: =EL$7+EL72 -> 0 | EM174: 0 | EN174: =EN$7+EN72 -> 0 | EO174: 0 | EP174: =EP$7+EP72 -> 0 | EQ174: 0 | ER174: =ER$7+ER72 -> 0 | ES174: 0
A175: 66 | B175: =IF($D175<=$B$6,STDEV(OFFSET(D175,0,2*$B$11-D175+$B$12):OFFSET(D175,0,2*$B$11-1+$B$12))/C175,"") ->  | C175: =IF($D175<=$B$6,AVERAGE(OFFSET(D175,0,2*$B$11-D175+$B$12):OFFSET(D175,0,2*$B$11-1+$B$12)),"") ->  | D175: 66 | E175: 1.9 | F175: =F$7+F73 -> 2.9 | G175: 3.9 | H175: 4.55 | I175: 5.2 | J175: 6.2 | K175: 7.2 | L175: 6.8 | M175: 6.4 | N175: 6.65 | O175: 6.9 | P175: 7.45 | Q175: 8 | R175: 7.55 | S175: 7.1 | T175: 7.55 | U175: 8 | V175: 8.55 | W175: 9.1 | X175: 10.43333333 | Y175: 11.76666667 | Z175: 13.1 | AA175: 11.76666667 | AB175: 10.43333333 | AC175: 9.1 | AD175: 8.55 | AE175: 8 | AF175: 7.55 | AG175: 7.1 | AH175: 7.55 | AI175: 8 | AJ175: 7.45 | AK175: 6.9 | AL175: 6.65 | AM175: 6.4 | AN175: 6.8 | AO175: 7.2 | AP175: 6.2 | AQ175: 5.2 | AR175: 4.55 | AS175: 3.9 | AT175: 2.9 | AU175: 1.9 | AV175: 0 | AW175: 0 | AX175: 0 | AY175: 0 | AZ175: 0 | BA175: 0 | BB175: 0 | BC175: 0 | BD175: 0 | BE175: 0 | BF175: 0 | BG175: 0 | BH175: 0 | BI175: 0 | BJ175: 0 | BK175: 0 | BL175: 0 | BM175: 0 | BN175: 0 | BO175: 0 | BP175: 0 | BQ175: 0 | BR175: =BR$7+BR73 -> 0 | BS175: 1.9 | BT175: 2.9 | BU175: 3.9 | BV175: 4.55 | BW175: 5.2 | BX175: 6.2 | BY175: 7.2 | BZ175: 6.8 | CA175: 6.4 | CB175: 6.65 | CC175: 6.9 | CD175: 7.45 | CE175: 8 | CF175: 7.55 | CG175: 7.1 | CH175: 7.55 | CI175: 8 | CJ175: 8.55 | CK175: 9.1 | CL175: 10.43333333 | CM175: 11.76666667 | CN175: 13.1 | CO175: 11.76666667 | CP175: 10.43333333 | CQ175: 9.1 | CR175: 8.55 | CS175: 8 | CT175: 7.55 | CU175: 7.1 | CV175: 7.55 | CW175: 8 | CX175: 7.45 | CY175: 6.9 | CZ175: 6.65 | DA175: 6.4 | DB175: 6.8 | DC175: 7.2 | DD175: 6.2 | DE175: 5.2 | DF175: 4.55 | DG175: 3.9 | DH175: 2.9 | DI175: 1.9 | DJ175: 0 | DK175: 0 | DL175: 0 | DM175: 0 | DN175: 0 | DO175: 0 | DP175: 0 | DQ175: 0 | DR175: 0 | DS175: 0 | DT175: 0 | DU175: 0 | DV175: 0 | DW175: 0 | DX175: 0 | DY175: 0 | DZ175: 0 | EA175: 0 | EB175: 0 | EC175: 0 | ED175: =ED$7+ED73 -> 0 | EE175: 0 | EF175: 0 | EG175: 0 | EH175: =EH$7+EH73 -> 0 | EI175: 0 | EJ175: =EJ$7+EJ73 -> 0 | EK175: 0 | EL175: =EL$7+EL73 -> 0 | EM175: 0 | EN175: =EN$7+EN73 -> 0 | EO175: 0 | EP175: =EP$7+EP73 -> 0 | EQ175: 0 | ER175: =ER$7+ER73 -> 0 | ES175: 0 | ET175: =ET$7+ET73 -> 0
A176: 67 | B176: =IF($D176<=$B$6,STDEV(OFFSET(D176,0,2*$B$11-D176+$B$12):OFFSET(D176,0,2*$B$11-1+$B$12))/C176,"") ->  | C176: =IF($D176<=$B$6,AVERAGE(OFFSET(D176,0,2*$B$11-D176+$B$12):OFFSET(D176,0,2*$B$11-1+$B$12)),"") ->  | D176: 67 | E176: 1.9 | F176: =F$7+F74 -> 2.9 | G176: 3.9 | H176: 4.55 | I176: 5.2 | J176: 6.2 | K176: 7.2 | L176: 6.8 | M176: 6.4 | N176: 6.65 | O176: 6.9 | P176: 7.45 | Q176: 8 | R176: 7.55 | S176: 7.1 | T176: 7.55 | U176: 8 | V176: 8.55 | W176: 9.1 | X176: 10.43333333 | Y176: 11.76666667 | Z176: 13.1 | AA176: 11.76666667 | AB176: 10.43333333 | AC176: 9.1 | AD176: 8.55 | AE176: 8 | AF176: 7.55 | AG176: 7.1 | AH176: 7.55 | AI176: 8 | AJ176: 7.45 | AK176: 6.9 | AL176: 6.65 | AM176: 6.4 | AN176: 6.8 | AO176: 7.2 | AP176: 6.2 | AQ176: 5.2 | AR176: 4.55 | AS176: 3.9 | AT176: 2.9 | AU176: 1.9 | AV176: 0 | AW176: 0 | AX176: 0 | AY176: 0 | AZ176: 0 | BA176: 0 | BB176: 0 | BC176: 0 | BD176: 0 | BE176: 0 | BF176: 0 | BG176: 0 | BH176: 0 | BI176: 0 | BJ176: 0 | BK176: 0 | BL176: 0 | BM176: 0 | BN176: 0 | BO176: 0 | BP176: 0 | BQ176: 0 | BR176: =BR$7+BR74 -> 0 | BS176: 0 | BT176: 1.9 | BU176: 2.9 | BV176: 3.9 | BW176: 4.55 | BX176: 5.2 | BY176: 6.2 | BZ176: 7.2 | CA176: 6.8 | CB176: 6.4 | CC176: 6.65 | CD176: 6.9 | CE176: 7.45 | CF176: 8 | CG176: 7.55 | CH176: 7.1 | CI176: 7.55 | CJ176: 8 | CK176: 8.55 | CL176: 9.1 | CM176: 10.43333333 | CN176: 11.76666667 | CO176: 13.1 | CP176: 11.76666667 | CQ176: 10.43333333 | CR176: 9.1 | CS176: 8.55 | CT176: 8 | CU176: 7.55 | CV176: 7.1 | CW176: 7.55 | CX176: 8 | CY176: 7.45 | CZ176: 6.9 | DA176: 6.65 | DB176: 6.4 | DC176: 6.8 | DD176: 7.2 | DE176: 6.2 | DF176: 5.2 | DG176: 4.55 | DH176: 3.9 | DI176: 2.9 | DJ176: 1.9 | DK176: 0 | DL176: 0 | DM176: 0 | DN176: 0 | DO176: 0 | DP176: 0 | DQ176: 0 | DR176: 0 | DS176: 0 | DT176: 0 | DU176: 0 | DV176: 0 | DW176: 0 | DX176: 0 | DY176: 0 | DZ176: 0 | EA176: 0 | EB176: 0 | EC176: 0 | ED176: =ED$7+ED74 -> 0 | EE176: 0 | EF176: 0 | EG176: 0 | EH176: =EH$7+EH74 -> 0 | EI176: 0 | EJ176: =EJ$7+EJ74 -> 0 | EK176: 0 | EL176: =EL$7+EL74 -> 0 | EM176: 0 | EN176: =EN$7+EN74 -> 0 | EO176: 0 | EP176: =EP$7+EP74 -> 0 | EQ176: 0 | ER176: =ER$7+ER74 -> 0 | ES176: 0 | ET176: =ET$7+ET74 -> 0 | EU176: 0
A177: 68 | B177: =IF($D177<=$B$6,STDEV(OFFSET(D177,0,2*$B$11-D177+$B$12):OFFSET(D177,0,2*$B$11-1+$B$12))/C177,"") ->  | C177: =IF($D177<=$B$6,AVERAGE(OFFSET(D177,0,2*$B$11-D177+$B$12):OFFSET(D177,0,2*$B$11-1+$B$12)),"") ->  | D177: 68 | E177: 1.9 | F177: =F$7+F75 -> 2.9 | G177: 3.9 | H177: 4.55 | I177: 5.2 | J177: 6.2 | K177: 7.2 | L177: 6.8 | M177: 6.4 | N177: 6.65 | O177: 6.9 | P177: 7.45 | Q177: 8 | R177: 7.55 | S177: 7.1 | T177: 7.55 | U177: 8 | V177: 8.55 | W177: 9.1 | X177: 10.43333333 | Y177: 11.76666667 | Z177: 13.1 | AA177: 11.76666667 | AB177: 10.43333333 | AC177: 9.1 | AD177: 8.55 | AE177: 8 | AF177: 7.55 | AG177: 7.1 | AH177: 7.55 | AI177: 8 | AJ177: 7.45 | AK177: 6.9 | AL177: 6.65 | AM177: 6.4 | AN177: 6.8 | AO177: 7.2 | AP177: 6.2 | AQ177: 5.2 | AR177: 4.55 | AS177: 3.9 | AT177: 2.9 | AU177: 1.9 | AV177: 0 | AW177: 0 | AX177: 0 | AY177: 0 | AZ177: 0 | BA177: 0 | BB177: 0 | BC177: 0 | BD177: 0 | BE177: 0 | BF177: 0 | BG177: 0 | BH177: 0 | BI177: 0 | BJ177: 0 | BK177: 0 | BL177: 0 | BM177: 0 | BN177: 0 | BO177: 0 | BP177: 0 | BQ177: 0 | BR177: =BR$7+BR75 -> 0 | BS177: 0 | BT177: 0 | BU177: 1.9 | BV177: 2.9 | BW177: 3.9 | BX177: 4.55 | BY177: 5.2 | BZ177: 6.2 | CA177: 7.2 | CB177: 6.8 | CC177: 6.4 | CD177: 6.65 | CE177: 6.9 | CF177: 7.45 | CG177: 8 | CH177: 7.55 | CI177: 7.1 | CJ177: 7.55 | CK177: 8 | CL177: 8.55 | CM177: 9.1 | CN177: 10.43333333 | CO177: 11.76666667 | CP177: 13.1 | CQ177: 11.76666667 | CR177: 10.43333333 | CS177: 9.1 | CT177: 8.55 | CU177: 8 | CV177: 7.55 | CW177: 7.1 | CX177: 7.55 | CY177: 8 | CZ177: 7.45 | DA177: 6.9 | DB177: 6.65 | DC177: 6.4 | DD177: 6.8 | DE177: 7.2 | DF177: 6.2 | DG177: 5.2 | DH177: 4.55 | DI177: 3.9 | DJ177: 2.9 | DK177: 1.9 | DL177: 0 | DM177: 0 | DN177: 0 | DO177: 0 | DP177: 0 | DQ177: 0 | DR177: 0 | DS177: 0 | DT177: 0 | DU177: 0 | DV177: 0 | DW177: 0 | DX177: 0 | DY177: 0 | DZ177: 0 | EA177: 0 | EB177: 0 | EC177: 0 | ED177: =ED$7+ED75 -> 0 | EE177: 0 | EF177: 0 | EG177: 0 | EH177: =EH$7+EH75 -> 0 | EI177: 0 | EJ177: =EJ$7+EJ75 -> 0 | EK177: 0 | EL177: =EL$7+EL75 -> 0 | EM177: 0 | EN177: =EN$7+EN75 -> 0 | EO177: 0 | EP177: =EP$7+EP75 -> 0 | EQ177: 0 | ER177: =ER$7+ER75 -> 0 | ES177: 0 | ET177: 0 | EU177: 0 | EV177: =EV$7+EV75 -> 0
A178: 69 | B178: =IF($D178<=$B$6,STDEV(OFFSET(D178,0,2*$B$11-D178+$B$12):OFFSET(D178,0,2*$B$11-1+$B$12))/C178,"") ->  | C178: =IF($D178<=$B$6,AVERAGE(OFFSET(D178,0,2*$B$11-D178+$B$12):OFFSET(D178,0,2*$B$11-1+$B$12)),"") ->  | D178: 69 | E178: 1.9 | F178: =F$7+F76 -> 2.9 | G178: 3.9 | H178: 4.55 | I178: 5.2 | J178: 6.2 | K178: 7.2 | L178: 6.8 | M178: 6.4 | N178: 6.65 | O178: 6.9 | P178: 7.45 | Q178: 8 | R178: 7.55 | S178: 7.1 | T178: 7.55 | U178: 8 | V178: 8.55 | W178: 9.1 | X178: 10.43333333 | Y178: 11.76666667 | Z178: 13.1 | AA178: 11.76666667 | AB178: 10.43333333 | AC178: 9.1 | AD178: 8.55 | AE178: 8 | AF178: 7.55 | AG178: 7.1 | AH178: 7.55 | AI178: 8 | AJ178: 7.45 | AK178: 6.9 | AL178: 6.65 | AM178: 6.4 | AN178: 6.8 | AO178: 7.2 | AP178: 6.2 | AQ178: 5.2 | AR178: 4.55 | AS178: 3.9 | AT178: 2.9 | AU178: 1.9 | AV178: 0 | AW178: 0 | AX178: 0 | AY178: 0 | AZ178: 0 | BA178: 0 | BB178: 0 | BC178: 0 | BD178: 0 | BE178: 0 | BF178: 0 | BG178: 0 | BH178: 0 | BI178: 0 | BJ178: 0 | BK178: 0 | BL178: 0 | BM178: 0 | BN178: 0 | BO178: 0 | BP178: 0 | BQ178: 0 | BR178: =BR$7+BR76 -> 0 | BS178: 0 | BT178: 0 | BU178: 0 | BV178: 1.9 | BW178: 2.9 | BX178: 3.9 | BY178: 4.55 | BZ178: 5.2 | CA178: 6.2 | CB178: 7.2 | CC178: 6.8 | CD178: 6.4 | CE178: 6.65 | CF178: 6.9 | CG178: 7.45 | CH178: 8 | CI178: 7.55 | CJ178: 7.1 | CK178: 7.55 | CL178: 8 | CM178: 8.55 | CN178: 9.1 | CO178: 10.43333333 | CP178: 11.76666667 | CQ178: 13.1 | CR178: 11.76666667 | CS178: 10.43333333 | CT178: 9.1 | CU178: 8.55 | CV178: 8 | CW178: 7.55 | CX178: 7.1 | CY178: 7.55 | CZ178: 8 | DA178: 7.45 | DB178: 6.9 | DC178: 6.65 | DD178: 6.4 | DE178: 6.8 | DF178: 7.2 | DG178: 6.2 | DH178: 5.2 | DI178: 4.55 | DJ178: 3.9 | DK178: 2.9 | DL178: 1.9 | DM178: 0 | DN178: 0 | DO178: 0 | DP178: 0 | DQ178: 0 | DR178: 0 | DS178: 0 | DT178: 0 | DU178: 0 | DV178: 0 | DW178: 0 | DX178: 0 | DY178: 0 | DZ178: 0 | EA178: 0 | EB178: 0 | EC178: 0 | ED178: =ED$7+ED76 -> 0 | EE178: 0 | EF178: 0 | EG178: 0 | EH178: =EH$7+EH76 -> 0 | EI178: 0 | EJ178: =EJ$7+EJ76 -> 0 | EK178: 0 | EL178: =EL$7+EL76 -> 0 | EM178: 0 | EN178: =EN$7+EN76 -> 0 | EO178: 0 | EP178: =EP$7+EP76 -> 0 | EQ178: 0 | ER178: =ER$7+ER76 -> 0 | ES178: 0 | ET178: 0 | EU178: 0 | EV178: 0 | EW178: =EW$7+EW76 -> 0
A179: 70 | B179: =IF($D179<=$B$6,STDEV(OFFSET(D179,0,2*$B$11-D179+$B$12):OFFSET(D179,0,2*$B$11-1+$B$12))/C179,"") ->  | C179: =IF($D179<=$B$6,AVERAGE(OFFSET(D179,0,2*$B$11-D179+$B$12):OFFSET(D179,0,2*$B$11-1+$B$12)),"") ->  | D179: 70 | E179: 1.9 | F179: =F$7+F77 -> 2.9 | G179: 3.9 | H179: 4.55 | I179: 5.2 | J179: 6.2 | K179: 7.2 | L179: 6.8 | M179: 6.4 | N179: 6.65 | O179: 6.9 | P179: 7.45 | Q179: 8 | R179: 7.55 | S179: 7.1 | T179: 7.55 | U179: 8 | V179: 8.55 | W179: 9.1 | X179: 10.43333333 | Y179: 11.76666667 | Z179: 13.1 | AA179: 11.76666667 | AB179: 10.43333333 | AC179: 9.1 | AD179: 8.55 | AE179: 8 | AF179: 7.55 | AG179: 7.1 | AH179: 7.55 | AI179: 8 | AJ179: 7.45 | AK179: 6.9 | AL179: 6.65 | AM179: 6.4 | AN179: 6.8 | AO179: 7.2 | AP179: 6.2 | AQ179: 5.2 | AR179: 4.55 | AS179: 3.9 | AT179: 2.9 | AU179: 1.9 | AV179: 0 | AW179: 0 | AX179: 0 | AY179: 0 | AZ179: 0 | BA179: 0 | BB179: 0 | BC179: 0 | BD179: 0 | BE179: 0 | BF179: 0 | BG179: 0 | BH179: 0 | BI179: 0 | BJ179: 0 | BK179: 0 | BL179: 0 | BM179: 0 | BN179: 0 | BO179: 0 | BP179: 0 | BQ179: 0 | BR179: =BR$7+BR77 -> 0 | BS179: 0 | BT179: 0 | BU179: 0 | BV179: 0 | BW179: 1.9 | BX179: 2.9 | BY179: 3.9 | BZ179: 4.55 | CA179: 5.2 | CB179: 6.2 | CC179: 7.2 | CD179: 6.8 | CE179: 6.4 | CF179: 6.65 | CG179: 6.9 | CH179: 7.45 | CI179: 8 | CJ179: 7.55 | CK179: 7.1 | CL179: 7.55 | CM179: 8 | CN179: 8.55 | CO179: 9.1 | CP179: 10.43333333 | CQ179: 11.76666667 | CR179: 13.1 | CS179: 11.76666667 | CT179: 10.43333333 | CU179: 9.1 | CV179: 8.55 | CW179: 8 | CX179: 7.55 | CY179: 7.1 | CZ179: 7.55 | DA179: 8 | DB179: 7.45 | DC179: 6.9 | DD179: 6.65 | DE179: 6.4 | DF179: 6.8 | DG179: 7.2 | DH179: 6.2 | DI179: 5.2 | DJ179: 4.55 | DK179: 3.9 | DL179: 2.9 | DM179: 1.9 | DN179: 0 | DO179: 0 | DP179: 0 | DQ179: 0 | DR179: 0 | DS179: 0 | DT179: 0 | DU179: 0 | DV179: 0 | DW179: 0 | DX179: 0 | DY179: 0 | DZ179: 0 | EA179: 0 | EB179: 0 | EC179: 0 | ED179: =ED$7+ED77 -> 0 | EE179: 0 | EF179: 0 | EG179: 0 | EH179: =EH$7+EH77 -> 0 | EI179: 0 | EJ179: =EJ$7+EJ77 -> 0 | EK179: 0 | EL179: =EL$7+EL77 -> 0 | EM179: 0 | EN179: =EN$7+EN77 -> 0 | EO179: 0 | EP179: =EP$7+EP77 -> 0 | EQ179: 0 | ER179: =ER$7+ER77 -> 0 | ES179: 0 | ET179: 0 | EU179: 0 | EV179: 0 | EW179: 0 | EX179: =EX$7+EX77 -> 0
A180: 71 | B180: =IF($D180<=$B$6,STDEV(OFFSET(D180,0,2*$B$11-D180+$B$12):OFFSET(D180,0,2*$B$11-1+$B$12))/C180,"") ->  | C180: =IF($D180<=$B$6,AVERAGE(OFFSET(D180,0,2*$B$11-D180+$B$12):OFFSET(D180,0,2*$B$11-1+$B$12)),"") ->  | D180: 71 | E180: 1.9 | F180: =F$7+F78 -> 2.9 | G180: 3.9 | H180: 4.55 | I180: 5.2 | J180: 6.2 | K180: 7.2 | L180: 6.8 | M180: 6.4 | N180: 6.65 | O180: 6.9 | P180: 7.45 | Q180: 8 | R180: 7.55 | S180: 7.1 | T180: 7.55 | U180: 8 | V180: 8.55 | W180: 9.1 | X180: 10.43333333 | Y180: 11.76666667 | Z180: 13.1 | AA180: 11.76666667 | AB180: 10.43333333 | AC180: 9.1 | AD180: 8.55 | AE180: 8 | AF180: 7.55 | AG180: 7.1 | AH180: 7.55 | AI180: 8 | AJ180: 7.45 | AK180: 6.9 | AL180: 6.65 | AM180: 6.4 | AN180: 6.8 | AO180: 7.2 | AP180: 6.2 | AQ180: 5.2 | AR180: 4.55 | AS180: 3.9 | AT180: 2.9 | AU180: 1.9 | AV180: 0 | AW180: 0 | AX180: 0 | AY180: 0 | AZ180: 0 | BA180: 0 | BB180: 0 | BC180: 0 | BD180: 0 | BE180: 0 | BF180: 0 | BG180: 0 | BH180: 0 | BI180: 0 | BJ180: 0 | BK180: 0 | BL180: 0 | BM180: 0 | BN180: 0 | BO180: 0 | BP180: 0 | BQ180: 0 | BR180: =BR$7+BR78 -> 0 | BS180: 0 | BT180: 0 | BU180: 0 | BV180: 0 | BW180: 0 | BX180: 1.9 | BY180: 2.9 | BZ180: 3.9 | CA180: 4.55 | CB180: 5.2 | CC180: 6.2 | CD180: 7.2 | CE180: 6.8 | CF180: 6.4 | CG180: 6.65 | CH180: 6.9 | CI180: 7.45 | CJ180: 8 | CK180: 7.55 | CL180: 7.1 | CM180: 7.55 | CN180: 8 | CO180: 8.55 | CP180: 9.1 | CQ180: 10.43333333 | CR180: 11.76666667 | CS180: 13.1 | CT180: 11.76666667 | CU180: 10.43333333 | CV180: 9.1 | CW180: 8.55 | CX180: 8 | CY180: 7.55 | CZ180: 7.1 | DA180: 7.55 | DB180: 8 | DC180: 7.45 | DD180: 6.9 | DE180: 6.65 | DF180: 6.4 | DG180: 6.8 | DH180: 7.2 | DI180: 6.2 | DJ180: 5.2 | DK180: 4.55 | DL180: 3.9 | DM180: 2.9 | DN180: 1.9 | DO180: 0 | DP180: 0 | DQ180: 0 | DR180: 0 | DS180: 0 | DT180: 0 | DU180: 0 | DV180: 0 | DW180: 0 | DX180: 0 | DY180: 0 | DZ180: 0 | EA180: 0 | EB180: 0 | EC180: 0 | ED180: =ED$7+ED78 -> 0 | EE180: 0 | EF180: 0 | EG180: 0 | EH180: =EH$7+EH78 -> 0 | EI180: 0 | EJ180: =EJ$7+EJ78 -> 0 | EK180: 0 | EL180: =EL$7+EL78 -> 0 | EM180: 0 | EN180: =EN$7+EN78 -> 0 | EO180: 0 | EP180: =EP$7+EP78 -> 0 | EQ180: 0 | ER180: =ER$7+ER78 -> 0 | ES180: 0 | ET180: 0 | EU180: 0 | EV180: 0 | EW180: 0 | EX180: 0 | EY180: =EY$7+EY78 -> 0
A181: 72 | B181: =IF($D181<=$B$6,STDEV(OFFSET(D181,0,2*$B$11-D181+$B$12):OFFSET(D181,0,2*$B$11-1+$B$12))/C181,"") ->  | C181: =IF($D181<=$B$6,AVERAGE(OFFSET(D181,0,2*$B$11-D181+$B$12):OFFSET(D181,0,2*$B$11-1+$B$12)),"") ->  | D181: 72 | E181: 1.9 | F181: =F$7+F79 -> 2.9 | G181: 3.9 | H181: 4.55 | I181: 5.2 | J181: 6.2 | K181: 7.2 | L181: 6.8 | M181: 6.4 | N181: 6.65 | O181: 6.9 | P181: 7.45 | Q181: 8 | R181: 7.55 | S181: 7.1 | T181: 7.55 | U181: 8 | V181: 8.55 | W181: 9.1 | X181: 10.43333333 | Y181: 11.76666667 | Z181: 13.1 | AA181: 11.76666667 | AB181: 10.43333333 | AC181: 9.1 | AD181: 8.55 | AE181: 8 | AF181: 7.55 | AG181: 7.1 | AH181: 7.55 | AI181: 8 | AJ181: 7.45 | AK181: 6.9 | AL181: 6.65 | AM181: 6.4 | AN181: 6.8 | AO181: 7.2 | AP181: 6.2 | AQ181: 5.2 | AR181: 4.55 | AS181: 3.9 | AT181: 2.9 | AU181: 1.9 | AV181: 0 | AW181: 0 | AX181: 0 | AY181: 0 | AZ181: 0 | BA181: 0 | BB181: 0 | BC181: 0 | BD181: 0 | BE181: 0 | BF181: 0 | BG181: 0 | BH181: 0 | BI181: 0 | BJ181: 0 | BK181: 0 | BL181: 0 | BM181: 0 | BN181: 0 | BO181: 0 | BP181: 0 | BQ181: 0 | BR181: =BR$7+BR79 -> 0 | BS181: 0 | BT181: 0 | BU181: 0 | BV181: 0 | BW181: 0 | BX181: 0 | BY181: 1.9 | BZ181: 2.9 | CA181: 3.9 | CB181: 4.55 | CC181: 5.2 | CD181: 6.2 | CE181: 7.2 | CF181: 6.8 | CG181: 6.4 | CH181: 6.65 | CI181: 6.9 | CJ181: 7.45 | CK181: 8 | CL181: 7.55 | CM181: 7.1 | CN181: 7.55 | CO181: 8 | CP181: 8.55 | CQ181: 9.1 | CR181: 10.43333333 | CS181: 11.76666667 | CT181: 13.1 | CU181: 11.76666667 | CV181: 10.43333333 | CW181: 9.1 | CX181: 8.55 | CY181: 8 | CZ181: 7.55 | DA181: 7.1 | DB181: 7.55 | DC181: 8 | DD181: 7.45 | DE181: 6.9 | DF181: 6.65 | DG181: 6.4 | DH181: 6.8 | DI181: 7.2 | DJ181: 6.2 | DK181: 5.2 | DL181: 4.55 | DM181: 3.9 | DN181: 2.9 | DO181: 1.9 | DP181: 0 | DQ181: 0 | DR181: 0 | DS181: 0 | DT181: 0 | DU181: 0 | DV181: 0 | DW181: 0 | DX181: 0 | DY181: 0 | DZ181: 0 | EA181: 0 | EB181: 0 | EC181: 0 | ED181: =ED$7+ED79 -> 0 | EE181: 0 | EF181: 0 | EG181: 0 | EH181: =EH$7+EH79 -> 0 | EI181: 0 | EJ181: =EJ$7+EJ79 -> 0 | EK181: 0 | EL181: =EL$7+EL79 -> 0 | EM181: 0 | EN181: =EN$7+EN79 -> 0 | EO181: 0 | EP181: =EP$7+EP79 -> 0 | EQ181: 0 | ER181: =ER$7+ER79 -> 0 | ES181: 0 | ET181: 0 | EU181: 0 | EV181: 0 | EW181: 0 | EX181: 0 | EY181: 0 | EZ181: =EZ$7+EZ79 -> 0
A182: 73 | B182: =IF($D182<=$B$6,STDEV(OFFSET(D182,0,2*$B$11-D182+$B$12):OFFSET(D182,0,2*$B$11-1+$B$12))/C182,"") ->  | C182: =IF($D182<=$B$6,AVERAGE(OFFSET(D182,0,2*$B$11-D182+$B$12):OFFSET(D182,0,2*$B$11-1+$B$12)),"") ->  | D182: 73 | E182: 1.9 | F182: =F$7+F80 -> 2.9 | G182: 3.9 | H182: 4.55 | I182: 5.2 | J182: 6.2 | K182: 7.2 | L182: 6.8 | M182: 6.4 | N182: 6.65 | O182: 6.9 | P182: 7.45 | Q182: 8 | R182: 7.55 | S182: 7.1 | T182: 7.55 | U182: 8 | V182: 8.55 | W182: 9.1 | X182: 10.43333333 | Y182: 11.76666667 | Z182: 13.1 | AA182: 11.76666667 | AB182: 10.43333333 | AC182: 9.1 | AD182: 8.55 | AE182: 8 | AF182: 7.55 | AG182: 7.1 | AH182: 7.55 | AI182: 8 | AJ182: 7.45 | AK182: 6.9 | AL182: 6.65 | AM182: 6.4 | AN182: 6.8 | AO182: 7.2 | AP182: 6.2 | AQ182: 5.2 | AR182: 4.55 | AS182: 3.9 | AT182: 2.9 | AU182: 1.9 | AV182: 0 | AW182: 0 | AX182: 0 | AY182: 0 | AZ182: 0 | BA182: 0 | BB182: 0 | BC182: 0 | BD182: 0 | BE182: 0 | BF182: 0 | BG182: 0 | BH182: 0 | BI182: 0 | BJ182: 0 | BK182: 0 | BL182: 0 | BM182: 0 | BN182: 0 | BO182: 0 | BP182: 0 | BQ182: 0 | BR182: =BR$7+BR80 -> 0 | BS182: 0 | BT182: 0 | BU182: 0 | BV182: 0 | BW182: 0 | BX182: 0 | BY182: 0 | BZ182: 1.9 | CA182: 2.9 | CB182: 3.9 | CC182: 4.55 | CD182: 5.2 | CE182: 6.2 | CF182: 7.2 | CG182: 6.8 | CH182: 6.4 | CI182: 6.65 | CJ182: 6.9 | CK182: 7.45 | CL182: 8 | CM182: 7.55 | CN182: 7.1 | CO182: 7.55 | CP182: 8 | CQ182: 8.55 | CR182: 9.1 | CS182: 10.43333333 | CT182: 11.76666667 | CU182: 13.1 | CV182: 11.76666667 | CW182: 10.43333333 | CX182: 9.1 | CY182: 8.55 | CZ182: 8 | DA182: 7.55 | DB182: 7.1 | DC182: 7.55 | DD182: 8 | DE182: 7.45 | DF182: 6.9 | DG182: 6.65 | DH182: 6.4 | DI182: 6.8 | DJ182: 7.2 | DK182: 6.2 | DL182: 5.2 | DM182: 4.55 | DN182: 3.9 | DO182: 2.9 | DP182: 1.9 | DQ182: 0 | DR182: 0 | DS182: 0 | DT182: 0 | DU182: 0 | DV182: 0 | DW182: 0 | DX182: 0 | DY182: 0 | DZ182: 0 | EA182: 0 | EB182: 0 | EC182: 0 | ED182: =ED$7+ED80 -> 0 | EE182: 0 | EF182: 0 | EG182: 0 | EH182: =EH$7+EH80 -> 0 | EI182: 0 | EJ182: =EJ$7+EJ80 -> 0 | EK182: 0 | EL182: =EL$7+EL80 -> 0 | EM182: 0 | EN182: =EN$7+EN80 -> 0 | EO182: 0 | EP182: =EP$7+EP80 -> 0 | EQ182: 0 | ER182: =ER$7+ER80 -> 0 | ES182: 0 | ET182: 0 | EU182: 0 | EV182: 0 | EW182: 0 | EX182: 0 | EY182: 0 | EZ182: 0 | FA182: =FA$7+FA80 -> 0
A183: 74 | B183: =IF($D183<=$B$6,STDEV(OFFSET(D183,0,2*$B$11-D183+$B$12):OFFSET(D183,0,2*$B$11-1+$B$12))/C183,"") ->  | C183: =IF($D183<=$B$6,AVERAGE(OFFSET(D183,0,2*$B$11-D183+$B$12):OFFSET(D183,0,2*$B$11-1+$B$12)),"") ->  | D183: 74 | E183: 1.9 | F183: =F$7+F81 -> 2.9 | G183: 3.9 | H183: 4.55 | I183: 5.2 | J183: 6.2 | K183: 7.2 | L183: 6.8 | M183: 6.4 | N183: 6.65 | O183: 6.9 | P183: 7.45 | Q183: 8 | R183: 7.55 | S183: 7.1 | T183: 7.55 | U183: 8 | V183: 8.55 | W183: 9.1 | X183: 10.43333333 | Y183: 11.76666667 | Z183: 13.1 | AA183: 11.76666667 | AB183: 10.43333333 | AC183: 9.1 | AD183: 8.55 | AE183: 8 | AF183: 7.55 | AG183: 7.1 | AH183: 7.55 | AI183: 8 | AJ183: 7.45 | AK183: 6.9 | AL183: 6.65 | AM183: 6.4 | AN183: 6.8 | AO183: 7.2 | AP183: 6.2 | AQ183: 5.2 | AR183: 4.55 | AS183: 3.9 | AT183: 2.9 | AU183: 1.9 | AV183: 0 | AW183: 0 | AX183: 0 | AY183: 0 | AZ183: 0 | BA183: 0 | BB183: 0 | BC183: 0 | BD183: 0 | BE183: 0 | BF183: 0 | BG183: 0 | BH183: 0 | BI183: 0 | BJ183: 0 | BK183: 0 | BL183: 0 | BM183: 0 | BN183: 0 | BO183: 0 | BP183: 0 | BQ183: 0 | BR183: =BR$7+BR81 -> 0 | BS183: 0 | BT183: 0 | BU183: 0 | BV183: 0 | BW183: 0 | BX183: 0 | BY183: 0 | BZ183: 0 | CA183: 1.9 | CB183: 2.9 | CC183: 3.9 | CD183: 4.55 | CE183: 5.2 | CF183: 6.2 | CG183: 7.2 | CH183: 6.8 | CI183: 6.4 | CJ183: 6.65 | CK183: 6.9 | CL183: 7.45 | CM183: 8 | CN183: 7.55 | CO183: 7.1 | CP183: 7.55 | CQ183: 8 | CR183: 8.55 | CS183: 9.1 | CT183: 10.43333333 | CU183: 11.76666667 | CV183: 13.1 | CW183: 11.76666667 | CX183: 10.43333333 | CY183: 9.1 | CZ183: 8.55 | DA183: 8 | DB183: 7.55 | DC183: 7.1 | DD183: 7.55 | DE183: 8 | DF183: 7.45 | DG183: 6.9 | DH183: 6.65 | DI183: 6.4 | DJ183: 6.8 | DK183: 7.2 | DL183: 6.2 | DM183: 5.2 | DN183: 4.55 | DO183: 3.9 | DP183: 2.9 | DQ183: 1.9 | DR183: 0 | DS183: 0 | DT183: 0 | DU183: 0 | DV183: 0 | DW183: 0 | DX183: 0 | DY183: 0 | DZ183: 0 | EA183: 0 | EB183: 0 | EC183: 0 | ED183: =ED$7+ED81 -> 0 | EE183: 0 | EF183: 0 | EG183: 0 | EH183: =EH$7+EH81 -> 0 | EI183: 0 | EJ183: =EJ$7+EJ81 -> 0 | EK183: 0 | EL183: =EL$7+EL81 -> 0 | EM183: 0 | EN183: =EN$7+EN81 -> 0 | EO183: 0 | EP183: =EP$7+EP81 -> 0 | EQ183: 0 | ER183: =ER$7+ER81 -> 0 | ES183: 0 | ET183: 0 | EU183: 0 | EV183: 0 | EW183: 0 | EX183: 0 | EY183: 0 | EZ183: 0 | FA183: 0 | FB183: =FB$7+FB81 -> 0
A184: 75 | B184: =IF($D184<=$B$6,STDEV(OFFSET(D184,0,2*$B$11-D184+$B$12):OFFSET(D184,0,2*$B$11-1+$B$12))/C184,"") ->  | C184: =IF($D184<=$B$6,AVERAGE(OFFSET(D184,0,2*$B$11-D184+$B$12):OFFSET(D184,0,2*$B$11-1+$B$12)),"") ->  | D184: 75 | E184: 1.9 | F184: =F$7+F82 -> 2.9 | G184: 3.9 | H184: 4.55 | I184: 5.2 | J184: 6.2 | K184: 7.2 | L184: 6.8 | M184: 6.4 | N184: 6.65 | O184: 6.9 | P184: 7.45 | Q184: 8 | R184: 7.55 | S184: 7.1 | T184: 7.55 | U184: 8 | V184: 8.55 | W184: 9.1 | X184: 10.43333333 | Y184: 11.76666667 | Z184: 13.1 | AA184: 11.76666667 | AB184: 10.43333333 | AC184: 9.1 | AD184: 8.55 | AE184: 8 | AF184: 7.55 | AG184: 7.1 | AH184: 7.55 | AI184: 8 | AJ184: 7.45 | AK184: 6.9 | AL184: 6.65 | AM184: 6.4 | AN184: 6.8 | AO184: 7.2 | AP184: 6.2 | AQ184: 5.2 | AR184: 4.55 | AS184: 3.9 | AT184: 2.9 | AU184: 1.9 | AV184: 0 | AW184: 0 | AX184: 0 | AY184: 0 | AZ184: 0 | BA184: 0 | BB184: 0 | BC184: 0 | BD184: 0 | BE184: 0 | BF184: 0 | BG184: 0 | BH184: 0 | BI184: 0 | BJ184: 0 | BK184: 0 | BL184: 0 | BM184: 0 | BN184: 0 | BO184: 0 | BP184: 0 | BQ184: 0 | BR184: =BR$7+BR82 -> 0 | BS184: 0 | BT184: 0 | BU184: 0 | BV184: 0 | BW184: 0 | BX184: 0 | BY184: 0 | BZ184: 0 | CA184: 0 | CB184: 1.9 | CC184: 2.9 | CD184: 3.9 | CE184: 4.55 | CF184: 5.2 | CG184: 6.2 | CH184: 7.2 | CI184: 6.8 | CJ184: 6.4 | CK184: 6.65 | CL184: 6.9 | CM184: 7.45 | CN184: 8 | CO184: 7.55 | CP184: 7.1 | CQ184: 7.55 | CR184: 8 | CS184: 8.55 | CT184: 9.1 | CU184: 10.43333333 | CV184: 11.76666667 | CW184: 13.1 | CX184: 11.76666667 | CY184: 10.43333333 | CZ184: 9.1 | DA184: 8.55 | DB184: 8 | DC184: 7.55 | DD184: 7.1 | DE184: 7.55 | DF184: 8 | DG184: 7.45 | DH184: 6.9 | DI184: 6.65 | DJ184: 6.4 | DK184: 6.8 | DL184: 7.2 | DM184: 6.2 | DN184: 5.2 | DO184: 4.55 | DP184: 3.9 | DQ184: 2.9 | DR184: 1.9 | DS184: 0 | DT184: 0 | DU184: 0 | DV184: 0 | DW184: 0 | DX184: 0 | DY184: 0 | DZ184: 0 | EA184: 0 | EB184: 0 | EC184: 0 | ED184: =ED$7+ED82 -> 0 | EE184: 0 | EF184: 0 | EG184: 0 | EH184: =EH$7+EH82 -> 0 | EI184: 0 | EJ184: =EJ$7+EJ82 -> 0 | EK184: 0 | EL184: =EL$7+EL82 -> 0 | EM184: 0 | EN184: =EN$7+EN82 -> 0 | EO184: 0 | EP184: =EP$7+EP82 -> 0 | EQ184: 0 | ER184: =ER$7+ER82 -> 0 | ES184: 0 | ET184: 0 | EU184: 0 | EV184: 0 | EW184: 0 | EX184: 0 | EY184: 0 | EZ184: 0 | FA184: 0 | FB184: 0 | FC184: =FC$7+FC82 -> 0
A185: 76 | B185: =IF($D185<=$B$6,STDEV(OFFSET(D185,0,2*$B$11-D185+$B$12):OFFSET(D185,0,2*$B$11-1+$B$12))/C185,"") ->  | C185: =IF($D185<=$B$6,AVERAGE(OFFSET(D185,0,2*$B$11-D185+$B$12):OFFSET(D185,0,2*$B$11-1+$B$12)),"") ->  | D185: 76 | E185: 1.9 | F185: =F$7+F83 -> 2.9 | G185: 3.9 | H185: 4.55 | I185: 5.2 | J185: 6.2 | K185: 7.2 | L185: 6.8 | M185: 6.4 | N185: 6.65 | O185: 6.9 | P185: 7.45 | Q185: 8 | R185: 7.55 | S185: 7.1 | T185: 7.55 | U185: 8 | V185: 8.55 | W185: 9.1 | X185: 10.43333333 | Y185: 11.76666667 | Z185: 13.1 | AA185: 11.76666667 | AB185: 10.43333333 | AC185: 9.1 | AD185: 8.55 | AE185: 8 | AF185: 7.55 | AG185: 7.1 | AH185: 7.55 | AI185: 8 | AJ185: 7.45 | AK185: 6.9 | AL185: 6.65 | AM185: 6.4 | AN185: 6.8 | AO185: 7.2 | AP185: 6.2 | AQ185: 5.2 | AR185: 4.55 | AS185: 3.9 | AT185: 2.9 | AU185: 1.9 | AV185: 0 | AW185: 0 | AX185: 0 | AY185: 0 | AZ185: 0 | BA185: 0 | BB185: 0 | BC185: 0 | BD185: 0 | BE185: 0 | BF185: 0 | BG185: 0 | BH185: 0 | BI185: 0 | BJ185: 0 | BK185: 0 | BL185: 0 | BM185: 0 | BN185: 0 | BO185: 0 | BP185: 0 | BQ185: 0 | BR185: =BR$7+BR83 -> 0 | BS185: 0 | BT185: 0 | BU185: 0 | BV185: 0 | BW185: 0 | BX185: 0 | BY185: 0 | BZ185: 0 | CA185: 0 | CB185: 0 | CC185: 1.9 | CD185: 2.9 | CE185: 3.9 | CF185: 4.55 | CG185: 5.2 | CH185: 6.2 | CI185: 7.2 | CJ185: 6.8 | CK185: 6.4 | CL185: 6.65 | CM185: 6.9 | CN185: 7.45 | CO185: 8 | CP185: 7.55 | CQ185: 7.1 | CR185: 7.55 | CS185: 8 | CT185: 8.55 | CU185: 9.1 | CV185: 10.43333333 | CW185: 11.76666667 | CX185: 13.1 | CY185: 11.76666667 | CZ185: 10.43333333 | DA185: 9.1 | DB185: 8.55 | DC185: 8 | DD185: 7.55 | DE185: 7.1 | DF185: 7.55 | DG185: 8 | DH185: 7.45 | DI185: 6.9 | DJ185: 6.65 | DK185: 6.4 | DL185: 6.8 | DM185: 7.2 | DN185: 6.2 | DO185: 5.2 | DP185: 4.55 | DQ185: 3.9 | DR185: 2.9 | DS185: 1.9 | DT185: 0 | DU185: 0 | DV185: 0 | DW185: 0 | DX185: 0 | DY185: 0 | DZ185: 0 | EA185: 0 | EB185: 0 | EC185: 0 | ED185: =ED$7+ED83 -> 0 | EE185: 0 | EF185: 0 | EG185: 0 | EH185: =EH$7+EH83 -> 0 | EI185: 0 | EJ185: =EJ$7+EJ83 -> 0 | EK185: 0 | EL185: =EL$7+EL83 -> 0 | EM185: 0 | EN185: =EN$7+EN83 -> 0 | EO185: 0 | EP185: =EP$7+EP83 -> 0 | EQ185: 0 | ER185: =ER$7+ER83 -> 0 | ES185: 0 | ET185: 0 | EU185: 0 | EV185: 0 | EW185: 0 | EX185: 0 | EY185: 0 | EZ185: 0 | FA185: 0 | FB185: 0 | FC185: 0 | FD185: =FD$7+FD83 -> 0
A186: 77 | B186: =IF($D186<=$B$6,STDEV(OFFSET(D186,0,2*$B$11-D186+$B$12):OFFSET(D186,0,2*$B$11-1+$B$12))/C186,"") ->  | C186: =IF($D186<=$B$6,AVERAGE(OFFSET(D186,0,2*$B$11-D186+$B$12):OFFSET(D186,0,2*$B$11-1+$B$12)),"") ->  | D186: 77 | E186: 1.9 | F186: =F$7+F84 -> 2.9 | G186: 3.9 | H186: 4.55 | I186: 5.2 | J186: 6.2 | K186: 7.2 | L186: 6.8 | M186: 6.4 | N186: 6.65 | O186: 6.9 | P186: 7.45 | Q186: 8 | R186: 7.55 | S186: 7.1 | T186: 7.55 | U186: 8 | V186: 8.55 | W186: 9.1 | X186: 10.43333333 | Y186: 11.76666667 | Z186: 13.1 | AA186: 11.76666667 | AB186: 10.43333333 | AC186: 9.1 | AD186: 8.55 | AE186: 8 | AF186: 7.55 | AG186: 7.1 | AH186: 7.55 | AI186: 8 | AJ186: 7.45 | AK186: 6.9 | AL186: 6.65 | AM186: 6.4 | AN186: 6.8 | AO186: 7.2 | AP186: 6.2 | AQ186: 5.2 | AR186: 4.55 | AS186: 3.9 | AT186: 2.9 | AU186: 1.9 | AV186: 0 | AW186: 0 | AX186: 0 | AY186: 0 | AZ186: 0 | BA186: 0 | BB186: 0 | BC186: 0 | BD186: 0 | BE186: 0 | BF186: 0 | BG186: 0 | BH186: 0 | BI186: 0 | BJ186: 0 | BK186: 0 | BL186: 0 | BM186: 0 | BN186: 0 | BO186: 0 | BP186: 0 | BQ186: 0 | BR186: =BR$7+BR84 -> 0 | BS186: 0 | BT186: 0 | BU186: 0 | BV186: 0 | BW186: 0 | BX186: 0 | BY186: 0 | BZ186: 0 | CA186: 0 | CB186: 0 | CC186: 0 | CD186: 1.9 | CE186: 2.9 | CF186: 3.9 | CG186: 4.55 | CH186: 5.2 | CI186: 6.2 | CJ186: 7.2 | CK186: 6.8 | CL186: 6.4 | CM186: 6.65 | CN186: 6.9 | CO186: 7.45 | CP186: 8 | CQ186: 7.55 | CR186: 7.1 | CS186: 7.55 | CT186: 8 | CU186: 8.55 | CV186: 9.1 | CW186: 10.43333333 | CX186: 11.76666667 | CY186: 13.1 | CZ186: 11.76666667 | DA186: 10.43333333 | DB186: 9.1 | DC186: 8.55 | DD186: 8 | DE186: 7.55 | DF186: 7.1 | DG186: 7.55 | DH186: 8 | DI186: 7.45 | DJ186: 6.9 | DK186: 6.65 | DL186: 6.4 | DM186: 6.8 | DN186: 7.2 | DO186: 6.2 | DP186: 5.2 | DQ186: 4.55 | DR186: 3.9 | DS186: 2.9 | DT186: 1.9 | DU186: 0 | DV186: 0 | DW186: 0 | DX186: 0 | DY186: 0 | DZ186: 0 | EA186: 0 | EB186: 0 | EC186: 0 | ED186: =ED$7+ED84 -> 0 | EE186: 0 | EF186: 0 | EG186: 0 | EH186: =EH$7+EH84 -> 0 | EI186: 0 | EJ186: =EJ$7+EJ84 -> 0 | EK186: 0 | EL186: =EL$7+EL84 -> 0 | EM186: 0 | EN186: =EN$7+EN84 -> 0 | EO186: 0 | EP186: =EP$7+EP84 -> 0 | EQ186: 0 | ER186: =ER$7+ER84 -> 0 | ES186: 0 | ET186: 0 | EU186: 0 | EV186: 0 | EW186: 0 | EX186: 0 | EY186: 0 | EZ186: 0 | FA186: 0 | FB186: 0 | FC186: 0 | FD186: 0 | FE186: =FE$7+FE84 -> 0
A187: 78 | B187: =IF($D187<=$B$6,STDEV(OFFSET(D187,0,2*$B$11-D187+$B$12):OFFSET(D187,0,2*$B$11-1+$B$12))/C187,"") ->  | C187: =IF($D187<=$B$6,AVERAGE(OFFSET(D187,0,2*$B$11-D187+$B$12):OFFSET(D187,0,2*$B$11-1+$B$12)),"") ->  | D187: 78 | E187: 1.9 | F187: =F$7+F85 -> 2.9 | G187: 3.9 | H187: 4.55 | I187: 5.2 | J187: 6.2 | K187: 7.2 | L187: 6.8 | M187: 6.4 | N187: 6.65 | O187: 6.9 | P187: 7.45 | Q187: 8 | R187: 7.55 | S187: 7.1 | T187: 7.55 | U187: 8 | V187: 8.55 | W187: 9.1 | X187: 10.43333333 | Y187: 11.76666667 | Z187: 13.1 | AA187: 11.76666667 | AB187: 10.43333333 | AC187: 9.1 | AD187: 8.55 | AE187: 8 | AF187: 7.55 | AG187: 7.1 | AH187: 7.55 | AI187: 8 | AJ187: 7.45 | AK187: 6.9 | AL187: 6.65 | AM187: 6.4 | AN187: 6.8 | AO187: 7.2 | AP187: 6.2 | AQ187: 5.2 | AR187: 4.55 | AS187: 3.9 | AT187: 2.9 | AU187: 1.9 | AV187: 0 | AW187: 0 | AX187: 0 | AY187: 0 | AZ187: 0 | BA187: 0 | BB187: 0 | BC187: 0 | BD187: 0 | BE187: 0 | BF187: 0 | BG187: 0 | BH187: 0 | BI187: 0 | BJ187: 0 | BK187: 0 | BL187: 0 | BM187: 0 | BN187: 0 | BO187: 0 | BP187: 0 | BQ187: 0 | BR187: =BR$7+BR85 -> 0 | BS187: 0 | BT187: 0 | BU187: 0 | BV187: 0 | BW187: 0 | BX187: 0 | BY187: 0 | BZ187: 0 | CA187: 0 | CB187: 0 | CC187: 0 | CD187: 0 | CE187: 1.9 | CF187: 2.9 | CG187: 3.9 | CH187: 4.55 | CI187: 5.2 | CJ187: 6.2 | CK187: 7.2 | CL187: 6.8 | CM187: 6.4 | CN187: 6.65 | CO187: 6.9 | CP187: 7.45 | CQ187: 8 | CR187: 7.55 | CS187: 7.1 | CT187: 7.55 | CU187: 8 | CV187: 8.55 | CW187: 9.1 | CX187: 10.43333333 | CY187: 11.76666667 | CZ187: 13.1 | DA187: 11.76666667 | DB187: 10.43333333 | DC187: 9.1 | DD187: 8.55 | DE187: 8 | DF187: 7.55 | DG187: 7.1 | DH187: 7.55 | DI187: 8 | DJ187: 7.45 | DK187: 6.9 | DL187: 6.65 | DM187: 6.4 | DN187: 6.8 | DO187: 7.2 | DP187: 6.2 | DQ187: 5.2 | DR187: 4.55 | DS187: 3.9 | DT187: 2.9 | DU187: 1.9 | DV187: 0 | DW187: 0 | DX187: 0 | DY187: 0 | DZ187: 0 | EA187: 0 | EB187: 0 | EC187: 0 | ED187: =ED$7+ED85 -> 0 | EE187: 0 | EF187: 0 | EG187: 0 | EH187: =EH$7+EH85 -> 0 | EI187: 0 | EJ187: =EJ$7+EJ85 -> 0 | EK187: 0 | EL187: =EL$7+EL85 -> 0 | EM187: 0 | EN187: =EN$7+EN85 -> 0 | EO187: 0 | EP187: =EP$7+EP85 -> 0 | EQ187: 0 | ER187: =ER$7+ER85 -> 0 | ES187: 0 | ET187: 0 | EU187: 0 | EV187: 0 | EW187: 0 | EX187: 0 | EY187: 0 | EZ187: 0 | FA187: 0 | FB187: 0 | FC187: 0 | FD187: 0 | FE187: =FE$7+FE85 -> 0 | FF187: =FF$7+FF85 -> 0
A188: 79 | B188: =IF($D188<=$B$6,STDEV(OFFSET(D188,0,2*$B$11-D188+$B$12):OFFSET(D188,0,2*$B$11-1+$B$12))/C188,"") ->  | C188: =IF($D188<=$B$6,AVERAGE(OFFSET(D188,0,2*$B$11-D188+$B$12):OFFSET(D188,0,2*$B$11-1+$B$12)),"") ->  | D188: =D85 -> 79 | E188: 1.9 | F188: =F$7+F86 -> 2.9 | G188: 3.9 | H188: 4.55 | I188: 5.2 | J188: 6.2 | K188: 7.2 | L188: 6.8 | M188: 6.4 | N188: 6.65 | O188: 6.9 | P188: 7.45 | Q188: 8 | R188: 7.55 | S188: 7.1 | T188: 7.55 | U188: 8 | V188: 8.55 | W188: 9.1 | X188: 10.43333333 | Y188: 11.76666667 | Z188: 13.1 | AA188: 11.76666667 | AB188: 10.43333333 | AC188: 9.1 | AD188: 8.55 | AE188: 8 | AF188: 7.55 | AG188: 7.1 | AH188: 7.55 | AI188: 8 | AJ188: 7.45 | AK188: 6.9 | AL188: 6.65 | AM188: 6.4 | AN188: 6.8 | AO188: 7.2 | AP188: 6.2 | AQ188: 5.2 | AR188: 4.55 | AS188: 3.9 | AT188: 2.9 | AU188: 1.9 | AV188: 0 | AW188: 0 | AX188: 0 | AY188: 0 | AZ188: 0 | BA188: 0 | BB188: 0 | BC188: 0 | BD188: 0 | BE188: 0 | BF188: 0 | BG188: 0 | BH188: 0 | BI188: 0 | BJ188: 0 | BK188: 0 | BL188: 0 | BM188: 0 | BN188: 0 | BO188: 0 | BP188: 0 | BQ188: 0 | BR188: =BR$7+BR86 -> 0 | BS188: 0 | BT188: 0 | BU188: 0 | BV188: 0 | BW188: 0 | BX188: 0 | BY188: 0 | BZ188: 0 | CA188: 0 | CB188: 0 | CC188: 0 | CD188: 0 | CE188: 0 | CF188: 1.9 | CG188: 2.9 | CH188: 3.9 | CI188: 4.55 | CJ188: 5.2 | CK188: 6.2 | CL188: 7.2 | CM188: 6.8 | CN188: 6.4 | CO188: 6.65 | CP188: 6.9 | CQ188: 7.45 | CR188: 8 | CS188: 7.55 | CT188: 7.1 | CU188: 7.55 | CV188: 8 | CW188: 8.55 | CX188: 9.1 | CY188: 10.43333333 | CZ188: 11.76666667 | DA188: 13.1 | DB188: 11.76666667 | DC188: 10.43333333 | DD188: 9.1 | DE188: 8.55 | DF188: 8 | DG188: 7.55 | DH188: 7.1 | DI188: 7.55 | DJ188: 8 | DK188: 7.45 | DL188: 6.9 | DM188: 6.65 | DN188: 6.4 | DO188: 6.8 | DP188: 7.2 | DQ188: 6.2 | DR188: 5.2 | DS188: 4.55 | DT188: 3.9 | DU188: 2.9 | DV188: 1.9 | DW188: 0 | DX188: 0 | DY188: 0 | DZ188: 0 | EA188: 0 | EB188: 0 | EC188: 0 | ED188: =ED$7+ED86 -> 0 | EE188: 0 | EF188: 0 | EG188: 0 | EH188: =EH$7+EH86 -> 0 | EI188: 0 | EJ188: =EJ$7+EJ86 -> 0 | EK188: 0 | EL188: =EL$7+EL86 -> 0 | EM188: 0 | EN188: =EN$7+EN86 -> 0 | EO188: 0 | EP188: =EP$7+EP86 -> 0 | EQ188: 0 | ER188: =ER$7+ER86 -> 0 | ES188: 0 | ET188: 0 | EU188: 0 | EV188: 0 | EW188: 0 | EX188: 0 | EY188: 0 | EZ188: 0 | FA188: 0 | FB188: 0 | FC188: 0 | FD188: 0 | FE188: =FE$7+FE86 -> 0 | FF188: =FF$7+FF86 -> 0 | FG188: =FG$7+FG86 -> 0
A189: 80 | B189: =IF($D189<=$B$6,STDEV(OFFSET(D189,0,2*$B$11-D189+$B$12):OFFSET(D189,0,2*$B$11-1+$B$12))/C189,"") ->  | C189: =IF($D189<=$B$6,AVERAGE(OFFSET(D189,0,2*$B$11-D189+$B$12):OFFSET(D189,0,2*$B$11-1+$B$12)),"") ->  | D189: 80 | E189: 1.9 | F189: =F$7+F87 -> 2.9 | G189: 3.9 | H189: 4.55 | I189: 5.2 | J189: 6.2 | K189: 7.2 | L189: 6.8 | M189: 6.4 | N189: 6.65 | O189: 6.9 | P189: 7.45 | Q189: 8 | R189: 7.55 | S189: 7.1 | T189: 7.55 | U189: 8 | V189: 8.55 | W189: 9.1 | X189: 10.43333333 | Y189: 11.76666667 | Z189: 13.1 | AA189: 11.76666667 | AB189: 10.43333333 | AC189: 9.1 | AD189: 8.55 | AE189: 8 | AF189: 7.55 | AG189: 7.1 | AH189: 7.55 | AI189: 8 | AJ189: 7.45 | AK189: 6.9 | AL189: 6.65 | AM189: 6.4 | AN189: 6.8 | AO189: 7.2 | AP189: 6.2 | AQ189: 5.2 | AR189: 4.55 | AS189: 3.9 | AT189: 2.9 | AU189: 1.9 | AV189: 0 | AW189: 0 | AX189: 0 | AY189: 0 | AZ189: 0 | BA189: 0 | BB189: 0 | BC189: 0 | BD189: 0 | BE189: 0 | BF189: 0 | BG189: 0 | BH189: 0 | BI189: 0 | BJ189: 0 | BK189: 0 | BL189: 0 | BM189: 0 | BN189: 0 | BO189: 0 | BP189: 0 | BQ189: 0 | BR189: =BR$7+BR87 -> 0 | BS189: 0 | BT189: 0 | BU189: 0 | BV189: 0 | BW189: 0 | BX189: 0 | BY189: 0 | BZ189: 0 | CA189: 0 | CB189: 0 | CC189: 0 | CD189: 0 | CE189: 0 | CF189: 0 | CG189: 1.9 | CH189: 2.9 | CI189: 3.9 | CJ189: 4.55 | CK189: 5.2 | CL189: 6.2 | CM189: 7.2 | CN189: 6.8 | CO189: 6.4 | CP189: 6.65 | CQ189: 6.9 | CR189: 7.45 | CS189: 8 | CT189: 7.55 | CU189: 7.1 | CV189: 7.55 | CW189: 8 | CX189: 8.55 | CY189: 9.1 | CZ189: 10.43333333 | DA189: 11.76666667 | DB189: 13.1 | DC189: 11.76666667 | DD189: 10.43333333 | DE189: 9.1 | DF189: 8.55 | DG189: 8 | DH189: 7.55 | DI189: 7.1 | DJ189: 7.55 | DK189: 8 | DL189: 7.45 | DM189: 6.9 | DN189: 6.65 | DO189: 6.4 | DP189: 6.8 | DQ189: 7.2 | DR189: 6.2 | DS189: 5.2 | DT189: 4.55 | DU189: 3.9 | DV189: 2.9 | DW189: 1.9 | DX189: 0 | DY189: 0 | DZ189: 0 | EA189: 0 | EB189: 0 | EC189: 0 | ED189: =ED$7+ED87 -> 0 | EE189: 0 | EF189: 0 | EG189: 0 | EH189: =EH$7+EH87 -> 0 | EI189: 0 | EJ189: =EJ$7+EJ87 -> 0 | EK189: 0 | EL189: =EL$7+EL87 -> 0 | EM189: 0 | EN189: =EN$7+EN87 -> 0 | EO189: 0 | EP189: =EP$7+EP87 -> 0 | EQ189: 0 | ER189: =ER$7+ER87 -> 0 | ES189: 0 | ET189: 0 | EU189: 0 | EV189: 0 | EW189: 0 | EX189: 0 | EY189: 0 | EZ189: 0 | FA189: 0 | FB189: 0 | FC189: 0 | FD189: 0 | FE189: =FE$7+FE87 -> 0 | FF189: =FF$7+FF87 -> 0 | FG189: =FG$7+FG87 -> 0 | FH189: =FH$7+FH87 -> 0
A190: 81 | B190: =IF($D190<=$B$6,STDEV(OFFSET(D190,0,2*$B$11-D190+$B$12):OFFSET(D190,0,2*$B$11-1+$B$12))/C190,"") ->  | C190: =IF($D190<=$B$6,AVERAGE(OFFSET(D190,0,2*$B$11-D190+$B$12):OFFSET(D190,0,2*$B$11-1+$B$12)),"") ->  | D190: 81 | E190: 1.9 | F190: =F$7+F88 -> 2.9 | G190: 3.9 | H190: 4.55 | I190: 5.2 | J190: 6.2 | K190: 7.2 | L190: 6.8 | M190: 6.4 | N190: 6.65 | O190: 6.9 | P190: 7.45 | Q190: 8 | R190: 7.55 | S190: 7.1 | T190: 7.55 | U190: 8 | V190: 8.55 | W190: 9.1 | X190: 10.43333333 | Y190: 11.76666667 | Z190: 13.1 | AA190: 11.76666667 | AB190: 10.43333333 | AC190: 9.1 | AD190: 8.55 | AE190: 8 | AF190: 7.55 | AG190: 7.1 | AH190: 7.55 | AI190: 8 | AJ190: 7.45 | AK190: 6.9 | AL190: 6.65 | AM190: 6.4 | AN190: 6.8 | AO190: 7.2 | AP190: 6.2 | AQ190: 5.2 | AR190: 4.55 | AS190: 3.9 | AT190: 2.9 | AU190: 1.9 | AV190: 0 | AW190: 0 | AX190: 0 | AY190: 0 | AZ190: 0 | BA190: 0 | BB190: 0 | BC190: 0 | BD190: 0 | BE190: 0 | BF190: 0 | BG190: 0 | BH190: 0 | BI190: 0 | BJ190: 0 | BK190: 0 | BL190: 0 | BM190: 0 | BN190: 0 | BO190: 0 | BP190: 0 | BQ190: 0 | BR190: =BR$7+BR88 -> 0 | BS190: 0 | BT190: 0 | BU190: 0 | BV190: 0 | BW190: 0 | BX190: 0 | BY190: 0 | BZ190: 0 | CA190: 0 | CB190: 0 | CC190: 0 | CD190: 0 | CE190: 0 | CF190: 0 | CG190: 0 | CH190: 1.9 | CI190: 2.9 | CJ190: 3.9 | CK190: 4.55 | CL190: 5.2 | CM190: 6.2 | CN190: 7.2 | CO190: 6.8 | CP190: 6.4 | CQ190: 6.65 | CR190: 6.9 | CS190: 7.45 | CT190: 8 | CU190: 7.55 | CV190: 7.1 | CW190: 7.55 | CX190: 8 | CY190: 8.55 | CZ190: 9.1 | DA190: 10.43333333 | DB190: 11.76666667 | DC190: 13.1 | DD190: 11.76666667 | DE190: 10.43333333 | DF190: 9.1 | DG190: 8.55 | DH190: 8 | DI190: 7.55 | DJ190: 7.1 | DK190: 7.55 | DL190: 8 | DM190: 7.45 | DN190: 6.9 | DO190: 6.65 | DP190: 6.4 | DQ190: 6.8 | DR190: 7.2 | DS190: 6.2 | DT190: 5.2 | DU190: 4.55 | DV190: 3.9 | DW190: 2.9 | DX190: 1.9 | DY190: 0 | DZ190: 0 | EA190: 0 | EB190: 0 | EC190: 0 | ED190: =ED$7+ED88 -> 0 | EE190: 0 | EF190: 0 | EG190: 0 | EH190: =EH$7+EH88 -> 0 | EI190: 0 | EJ190: =EJ$7+EJ88 -> 0 | EK190: 0 | EL190: =EL$7+EL88 -> 0 | EM190: 0 | EN190: =EN$7+EN88 -> 0 | EO190: 0 | EP190: =EP$7+EP88 -> 0 | EQ190: 0 | ER190: =ER$7+ER88 -> 0 | ES190: 0 | ET190: 0 | EU190: 0 | EV190: 0 | EW190: 0 | EX190: 0 | EY190: 0 | EZ190: 0 | FA190: 0 | FB190: 0 | FC190: 0 | FD190: 0 | FE190: =FE$7+FE88 -> 0 | FF190: =FF$7+FF88 -> 0 | FG190: =FG$7+FG88 -> 0 | FH190: =FH$7+FH88 -> 0 | FI190: =FI$7+FI88 -> 0
